Workbook

Sheet Index
A1: Index | D1: NLT Return for Classes 3-9 and 11
A4: Throughout this return, 'Regulation' refers to the Insurance (Non Long-Term Business Valuation and Solvency) Regulations 2021 unless stated otherwise.
A6: Where applicable, the terms used in this form should be taken to have the same meaning as defined in the Regulations.
A8: This return should be completed by a Class 3 to 9 or 11 insurer for assets and liabilities relating to all of its lines of business.
A10: This return must be completed in the insurer's reporting currency.
A12: When expressing the value of any asset or liability denominated in a currency other than the reporting currency, the value must be converted into the reporting currency as if the conversion had taken place at the closing exchange rate on the last day for which the appropriate rate is available in the reporting period to which the asset or liability relates.
A14: The conversion into the reporting currency must be calculated by applying the exchange rate from the same source as that used for the insurer's financial statements.
A16: An offence may be committed under s52 of the Insurance Act 2008 for failing to supply any information required by the Authority, or for supplying false or misleading information.
A18: For the annual return, a copy of this index tab must be printed, signed and attached to the Auditor's Report required to be submitted to the Authority under the Insurance Regulations 2021, for the relevant reporting period.
A20: Instruction Notes
A21: 1. Figures should be reported in thousands (for example £10,504,603.00 is entered as 10504.603 and will appear as 10,504.603).
A22: 2. Figures entered in the accounting basis column must always reconcile to the figures in the financial statements used as a basis of preparing the return.
A23: 3. Where there are differences between the accounting basis column and the regulatory basis column, commentary must be provided to explain the difference.
A24: 4. Where the same data is required in different tabs/worksheets, the figures entered should be reconcile. For example, reinsurance recoverables on the regulatory basis entered in the RBS-Assets tab must reconcile to both the reinsurance recoverables on the regulatory basis entered in the RBS – Direct TPs tab and the reinsurance recoverables entered in the counterparty default helper tab.
A25: 5. Where an insurer has a valid pay-as-paid clause in place, the regulatory balance sheet should be completed without taking the clause into account. The risk mitgation of the clause is taken into account in the counterparty default helper tab.
F29: Key
B30: Released Date | C30: 2022-05-12
F31: Input Cell
F33: Formula Cell
F35: Input from helper tab
F37: Fixed value cell
F39: Fixed value cell
F41: * Click on cell for information
B44: Tab | D44: Content | F44: Quarterly or Annual Return | H44: Included in scope of Reasonable Assurance in annual audit
B46: Participant Information | D46: Information about the insurer | F46: Quarterly & Annual | H46: No
B48: RBS - Assets | D48: Information on the regulatory balance sheet value of assets backing non-life business on the insurer's accounting basis and on the regulatory basis. | F48: Quarterly & Annual | H48: Yes
B50: RBS - Direct TPs | D50: Information on the regulatory balance sheet value of technical provisions for directly written liabilities on the insurer's accounting basis and on the regulatory basis. | F50: Quarterly & Annual | H50: Yes
B52: RBS - Reins TPs | D52: Information on the regulatory balance sheet value of technical provisions for reinsured liabilities on the insurer's accounting basis and on the regulatory basis. | F52: Quarterly & Annual | H52: Yes
B54: RBS - Other Liab | D54: Information on the regulatory balance sheet value of technical provisions for other liabilities on the insurer's accounting basis and on the regulatory basis. | F54: Quarterly & Annual | H54: Yes
B56: RBS-Risk Margin | D56: Information on the regulatory balance sheet value of the risk margin. | F56: Quarterly & Annual | H56: Yes
B58: RBS - Capital | D58: Information on the regulatory balance sheet value of capital on the insurer's accounting basis and on the regulatory basis. | F58: Quarterly & Annual | H58: Yes
B59: Quarterly Accounting Info | D59: Additional information required from the insurer's financial statements. | F59: Quarterly & Annual | H59: Yes
B61: Own Funds | D61: Determines eligible own funds to cover the SCR. | F61: Quarterly & Annual | H61: Yes
B63: Market Risk Inputs | D63: Inputs for the market risk capital requirement. | F63: Quarterly & Annual | H63: Yes
B65: Spread Risk | D65: Calculation of the spread risk capital requirement. | F65: Quarterly & Annual | H65: Yes
B67: Counterparty Default Risk | D67: Calculation of the counterparty default risk capital requirement. | F67: Quarterly & Annual | H67: Yes
B69: Premium and Reserve Risk | D69: Calculation of the premium and reserve risk capital requirement. | F69: Quarterly & Annual | H69: Yes
B71: Geographical Diversification | D71: Calculation of geographical diversification for premium and reserve risk. | F71: Quarterly & Annual | H71: Yes
B73: Lapse Risk | D73: Calculation of the lapse risk capital requirement. | F73: Quarterly & Annual | H73: Yes
B75: Health Prem & Reserve Risk | D75: Calculation of the NSLT health premium and reserve risk capital requirement. | F75: Quarterly & Annual | H75: Yes
B77: Health Geo Diversification | D77: Calculation of geographical diversification for NSLT health premium and reserve risk. | F77: Quarterly & Annual | H77: Yes
B79: Health Lapse Risk | D79: Calculation of the NSLT health lapse risk capital requirement. | F79: Quarterly & Annual | H79: Yes
B81: Health Catastrophe Risk | D81: Calculation of the NSLT health catastrophe risk capital requirement. | F81: Quarterly & Annual | H81: Yes
B83: Market Risk | D83: Calculation of the market risk capital requirement. | F83: Quarterly & Annual | H83: Yes
B85: Underwriting Risk | D85: Calculation of the underwriting risk capital requirement. | F85: Quarterly & Annual | H85: Yes
B87: NSLT Health Risk | D87: Calculation of the NSLT health risk capital requirement. | F87: Quarterly & Annual | H87: Yes
B89: Ring-Fenced Fund Adjustment | D89: Adjustment to the diversification benefit of the SCR and to tier 1 own-funds if an insurer has ring-fenced funds. | F89: Quarterly & Annual | H89: Yes
B91: SCR Summary | D91: Calculation of the insurer's solvency capital requirement; summary of capital resources and the related SCR coverage ratio. | F91: Quarterly & Annual | H91: Yes
B93: MCR Summary | D93: Calculation of the insurer's minimum capital requirement. | F93: Quarterly & Annual | H93: Yes
B95: Change Analysis | D95: Analysis of the movement in regulatory balance sheet, SCR and MCR over the reporting period. | F95: Quarterly & Annual | H95: No
B97: Supporting Material | D97: Requirement for the provision of a narative summary document and supporting schematic diagram of the insurer's insurance program written during the accounting period of its accompanying audited accounts, and a narrative summary/schematic of the insurer's insurance program written and expected to be written (as applicable) during the subsequent 12 months. The second summary/schematic may, if appropriate, be limited to contain only material changes from the first summary/schematic. The summaries are also required to include information on any reinsurance purchased, any relevant contingent funding or liability reduction contractual clauses and any material factors likely to impact the insurance program. | F97: Annual | H97: No
B99: Summary of Single Exposures | D99: In this Tab, TABLE 1 relates to business written by the insurer during the accounting period of its accompanying audited accounts. TABLE 2 relates to business written and expected to be written (as applicable) during the following 12 months. Each table requires information for each line of business on the insurer's highest written single loss/event (gross and net exposures), and (where different) the insurer's highest single loss/event retentions. | F99: Annual | H99: No
B101: 12_Month_Forecast | D101: A high level summary by class of business of the insurer's forecast insurance programme for the 12 months following the accounting period of its accompanying audited accounts. It includes information on total gross premiums, total net premiums, total probable maximum losses and total expected claims. It also calculates simple loss ratios, identifies the risk gap (based on probable maximum losses) being taken on in the forecast period and asks for additional information on any foreseeable changes in funding levels. | F101: Annual | H101: No
B103: Large Claims | D103: Information about any large claims exceeding 20% of the insurer's net assets, and how they have developed and/or settled over the accounting period of the attached audited accounts. | F103: Annual | H103: No
B105: Security Supporting Obligations | D105: Information on security provided directly or indirectly to guarantee that the insurer's insurance obligations are met. | F105: Annual | H105: No
B107: Annual Accounting Info | D107: Contains certain additional information requirements. | F107: Annual | H107: Yes
B109: Data | D109: Information only. | F109: N/A | H109: N/A

Sheet Background
A1: Background
A4: Regulatory Balance Sheet
A5: The regulatory balance sheet consists of assets, technical provisions, other liabilities, and solvency capital requirements.
A6: The diagram below illustrates solvency control levels and their relationship with solvency capital requirements.
A25: SCR Construction
A26: The SCR consists of a number of different shock scenarios, collected together in different sub-groups:
B28: Market Risk | C28: Counterparty Default Risk | D28: Non-Life/Health Underwriting Risks | E28: Operational Risk
B29: Interest Rate risk | C29: Type 1 Default risk | D29: Premium & Reserve risk | E29: Operational risk
B30: Equity risk | C30: Type 2 Default risk | D30: Lapse risk
B31: Property risk | D31: Catastrophe risk
B32: Currency risk
B33: Spread risk
B34: Concentration risk
A36: Each risk within a sub-group is aggregated together to make a capital requirement for that sub-group, allowing for the diversification benefits between each individual risk category.
A38: The capital requirements for each sub-group are then further aggregated to make an overall capital requirement, again, allowing for the diversification benefits between each sub-group.

Sheet Participant Information
A1: Participant Information
B9: Classes 3-9&11 Non-Long-Term Business Insurance Return
B10: Firm Information | D10: Return Version Number | E10: V0.01
B11: Firm Name | D11: Return Reporting Currency | E11: United Kingdom Pound
B12: Date Return From (dd/mm/yyyy) | C12: 2022-01-01 | D12: Date Return To (dd/mm/yyyy) | E12: 2022-12-31
B14: Firm Declaration
B15: We are authorised by ('the Firm') to make this Return on behalf of the Firm.
B16: We declare that the information supplied in this return is complete and accurate to the best of our knowledge and belief.
B17: Return Signed Off by 1: | D17: Return Signed Off by 2:
B18: Position: | D18: Position:
B19: Firm Name: | D19: Firm Name:
B20: Date (dd/mm/yyyy): | D20: Date (dd/mm/yyyy):
B22: Comments
B25: An offence may be committed under s52 of the Insurance Act 2008 for failing to supply any information required by the Authority, or for supplying false or misleading information.
B27: 🔒 Data Protection Notice The Authority is registered with the Information Commissioner as a data controller under Isle of Man data protection legislation. The Authority collects and processes personal data to carry out its functions under relevant legislation and may share personal data with other parties where there is a legal basis for doing so. Information on how the Authority collects and processes personal data can be found in the Privacy Policy on the Authority’s website: https://www.iomfsa.im/terms-conditions/privacy-policy/ Please call +44 (0)1624 646000 if you have any queries.

Sheet RBS - Assets
A1: RBS - Assets
B5: Balance Sheet - Assets | D5: Accounting basis * | F5: Regulatory basis * | K5: Please add an explanation where the regulatory basis differs from accounting basis
D6: '000 | F6: '000
B8: Fixed Assets
B10: Goodwill | D10: 0 | F10: 0
B11: Other intangible assets | D11: 0 | F11: 0
B12: Property, plant & equipment held for own use | D12: 0 | F12: 0
B14: Total | D14: =SUM(D10:D12) -> 0 | F14: =SUM(F10:F12) -> 0
B16: Investments
B18: Property (inc. land, buildings, immovable property rights excluding property investment for insurer's own use) | D18: 0 | F18: 0
B19: Participations (constituted by share ownership or by the exertion of a dominant or significant influence over another entity) | D19: 0 | F19: 0
B20: Type 1 equities (equities listed in regulated markets in countries which are members of the EEA or OCED including Participations that are equity holding meeting this criteria) | D20: 0 | F20: 0
B21: Type 2 equities (listed equities that are not type 1 equities,not listed, hedge funds, commodities, Participations that are equity holdings that are not type 1 equity holdings, and any assets where look-through was not possible.) | D21: 0 | F21: 0
B22: Eligible government bonds (and bonds issued by other institutions that meet the eligibility requirements) | D22: 0 | F22: 0
B23: Bonds - Corporate (including all types of asset backed securities) | D23: 0 | F23: 0
B24: Other credit risky assets (incl. corporate bonds, money market Instruments subordinated debt instruments, securitsation positions, credit derivatives other than for hedging purposes and Participations that are subordinated liability holdings) | D24: 0 | F24: 0
B25: Structured notes | D25: 0 | F25: 0
B26: Any type of investment in group/related entities (e.g, discount notes issued by a related party, deposits in a bank which is also a related entity etc.) other than loans and participations. | D26: 0 | F26: 0
B27: Credit Derivatives (for hedging purposes)
B28: Futures
B29: Call Options
B30: Put Options
B31: Swaps
B32: Forwards
B33: Long term bank deposits (duration more than 1 year)
B34: Other investments (note will be included within Type 2 equity market stress)
B36: Total | D36: =SUM(D18:D27,D33:D34) -> 0 | F36: =SUM(F18:F27,F33:F34) -> 0
B38: Mortgages and loans made
B40: Loans made to unrelated entities (both collateralised and uncollateralised and including loans on policies) | D40: 0 | F40: 0
B41: Loans made to group/related entities | D41: 0 | F41: 0
B42: Collateralised loans made (other than loans on policies)
B43: Loans on policies
B45: Total | D45: =SUM(D40:D43) -> 0 | F45: =SUM(F40:F43) -> 0
B47: Reinsurance recoverables
B49: Reinsurance recoverables (including share of premium reserves, claim reserves and other recoverables) | D49: 0 | F49: 0
B50: Reinsurance share of claim reserves
B51: Other reinsurance recoverables
B53: Total | D53: =SUM(D49:D51) -> 0 | F53: =SUM(F49:F51) -> 0
B55: Other Assets
B57: SPV recoverables
B58: Receivables/recoverables (other than reinsurance) | D58: 0 | F58: 0
B59: Receivables (other than reinsurance) | D59: 0
B60: Deferred acquisition costs | D60: 0 | F60: 0
B61: Prepayments made, deferred expenses etc. | D61: 0 | F61: 0
B62: Deposits with ceding insurers or other similar arrangements (e.g, escrow accounts) | D62: 0 | F62: 0
B63: Cash and cash equivalents (duration less than 5 days with no penalties on withdrawal) | D63: 0 | F63: 0
B64: Other bank deposits, notice accounts or similar (duration greater than 5 days) | D64: 0 | F64: 0
B65: Amounts due in respect of called but unpaid capital | D65: 0 | F65: 0
B66: Other assets, not shown elsewhere (note will be included within Type 2 equity market stress) | D66: 0 | F66: 0
B68: Total | D68: =SUM(D57:D66) -> 0 | F68: =SUM(F57:F66) -> 0
B70: Total Assets
B72: TOTAL | D72: =SUM(D14,D36,D45,D53,D68) -> 0 | F72: =SUM(F14,F36,F45,F53,F68) -> 0
B75: SCR Stress Key:

Sheet RBS - Direct TPs
A1: RBS - Direct TPs
B5: Balance Sheet - Direct Written Liabilities | D5: Accounting basis | F5: Regulatory Basis | I5: Reinsurance recoverables - regulatory basis * | M5: Please add an explanation where the regulatory basis differs from accounting basis
D7: '000 | F7: '000
B9: TPs - 1 - Motor vehicle liability insurance
B11: Premium reserves | D11: 0 | F11: 0
B12: Claim Reserves | D12: 0 | F12: 0 | J12: 0
B13: Best Estimate Provision | D13: =SUM(D11:D12) -> 0 | F13: =SUM(F11:F12) -> 0
B14: Risk Margin | D14: 0 | F14: 0
B16: Total | D16: =SUM(D13:D14) -> 0 | F16: =SUM(F13:F14) -> 0
B18: TPs - 2 - Other motor insurance
B20: Premium reserves | D20: 0 | F20: 0
B21: Claim Reserves | D21: 0 | F21: 0 | J21: 0
B22: Best Estimate Provision | D22: =SUM(D20:D21) -> 0 | F22: =SUM(F20:F21) -> 0
B23: Risk Margin | D23: 0 | F23: 0
B25: Total | D25: =SUM(D22:D23) -> 0 | F25: =SUM(F22:F23) -> 0
B27: TPs - 3 - Marine, aviation & transport (MAT) insurance
B29: Premium reserves | D29: 0 | F29: 0
B30: Claim Reserves | D30: 0 | F30: 0 | J30: 0
B31: Best Estimate Provision | D31: =SUM(D29:D30) -> 0 | F31: =SUM(F29:F30) -> 0
B32: Risk Margin | D32: 0 | F32: 0
B34: Total | D34: =SUM(D31:D32) -> 0 | F34: =SUM(F31:F32) -> 0
B36: TPs - 4 - Fire & other damage to property insurance
B38: Premium reserves | D38: 0 | F38: 0
B39: Claim Reserves | D39: 0 | F39: 0 | J39: 0
B40: Best Estimate Provision | D40: =SUM(D38:D39) -> 0 | F40: =SUM(F38:F39) -> 0
B41: Risk Margin | D41: 0 | F41: 0
B43: Total | D43: =SUM(D40:D41) -> 0 | F43: =SUM(F40:F41) -> 0
B45: TPs - 5 - General liability insurance
B47: Premium reserves | D47: 0 | F47: 0
B48: Claim Reserves | D48: 0 | F48: 0 | J48: 0
B49: Best Estimate Provision | D49: =SUM(D47:D48) -> 0 | F49: =SUM(F47:F48) -> 0
B50: Risk Margin | D50: 0 | F50: 0
B52: Total | D52: =SUM(D49:D50) -> 0 | F52: =SUM(F49:F50) -> 0
B54: TPs - 6 - Credit & Suretyship insurance
B56: Premium reserves | D56: 0 | F56: 0
B57: Claim Reserves | D57: 0 | F57: 0 | J57: 0
B58: Best Estimate Provision | D58: =SUM(D56:D57) -> 0 | F58: =SUM(F56:F57) -> 0
B59: Risk Margin | D59: 0 | F59: 0
B61: Total | D61: =SUM(D58:D59) -> 0 | F61: =SUM(F58:F59) -> 0
B63: TPs - 7 - Legal expenses insurance
B65: Premium reserves | D65: 0 | F65: 0
B66: Claim Reserves | D66: 0 | F66: 0 | J66: 0
B67: Best Estimate Provision | D67: =SUM(D65:D66) -> 0 | F67: =SUM(F65:F66) -> 0
B68: Risk Margin | D68: 0 | F68: 0
B70: Total | D70: =SUM(D67:D68) -> 0 | F70: =SUM(F67:F68) -> 0
B72: TPs - 8 - Assistance insurance
B74: Premium reserves | D74: 0 | F74: 0
B75: Claim Reserves | D75: 0 | F75: 0 | J75: 0
B76: Best Estimate Provision | D76: =SUM(D74:D75) -> 0 | F76: =SUM(F74:F75) -> 0
B77: Risk Margin | D77: 0 | F77: 0
B79: Total | D79: =SUM(D76:D77) -> 0 | F79: =SUM(F76:F77) -> 0
B81: TPs - 9 - Miscellaneous financial loss insurance
B83: Premium reserves | D83: 0 | F83: 0
B84: Claim Reserves | D84: 0 | F84: 0 | J84: 0
B85: Best Estimate Provision | D85: =SUM(D83:D84) -> 0 | F85: =SUM(F83:F84) -> 0
B86: Risk Margin | D86: 0 | F86: 0
B88: Total | D88: =SUM(D85:D86) -> 0 | F88: =SUM(F85:F86) -> 0
B90: TPs - 10 - Medical expense insurance
B92: Premium reserves | D92: 0 | F92: 0
B93: Claim Reserves | D93: 0 | F93: 0 | J93: 0
B94: Best Estimate Provision | D94: =SUM(D92:D93) -> 0 | F94: =SUM(F92:F93) -> 0
B95: Risk Margin | D95: 0 | F95: 0
B97: Total | D97: =SUM(D94:D95) -> 0 | F97: =SUM(F94:F95) -> 0
B99: TPs - 11 - Income protection insurance
B101: Premium reserves | D101: 0 | F101: 0
B102: Claim Reserves | D102: 0 | F102: 0 | J102: 0
B103: Best Estimate Provision | D103: =SUM(D101:D102) -> 0 | F103: =SUM(F101:F102) -> 0
B104: Risk Margin | D104: 0 | F104: 0
B106: Total | D106: =SUM(D103:D104) -> 0 | F106: =SUM(F103:F104) -> 0
B108: TPs - 12 - Workers' compensation insurance
B110: Premium reserves | D110: 0 | F110: 0
B111: Claim Reserves | D111: 0 | F111: 0 | J111: 0
B112: Best Estimate Provision | D112: =SUM(D110:D111) -> 0 | F112: =SUM(F110:F111) -> 0
B113: Risk Margin | D113: 0 | F113: 0
B115: Total | D115: =SUM(D112:D113) -> 0 | F115: =SUM(F112:F113) -> 0
B117: Total Direct Technical Provisions
B119: TOTAL | D119: =SUM(Acc_TP_1,Acc_TP_2,Acc_TP_3,Acc_TP_4,Acc_TP_5,Acc_TP_6,Acc_TP_7,Acc_TP_8,Acc_TP_9,Acc_TP_10,Acc_TP_11,Acc_TP_12) -> 0 | F119: =SUM(Reg_TP_1,Reg_TP_2,Reg_TP_3,Reg_TP_4,Reg_TP_5,Reg_TP_6,Reg_TP_7,Reg_TP_8,Reg_TP_9,Reg_TP_10,Reg_TP_11,Reg_TP_12) -> 0 | J119: =J111+J102+J93+J84+J75+J66+J57+J48+J39+J30+J21+J12 -> 0

Sheet RBS - Reins TPs
A1: RBS - Reins TPs
B5: Balance Sheet - Reinsurances | D5: Accounting basis | F5: Regulatory Basis | J5: Reinsurance recoverables -regulatory basis * | M5: Please add an explanation where the regulatory basis differs from accounting basis
D7: '000 | F7: '000
B9: TPs - 13 - Motor vehicle liability proportional reinsurance
B11: Premium reserves | D11: 0 | F11: 0
B12: Claim Reserves | D12: 0 | F12: 0 | J12: 0
B13: Best Estimate Provision | D13: =SUM(D11:D12) -> 0 | F13: =SUM(F11:F12) -> 0
B14: Risk Margin | D14: 0 | F14: 0
B16: Total | D16: =SUM(D13:D14) -> 0 | F16: =SUM(F13:F14) -> 0
B18: TPs - 14 - Other motor proportional reinsurance
B20: Premium reserves | D20: 0 | F20: 0
B21: Claim Reserves | D21: 0 | F21: 0 | J21: 0
B22: Best Estimate Provision | D22: =SUM(D20:D21) -> 0 | F22: =SUM(F20:F21) -> 0
B23: Risk Margin | D23: 0 | F23: 0
B25: Total | D25: =SUM(D22:D23) -> 0 | F25: =SUM(F22:F23) -> 0
B27: TPs - 15 - Marine, aviation & transport (MAT) proportional reinsurance
B29: Premium reserves | D29: 0 | F29: 0
B30: Claim Reserves | D30: 0 | F30: 0 | J30: 0
B31: Best Estimate Provision | D31: =SUM(D29:D30) -> 0 | F31: =SUM(F29:F30) -> 0
B32: Risk Margin | D32: 0 | F32: 0
B34: Total | D34: =SUM(D31:D32) -> 0 | F34: =SUM(F31:F32) -> 0
B36: TPs - 16 - Fire & other damage to property proportional reinsurance
B38: Premium reserves | D38: 0 | F38: 0
B39: Claim Reserves | D39: 0 | F39: 0 | J39: 0
B40: Best Estimate Provision | D40: =SUM(D38:D39) -> 0 | F40: =SUM(F38:F39) -> 0
B41: Risk Margin | D41: 0 | F41: 0
B43: Total | D43: =SUM(D40:D41) -> 0 | F43: =SUM(F40:F41) -> 0
B45: TPs - 17 - General liability proportional reinsurance
B47: Premium reserves | D47: 0 | F47: 0
B48: Claim Reserves | D48: 0 | F48: 0 | J48: 0
B49: Best Estimate Provision | D49: =SUM(D47:D48) -> 0 | F49: =SUM(F47:F48) -> 0
B50: Risk Margin | D50: 0 | F50: 0
B52: Total | D52: =SUM(D49:D50) -> 0 | F52: =SUM(F49:F50) -> 0
B54: TPs - 18 - Credit & Suretyship proportional reinsurance
B56: Premium reserves | D56: 0 | F56: 0
B57: Claim Reserves | D57: 0 | F57: 0 | J57: 0
B58: Best Estimate Provision | D58: =SUM(D56:D57) -> 0 | F58: =SUM(F56:F57) -> 0
B59: Risk Margin | D59: 0 | F59: 0
B61: Total | D61: =SUM(D58:D59) -> 0 | F61: =SUM(F58:F59) -> 0
B63: TPs - 19 - Legal expenses proportional reinsurance
B65: Premium reserves | D65: 0 | F65: 0
B66: Claim Reserves | D66: 0 | F66: 0 | J66: 0
B67: Best Estimate Provision | D67: =SUM(D65:D66) -> 0 | F67: =SUM(F65:F66) -> 0
B68: Risk Margin | D68: 0 | F68: 0
B70: Total | D70: =SUM(D67:D68) -> 0 | F70: =SUM(F67:F68) -> 0
B72: TPs - 20 - Assistance proportional reinsurance
B74: Premium reserves | D74: 0 | F74: 0
B75: Claim Reserves | D75: 0 | F75: 0 | J75: 0
B76: Best Estimate Provision | D76: =SUM(D74:D75) -> 0 | F76: =SUM(F74:F75) -> 0
B77: Risk Margin | D77: 0 | F77: 0
B79: Total | D79: =SUM(D76:D77) -> 0 | F79: =SUM(F76:F77) -> 0
B81: TPs - 21 - Miscellaneous financial loss proportional reinsurance
B83: Premium reserves | D83: 0 | F83: 0
B84: Claim Reserves | D84: 0 | F84: 0 | J84: 0
B85: Best Estimate Provision | D85: =SUM(D83:D84) -> 0 | F85: =SUM(F83:F84) -> 0
B86: Risk Margin | D86: 0 | F86: 0
B88: Total | D88: =SUM(D85:D86) -> 0 | F88: =SUM(F85:F86) -> 0
B90: TPs - 22 - Medical expense proportional reinsurance
B92: Premium reserves | D92: 0 | F92: 0
B93: Claim Reserves | D93: 0 | F93: 0 | J93: 0
B94: Best Estimate Provision | D94: =SUM(D92:D93) -> 0 | F94: =SUM(F92:F93) -> 0
B95: Risk Margin | D95: 0 | F95: 0
B97: Total | D97: =SUM(D94:D95) -> 0 | F97: =SUM(F94:F95) -> 0
B99: TPs - 23 - Income Protection proportional reinsurance
B101: Premium reserves | D101: 0 | F101: 0
B102: Claim Reserves | D102: 0 | F102: 0 | J102: 0
B103: Best Estimate Provision | D103: =SUM(D101:D102) -> 0 | F103: =SUM(F101:F102) -> 0
B104: Risk Margin | D104: 0 | F104: 0
B106: Total | D106: =SUM(D103:D104) -> 0 | F106: =SUM(F103:F104) -> 0
B108: TPs - 24 - Workers' compensation proportional reinsurance
B110: Premium reserves | D110: 0 | F110: 0
B111: Claim Reserves | D111: 0 | F111: 0 | J111: 0
B112: Best Estimate Provision | D112: =SUM(D110:D111) -> 0 | F112: =SUM(F110:F111) -> 0
B113: Risk Margin | D113: 0 | F113: 0
B115: Total | D115: =SUM(D112:D113) -> 0 | F115: =SUM(F112:F113) -> 0
B117: TPs - 25 - Non-proportional casualty reinsurance
B119: Premium reserves | D119: 0 | F119: 0
B120: Claim Reserves | D120: 0 | F120: 0 | J120: 0
B121: Best Estimate Provision | D121: =SUM(D119:D120) -> 0 | F121: =SUM(F119:F120) -> 0
B122: Risk Margin | D122: 0 | F122: 0
B124: Total | D124: =SUM(D121:D122) -> 0 | F124: =SUM(F121:F122) -> 0
B126: TPs - 26 - Non-proportional marine, aviation & transport (MAT) reinsurance
B128: Premium reserves | D128: 0 | F128: 0
B129: Claim Reserves | D129: 0 | F129: 0 | J129: 0
B130: Best Estimate Provision | D130: =SUM(D128:D129) -> 0 | F130: =SUM(F128:F129) -> 0
B131: Risk Margin | D131: 0 | F131: 0
B133: Total | D133: =SUM(D130:D131) -> 0 | F133: =SUM(F130:F131) -> 0
B135: TPs - 27 - Non-proportional property reinsurance
B137: Premium reserves | D137: 0 | F137: 0
B138: Claim Reserves | D138: 0 | F138: 0 | J138: 0
B139: Best Estimate Provision | D139: =SUM(D137:D138) -> 0 | F139: =SUM(F137:F138) -> 0
B140: Risk Margin | D140: 0 | F140: 0
B142: Total | D142: =SUM(D139:D140) -> 0 | F142: =SUM(F139:F140) -> 0
B144: TPs - 28 - Non-proportional health reinsurance
B146: Premium reserves | D146: 0 | F146: 0
B147: Claim Reserves | D147: 0 | F147: 0 | J147: 0
B148: Best Estimate Provision | D148: =SUM(D146:D147) -> 0 | F148: =SUM(F146:F147) -> 0
B149: Risk Margin | D149: 0 | F149: 0
B151: Total | D151: =SUM(D148:D149) -> 0 | F151: =SUM(F148:F149) -> 0
B153: Total Direct and Reinsurance Technical Provisions (LOB 1-28)
B155: TOTAL - LOB 1 to 28 | D155: =SUM('RBS - Direct TPs'!Acc_Total_Direct_Liabs,Acc_TP_13,Acc_TP_14,Acc_TP_15,Acc_TP_16,Acc_TP_17,Acc_TP_18,Acc_TP_19,Acc_TP_20,Acc_TP_21,Acc_TP_22,Acc_TP_23,Acc_TP_24,Acc_TP_25,Acc_TP_26,Acc_TP_27,Acc_TP_28) -> 0 | F155: =SUM('RBS - Direct TPs'!Reg_Total_Direct_Liabs,Reg_TP_13,Reg_TP_14,Reg_TP_15,Reg_TP_16,Reg_TP_17,Reg_TP_18,Reg_TP_19,Reg_TP_20,Reg_TP_21,Reg_TP_22,Reg_TP_23,Reg_TP_24,Reg_TP_25,Reg_TP_26,Reg_TP_27,Reg_TP_28) -> 0 | J155: =J147+J138+J129+J120+J111+J102+J93+J84+J75+J66+J57+J48+J39+J30+J21+J12 -> 0

Sheet RBS - Other Liab
A1: RBS - Other Liab
B6: Balance Sheet - Other Liabilities & Net Assets | D6: Accounting basis | F6: Regulatory basis
D7: '000 | F7: '000
B9: Other Liabilities
B11: Cash deposits from reinsurers | D11: 0 | F11: 0
B12: (Re)insurance accounts payable | D12: 0 | F12: 0
B13: Derivatives | D13: 0 | F13: 0
B14: Provisions other than technical provisions | D14: 0 | F14: 0
B15: Amounts owed to credit institutions | D15: 0 | F15: 0
B16: Financial liabilities (other than owed to credit institutions) | D16: 0 | F16: 0
B17: Payables (trade, not insurance) | D17: 0 | F17: 0
B18: Pensions benefit obligations | D18: 0 | F18: 0
B19: Uncalled investments | D19: 0 | F19: 0
B20: Contingent liabilities including letters of credit and other similar charges issued to the cost of the insurer | D20: 0 | F20: 0
B21: Any other liabilities not shown elsewhere* | D21: 0 | F21: 0
B23: Total Other Liabilities | D23: =SUM(D11:D21) -> 0 | F23: =SUM(F11:F21) -> 0
B25: Total Technical Provisions
B27: TOTAL | D27: =SUM('RBS - Reins TPs'!Acc_Total_1_to_28_Liabs,Acc_Other_Liabs) -> 0 | F27: =SUM('RBS - Reins TPs'!Reg_Total_1_to_28_Liabs,Reg_Other_Liabs) -> 0
B31: Net Assets | D31: Accounting basis | F31: Regulatory
F32: basis
B34: TOTAL | D34: =Acc_Total_Assets-Acc_Total_Liabs -> 0 | F34: =Reg_Total_Assets-Reg_Total_Liabs -> 0

Sheet RBS - Capital
A1: RBS - Capital
B5: Capital | D5: Accounting basis | F5: Regulatory Basis
D7: '000 | F7: '000
B9: Capital and Reserves
B11: Share Capital | D11: 0 | F11: ='Own Funds'!J12 -> 0
B12: Initial fund | D12: 0 | F12: ='Own Funds'!J20 -> 0
B13: Share premium | D13: 0 | F13: ='Own Funds'!J24 -> 0
B14: Retained earnings | D14: 0 | F14: ='Own Funds'!J28 -> 0
B15: Other reserves from accounting balance sheet | D15: 0 | F15: ='Own Funds'!J32 -> 0
B16: Surplus funds | D16: 0 | F16: ='Own Funds'!J46 -> 0
B17: EPIFP | D17: 0 | F17: ='Own Funds'!J50 -> 0
B18: Preference Shares | D18: 0 | F18: ='Own Funds'!J58 -> 0
B19: Subordinated liabilities and subordinated mutual member accounts | D19: 0 | F19: ='Own Funds'!J66+'Own Funds'!J70 -> 0
B20: Other items not specified above | D20: 0 | F20: ='Own Funds'!J74 -> 0
B22: Total | D22: =SUM(D11:D20) -> 0 | F22: =SUM(F11:F20) -> 0
B24: Reconciliation reserve
B26: Adjustment to assets | D26: 0 | F26: ='Own Funds'!J36 -> 0
B27: Adjustment to technical provisions | D27: 0 | F27: ='Own Funds'!J37 -> 0
B28: less expected profit in future premiums (EPIFP) | D28: 0 | F28: ='Own Funds'!J38 -> 0
B29: Adjustments to other liabilities | D29: 0 | F29: ='Own Funds'!J39 -> 0
B30: Own funds from the financial statements that should not be represented by the reconciliation reserve and do not meet the criteria to be classified as Tier 1 own funds | D30: 0 | F30: ='Own Funds'!J40 -> 0
B32: Total | D32: =SUM(D26:D30) -> 0 | F32: =SUM(F26:F30) -> 0
B34: Total Capital and Reserves
B36: TOTAL | D36: =D22 -> 0 | F36: =SUM(F32,F22) -> 0
B41: Check balance sheet is balanced | D41: =IF(ABS('RBS - Other Liab'!D34-Acc_Capital)<0.001,"OK","ERROR") -> OK | F41: =IF(ABS('RBS - Other Liab'!F34-Reg_Capital+F30)<0.001,"OK","ERROR") -> OK

Sheet Quarterly Accounting Info
A1: Additional Accounting Info
B4: Additional information required from the insurer's financial statements.
B6: Gross Insurance Technical Provisions as at the reporting period end | D6: ="'000" -> '000
B8: Unearned premium reserves (UPR) | D8: 0
B9: Outstanding claims reserves (OCR) | D9: 0
B10: Incurred but not reported reserve (IBNR) | D10: 0
B11: Incurred but not enough reported reserve (IBNER) | D11: 0
B12: Unexpired risk reserve (URR) [if not included in UPR]* | D12: 0
B13: Any other technical provision (specify) | D13: 0 | F13: Other prov'n specifics | H13: Enter text
B15: Total gross insurance provisions | D15: =SUM(D8:D13) -> 0
B17: Total amounts recoverable from reinsurers* | D17: 0
B19: Total net technical provisions contained in balance sheet* | D19: =D15+D17 -> 0
D22: Accounting Basis
B23: Profit and Loss Statement for the reporting period | D23: ="'000" -> '000
B25: Gross premiums written* | D25: 0
B26: Outward rensurance premiums ceded* | D26: 0
B27: Movement UPR* | D27: 0
B28: Movement in URR* | D28: 0
B29: Movement in OCR, IBNR and IBNER* | D29: 0
B30: Gross claims paid* | D30: 0
B31: Reinsurance recovered* | D31: 0
B32: Commissions and expenses* | D32: 0
B33: Foreign exchange movements* | D33: 0
B34: Investment income* | D34: 0
B35: Any other item not attributable to any of the above (specify)* | D35: 0 | F35: Other item specifics | H35: Enter text
B37: Profit/Loss for the reporting period | D37: =SUM(D25:D35) -> 0
B40: Instructions

Sheet Own Funds
A1: Own Funds
B5: Basic Own Funds* | D5: Tier 1* | F5: Tier 2* | H5: Tier 3* | J5: Total
D6: '000 | F6: '000 | H6: '000 | J6: '000
B7: Ordinary Share Capital (net of own shares)
B9: Paid up | D9: 0 | F9: 0 | H9: 0 | J9: =SUM(D9,F9,H9) -> 0
B10: Called up | D10: 0 | F10: 0 | H10: 0 | J10: =SUM(D10,F10,H10) -> 0
B12: Total | D12: =SUM(D9:D10) -> 0 | F12: =SUM(F9:F10) -> 0 | H12: =SUM(H9:H10) -> 0 | J12: =SUM(J9:J10) -> 0
B14: Initial Fund (less item of the same type held)
B16: Paid up | D16: 0 | F16: 0 | H16: 0 | J16: =SUM(D16,F16,H16) -> 0
B17: Called up | D17: 0 | F17: 0 | H17: 0 | J17: =SUM(D17,F17,H17) -> 0
B18: Callable | D18: 0 | F18: 0 | H18: 0 | J18: =SUM(D18,F18,H18) -> 0
B20: Total | D20: =SUM(D16:D18) -> 0 | F20: =SUM(F16:F18) -> 0 | H20: =SUM(H16:H18) -> 0 | J20: =SUM(J16:J18) -> 0
B22: Share Premium Account
B24: Share Premium Account | D24: 0 | F24: 0 | H24: 0 | J24: =SUM(D24,F24,H24) -> 0
B26: Retained earnings including profits from the year
B28: Retained earnings | D28: 0 | F28: 0 | H28: 0 | J28: =SUM(D28,F28,H28) -> 0
B30: Other reserves from accounting balance sheet
B32: Other reserves | D32: 0 | F32: 0 | H32: 0 | J32: =SUM(D32,F32,H32) -> 0
B34: Reconciliation reserve
B36: Adjustment to assets | D36: =Reg_Total_Assets-Acc_Total_Assets -> 0 | F36: 0 | H36: 0 | J36: =SUM(D36,F36,H36) -> 0
B37: Adjustments to technical provisions | D37: =('RBS - Other Liab'!Acc_Total_Liabs-'RBS - Other Liab'!Acc_Other_Liabs)-('RBS - Other Liab'!Reg_Total_Liabs-'RBS - Other Liab'!Reg_Other_Liabs) -> 0 | F37: 0 | H37: 0 | J37: =SUM(D37,F37,H37) -> 0
B38: less expected profit in future premiums | D38: =-D50 -> 0 | F38: 0 | H38: 0 | J38: =SUM(D38,F38,H38) -> 0
B39: Adjustments to other liabilities | D39: ='RBS - Other Liab'!Acc_Other_Liabs-'RBS - Other Liab'!Reg_Other_Liabs -> 0 | F39: 0 | H39: 0 | J39: =SUM(D39,F39,H39) -> 0
B40: Own funds from the financial statements that should not be represented by the reconciliation reserve and do not meet the criteria to be classified as Tier 1 own funds * | D40: 0 | F40: 0 | H40: 0 | J40: =SUM(D40,F40,H40) -> 0
B42: Total | D42: =SUM(D36:D40) -> 0 | F42: =SUM(F36:F40) -> 0 | H42: =SUM(H36:H40) -> 0 | J42: =SUM(J36:J40) -> 0
B44: Surplus funds
B46: Surplus funds | D46: 0 | F46: 0 | H46: 0 | J46: =SUM(D46,F46,H46) -> 0
B48: Expected profit in future premiums (EPIFP)
B50: EPIFP | D50: 0 | F50: 0 | H50: 0 | J50: =SUM(D50,F50,H50) -> 0
B52: Preference shares
B54: Dated | D54: 0 | F54: 0 | H54: 0 | J54: =SUM(D54,F54,H54) -> 0
B55: Undated with a call option | D55: 0 | F55: 0 | H55: 0 | J55: =SUM(D55,F55,H55) -> 0
B56: Undated with no contractual opportunity to redeem | D56: 0 | F56: 0 | H56: 0 | J56: =SUM(D56,F56,H56) -> 0
B58: Total | D58: =SUM(D54:D56) -> 0 | F58: =SUM(F54:F56) -> 0 | H58: =SUM(H54:H56) -> 0 | J58: =SUM(J54:J56) -> 0
B60: Subordinated liabilities
B62: Dated | D62: 0 | F62: 0 | H62: 0 | J62: =SUM(D62,F62,H62) -> 0
B63: Undated with a call option | D63: 0 | F63: 0 | H63: 0 | J63: =SUM(D63,F63,H63) -> 0
B64: Undated with no contractual opportunity to redeem | D64: 0 | F64: 0 | H64: 0 | J64: =SUM(D64,F64,H64) -> 0
B66: Total | D66: =SUM(D62:D64) -> 0 | F66: =SUM(F62:F64) -> 0 | H66: =SUM(H62:H64) -> 0 | J66: =SUM(J62:J64) -> 0
B68: Subordinated mutual member accounts
B70: Subordinated mutual member accounts | D70: 0 | F70: 0 | H70: 0 | J70: =SUM(D70,F70,H70) -> 0
B72: Other items not specified elsewhere*
B74: Other items | D74: 0 | F74: 0 | H74: 0 | J74: =SUM(D74,F74,H74) -> 0
B76: Total Basic Own Funds
B78: TOTAL | D78: =SUM(D12,D20,D24,D28,D32,D42,D46,D50,D58,D66,D70,D74) -> 0 | F78: =SUM(F12,F20,F24,F28,F32,F42,F46,F50,F58,F66,F70,F74) -> 0 | H78: =SUM(H12,H20,H24,H28,H32,H42,H46,H50,H58,H66,H70,H74) -> 0 | J78: =SUM(D78,F78,H78) -> 0
B82: Adjustments to BOF | D82: Tier 1 | F82: Tier 2 | H82: Tier 3 | J82: Total
B84: Deductions
B86: Own-funds that belong to immaterial ring-fenced funds | D86: 0 | F86: 0 | H86: 0 | J86: =SUM(D86,F86,H86) -> 0
B87: Other | D87: 0 | F87: 0 | H87: 0 | J87: =SUM(D87,F87,H87) -> 0
B89: Total | D89: =SUM(D86:D87) -> 0 | F89: =SUM(F86:F87) -> 0 | H89: =SUM(H86:H87) -> 0 | J89: =SUM(J86:J87) -> 0
B91: Change of tier
B93: Restricted reserves | F93: =-D93 -> 0 | H93: 0 | J93: =SUM(D93,F93,H93) -> 0
B94: Other adjustments | J94: =SUM(D94,F94,H94) -> 0
B96: Total | D96: =SUM(D93:D94) -> 0 | F96: =SUM(F93:F94) -> 0 | H96: =SUM(H93:H94) -> 0 | J96: =SUM(J93:J94) -> 0
B98: PCCs - notionally allocated Own-Funds*
B100: Own-funds notionally allocated * | D100: 0 | F100: 0 | H100: 0 | J100: =SUM(D100,F100,H100) -> 0
B102: Total | D102: =D100 -> 0 | F102: =F100 -> 0 | H102: =H100 -> 0 | J102: =J100 -> 0
B104: Total Adjustments
B106: TOTAL | D106: =D96-D89+D102 -> 0 | F106: =F96-F89+F102 -> 0 | H106: =H96-H89+H102 -> 0 | J106: =SUM(D106,F106,H106) -> 0
B109: Total Available Own Funds to meet SCR
B111: Eligible Own Funds | D111: =SUM(BOF_Tier_1,BOF_Adj_Tier_1) -> 0 | F111: =SUM(BOF_Tier_2,BOF_Adj_Tier_2,AOF_Tier_2) -> 0 | H111: =SUM(BOF_Tier_3,BOF_Adj_Tier_3,AOF_Tier_3) -> 0 | J111: =SUM(BOF_Total,BOF_Adj_Total,AOF_Total) -> 0
B114: Total Available Own Funds to meet MCR
B116: Eligible Own Funds | D116: =EOF_Tier_1 -> 0 | F116: =EOF_Tier_2 -> 0 | H116: 0 | J116: =D116+F116 -> 0
B119: Total Eligible Own Funds to meet SCR
B121: Eligible Own Funds | D121: =(EOF_Tier_1-SUM(D58,D66,D70,D74,D106))+MAX(0,(MIN((EOF_Tier_1--SUM(D58,D66,D70,D74,D106))*0.25,SUM(D58,D66,D70,D74,D106)))) -> 0 | F121: =MAX(0,MIN(0.5*SCR,(EOF_Tier_1-D121)+EOF_Tier_2)) -> 0 | H121: =MAX(0,MIN(0.5*SCR-F121,0.15*SCR,EOF_Tier_3)) -> 0 | J121: =SUM(D121,F121,H121) -> 0
B124: Total Eligible Own Funds to meet MCR
B126: Eligible Own Funds | D126: =D121 -> 0 | F126: =MAX(0,MIN(0.2*MCR,(EOF_Tier_1-D121)+EOF_Tier_2)) -> 0 | H126: 0 | J126: =D126+F126+H126 -> 0
B130: Ancillary own fund items * | D130: Tier 1 | F130: Tier 2 | H130: Tier 3 | J130: Total
B132: Unpaid share capital or initial fund that has not been paid up
B134: Total | D134: 0 | F134: 0 | H134: 0 | J134: =SUM(D134,F134,H134) -> 0
B136: Letters of credit and guarantees held in trust
B138: Letter of credit | D138: 0 | F138: 0 | H138: 0 | J138: =SUM(D138,F138,H138) -> 0
B139: Guarantees held in trust | D139: 0 | F139: 0 | H139: 0 | J139: =SUM(D139,F139,H139) -> 0
B141: Total | D141: =SUM(D138:D139) -> 0 | F141: =SUM(F138:F139) -> 0 | H141: =SUM(H138:H139) -> 0 | J141: =SUM(J138:J139) -> 0
B143: Other items approved by the Authority
B145: Other items | D145: 0 | F145: 0 | H145: 0 | J145: =SUM(D145,F145,H145) -> 0
B147: Total Ancillary Own Funds
B149: TOTAL | D149: =SUM(D134,D141,D145,) -> 0 | F149: =SUM(F134,F141,F145,) -> 0 | H149: =SUM(H134,H141,H145,) -> 0 | J149: =SUM(J134,J141,J145,) -> 0

Sheet Market Risk Inputs
A1: Market Risk Inputs
B5: Interest Rate Risk | D5: Assets | F5: Liabilities | H5: BOF
D6: '000 | F6: '000 | H6: '000
B8: Base | D8: 0 | F8: 0 | H8: =D8-F8 -> 0
B10: Shock | D10: Assets | F10: Liabilities | H10: BOF | K10: Capital
D11: '000 | F11: '000 | K11: '000
B13: Upward Stress | D13: 0 | F13: 0 | H13: =$D13-$F13 -> 0 | K13: =MAX(0,-(H13-$H$8)) -> 0
B14: Downward Stress | D14: 0 | F14: 0 | H14: =$D14-$F14 -> 0 | K14: =MAX(0,-(H14-$H$8)) -> 0
B18: Currency Risk | D18: Total assets denominated in currency group X | F18: Total Liabilities denominated in currency group X | H18: BOF | K18: =Type_of_business&" year shock" -> 1in200 year shock
K19: Factor | M19: Capital
B20: Figures must be entered in reporting currency | D20: '000 | F20: '000 | H20: '000 | M20: '000
B22: Currency Group 1 | D22: 0 | F22: 0 | H22: =ABS($D22-$F22) -> 0 | K22: =Currency_stress -> 0.25 | M22: =$H22*K22 -> 0
B23: Currency Group 2 | D23: 0 | F23: 0 | H23: =ABS($D23-$F23) -> 0 | K23: 0.25 | M23: =$H23*K23 -> 0
B24: Currency Group 3 | D24: 0 | F24: 0 | H24: 0 | K24: 0.25 | M24: 0
B25: Currency Group 4 | D25: 0 | F25: 0 | H25: 0 | K25: 0.25 | M25: 0
B26: Currency Group 5 | D26: 0 | F26: 0 | H26: 0 | K26: 0.25 | M26: 0
B27: Currency Group 6 | D27: 0 | F27: 0 | H27: 0 | K27: 0.25 | M27: 0
B28: Currency Group 7 | D28: 0 | F28: 0 | H28: 0 | K28: 0.25 | M28: 0
B29: Currency Group 8 | D29: 0 | F29: 0 | H29: 0 | K29: 0.25 | M29: 0
B30: Currency Group 9 | D30: 0 | F30: 0 | H30: 0 | K30: 0.25 | M30: 0
B31: Currency Group 10 | D31: 0 | F31: 0 | H31: 0 | K31: 0.25 | M31: 0
B32: Marketfx,CurrGroup11 | D32: 0 | F32: 0 | H32: 0 | K32: 0.25 | M32: 0
B33: Marketfx,CurrGroup12 | D33: 0 | F33: 0 | H33: 0 | K33: 0.25 | M33: 0
B34: Marketfx,CurrGroup13 | D34: 0 | F34: 0 | H34: 0 | K34: 0.25 | M34: 0
B35: Marketfx,CurrGroup14 | D35: 0 | F35: 0 | H35: 0 | K35: 0.25 | M35: 0
B36: Marketfx,CurrGroup15 | D36: 0 | F36: 0 | H36: 0 | K36: 0.25 | M36: 0
B38: Currency Risk Simplification (alternative approach to full approach above) | D38: Total assets denominated in a currency other than the reporting currency | F38: Total liabilities denominated in a currency other than the reporting currency
B40: Currency Risk SCR | D40: 0 | F40: 0 | H40: =ABS($D40-$F40) -> 0 | K40: =Currency_stress -> 0.25 | M40: =$H40*K40 -> 0
B45: Concentration Risk | D45: Capital
D46: '000
B48: Shock
B50: Concentration Risk SCR | D50: 0

Sheet Spread Risk
A1: Spread Risk
C4: This tab must be completed if you have any investments in government bonds, other credit risky assets, bank deposits that are not cash or loans made to unrelated entities
C5: Full calculation
C6: To be used by insurers carrying out the full credit spread calculation.
C7: Calculated using "NLT_Helper_Spread_Risk_Class_3-9&11" workbook.
C10: Spread Risk | E10: '000
A12: 1 | C12: 1in200 year Shock
A13: 2
A14: 3 | C14: Spread Risk SCR | E14: 0 | F14: *
A15: 4
C18: Simplified approach
C19: To be used by insurers carrying out the simplified credit spread calculation.
C21: Credit risky assets with credit ratings
C23: Credit Quality Step | E23: % Market Value by credit quality step of total credit risky assets in cell E50 * | G23: Factor | I23: Average duration (years)
C25: 0 | E25: 0 | G25: =Credit_spread_stress_CQS_0 -> 0.009 | I25: 0
C26: 1 | E26: 0 | G26: =Credit_spread_stress_CQS_1 -> 0.011 | I26: 0
C27: 2 | E27: 0 | G27: =Credit_spread_stress_CQS_2 -> 0.014 | I27: 0
C28: 3 | E28: 0 | G28: =Credit_spread_stress_CQS_3 -> 0.025 | I28: 0
C29: 4 | E29: 0 | G29: =Credit_spread_stress_CQS_4 -> 0.045 | I29: 0
C30: 5 | E30: 0 | G30: =Credit_spread_stress_CQS_5 -> 0.075 | I30: 0
C31: 6 | E31: 0 | G31: =Credit_spread_stress_CQS_6 -> 0.075 | I31: 0
C33: Total | E33: =SUM(E25:E31,E40) -> 0 | I33: =IF(ISERROR(SUMPRODUCT($E$25:$E$31,$G$25:$G$31,$I$25:$I$31)/SUMPRODUCT($E$25:$E$31,$G$25:$G$31)),0,SUMPRODUCT($E$25:$E$31,$G$25:$G$31,$I$25:$I$31)/SUMPRODUCT($E$25:$E$31,$G$25:$G$31)) -> 0
C36: Credit risky assets without credit ratings
E38: % Market Value of total credit risky assets in cell E50 * | G38: Factor | I38: Average duration (years)
C40: Unrated | E40: 0 | G40: =Credit_spread_stress_unrated -> 0.03 | I40: 0
C43: Credit risky assets | E43: Market Value before stress | G43: Market Value after stress | I43: Change in Market Value
E44: '000 | G44: '000 | I44: '000
C46: Gilts | E46: ='RBS - Assets'!F22 -> 0 | G46: =E46 -> 0 | I46: =G46-E46 -> 0
C47: Rated credit risky assets | E47: =SUM('RBS - Assets'!F24,'RBS - Assets'!F40,'RBS - Assets'!F64)*(1-E40) -> 0 | G47: =E47-E47*SUMPRODUCT(E25:E31,G25:G31,I25:I31) -> 0 | I47: =G47-E47 -> 0
C48: Unrated credit risky assets | E48: =SUM('RBS - Assets'!F24,'RBS - Assets'!F40,'RBS - Assets'!F64)*E40 -> 0 | G48: =E48-E48*MIN(G40*I40,1) -> 0 | I48: =G48-E48 -> 0
C50: Total Market Value | E50: =SUM(E46:E48) -> 0 | G50: =SUM(G46:G48) -> 0 | I50: =SUM(I46:I48) -> 0

Sheet Counterparty Default Risk
A1: Counterparty Default Risk
B5: Counterparty Default Risk
F6: '000
B8: Capital Requirement (before diversification effects) | F8: =SUM(D21:D22) -> 0
B10: Diversification | F10: =D24-F8 -> 0
B12: Counterparty Default Risk SCR | F12: =SUM(F8,F10) -> 0
B17: Counterparty Default Risk | D17: Capital
A18: 1
D19: '000
A20: 2
A21: 3 | B21: Type 1 SCR | D21: 0
A22: 4 | B22: Type 2 SCR | D22: 0
A23: 5
A24: 6 | B24: Counterparty Default Risk SCR | D24: =IF(ISBLANK(D21:D22),0,SQRT(MMULT(MMULT(TRANSPOSE(D21:D22),DefaultCorr),D21:D22))) -> 0
A25: 7

Sheet Premium and Reserve Risk
A1: Premium and Reserve Risk
Q3: =IF(SUM(Q25:Q1282)=0,"",IF(SUM(Q25:Q1282)=SUM(Q8:Q19),"","CHECK: IF ALL CONTRACTS HAVE AGG CAPS THEN SUM OF PREMIUM VOLUME MEASURE IN ROWS 28-802 SHOULD EQUAL SUM OF PREMIUM VOLUME MEASURE IN ROWS 8-19")) -> 
B5: Volume Measure | G5: Existing Premium (next 12 months)* | I5: Last Year Premium * | K5: Existing Premium (not included in column G) * | M5: Future Premium (next 12 months) * | O5: Future Premium (not included in column M) * | Q5: Premium Volume Measure | S5: Reserve Volume Measure | U5: Geographical Diversification Adjustment | W5: Combined Volume Measure | Z5: Number of aggregate caps*
G6: '000 | I6: '000 | K6: '000 | M6: '000 | O6: '000 | Q6: '000 | S6: '000 | W6: '000
B8: 1 - Motor Vehicle Liability & 13 Prop. Reins . | G8: 0 | I8: 0 | K8: 0 | M8: 0 | O8: 0 | Q8: =MAX(G8,I8)+K8+M8+0.3*O8 -> 0 | S8: =SUM('RBS - Direct TPs'!F12,'RBS - Reins TPs'!F12,-'RBS - Direct TPs'!J12,-'RBS - Reins TPs'!J12) -> 0 | U8: ='Geographical Diversification'!D39 -> 1 | W8: =(Q8+S8)*(0.75+0.25*U8) -> 0 | Z8: 1
B9: 2 - Other Motor & 14 Prop. Reins. | G9: 0 | I9: 0 | K9: 0 | M9: 0 | O9: 0 | Q9: =MAX(G9,I9)+K9+M9+0.3*O9 -> 0 | S9: =SUM('RBS - Direct TPs'!F21,'RBS - Reins TPs'!F21,-'RBS - Direct TPs'!J21,-'RBS - Reins TPs'!J21) -> 0 | U9: ='Geographical Diversification'!D40 -> 1 | W9: =(Q9+S9)*(0.75+0.25*U9) -> 0 | Z9: 1
B10: 3 - Marine, Aviation & Transport (MAT) & 15 Prop. Reins. | G10: 0 | I10: 0 | K10: 0 | M10: 0 | O10: 0 | Q10: 0 | S10: =SUM('RBS - Direct TPs'!F30,'RBS - Reins TPs'!F30,-'RBS - Direct TPs'!J30,-'RBS - Reins TPs'!J30) -> 0 | U10: ='Geographical Diversification'!D41 -> 1 | W10: 0 | Z10: 1
B11: 4 - Fire & Other Damage to Property & 16 Prop. Reins. | G11: 0 | I11: 0 | K11: 0 | M11: 0 | O11: 0 | Q11: 0 | S11: =SUM('RBS - Direct TPs'!F39,'RBS - Reins TPs'!F39,-'RBS - Direct TPs'!J39,-'RBS - Reins TPs'!J39) -> 0 | U11: ='Geographical Diversification'!D42 -> 1 | W11: 0 | Z11: 1
B12: 5 - General Liability & 17 Prop. Reins. | G12: 0 | I12: 0 | K12: 0 | M12: 0 | O12: 0 | Q12: 0 | S12: =SUM('RBS - Direct TPs'!F48,'RBS - Reins TPs'!F48,-'RBS - Direct TPs'!J48,-'RBS - Reins TPs'!J48) -> 0 | U12: ='Geographical Diversification'!D43 -> 1 | W12: 0 | Z12: 1
B13: 6 - Credit & Suretyship & 18 Prop. Reins. | G13: 0 | I13: 0 | K13: 0 | M13: 0 | O13: 0 | Q13: 0 | S13: =SUM('RBS - Direct TPs'!F57,'RBS - Reins TPs'!F57,-'RBS - Direct TPs'!J57,-'RBS - Reins TPs'!J57) -> 0 | U13: ='Geographical Diversification'!D44 -> 1 | W13: 0 | Z13: 1
B14: 7 - Legal Expenses & 19 Prop. Reins. | G14: 0 | I14: 0 | K14: 0 | M14: 0 | O14: 0 | Q14: 0 | S14: =SUM('RBS - Direct TPs'!F66,'RBS - Reins TPs'!F66,-'RBS - Direct TPs'!J66,-'RBS - Reins TPs'!J66) -> 0 | U14: ='Geographical Diversification'!D45 -> 1 | W14: 0 | Z14: 1
B15: 8 - Assistance & 20 Prop. Reins. | G15: 0 | I15: 0 | K15: 0 | M15: 0 | O15: 0 | Q15: 0 | S15: =SUM('RBS - Direct TPs'!F75,'RBS - Reins TPs'!F75,-'RBS - Direct TPs'!J75,-'RBS - Reins TPs'!J75) -> 0 | U15: ='Geographical Diversification'!D46 -> 1 | W15: 0 | Z15: 1
B16: 9 - Miscellaneous Financial Loss & 21 Prop. Reins. | G16: 0 | I16: 0 | K16: 0 | M16: 0 | O16: 0 | Q16: 0 | S16: =SUM('RBS - Direct TPs'!F84,'RBS - Reins TPs'!F84,-'RBS - Direct TPs'!J84,-'RBS - Reins TPs'!J84) -> 0 | U16: ='Geographical Diversification'!D47 -> 1 | W16: 0 | Z16: 1
B17: 25 - Non-prop. reinsurance - Casualty | G17: 0 | I17: 0 | K17: 0 | M17: 0 | O17: 0 | Q17: 0 | S17: ='RBS - Reins TPs'!F120-'RBS - Reins TPs'!J120 -> 0 | U17: ='Geographical Diversification'!D48 -> 1 | W17: 0 | Z17: 1
B18: 26 - Non-prop. reinsurance - MAT | G18: 0 | I18: 0 | K18: 0 | M18: 0 | O18: 0 | Q18: 0 | S18: ='RBS - Reins TPs'!F129-'RBS - Reins TPs'!J129 -> 0 | U18: ='Geographical Diversification'!D49 -> 1 | W18: 0 | Z18: 1
B19: 27 - Non-prop. reinsurance - Property | G19: 0 | I19: 0 | K19: 0 | M19: 0 | O19: 0 | Q19: 0 | S19: ='RBS - Reins TPs'!F138-'RBS - Reins TPs'!J138 -> 0 | U19: ='Geographical Diversification'!D50 -> 1 | W19: 0 | Z19: 1
C23: Aggregate caps ONLY USE IF THERE ARE CAPS WITHIN THE CONTRACT OR ELSE LEAVE BLANK | U23: =IF(SUM(U25:U1183)=0,"",IF(SUM(U25:U1183)=SUM(S8:S19),"","CHECK: IF ALL CONTRACTS HAVE AGG CAPS THEN SUM OF CLAIMS RESERVES IN ROWS 28-802 SHOULD EQUAL SUM OF RESERVE VOLUME MEASURE IN ROWS 8-19")) -> 
B25: 1 | C25: =RIGHT(OFFSET($B$8,B25-1,0),LEN(OFFSET($B$8,B25-1,0))-5) -> Motor Vehicle Liability & 13 Prop. Reins . | Z25: Premium Standard Deviation | AC25: Reserve Standard Deviation
C26: Contract identifier * | F26: =IF(OFFSET($Z$8,B25-1,0)=0,1,0) -> 0 | G26: Existing Premium (next 12 months)* | I26: Last Year Premium * | K26: Existing Premium (not included in column G) * | M26: Future Premium (next 12 months) * | O26: Future Premium (not included in column M) * | Q26: Premium Volume Measure | S26: Aggregate Cap* | T26: Error | U26: Claims reserve * | W26: Maximum residual exposure * | Z26: =OFFSET('Underwriting Risk'!$K$55,'Premium and Reserve Risk'!B25-1,0) -> 0.08 | AC26: =OFFSET('Underwriting Risk'!$M$55,'Premium and Reserve Risk'!B25-1,0) -> 0.09
F27: =IF(OFFSET($Z$8,B25-1,0)=0,1,0) -> 0
B28: 1 | F28: =IF(B28<=OFFSET($Z$8,B$25-1,0),0,1) -> 0 | G28: 0 | I28: 0 | K28: 0 | M28: 0 | O28: 0 | Q28: =MAX(G28,I28)+K28+M28+0.3*O28 -> 0 | S28: 0 | T28: =IF(Q28>0,IF(S28<>0,"","CAP MUST NOT BE 0"),"") ->  | U28: 0 | W28: 0 | Z28: =MAX(0%,IF(Q28<>0,MIN((S28-Q28)/Q28/'Underwriting Risk'!$E$27,'Premium and Reserve Risk'!$Z$26),'Premium and Reserve Risk'!$Z$26)) -> 0.08 | AC28: =MAX(0%,IF(U28<>0,MIN((W28-U28)/U28/'Underwriting Risk'!$E$27,'Premium and Reserve Risk'!$AC$26),'Premium and Reserve Risk'!$AC$26)) -> 0.09
B29: 2 | F29: =IF(B29<=OFFSET($Z$8,B$25-1,0),0,1) -> 1 | Q29: =MAX(G29,I29)+K29+M29+0.3*O29 -> 0 | Z29: =MAX(0%,IF(Q29<>0,MIN((S29-Q29)/Q29/'Underwriting Risk'!$E$27,'Premium and Reserve Risk'!$Z$26),'Premium and Reserve Risk'!$Z$26)) -> 0.08 | AC29: =MAX(0%,IF(U29<>0,MIN((W29-U29)/U29/'Underwriting Risk'!$E$27,'Premium and Reserve Risk'!$AC$26),'Premium and Reserve Risk'!$AC$26)) -> 0.09
B30: 3 | F30: 1 | Q30: 0 | Z30: =MAX(0%,IF(Q30<>0,MIN((S30-Q30)/Q30/'Underwriting Risk'!$E$27,'Premium and Reserve Risk'!$Z$26),'Premium and Reserve Risk'!$Z$26)) -> 0.08 | AC30: =MAX(0%,IF(U30<>0,MIN((W30-U30)/U30/'Underwriting Risk'!$E$27,'Premium and Reserve Risk'!$AC$26),'Premium and Reserve Risk'!$AC$26)) -> 0.09
B31: 4 | F31: 1 | Q31: 0 | Z31: =MAX(0%,IF(Q31<>0,MIN((S31-Q31)/Q31/'Underwriting Risk'!$E$27,'Premium and Reserve Risk'!$Z$26),'Premium and Reserve Risk'!$Z$26)) -> 0.08 | AC31: =MAX(0%,IF(U31<>0,MIN((W31-U31)/U31/'Underwriting Risk'!$E$27,'Premium and Reserve Risk'!$AC$26),'Premium and Reserve Risk'!$AC$26)) -> 0.09
B32: 5 | F32: 1 | Q32: 0 | Z32: =MAX(0%,IF(Q32<>0,MIN((S32-Q32)/Q32/'Underwriting Risk'!$E$27,'Premium and Reserve Risk'!$Z$26),'Premium and Reserve Risk'!$Z$26)) -> 0.08 | AC32: =MAX(0%,IF(U32<>0,MIN((W32-U32)/U32/'Underwriting Risk'!$E$27,'Premium and Reserve Risk'!$AC$26),'Premium and Reserve Risk'!$AC$26)) -> 0.09
B33: 6 | F33: 1 | Q33: 0 | Z33: =MAX(0%,IF(Q33<>0,MIN((S33-Q33)/Q33/'Underwriting Risk'!$E$27,'Premium and Reserve Risk'!$Z$26),'Premium and Reserve Risk'!$Z$26)) -> 0.08 | AC33: =MAX(0%,IF(U33<>0,MIN((W33-U33)/U33/'Underwriting Risk'!$E$27,'Premium and Reserve Risk'!$AC$26),'Premium and Reserve Risk'!$AC$26)) -> 0.09
B34: 7 | F34: 1 | Q34: 0 | Z34: =MAX(0%,IF(Q34<>0,MIN((S34-Q34)/Q34/'Underwriting Risk'!$E$27,'Premium and Reserve Risk'!$Z$26),'Premium and Reserve Risk'!$Z$26)) -> 0.08 | AC34: =MAX(0%,IF(U34<>0,MIN((W34-U34)/U34/'Underwriting Risk'!$E$27,'Premium and Reserve Risk'!$AC$26),'Premium and Reserve Risk'!$AC$26)) -> 0.09
B35: 8 | F35: 1 | Q35: 0 | Z35: =MAX(0%,IF(Q35<>0,MIN((S35-Q35)/Q35/'Underwriting Risk'!$E$27,'Premium and Reserve Risk'!$Z$26),'Premium and Reserve Risk'!$Z$26)) -> 0.08 | AC35: =MAX(0%,IF(U35<>0,MIN((W35-U35)/U35/'Underwriting Risk'!$E$27,'Premium and Reserve Risk'!$AC$26),'Premium and Reserve Risk'!$AC$26)) -> 0.09
B36: 9 | F36: 1 | Q36: 0 | Z36: =MAX(0%,IF(Q36<>0,MIN((S36-Q36)/Q36/'Underwriting Risk'!$E$27,'Premium and Reserve Risk'!$Z$26),'Premium and Reserve Risk'!$Z$26)) -> 0.08 | AC36: =MAX(0%,IF(U36<>0,MIN((W36-U36)/U36/'Underwriting Risk'!$E$27,'Premium and Reserve Risk'!$AC$26),'Premium and Reserve Risk'!$AC$26)) -> 0.09
B37: 10 | F37: 1 | Q37: 0 | Z37: =MAX(0%,IF(Q37<>0,MIN((S37-Q37)/Q37/'Underwriting Risk'!$E$27,'Premium and Reserve Risk'!$Z$26),'Premium and Reserve Risk'!$Z$26)) -> 0.08 | AC37: =MAX(0%,IF(U37<>0,MIN((W37-U37)/U37/'Underwriting Risk'!$E$27,'Premium and Reserve Risk'!$AC$26),'Premium and Reserve Risk'!$AC$26)) -> 0.09
B38: 11 | F38: 1 | Q38: 0 | Z38: =MAX(0%,IF(Q38<>0,MIN((S38-Q38)/Q38/'Underwriting Risk'!$E$27,'Premium and Reserve Risk'!$Z$26),'Premium and Reserve Risk'!$Z$26)) -> 0.08 | AC38: =MAX(0%,IF(U38<>0,MIN((W38-U38)/U38/'Underwriting Risk'!$E$27,'Premium and Reserve Risk'!$AC$26),'Premium and Reserve Risk'!$AC$26)) -> 0.09
B39: 12 | F39: 1 | Q39: 0 | Z39: =MAX(0%,IF(Q39<>0,MIN((S39-Q39)/Q39/'Underwriting Risk'!$E$27,'Premium and Reserve Risk'!$Z$26),'Premium and Reserve Risk'!$Z$26)) -> 0.08 | AC39: =MAX(0%,IF(U39<>0,MIN((W39-U39)/U39/'Underwriting Risk'!$E$27,'Premium and Reserve Risk'!$AC$26),'Premium and Reserve Risk'!$AC$26)) -> 0.09
B40: 13 | F40: 1 | Q40: 0 | Z40: =MAX(0%,IF(Q40<>0,MIN((S40-Q40)/Q40/'Underwriting Risk'!$E$27,'Premium and Reserve Risk'!$Z$26),'Premium and Reserve Risk'!$Z$26)) -> 0.08 | AC40: =MAX(0%,IF(U40<>0,MIN((W40-U40)/U40/'Underwriting Risk'!$E$27,'Premium and Reserve Risk'!$AC$26),'Premium and Reserve Risk'!$AC$26)) -> 0.09
B41: 14 | F41: 1 | Q41: 0 | Z41: =MAX(0%,IF(Q41<>0,MIN((S41-Q41)/Q41/'Underwriting Risk'!$E$27,'Premium and Reserve Risk'!$Z$26),'Premium and Reserve Risk'!$Z$26)) -> 0.08 | AC41: =MAX(0%,IF(U41<>0,MIN((W41-U41)/U41/'Underwriting Risk'!$E$27,'Premium and Reserve Risk'!$AC$26),'Premium and Reserve Risk'!$AC$26)) -> 0.09
B42: 15 | F42: 1 | Q42: 0 | Z42: =MAX(0%,IF(Q42<>0,MIN((S42-Q42)/Q42/'Underwriting Risk'!$E$27,'Premium and Reserve Risk'!$Z$26),'Premium and Reserve Risk'!$Z$26)) -> 0.08 | AC42: =MAX(0%,IF(U42<>0,MIN((W42-U42)/U42/'Underwriting Risk'!$E$27,'Premium and Reserve Risk'!$AC$26),'Premium and Reserve Risk'!$AC$26)) -> 0.09
B43: 16 | F43: 1 | Q43: 0 | Z43: =MAX(0%,IF(Q43<>0,MIN((S43-Q43)/Q43/'Underwriting Risk'!$E$27,'Premium and Reserve Risk'!$Z$26),'Premium and Reserve Risk'!$Z$26)) -> 0.08 | AC43: =MAX(0%,IF(U43<>0,MIN((W43-U43)/U43/'Underwriting Risk'!$E$27,'Premium and Reserve Risk'!$AC$26),'Premium and Reserve Risk'!$AC$26)) -> 0.09
B44: 17 | F44: 1 | Q44: 0 | Z44: =MAX(0%,IF(Q44<>0,MIN((S44-Q44)/Q44/'Underwriting Risk'!$E$27,'Premium and Reserve Risk'!$Z$26),'Premium and Reserve Risk'!$Z$26)) -> 0.08 | AC44: =MAX(0%,IF(U44<>0,MIN((W44-U44)/U44/'Underwriting Risk'!$E$27,'Premium and Reserve Risk'!$AC$26),'Premium and Reserve Risk'!$AC$26)) -> 0.09
B45: 18 | F45: 1 | Q45: 0 | Z45: =MAX(0%,IF(Q45<>0,MIN((S45-Q45)/Q45/'Underwriting Risk'!$E$27,'Premium and Reserve Risk'!$Z$26),'Premium and Reserve Risk'!$Z$26)) -> 0.08 | AC45: =MAX(0%,IF(U45<>0,MIN((W45-U45)/U45/'Underwriting Risk'!$E$27,'Premium and Reserve Risk'!$AC$26),'Premium and Reserve Risk'!$AC$26)) -> 0.09
B46: 19 | F46: 1 | Q46: 0 | Z46: =MAX(0%,IF(Q46<>0,MIN((S46-Q46)/Q46/'Underwriting Risk'!$E$27,'Premium and Reserve Risk'!$Z$26),'Premium and Reserve Risk'!$Z$26)) -> 0.08 | AC46: =MAX(0%,IF(U46<>0,MIN((W46-U46)/U46/'Underwriting Risk'!$E$27,'Premium and Reserve Risk'!$AC$26),'Premium and Reserve Risk'!$AC$26)) -> 0.09
B47: 20 | F47: 1 | Q47: 0 | Z47: =MAX(0%,IF(Q47<>0,MIN((S47-Q47)/Q47/'Underwriting Risk'!$E$27,'Premium and Reserve Risk'!$Z$26),'Premium and Reserve Risk'!$Z$26)) -> 0.08 | AC47: =MAX(0%,IF(U47<>0,MIN((W47-U47)/U47/'Underwriting Risk'!$E$27,'Premium and Reserve Risk'!$AC$26),'Premium and Reserve Risk'!$AC$26)) -> 0.09
B48: 21 | F48: 1 | Q48: 0 | Z48: =MAX(0%,IF(Q48<>0,MIN((S48-Q48)/Q48/'Underwriting Risk'!$E$27,'Premium and Reserve Risk'!$Z$26),'Premium and Reserve Risk'!$Z$26)) -> 0.08 | AC48: =MAX(0%,IF(U48<>0,MIN((W48-U48)/U48/'Underwriting Risk'!$E$27,'Premium and Reserve Risk'!$AC$26),'Premium and Reserve Risk'!$AC$26)) -> 0.09
B49: 22 | F49: 1 | Q49: 0 | Z49: =MAX(0%,IF(Q49<>0,MIN((S49-Q49)/Q49/'Underwriting Risk'!$E$27,'Premium and Reserve Risk'!$Z$26),'Premium and Reserve Risk'!$Z$26)) -> 0.08 | AC49: =MAX(0%,IF(U49<>0,MIN((W49-U49)/U49/'Underwriting Risk'!$E$27,'Premium and Reserve Risk'!$AC$26),'Premium and Reserve Risk'!$AC$26)) -> 0.09
B50: 23 | F50: 1 | Q50: 0 | Z50: =MAX(0%,IF(Q50<>0,MIN((S50-Q50)/Q50/'Underwriting Risk'!$E$27,'Premium and Reserve Risk'!$Z$26),'Premium and Reserve Risk'!$Z$26)) -> 0.08 | AC50: =MAX(0%,IF(U50<>0,MIN((W50-U50)/U50/'Underwriting Risk'!$E$27,'Premium and Reserve Risk'!$AC$26),'Premium and Reserve Risk'!$AC$26)) -> 0.09
B51: 24 | F51: 1 | Q51: 0 | Z51: =MAX(0%,IF(Q51<>0,MIN((S51-Q51)/Q51/'Underwriting Risk'!$E$27,'Premium and Reserve Risk'!$Z$26),'Premium and Reserve Risk'!$Z$26)) -> 0.08 | AC51: =MAX(0%,IF(U51<>0,MIN((W51-U51)/U51/'Underwriting Risk'!$E$27,'Premium and Reserve Risk'!$AC$26),'Premium and Reserve Risk'!$AC$26)) -> 0.09
B52: 25 | F52: 1 | Q52: 0 | Z52: =MAX(0%,IF(Q52<>0,MIN((S52-Q52)/Q52/'Underwriting Risk'!$E$27,'Premium and Reserve Risk'!$Z$26),'Premium and Reserve Risk'!$Z$26)) -> 0.08 | AC52: =MAX(0%,IF(U52<>0,MIN((W52-U52)/U52/'Underwriting Risk'!$E$27,'Premium and Reserve Risk'!$AC$26),'Premium and Reserve Risk'!$AC$26)) -> 0.09
B53: 26 | F53: 1 | Q53: 0 | Z53: =MAX(0%,IF(Q53<>0,MIN((S53-Q53)/Q53/'Underwriting Risk'!$E$27,'Premium and Reserve Risk'!$Z$26),'Premium and Reserve Risk'!$Z$26)) -> 0.08 | AC53: =MAX(0%,IF(U53<>0,MIN((W53-U53)/U53/'Underwriting Risk'!$E$27,'Premium and Reserve Risk'!$AC$26),'Premium and Reserve Risk'!$AC$26)) -> 0.09
B54: 27 | F54: 1 | Q54: 0 | Z54: =MAX(0%,IF(Q54<>0,MIN((S54-Q54)/Q54/'Underwriting Risk'!$E$27,'Premium and Reserve Risk'!$Z$26),'Premium and Reserve Risk'!$Z$26)) -> 0.08 | AC54: =MAX(0%,IF(U54<>0,MIN((W54-U54)/U54/'Underwriting Risk'!$E$27,'Premium and Reserve Risk'!$AC$26),'Premium and Reserve Risk'!$AC$26)) -> 0.09
B55: 28 | F55: 1 | Q55: 0 | Z55: =MAX(0%,IF(Q55<>0,MIN((S55-Q55)/Q55/'Underwriting Risk'!$E$27,'Premium and Reserve Risk'!$Z$26),'Premium and Reserve Risk'!$Z$26)) -> 0.08 | AC55: =MAX(0%,IF(U55<>0,MIN((W55-U55)/U55/'Underwriting Risk'!$E$27,'Premium and Reserve Risk'!$AC$26),'Premium and Reserve Risk'!$AC$26)) -> 0.09
B56: 29 | F56: 1 | Q56: 0 | Z56: =MAX(0%,IF(Q56<>0,MIN((S56-Q56)/Q56/'Underwriting Risk'!$E$27,'Premium and Reserve Risk'!$Z$26),'Premium and Reserve Risk'!$Z$26)) -> 0.08 | AC56: =MAX(0%,IF(U56<>0,MIN((W56-U56)/U56/'Underwriting Risk'!$E$27,'Premium and Reserve Risk'!$AC$26),'Premium and Reserve Risk'!$AC$26)) -> 0.09
B57: 30 | F57: 1 | Q57: 0 | Z57: =MAX(0%,IF(Q57<>0,MIN((S57-Q57)/Q57/'Underwriting Risk'!$E$27,'Premium and Reserve Risk'!$Z$26),'Premium and Reserve Risk'!$Z$26)) -> 0.08 | AC57: =MAX(0%,IF(U57<>0,MIN((W57-U57)/U57/'Underwriting Risk'!$E$27,'Premium and Reserve Risk'!$AC$26),'Premium and Reserve Risk'!$AC$26)) -> 0.09
B58: 31 | F58: 1 | Q58: 0 | Z58: =MAX(0%,IF(Q58<>0,MIN((S58-Q58)/Q58/'Underwriting Risk'!$E$27,'Premium and Reserve Risk'!$Z$26),'Premium and Reserve Risk'!$Z$26)) -> 0.08 | AC58: =MAX(0%,IF(U58<>0,MIN((W58-U58)/U58/'Underwriting Risk'!$E$27,'Premium and Reserve Risk'!$AC$26),'Premium and Reserve Risk'!$AC$26)) -> 0.09
B59: 32 | F59: 1 | Q59: 0 | Z59: =MAX(0%,IF(Q59<>0,MIN((S59-Q59)/Q59/'Underwriting Risk'!$E$27,'Premium and Reserve Risk'!$Z$26),'Premium and Reserve Risk'!$Z$26)) -> 0.08 | AC59: =MAX(0%,IF(U59<>0,MIN((W59-U59)/U59/'Underwriting Risk'!$E$27,'Premium and Reserve Risk'!$AC$26),'Premium and Reserve Risk'!$AC$26)) -> 0.09
B60: 33 | F60: 1 | Q60: 0 | Z60: =MAX(0%,IF(Q60<>0,MIN((S60-Q60)/Q60/'Underwriting Risk'!$E$27,'Premium and Reserve Risk'!$Z$26),'Premium and Reserve Risk'!$Z$26)) -> 0.08 | AC60: =MAX(0%,IF(U60<>0,MIN((W60-U60)/U60/'Underwriting Risk'!$E$27,'Premium and Reserve Risk'!$AC$26),'Premium and Reserve Risk'!$AC$26)) -> 0.09
B61: 34 | F61: 1 | Q61: 0 | Z61: =MAX(0%,IF(Q61<>0,MIN((S61-Q61)/Q61/'Underwriting Risk'!$E$27,'Premium and Reserve Risk'!$Z$26),'Premium and Reserve Risk'!$Z$26)) -> 0.08 | AC61: =MAX(0%,IF(U61<>0,MIN((W61-U61)/U61/'Underwriting Risk'!$E$27,'Premium and Reserve Risk'!$AC$26),'Premium and Reserve Risk'!$AC$26)) -> 0.09
B62: 35 | F62: 1 | Q62: 0 | Z62: =MAX(0%,IF(Q62<>0,MIN((S62-Q62)/Q62/'Underwriting Risk'!$E$27,'Premium and Reserve Risk'!$Z$26),'Premium and Reserve Risk'!$Z$26)) -> 0.08 | AC62: =MAX(0%,IF(U62<>0,MIN((W62-U62)/U62/'Underwriting Risk'!$E$27,'Premium and Reserve Risk'!$AC$26),'Premium and Reserve Risk'!$AC$26)) -> 0.09
B63: 36 | F63: 1 | Q63: 0 | Z63: =MAX(0%,IF(Q63<>0,MIN((S63-Q63)/Q63/'Underwriting Risk'!$E$27,'Premium and Reserve Risk'!$Z$26),'Premium and Reserve Risk'!$Z$26)) -> 0.08 | AC63: =MAX(0%,IF(U63<>0,MIN((W63-U63)/U63/'Underwriting Risk'!$E$27,'Premium and Reserve Risk'!$AC$26),'Premium and Reserve Risk'!$AC$26)) -> 0.09
B64: 37 | F64: 1 | Q64: 0 | Z64: =MAX(0%,IF(Q64<>0,MIN((S64-Q64)/Q64/'Underwriting Risk'!$E$27,'Premium and Reserve Risk'!$Z$26),'Premium and Reserve Risk'!$Z$26)) -> 0.08 | AC64: =MAX(0%,IF(U64<>0,MIN((W64-U64)/U64/'Underwriting Risk'!$E$27,'Premium and Reserve Risk'!$AC$26),'Premium and Reserve Risk'!$AC$26)) -> 0.09
B65: 38 | F65: 1 | Q65: 0 | Z65: =MAX(0%,IF(Q65<>0,MIN((S65-Q65)/Q65/'Underwriting Risk'!$E$27,'Premium and Reserve Risk'!$Z$26),'Premium and Reserve Risk'!$Z$26)) -> 0.08 | AC65: =MAX(0%,IF(U65<>0,MIN((W65-U65)/U65/'Underwriting Risk'!$E$27,'Premium and Reserve Risk'!$AC$26),'Premium and Reserve Risk'!$AC$26)) -> 0.09
B66: 39 | F66: 1 | Q66: 0 | Z66: =MAX(0%,IF(Q66<>0,MIN((S66-Q66)/Q66/'Underwriting Risk'!$E$27,'Premium and Reserve Risk'!$Z$26),'Premium and Reserve Risk'!$Z$26)) -> 0.08 | AC66: =MAX(0%,IF(U66<>0,MIN((W66-U66)/U66/'Underwriting Risk'!$E$27,'Premium and Reserve Risk'!$AC$26),'Premium and Reserve Risk'!$AC$26)) -> 0.09
B67: 40 | F67: 1 | Q67: 0 | Z67: =MAX(0%,IF(Q67<>0,MIN((S67-Q67)/Q67/'Underwriting Risk'!$E$27,'Premium and Reserve Risk'!$Z$26),'Premium and Reserve Risk'!$Z$26)) -> 0.08 | AC67: =MAX(0%,IF(U67<>0,MIN((W67-U67)/U67/'Underwriting Risk'!$E$27,'Premium and Reserve Risk'!$AC$26),'Premium and Reserve Risk'!$AC$26)) -> 0.09
B68: 41 | F68: 1 | Q68: 0 | Z68: =MAX(0%,IF(Q68<>0,MIN((S68-Q68)/Q68/'Underwriting Risk'!$E$27,'Premium and Reserve Risk'!$Z$26),'Premium and Reserve Risk'!$Z$26)) -> 0.08 | AC68: =MAX(0%,IF(U68<>0,MIN((W68-U68)/U68/'Underwriting Risk'!$E$27,'Premium and Reserve Risk'!$AC$26),'Premium and Reserve Risk'!$AC$26)) -> 0.09
B69: 42 | F69: 1 | Q69: 0 | Z69: =MAX(0%,IF(Q69<>0,MIN((S69-Q69)/Q69/'Underwriting Risk'!$E$27,'Premium and Reserve Risk'!$Z$26),'Premium and Reserve Risk'!$Z$26)) -> 0.08 | AC69: =MAX(0%,IF(U69<>0,MIN((W69-U69)/U69/'Underwriting Risk'!$E$27,'Premium and Reserve Risk'!$AC$26),'Premium and Reserve Risk'!$AC$26)) -> 0.09
B70: 43 | F70: 1 | Q70: 0 | Z70: =MAX(0%,IF(Q70<>0,MIN((S70-Q70)/Q70/'Underwriting Risk'!$E$27,'Premium and Reserve Risk'!$Z$26),'Premium and Reserve Risk'!$Z$26)) -> 0.08 | AC70: =MAX(0%,IF(U70<>0,MIN((W70-U70)/U70/'Underwriting Risk'!$E$27,'Premium and Reserve Risk'!$AC$26),'Premium and Reserve Risk'!$AC$26)) -> 0.09
B71: 44 | F71: 1 | Q71: 0 | Z71: =MAX(0%,IF(Q71<>0,MIN((S71-Q71)/Q71/'Underwriting Risk'!$E$27,'Premium and Reserve Risk'!$Z$26),'Premium and Reserve Risk'!$Z$26)) -> 0.08 | AC71: =MAX(0%,IF(U71<>0,MIN((W71-U71)/U71/'Underwriting Risk'!$E$27,'Premium and Reserve Risk'!$AC$26),'Premium and Reserve Risk'!$AC$26)) -> 0.09
B72: 45 | F72: 1 | Q72: 0 | Z72: =MAX(0%,IF(Q72<>0,MIN((S72-Q72)/Q72/'Underwriting Risk'!$E$27,'Premium and Reserve Risk'!$Z$26),'Premium and Reserve Risk'!$Z$26)) -> 0.08 | AC72: =MAX(0%,IF(U72<>0,MIN((W72-U72)/U72/'Underwriting Risk'!$E$27,'Premium and Reserve Risk'!$AC$26),'Premium and Reserve Risk'!$AC$26)) -> 0.09
B73: 46 | F73: 1 | Q73: 0 | Z73: =MAX(0%,IF(Q73<>0,MIN((S73-Q73)/Q73/'Underwriting Risk'!$E$27,'Premium and Reserve Risk'!$Z$26),'Premium and Reserve Risk'!$Z$26)) -> 0.08 | AC73: =MAX(0%,IF(U73<>0,MIN((W73-U73)/U73/'Underwriting Risk'!$E$27,'Premium and Reserve Risk'!$AC$26),'Premium and Reserve Risk'!$AC$26)) -> 0.09
B74: 47 | F74: 1 | Q74: 0 | Z74: =MAX(0%,IF(Q74<>0,MIN((S74-Q74)/Q74/'Underwriting Risk'!$E$27,'Premium and Reserve Risk'!$Z$26),'Premium and Reserve Risk'!$Z$26)) -> 0.08 | AC74: =MAX(0%,IF(U74<>0,MIN((W74-U74)/U74/'Underwriting Risk'!$E$27,'Premium and Reserve Risk'!$AC$26),'Premium and Reserve Risk'!$AC$26)) -> 0.09
B75: 48 | F75: 1 | Q75: 0 | Z75: =MAX(0%,IF(Q75<>0,MIN((S75-Q75)/Q75/'Underwriting Risk'!$E$27,'Premium and Reserve Risk'!$Z$26),'Premium and Reserve Risk'!$Z$26)) -> 0.08 | AC75: =MAX(0%,IF(U75<>0,MIN((W75-U75)/U75/'Underwriting Risk'!$E$27,'Premium and Reserve Risk'!$AC$26),'Premium and Reserve Risk'!$AC$26)) -> 0.09
B76: 49 | F76: 1 | Q76: 0 | Z76: =MAX(0%,IF(Q76<>0,MIN((S76-Q76)/Q76/'Underwriting Risk'!$E$27,'Premium and Reserve Risk'!$Z$26),'Premium and Reserve Risk'!$Z$26)) -> 0.08 | AC76: =MAX(0%,IF(U76<>0,MIN((W76-U76)/U76/'Underwriting Risk'!$E$27,'Premium and Reserve Risk'!$AC$26),'Premium and Reserve Risk'!$AC$26)) -> 0.09
B77: 50 | F77: 1 | Q77: 0 | Z77: =MAX(0%,IF(Q77<>0,MIN((S77-Q77)/Q77/'Underwriting Risk'!$E$27,'Premium and Reserve Risk'!$Z$26),'Premium and Reserve Risk'!$Z$26)) -> 0.08 | AC77: =MAX(0%,IF(U77<>0,MIN((W77-U77)/U77/'Underwriting Risk'!$E$27,'Premium and Reserve Risk'!$AC$26),'Premium and Reserve Risk'!$AC$26)) -> 0.09
B78: 51 | F78: 1 | Q78: 0 | Z78: =MAX(0%,IF(Q78<>0,MIN((S78-Q78)/Q78/'Underwriting Risk'!$E$27,'Premium and Reserve Risk'!$Z$26),'Premium and Reserve Risk'!$Z$26)) -> 0.08 | AC78: =MAX(0%,IF(U78<>0,MIN((W78-U78)/U78/'Underwriting Risk'!$E$27,'Premium and Reserve Risk'!$AC$26),'Premium and Reserve Risk'!$AC$26)) -> 0.09
B79: 52 | F79: 1 | Q79: 0 | Z79: =MAX(0%,IF(Q79<>0,MIN((S79-Q79)/Q79/'Underwriting Risk'!$E$27,'Premium and Reserve Risk'!$Z$26),'Premium and Reserve Risk'!$Z$26)) -> 0.08 | AC79: =MAX(0%,IF(U79<>0,MIN((W79-U79)/U79/'Underwriting Risk'!$E$27,'Premium and Reserve Risk'!$AC$26),'Premium and Reserve Risk'!$AC$26)) -> 0.09
B80: 53 | F80: 1 | Q80: 0 | Z80: =MAX(0%,IF(Q80<>0,MIN((S80-Q80)/Q80/'Underwriting Risk'!$E$27,'Premium and Reserve Risk'!$Z$26),'Premium and Reserve Risk'!$Z$26)) -> 0.08 | AC80: =MAX(0%,IF(U80<>0,MIN((W80-U80)/U80/'Underwriting Risk'!$E$27,'Premium and Reserve Risk'!$AC$26),'Premium and Reserve Risk'!$AC$26)) -> 0.09
B81: 54 | F81: 1 | Q81: 0 | Z81: =MAX(0%,IF(Q81<>0,MIN((S81-Q81)/Q81/'Underwriting Risk'!$E$27,'Premium and Reserve Risk'!$Z$26),'Premium and Reserve Risk'!$Z$26)) -> 0.08 | AC81: =MAX(0%,IF(U81<>0,MIN((W81-U81)/U81/'Underwriting Risk'!$E$27,'Premium and Reserve Risk'!$AC$26),'Premium and Reserve Risk'!$AC$26)) -> 0.09
B82: 55 | F82: 1 | Q82: 0 | Z82: =MAX(0%,IF(Q82<>0,MIN((S82-Q82)/Q82/'Underwriting Risk'!$E$27,'Premium and Reserve Risk'!$Z$26),'Premium and Reserve Risk'!$Z$26)) -> 0.08 | AC82: =MAX(0%,IF(U82<>0,MIN((W82-U82)/U82/'Underwriting Risk'!$E$27,'Premium and Reserve Risk'!$AC$26),'Premium and Reserve Risk'!$AC$26)) -> 0.09
B83: 56 | F83: 1 | Q83: 0 | Z83: =MAX(0%,IF(Q83<>0,MIN((S83-Q83)/Q83/'Underwriting Risk'!$E$27,'Premium and Reserve Risk'!$Z$26),'Premium and Reserve Risk'!$Z$26)) -> 0.08 | AC83: =MAX(0%,IF(U83<>0,MIN((W83-U83)/U83/'Underwriting Risk'!$E$27,'Premium and Reserve Risk'!$AC$26),'Premium and Reserve Risk'!$AC$26)) -> 0.09
B84: 57 | F84: 1 | Q84: 0 | Z84: =MAX(0%,IF(Q84<>0,MIN((S84-Q84)/Q84/'Underwriting Risk'!$E$27,'Premium and Reserve Risk'!$Z$26),'Premium and Reserve Risk'!$Z$26)) -> 0.08 | AC84: =MAX(0%,IF(U84<>0,MIN((W84-U84)/U84/'Underwriting Risk'!$E$27,'Premium and Reserve Risk'!$AC$26),'Premium and Reserve Risk'!$AC$26)) -> 0.09
B85: 58 | F85: 1 | Q85: 0 | Z85: =MAX(0%,IF(Q85<>0,MIN((S85-Q85)/Q85/'Underwriting Risk'!$E$27,'Premium and Reserve Risk'!$Z$26),'Premium and Reserve Risk'!$Z$26)) -> 0.08 | AC85: =MAX(0%,IF(U85<>0,MIN((W85-U85)/U85/'Underwriting Risk'!$E$27,'Premium and Reserve Risk'!$AC$26),'Premium and Reserve Risk'!$AC$26)) -> 0.09
B86: 59 | F86: 1 | Q86: 0 | Z86: =MAX(0%,IF(Q86<>0,MIN((S86-Q86)/Q86/'Underwriting Risk'!$E$27,'Premium and Reserve Risk'!$Z$26),'Premium and Reserve Risk'!$Z$26)) -> 0.08 | AC86: =MAX(0%,IF(U86<>0,MIN((W86-U86)/U86/'Underwriting Risk'!$E$27,'Premium and Reserve Risk'!$AC$26),'Premium and Reserve Risk'!$AC$26)) -> 0.09
B87: 60 | F87: 1 | Q87: 0 | Z87: =MAX(0%,IF(Q87<>0,MIN((S87-Q87)/Q87/'Underwriting Risk'!$E$27,'Premium and Reserve Risk'!$Z$26),'Premium and Reserve Risk'!$Z$26)) -> 0.08 | AC87: =MAX(0%,IF(U87<>0,MIN((W87-U87)/U87/'Underwriting Risk'!$E$27,'Premium and Reserve Risk'!$AC$26),'Premium and Reserve Risk'!$AC$26)) -> 0.09
B88: 61 | F88: 1 | Q88: 0 | Z88: =MAX(0%,IF(Q88<>0,MIN((S88-Q88)/Q88/'Underwriting Risk'!$E$27,'Premium and Reserve Risk'!$Z$26),'Premium and Reserve Risk'!$Z$26)) -> 0.08 | AC88: =MAX(0%,IF(U88<>0,MIN((W88-U88)/U88/'Underwriting Risk'!$E$27,'Premium and Reserve Risk'!$AC$26),'Premium and Reserve Risk'!$AC$26)) -> 0.09
B89: 62 | F89: 1 | Q89: 0 | Z89: =MAX(0%,IF(Q89<>0,MIN((S89-Q89)/Q89/'Underwriting Risk'!$E$27,'Premium and Reserve Risk'!$Z$26),'Premium and Reserve Risk'!$Z$26)) -> 0.08 | AC89: =MAX(0%,IF(U89<>0,MIN((W89-U89)/U89/'Underwriting Risk'!$E$27,'Premium and Reserve Risk'!$AC$26),'Premium and Reserve Risk'!$AC$26)) -> 0.09
B90: 63 | F90: 1 | Q90: 0 | Z90: =MAX(0%,IF(Q90<>0,MIN((S90-Q90)/Q90/'Underwriting Risk'!$E$27,'Premium and Reserve Risk'!$Z$26),'Premium and Reserve Risk'!$Z$26)) -> 0.08 | AC90: =MAX(0%,IF(U90<>0,MIN((W90-U90)/U90/'Underwriting Risk'!$E$27,'Premium and Reserve Risk'!$AC$26),'Premium and Reserve Risk'!$AC$26)) -> 0.09
B91: 64 | F91: 1 | Q91: 0 | Z91: =MAX(0%,IF(Q91<>0,MIN((S91-Q91)/Q91/'Underwriting Risk'!$E$27,'Premium and Reserve Risk'!$Z$26),'Premium and Reserve Risk'!$Z$26)) -> 0.08 | AC91: =MAX(0%,IF(U91<>0,MIN((W91-U91)/U91/'Underwriting Risk'!$E$27,'Premium and Reserve Risk'!$AC$26),'Premium and Reserve Risk'!$AC$26)) -> 0.09
B92: 65 | F92: 1 | Q92: 0 | Z92: =MAX(0%,IF(Q92<>0,MIN((S92-Q92)/Q92/'Underwriting Risk'!$E$27,'Premium and Reserve Risk'!$Z$26),'Premium and Reserve Risk'!$Z$26)) -> 0.08 | AC92: =MAX(0%,IF(U92<>0,MIN((W92-U92)/U92/'Underwriting Risk'!$E$27,'Premium and Reserve Risk'!$AC$26),'Premium and Reserve Risk'!$AC$26)) -> 0.09
B93: 66 | F93: =IF(B93<=OFFSET($Z$8,B$25-1,0),0,1) -> 1 | Q93: =MAX(G93,I93)+K93+M93+0.3*O93 -> 0 | Z93: =MAX(0%,IF(Q93<>0,MIN((S93-Q93)/Q93/'Underwriting Risk'!$E$27,'Premium and Reserve Risk'!$Z$26),'Premium and Reserve Risk'!$Z$26)) -> 0.08 | AC93: =MAX(0%,IF(U93<>0,MIN((W93-U93)/U93/'Underwriting Risk'!$E$27,'Premium and Reserve Risk'!$AC$26),'Premium and Reserve Risk'!$AC$26)) -> 0.09
B94: 67 | F94: 1 | Q94: 0 | Z94: =MAX(0%,IF(Q94<>0,MIN((S94-Q94)/Q94/'Underwriting Risk'!$E$27,'Premium and Reserve Risk'!$Z$26),'Premium and Reserve Risk'!$Z$26)) -> 0.08 | AC94: =MAX(0%,IF(U94<>0,MIN((W94-U94)/U94/'Underwriting Risk'!$E$27,'Premium and Reserve Risk'!$AC$26),'Premium and Reserve Risk'!$AC$26)) -> 0.09
B95: 68 | F95: 1 | Q95: 0 | Z95: =MAX(0%,IF(Q95<>0,MIN((S95-Q95)/Q95/'Underwriting Risk'!$E$27,'Premium and Reserve Risk'!$Z$26),'Premium and Reserve Risk'!$Z$26)) -> 0.08 | AC95: =MAX(0%,IF(U95<>0,MIN((W95-U95)/U95/'Underwriting Risk'!$E$27,'Premium and Reserve Risk'!$AC$26),'Premium and Reserve Risk'!$AC$26)) -> 0.09
B96: 69 | F96: 1 | Q96: 0 | Z96: =MAX(0%,IF(Q96<>0,MIN((S96-Q96)/Q96/'Underwriting Risk'!$E$27,'Premium and Reserve Risk'!$Z$26),'Premium and Reserve Risk'!$Z$26)) -> 0.08 | AC96: =MAX(0%,IF(U96<>0,MIN((W96-U96)/U96/'Underwriting Risk'!$E$27,'Premium and Reserve Risk'!$AC$26),'Premium and Reserve Risk'!$AC$26)) -> 0.09
B97: 70 | F97: 1 | Q97: 0 | Z97: =MAX(0%,IF(Q97<>0,MIN((S97-Q97)/Q97/'Underwriting Risk'!$E$27,'Premium and Reserve Risk'!$Z$26),'Premium and Reserve Risk'!$Z$26)) -> 0.08 | AC97: =MAX(0%,IF(U97<>0,MIN((W97-U97)/U97/'Underwriting Risk'!$E$27,'Premium and Reserve Risk'!$AC$26),'Premium and Reserve Risk'!$AC$26)) -> 0.09
B98: 71 | F98: 1 | Q98: 0 | Z98: =MAX(0%,IF(Q98<>0,MIN((S98-Q98)/Q98/'Underwriting Risk'!$E$27,'Premium and Reserve Risk'!$Z$26),'Premium and Reserve Risk'!$Z$26)) -> 0.08 | AC98: =MAX(0%,IF(U98<>0,MIN((W98-U98)/U98/'Underwriting Risk'!$E$27,'Premium and Reserve Risk'!$AC$26),'Premium and Reserve Risk'!$AC$26)) -> 0.09
B99: 72 | F99: 1 | Q99: 0 | Z99: =MAX(0%,IF(Q99<>0,MIN((S99-Q99)/Q99/'Underwriting Risk'!$E$27,'Premium and Reserve Risk'!$Z$26),'Premium and Reserve Risk'!$Z$26)) -> 0.08 | AC99: =MAX(0%,IF(U99<>0,MIN((W99-U99)/U99/'Underwriting Risk'!$E$27,'Premium and Reserve Risk'!$AC$26),'Premium and Reserve Risk'!$AC$26)) -> 0.09
B100: 73 | F100: 1 | Q100: 0 | Z100: =MAX(0%,IF(Q100<>0,MIN((S100-Q100)/Q100/'Underwriting Risk'!$E$27,'Premium and Reserve Risk'!$Z$26),'Premium and Reserve Risk'!$Z$26)) -> 0.08 | AC100: =MAX(0%,IF(U100<>0,MIN((W100-U100)/U100/'Underwriting Risk'!$E$27,'Premium and Reserve Risk'!$AC$26),'Premium and Reserve Risk'!$AC$26)) -> 0.09
B101: 74 | F101: 1 | Q101: 0 | Z101: =MAX(0%,IF(Q101<>0,MIN((S101-Q101)/Q101/'Underwriting Risk'!$E$27,'Premium and Reserve Risk'!$Z$26),'Premium and Reserve Risk'!$Z$26)) -> 0.08 | AC101: =MAX(0%,IF(U101<>0,MIN((W101-U101)/U101/'Underwriting Risk'!$E$27,'Premium and Reserve Risk'!$AC$26),'Premium and Reserve Risk'!$AC$26)) -> 0.09
B102: 75 | F102: 1 | Q102: 0 | Z102: =MAX(0%,IF(Q102<>0,MIN((S102-Q102)/Q102/'Underwriting Risk'!$E$27,'Premium and Reserve Risk'!$Z$26),'Premium and Reserve Risk'!$Z$26)) -> 0.08 | AC102: =MAX(0%,IF(U102<>0,MIN((W102-U102)/U102/'Underwriting Risk'!$E$27,'Premium and Reserve Risk'!$AC$26),'Premium and Reserve Risk'!$AC$26)) -> 0.09
B103: 76 | F103: 1 | Q103: 0 | Z103: =MAX(0%,IF(Q103<>0,MIN((S103-Q103)/Q103/'Underwriting Risk'!$E$27,'Premium and Reserve Risk'!$Z$26),'Premium and Reserve Risk'!$Z$26)) -> 0.08 | AC103: =MAX(0%,IF(U103<>0,MIN((W103-U103)/U103/'Underwriting Risk'!$E$27,'Premium and Reserve Risk'!$AC$26),'Premium and Reserve Risk'!$AC$26)) -> 0.09
B104: 77 | F104: 1 | Q104: 0 | Z104: =MAX(0%,IF(Q104<>0,MIN((S104-Q104)/Q104/'Underwriting Risk'!$E$27,'Premium and Reserve Risk'!$Z$26),'Premium and Reserve Risk'!$Z$26)) -> 0.08 | AC104: =MAX(0%,IF(U104<>0,MIN((W104-U104)/U104/'Underwriting Risk'!$E$27,'Premium and Reserve Risk'!$AC$26),'Premium and Reserve Risk'!$AC$26)) -> 0.09
B105: 78 | F105: 1 | Q105: 0 | Z105: =MAX(0%,IF(Q105<>0,MIN((S105-Q105)/Q105/'Underwriting Risk'!$E$27,'Premium and Reserve Risk'!$Z$26),'Premium and Reserve Risk'!$Z$26)) -> 0.08 | AC105: =MAX(0%,IF(U105<>0,MIN((W105-U105)/U105/'Underwriting Risk'!$E$27,'Premium and Reserve Risk'!$AC$26),'Premium and Reserve Risk'!$AC$26)) -> 0.09
B106: 79 | F106: 1 | Q106: 0 | Z106: =MAX(0%,IF(Q106<>0,MIN((S106-Q106)/Q106/'Underwriting Risk'!$E$27,'Premium and Reserve Risk'!$Z$26),'Premium and Reserve Risk'!$Z$26)) -> 0.08 | AC106: =MAX(0%,IF(U106<>0,MIN((W106-U106)/U106/'Underwriting Risk'!$E$27,'Premium and Reserve Risk'!$AC$26),'Premium and Reserve Risk'!$AC$26)) -> 0.09
B107: 80 | F107: 1 | Q107: 0 | Z107: =MAX(0%,IF(Q107<>0,MIN((S107-Q107)/Q107/'Underwriting Risk'!$E$27,'Premium and Reserve Risk'!$Z$26),'Premium and Reserve Risk'!$Z$26)) -> 0.08 | AC107: =MAX(0%,IF(U107<>0,MIN((W107-U107)/U107/'Underwriting Risk'!$E$27,'Premium and Reserve Risk'!$AC$26),'Premium and Reserve Risk'!$AC$26)) -> 0.09
B108: 81 | F108: 1 | Q108: 0 | Z108: =MAX(0%,IF(Q108<>0,MIN((S108-Q108)/Q108/'Underwriting Risk'!$E$27,'Premium and Reserve Risk'!$Z$26),'Premium and Reserve Risk'!$Z$26)) -> 0.08 | AC108: =MAX(0%,IF(U108<>0,MIN((W108-U108)/U108/'Underwriting Risk'!$E$27,'Premium and Reserve Risk'!$AC$26),'Premium and Reserve Risk'!$AC$26)) -> 0.09
B109: 82 | F109: 1 | Q109: 0 | Z109: =MAX(0%,IF(Q109<>0,MIN((S109-Q109)/Q109/'Underwriting Risk'!$E$27,'Premium and Reserve Risk'!$Z$26),'Premium and Reserve Risk'!$Z$26)) -> 0.08 | AC109: =MAX(0%,IF(U109<>0,MIN((W109-U109)/U109/'Underwriting Risk'!$E$27,'Premium and Reserve Risk'!$AC$26),'Premium and Reserve Risk'!$AC$26)) -> 0.09
B110: 83 | F110: 1 | Q110: 0 | Z110: =MAX(0%,IF(Q110<>0,MIN((S110-Q110)/Q110/'Underwriting Risk'!$E$27,'Premium and Reserve Risk'!$Z$26),'Premium and Reserve Risk'!$Z$26)) -> 0.08 | AC110: =MAX(0%,IF(U110<>0,MIN((W110-U110)/U110/'Underwriting Risk'!$E$27,'Premium and Reserve Risk'!$AC$26),'Premium and Reserve Risk'!$AC$26)) -> 0.09
B111: 84 | F111: 1 | Q111: 0 | Z111: =MAX(0%,IF(Q111<>0,MIN((S111-Q111)/Q111/'Underwriting Risk'!$E$27,'Premium and Reserve Risk'!$Z$26),'Premium and Reserve Risk'!$Z$26)) -> 0.08 | AC111: =MAX(0%,IF(U111<>0,MIN((W111-U111)/U111/'Underwriting Risk'!$E$27,'Premium and Reserve Risk'!$AC$26),'Premium and Reserve Risk'!$AC$26)) -> 0.09
B112: 85 | F112: 1 | Q112: 0 | Z112: =MAX(0%,IF(Q112<>0,MIN((S112-Q112)/Q112/'Underwriting Risk'!$E$27,'Premium and Reserve Risk'!$Z$26),'Premium and Reserve Risk'!$Z$26)) -> 0.08 | AC112: =MAX(0%,IF(U112<>0,MIN((W112-U112)/U112/'Underwriting Risk'!$E$27,'Premium and Reserve Risk'!$AC$26),'Premium and Reserve Risk'!$AC$26)) -> 0.09
B113: 86 | F113: 1 | Q113: 0 | Z113: =MAX(0%,IF(Q113<>0,MIN((S113-Q113)/Q113/'Underwriting Risk'!$E$27,'Premium and Reserve Risk'!$Z$26),'Premium and Reserve Risk'!$Z$26)) -> 0.08 | AC113: =MAX(0%,IF(U113<>0,MIN((W113-U113)/U113/'Underwriting Risk'!$E$27,'Premium and Reserve Risk'!$AC$26),'Premium and Reserve Risk'!$AC$26)) -> 0.09
B114: 87 | F114: 1 | Q114: 0 | Z114: =MAX(0%,IF(Q114<>0,MIN((S114-Q114)/Q114/'Underwriting Risk'!$E$27,'Premium and Reserve Risk'!$Z$26),'Premium and Reserve Risk'!$Z$26)) -> 0.08 | AC114: =MAX(0%,IF(U114<>0,MIN((W114-U114)/U114/'Underwriting Risk'!$E$27,'Premium and Reserve Risk'!$AC$26),'Premium and Reserve Risk'!$AC$26)) -> 0.09
B115: 88 | F115: 1 | Q115: 0 | Z115: =MAX(0%,IF(Q115<>0,MIN((S115-Q115)/Q115/'Underwriting Risk'!$E$27,'Premium and Reserve Risk'!$Z$26),'Premium and Reserve Risk'!$Z$26)) -> 0.08 | AC115: =MAX(0%,IF(U115<>0,MIN((W115-U115)/U115/'Underwriting Risk'!$E$27,'Premium and Reserve Risk'!$AC$26),'Premium and Reserve Risk'!$AC$26)) -> 0.09
B116: 89 | F116: 1 | Q116: 0 | Z116: =MAX(0%,IF(Q116<>0,MIN((S116-Q116)/Q116/'Underwriting Risk'!$E$27,'Premium and Reserve Risk'!$Z$26),'Premium and Reserve Risk'!$Z$26)) -> 0.08 | AC116: =MAX(0%,IF(U116<>0,MIN((W116-U116)/U116/'Underwriting Risk'!$E$27,'Premium and Reserve Risk'!$AC$26),'Premium and Reserve Risk'!$AC$26)) -> 0.09
B117: 90 | F117: 1 | Q117: 0 | Z117: =MAX(0%,IF(Q117<>0,MIN((S117-Q117)/Q117/'Underwriting Risk'!$E$27,'Premium and Reserve Risk'!$Z$26),'Premium and Reserve Risk'!$Z$26)) -> 0.08 | AC117: =MAX(0%,IF(U117<>0,MIN((W117-U117)/U117/'Underwriting Risk'!$E$27,'Premium and Reserve Risk'!$AC$26),'Premium and Reserve Risk'!$AC$26)) -> 0.09
B118: 91 | F118: 1 | Q118: 0 | Z118: =MAX(0%,IF(Q118<>0,MIN((S118-Q118)/Q118/'Underwriting Risk'!$E$27,'Premium and Reserve Risk'!$Z$26),'Premium and Reserve Risk'!$Z$26)) -> 0.08 | AC118: =MAX(0%,IF(U118<>0,MIN((W118-U118)/U118/'Underwriting Risk'!$E$27,'Premium and Reserve Risk'!$AC$26),'Premium and Reserve Risk'!$AC$26)) -> 0.09
B119: 92 | F119: 1 | Q119: 0 | Z119: =MAX(0%,IF(Q119<>0,MIN((S119-Q119)/Q119/'Underwriting Risk'!$E$27,'Premium and Reserve Risk'!$Z$26),'Premium and Reserve Risk'!$Z$26)) -> 0.08 | AC119: =MAX(0%,IF(U119<>0,MIN((W119-U119)/U119/'Underwriting Risk'!$E$27,'Premium and Reserve Risk'!$AC$26),'Premium and Reserve Risk'!$AC$26)) -> 0.09
B120: 93 | F120: 1 | Q120: 0 | Z120: =MAX(0%,IF(Q120<>0,MIN((S120-Q120)/Q120/'Underwriting Risk'!$E$27,'Premium and Reserve Risk'!$Z$26),'Premium and Reserve Risk'!$Z$26)) -> 0.08 | AC120: =MAX(0%,IF(U120<>0,MIN((W120-U120)/U120/'Underwriting Risk'!$E$27,'Premium and Reserve Risk'!$AC$26),'Premium and Reserve Risk'!$AC$26)) -> 0.09
B121: 94 | F121: 1 | Q121: 0 | Z121: =MAX(0%,IF(Q121<>0,MIN((S121-Q121)/Q121/'Underwriting Risk'!$E$27,'Premium and Reserve Risk'!$Z$26),'Premium and Reserve Risk'!$Z$26)) -> 0.08 | AC121: =MAX(0%,IF(U121<>0,MIN((W121-U121)/U121/'Underwriting Risk'!$E$27,'Premium and Reserve Risk'!$AC$26),'Premium and Reserve Risk'!$AC$26)) -> 0.09
B122: 95 | F122: 1 | Q122: 0 | Z122: =MAX(0%,IF(Q122<>0,MIN((S122-Q122)/Q122/'Underwriting Risk'!$E$27,'Premium and Reserve Risk'!$Z$26),'Premium and Reserve Risk'!$Z$26)) -> 0.08 | AC122: =MAX(0%,IF(U122<>0,MIN((W122-U122)/U122/'Underwriting Risk'!$E$27,'Premium and Reserve Risk'!$AC$26),'Premium and Reserve Risk'!$AC$26)) -> 0.09
B123: 96 | F123: 1 | Q123: 0 | Z123: =MAX(0%,IF(Q123<>0,MIN((S123-Q123)/Q123/'Underwriting Risk'!$E$27,'Premium and Reserve Risk'!$Z$26),'Premium and Reserve Risk'!$Z$26)) -> 0.08 | AC123: =MAX(0%,IF(U123<>0,MIN((W123-U123)/U123/'Underwriting Risk'!$E$27,'Premium and Reserve Risk'!$AC$26),'Premium and Reserve Risk'!$AC$26)) -> 0.09
B124: 97 | F124: 1 | Q124: 0 | Z124: =MAX(0%,IF(Q124<>0,MIN((S124-Q124)/Q124/'Underwriting Risk'!$E$27,'Premium and Reserve Risk'!$Z$26),'Premium and Reserve Risk'!$Z$26)) -> 0.08 | AC124: =MAX(0%,IF(U124<>0,MIN((W124-U124)/U124/'Underwriting Risk'!$E$27,'Premium and Reserve Risk'!$AC$26),'Premium and Reserve Risk'!$AC$26)) -> 0.09
B125: 98 | F125: 1 | Q125: 0 | Z125: =MAX(0%,IF(Q125<>0,MIN((S125-Q125)/Q125/'Underwriting Risk'!$E$27,'Premium and Reserve Risk'!$Z$26),'Premium and Reserve Risk'!$Z$26)) -> 0.08 | AC125: =MAX(0%,IF(U125<>0,MIN((W125-U125)/U125/'Underwriting Risk'!$E$27,'Premium and Reserve Risk'!$AC$26),'Premium and Reserve Risk'!$AC$26)) -> 0.09
B126: 99 | F126: 1 | Q126: 0 | Z126: =MAX(0%,IF(Q126<>0,MIN((S126-Q126)/Q126/'Underwriting Risk'!$E$27,'Premium and Reserve Risk'!$Z$26),'Premium and Reserve Risk'!$Z$26)) -> 0.08 | AC126: =MAX(0%,IF(U126<>0,MIN((W126-U126)/U126/'Underwriting Risk'!$E$27,'Premium and Reserve Risk'!$AC$26),'Premium and Reserve Risk'!$AC$26)) -> 0.09
B127: 100 | F127: 1 | Q127: 0 | Z127: =MAX(0%,IF(Q127<>0,MIN((S127-Q127)/Q127/'Underwriting Risk'!$E$27,'Premium and Reserve Risk'!$Z$26),'Premium and Reserve Risk'!$Z$26)) -> 0.08 | AC127: =MAX(0%,IF(U127<>0,MIN((W127-U127)/U127/'Underwriting Risk'!$E$27,'Premium and Reserve Risk'!$AC$26),'Premium and Reserve Risk'!$AC$26)) -> 0.09
F128: =IF(OFFSET($Z$8,B25-1,0)=0,1,0) -> 0
B130: 2 | C130: =RIGHT(OFFSET($B$8,B130-1,0),LEN(OFFSET($B$8,B130-1,0))-5) -> Other Motor & 14 Prop. Reins. | Z130: Premium Standard Deviation | AC130: Reserve Standard Deviation
C131: Contract identifier * | F131: =IF(OFFSET($Z$8,B130-1,0)=0,1,0) -> 0 | G131: Existing Premium (next 12 months)* | I131: Last Year Premium * | K131: Existing Premium (not included in column G) * | M131: Future Premium (next 12 months) * | O131: Future Premium (not included in column M) * | Q131: Premium Volume Measure | S131: Aggregate Cap* | U131: Claims reserve * | W131: Maximum exposure from in-force * | Z131: =OFFSET('Underwriting Risk'!$K$55,'Premium and Reserve Risk'!B130-1,0) -> 0.08 | AC131: =OFFSET('Underwriting Risk'!$M$55,'Premium and Reserve Risk'!B130-1,0) -> 0.08
F132: =IF(OFFSET($Z$8,B130-1,0)=0,1,0) -> 0
B133: 1 | F133: =IF(B133<=OFFSET($Z$8,B$130-1,0),0,1) -> 0 | G133: 0 | I133: 0 | K133: 0 | M133: 0 | O133: 0 | Q133: =MAX(G133,I133)+K133+M133+0.3*O133 -> 0 | S133: 0 | U133: 0 | W133: 0 | Z133: =MAX(0%,IF(Q133<>0,MIN((S133-Q133)/Q133/'Underwriting Risk'!$E$27,'Premium and Reserve Risk'!$Z$131),'Premium and Reserve Risk'!$Z$131)) -> 0.08 | AC133: =MAX(0%,IF(U133<>0,MIN((W133-U133)/U133/'Underwriting Risk'!$E$27,'Premium and Reserve Risk'!$AC$131),'Premium and Reserve Risk'!$AC$131)) -> 0.08
B134: 2 | F134: =IF(B134<=OFFSET($Z$8,B$130-1,0),0,1) -> 1 | Q134: =MAX(G134,I134)+K134+M134+0.3*O134 -> 0 | Z134: =MAX(0%,IF(Q134<>0,MIN((S134-Q134)/Q134/'Underwriting Risk'!$E$27,'Premium and Reserve Risk'!$Z$131),'Premium and Reserve Risk'!$Z$131)) -> 0.08 | AC134: =MAX(0%,IF(U134<>0,MIN((W134-U134)/U134/'Underwriting Risk'!$E$27,'Premium and Reserve Risk'!$AC$131),'Premium and Reserve Risk'!$AC$131)) -> 0.08
B135: 3 | F135: 1 | Q135: 0 | Z135: =MAX(0%,IF(Q135<>0,MIN((S135-Q135)/Q135/'Underwriting Risk'!$E$27,'Premium and Reserve Risk'!$Z$131),'Premium and Reserve Risk'!$Z$131)) -> 0.08 | AC135: =MAX(0%,IF(U135<>0,MIN((W135-U135)/U135/'Underwriting Risk'!$E$27,'Premium and Reserve Risk'!$AC$131),'Premium and Reserve Risk'!$AC$131)) -> 0.08
B136: 4 | F136: 1 | Q136: 0 | Z136: =MAX(0%,IF(Q136<>0,MIN((S136-Q136)/Q136/'Underwriting Risk'!$E$27,'Premium and Reserve Risk'!$Z$131),'Premium and Reserve Risk'!$Z$131)) -> 0.08 | AC136: =MAX(0%,IF(U136<>0,MIN((W136-U136)/U136/'Underwriting Risk'!$E$27,'Premium and Reserve Risk'!$AC$131),'Premium and Reserve Risk'!$AC$131)) -> 0.08
B137: 5 | F137: 1 | Q137: 0 | Z137: =MAX(0%,IF(Q137<>0,MIN((S137-Q137)/Q137/'Underwriting Risk'!$E$27,'Premium and Reserve Risk'!$Z$131),'Premium and Reserve Risk'!$Z$131)) -> 0.08 | AC137: =MAX(0%,IF(U137<>0,MIN((W137-U137)/U137/'Underwriting Risk'!$E$27,'Premium and Reserve Risk'!$AC$131),'Premium and Reserve Risk'!$AC$131)) -> 0.08
B138: 6 | F138: 1 | Q138: 0 | Z138: =MAX(0%,IF(Q138<>0,MIN((S138-Q138)/Q138/'Underwriting Risk'!$E$27,'Premium and Reserve Risk'!$Z$131),'Premium and Reserve Risk'!$Z$131)) -> 0.08 | AC138: =MAX(0%,IF(U138<>0,MIN((W138-U138)/U138/'Underwriting Risk'!$E$27,'Premium and Reserve Risk'!$AC$131),'Premium and Reserve Risk'!$AC$131)) -> 0.08
B139: 7 | F139: 1 | Q139: 0 | Z139: =MAX(0%,IF(Q139<>0,MIN((S139-Q139)/Q139/'Underwriting Risk'!$E$27,'Premium and Reserve Risk'!$Z$131),'Premium and Reserve Risk'!$Z$131)) -> 0.08 | AC139: =MAX(0%,IF(U139<>0,MIN((W139-U139)/U139/'Underwriting Risk'!$E$27,'Premium and Reserve Risk'!$AC$131),'Premium and Reserve Risk'!$AC$131)) -> 0.08
B140: 8 | F140: 1 | Q140: 0 | Z140: =MAX(0%,IF(Q140<>0,MIN((S140-Q140)/Q140/'Underwriting Risk'!$E$27,'Premium and Reserve Risk'!$Z$131),'Premium and Reserve Risk'!$Z$131)) -> 0.08 | AC140: =MAX(0%,IF(U140<>0,MIN((W140-U140)/U140/'Underwriting Risk'!$E$27,'Premium and Reserve Risk'!$AC$131),'Premium and Reserve Risk'!$AC$131)) -> 0.08
B141: 9 | F141: 1 | Q141: 0 | Z141: =MAX(0%,IF(Q141<>0,MIN((S141-Q141)/Q141/'Underwriting Risk'!$E$27,'Premium and Reserve Risk'!$Z$131),'Premium and Reserve Risk'!$Z$131)) -> 0.08 | AC141: =MAX(0%,IF(U141<>0,MIN((W141-U141)/U141/'Underwriting Risk'!$E$27,'Premium and Reserve Risk'!$AC$131),'Premium and Reserve Risk'!$AC$131)) -> 0.08
B142: 10 | F142: 1 | Q142: 0 | Z142: =MAX(0%,IF(Q142<>0,MIN((S142-Q142)/Q142/'Underwriting Risk'!$E$27,'Premium and Reserve Risk'!$Z$131),'Premium and Reserve Risk'!$Z$131)) -> 0.08 | AC142: =MAX(0%,IF(U142<>0,MIN((W142-U142)/U142/'Underwriting Risk'!$E$27,'Premium and Reserve Risk'!$AC$131),'Premium and Reserve Risk'!$AC$131)) -> 0.08
B143: 11 | F143: 1 | Q143: 0 | Z143: =MAX(0%,IF(Q143<>0,MIN((S143-Q143)/Q143/'Underwriting Risk'!$E$27,'Premium and Reserve Risk'!$Z$131),'Premium and Reserve Risk'!$Z$131)) -> 0.08 | AC143: =MAX(0%,IF(U143<>0,MIN((W143-U143)/U143/'Underwriting Risk'!$E$27,'Premium and Reserve Risk'!$AC$131),'Premium and Reserve Risk'!$AC$131)) -> 0.08
B144: 12 | F144: 1 | Q144: 0 | Z144: =MAX(0%,IF(Q144<>0,MIN((S144-Q144)/Q144/'Underwriting Risk'!$E$27,'Premium and Reserve Risk'!$Z$131),'Premium and Reserve Risk'!$Z$131)) -> 0.08 | AC144: =MAX(0%,IF(U144<>0,MIN((W144-U144)/U144/'Underwriting Risk'!$E$27,'Premium and Reserve Risk'!$AC$131),'Premium and Reserve Risk'!$AC$131)) -> 0.08
B145: 13 | F145: 1 | Q145: 0 | Z145: =MAX(0%,IF(Q145<>0,MIN((S145-Q145)/Q145/'Underwriting Risk'!$E$27,'Premium and Reserve Risk'!$Z$131),'Premium and Reserve Risk'!$Z$131)) -> 0.08 | AC145: =MAX(0%,IF(U145<>0,MIN((W145-U145)/U145/'Underwriting Risk'!$E$27,'Premium and Reserve Risk'!$AC$131),'Premium and Reserve Risk'!$AC$131)) -> 0.08
B146: 14 | F146: 1 | Q146: 0 | Z146: =MAX(0%,IF(Q146<>0,MIN((S146-Q146)/Q146/'Underwriting Risk'!$E$27,'Premium and Reserve Risk'!$Z$131),'Premium and Reserve Risk'!$Z$131)) -> 0.08 | AC146: =MAX(0%,IF(U146<>0,MIN((W146-U146)/U146/'Underwriting Risk'!$E$27,'Premium and Reserve Risk'!$AC$131),'Premium and Reserve Risk'!$AC$131)) -> 0.08
B147: 15 | F147: 1 | Q147: 0 | Z147: =MAX(0%,IF(Q147<>0,MIN((S147-Q147)/Q147/'Underwriting Risk'!$E$27,'Premium and Reserve Risk'!$Z$131),'Premium and Reserve Risk'!$Z$131)) -> 0.08 | AC147: =MAX(0%,IF(U147<>0,MIN((W147-U147)/U147/'Underwriting Risk'!$E$27,'Premium and Reserve Risk'!$AC$131),'Premium and Reserve Risk'!$AC$131)) -> 0.08
B148: 16 | F148: 1 | Q148: 0 | Z148: =MAX(0%,IF(Q148<>0,MIN((S148-Q148)/Q148/'Underwriting Risk'!$E$27,'Premium and Reserve Risk'!$Z$131),'Premium and Reserve Risk'!$Z$131)) -> 0.08 | AC148: =MAX(0%,IF(U148<>0,MIN((W148-U148)/U148/'Underwriting Risk'!$E$27,'Premium and Reserve Risk'!$AC$131),'Premium and Reserve Risk'!$AC$131)) -> 0.08
B149: 17 | F149: 1 | Q149: 0 | Z149: =MAX(0%,IF(Q149<>0,MIN((S149-Q149)/Q149/'Underwriting Risk'!$E$27,'Premium and Reserve Risk'!$Z$131),'Premium and Reserve Risk'!$Z$131)) -> 0.08 | AC149: =MAX(0%,IF(U149<>0,MIN((W149-U149)/U149/'Underwriting Risk'!$E$27,'Premium and Reserve Risk'!$AC$131),'Premium and Reserve Risk'!$AC$131)) -> 0.08
B150: 18 | F150: 1 | Q150: 0 | Z150: =MAX(0%,IF(Q150<>0,MIN((S150-Q150)/Q150/'Underwriting Risk'!$E$27,'Premium and Reserve Risk'!$Z$131),'Premium and Reserve Risk'!$Z$131)) -> 0.08 | AC150: =MAX(0%,IF(U150<>0,MIN((W150-U150)/U150/'Underwriting Risk'!$E$27,'Premium and Reserve Risk'!$AC$131),'Premium and Reserve Risk'!$AC$131)) -> 0.08
B151: 19 | F151: 1 | Q151: 0 | Z151: =MAX(0%,IF(Q151<>0,MIN((S151-Q151)/Q151/'Underwriting Risk'!$E$27,'Premium and Reserve Risk'!$Z$131),'Premium and Reserve Risk'!$Z$131)) -> 0.08 | AC151: =MAX(0%,IF(U151<>0,MIN((W151-U151)/U151/'Underwriting Risk'!$E$27,'Premium and Reserve Risk'!$AC$131),'Premium and Reserve Risk'!$AC$131)) -> 0.08
B152: 20 | F152: 1 | Q152: 0 | Z152: =MAX(0%,IF(Q152<>0,MIN((S152-Q152)/Q152/'Underwriting Risk'!$E$27,'Premium and Reserve Risk'!$Z$131),'Premium and Reserve Risk'!$Z$131)) -> 0.08 | AC152: =MAX(0%,IF(U152<>0,MIN((W152-U152)/U152/'Underwriting Risk'!$E$27,'Premium and Reserve Risk'!$AC$131),'Premium and Reserve Risk'!$AC$131)) -> 0.08
B153: 21 | F153: 1 | Q153: 0 | Z153: =MAX(0%,IF(Q153<>0,MIN((S153-Q153)/Q153/'Underwriting Risk'!$E$27,'Premium and Reserve Risk'!$Z$131),'Premium and Reserve Risk'!$Z$131)) -> 0.08 | AC153: =MAX(0%,IF(U153<>0,MIN((W153-U153)/U153/'Underwriting Risk'!$E$27,'Premium and Reserve Risk'!$AC$131),'Premium and Reserve Risk'!$AC$131)) -> 0.08
B154: 22 | F154: 1 | Q154: 0 | Z154: =MAX(0%,IF(Q154<>0,MIN((S154-Q154)/Q154/'Underwriting Risk'!$E$27,'Premium and Reserve Risk'!$Z$131),'Premium and Reserve Risk'!$Z$131)) -> 0.08 | AC154: =MAX(0%,IF(U154<>0,MIN((W154-U154)/U154/'Underwriting Risk'!$E$27,'Premium and Reserve Risk'!$AC$131),'Premium and Reserve Risk'!$AC$131)) -> 0.08
B155: 23 | F155: 1 | Q155: 0 | Z155: =MAX(0%,IF(Q155<>0,MIN((S155-Q155)/Q155/'Underwriting Risk'!$E$27,'Premium and Reserve Risk'!$Z$131),'Premium and Reserve Risk'!$Z$131)) -> 0.08 | AC155: =MAX(0%,IF(U155<>0,MIN((W155-U155)/U155/'Underwriting Risk'!$E$27,'Premium and Reserve Risk'!$AC$131),'Premium and Reserve Risk'!$AC$131)) -> 0.08
B156: 24 | F156: 1 | Q156: 0 | Z156: =MAX(0%,IF(Q156<>0,MIN((S156-Q156)/Q156/'Underwriting Risk'!$E$27,'Premium and Reserve Risk'!$Z$131),'Premium and Reserve Risk'!$Z$131)) -> 0.08 | AC156: =MAX(0%,IF(U156<>0,MIN((W156-U156)/U156/'Underwriting Risk'!$E$27,'Premium and Reserve Risk'!$AC$131),'Premium and Reserve Risk'!$AC$131)) -> 0.08
B157: 25 | F157: 1 | Q157: 0 | Z157: =MAX(0%,IF(Q157<>0,MIN((S157-Q157)/Q157/'Underwriting Risk'!$E$27,'Premium and Reserve Risk'!$Z$131),'Premium and Reserve Risk'!$Z$131)) -> 0.08 | AC157: =MAX(0%,IF(U157<>0,MIN((W157-U157)/U157/'Underwriting Risk'!$E$27,'Premium and Reserve Risk'!$AC$131),'Premium and Reserve Risk'!$AC$131)) -> 0.08
B158: 26 | F158: 1 | Q158: 0 | Z158: =MAX(0%,IF(Q158<>0,MIN((S158-Q158)/Q158/'Underwriting Risk'!$E$27,'Premium and Reserve Risk'!$Z$131),'Premium and Reserve Risk'!$Z$131)) -> 0.08 | AC158: =MAX(0%,IF(U158<>0,MIN((W158-U158)/U158/'Underwriting Risk'!$E$27,'Premium and Reserve Risk'!$AC$131),'Premium and Reserve Risk'!$AC$131)) -> 0.08
B159: 27 | F159: 1 | Q159: 0 | Z159: =MAX(0%,IF(Q159<>0,MIN((S159-Q159)/Q159/'Underwriting Risk'!$E$27,'Premium and Reserve Risk'!$Z$131),'Premium and Reserve Risk'!$Z$131)) -> 0.08 | AC159: =MAX(0%,IF(U159<>0,MIN((W159-U159)/U159/'Underwriting Risk'!$E$27,'Premium and Reserve Risk'!$AC$131),'Premium and Reserve Risk'!$AC$131)) -> 0.08
B160: 28 | F160: 1 | Q160: 0 | Z160: =MAX(0%,IF(Q160<>0,MIN((S160-Q160)/Q160/'Underwriting Risk'!$E$27,'Premium and Reserve Risk'!$Z$131),'Premium and Reserve Risk'!$Z$131)) -> 0.08 | AC160: =MAX(0%,IF(U160<>0,MIN((W160-U160)/U160/'Underwriting Risk'!$E$27,'Premium and Reserve Risk'!$AC$131),'Premium and Reserve Risk'!$AC$131)) -> 0.08
B161: 29 | F161: 1 | Q161: 0 | Z161: =MAX(0%,IF(Q161<>0,MIN((S161-Q161)/Q161/'Underwriting Risk'!$E$27,'Premium and Reserve Risk'!$Z$131),'Premium and Reserve Risk'!$Z$131)) -> 0.08 | AC161: =MAX(0%,IF(U161<>0,MIN((W161-U161)/U161/'Underwriting Risk'!$E$27,'Premium and Reserve Risk'!$AC$131),'Premium and Reserve Risk'!$AC$131)) -> 0.08
B162: 30 | F162: 1 | Q162: 0 | Z162: =MAX(0%,IF(Q162<>0,MIN((S162-Q162)/Q162/'Underwriting Risk'!$E$27,'Premium and Reserve Risk'!$Z$131),'Premium and Reserve Risk'!$Z$131)) -> 0.08 | AC162: =MAX(0%,IF(U162<>0,MIN((W162-U162)/U162/'Underwriting Risk'!$E$27,'Premium and Reserve Risk'!$AC$131),'Premium and Reserve Risk'!$AC$131)) -> 0.08
B163: 31 | F163: 1 | Q163: 0 | Z163: =MAX(0%,IF(Q163<>0,MIN((S163-Q163)/Q163/'Underwriting Risk'!$E$27,'Premium and Reserve Risk'!$Z$131),'Premium and Reserve Risk'!$Z$131)) -> 0.08 | AC163: =MAX(0%,IF(U163<>0,MIN((W163-U163)/U163/'Underwriting Risk'!$E$27,'Premium and Reserve Risk'!$AC$131),'Premium and Reserve Risk'!$AC$131)) -> 0.08
B164: 32 | F164: 1 | Q164: 0 | Z164: =MAX(0%,IF(Q164<>0,MIN((S164-Q164)/Q164/'Underwriting Risk'!$E$27,'Premium and Reserve Risk'!$Z$131),'Premium and Reserve Risk'!$Z$131)) -> 0.08 | AC164: =MAX(0%,IF(U164<>0,MIN((W164-U164)/U164/'Underwriting Risk'!$E$27,'Premium and Reserve Risk'!$AC$131),'Premium and Reserve Risk'!$AC$131)) -> 0.08
B165: 33 | F165: 1 | Q165: 0 | Z165: =MAX(0%,IF(Q165<>0,MIN((S165-Q165)/Q165/'Underwriting Risk'!$E$27,'Premium and Reserve Risk'!$Z$131),'Premium and Reserve Risk'!$Z$131)) -> 0.08 | AC165: =MAX(0%,IF(U165<>0,MIN((W165-U165)/U165/'Underwriting Risk'!$E$27,'Premium and Reserve Risk'!$AC$131),'Premium and Reserve Risk'!$AC$131)) -> 0.08
B166: 34 | F166: 1 | Q166: 0 | Z166: =MAX(0%,IF(Q166<>0,MIN((S166-Q166)/Q166/'Underwriting Risk'!$E$27,'Premium and Reserve Risk'!$Z$131),'Premium and Reserve Risk'!$Z$131)) -> 0.08 | AC166: =MAX(0%,IF(U166<>0,MIN((W166-U166)/U166/'Underwriting Risk'!$E$27,'Premium and Reserve Risk'!$AC$131),'Premium and Reserve Risk'!$AC$131)) -> 0.08
B167: 35 | F167: 1 | Q167: 0 | Z167: =MAX(0%,IF(Q167<>0,MIN((S167-Q167)/Q167/'Underwriting Risk'!$E$27,'Premium and Reserve Risk'!$Z$131),'Premium and Reserve Risk'!$Z$131)) -> 0.08 | AC167: =MAX(0%,IF(U167<>0,MIN((W167-U167)/U167/'Underwriting Risk'!$E$27,'Premium and Reserve Risk'!$AC$131),'Premium and Reserve Risk'!$AC$131)) -> 0.08
B168: 36 | F168: 1 | Q168: 0 | Z168: =MAX(0%,IF(Q168<>0,MIN((S168-Q168)/Q168/'Underwriting Risk'!$E$27,'Premium and Reserve Risk'!$Z$131),'Premium and Reserve Risk'!$Z$131)) -> 0.08 | AC168: =MAX(0%,IF(U168<>0,MIN((W168-U168)/U168/'Underwriting Risk'!$E$27,'Premium and Reserve Risk'!$AC$131),'Premium and Reserve Risk'!$AC$131)) -> 0.08
B169: 37 | F169: 1 | Q169: 0 | Z169: =MAX(0%,IF(Q169<>0,MIN((S169-Q169)/Q169/'Underwriting Risk'!$E$27,'Premium and Reserve Risk'!$Z$131),'Premium and Reserve Risk'!$Z$131)) -> 0.08 | AC169: =MAX(0%,IF(U169<>0,MIN((W169-U169)/U169/'Underwriting Risk'!$E$27,'Premium and Reserve Risk'!$AC$131),'Premium and Reserve Risk'!$AC$131)) -> 0.08
B170: 38 | F170: 1 | Q170: 0 | Z170: =MAX(0%,IF(Q170<>0,MIN((S170-Q170)/Q170/'Underwriting Risk'!$E$27,'Premium and Reserve Risk'!$Z$131),'Premium and Reserve Risk'!$Z$131)) -> 0.08 | AC170: =MAX(0%,IF(U170<>0,MIN((W170-U170)/U170/'Underwriting Risk'!$E$27,'Premium and Reserve Risk'!$AC$131),'Premium and Reserve Risk'!$AC$131)) -> 0.08
B171: 39 | F171: 1 | Q171: 0 | Z171: =MAX(0%,IF(Q171<>0,MIN((S171-Q171)/Q171/'Underwriting Risk'!$E$27,'Premium and Reserve Risk'!$Z$131),'Premium and Reserve Risk'!$Z$131)) -> 0.08 | AC171: =MAX(0%,IF(U171<>0,MIN((W171-U171)/U171/'Underwriting Risk'!$E$27,'Premium and Reserve Risk'!$AC$131),'Premium and Reserve Risk'!$AC$131)) -> 0.08
B172: 40 | F172: 1 | Q172: 0 | Z172: =MAX(0%,IF(Q172<>0,MIN((S172-Q172)/Q172/'Underwriting Risk'!$E$27,'Premium and Reserve Risk'!$Z$131),'Premium and Reserve Risk'!$Z$131)) -> 0.08 | AC172: =MAX(0%,IF(U172<>0,MIN((W172-U172)/U172/'Underwriting Risk'!$E$27,'Premium and Reserve Risk'!$AC$131),'Premium and Reserve Risk'!$AC$131)) -> 0.08
B173: 41 | F173: 1 | Q173: 0 | Z173: =MAX(0%,IF(Q173<>0,MIN((S173-Q173)/Q173/'Underwriting Risk'!$E$27,'Premium and Reserve Risk'!$Z$131),'Premium and Reserve Risk'!$Z$131)) -> 0.08 | AC173: =MAX(0%,IF(U173<>0,MIN((W173-U173)/U173/'Underwriting Risk'!$E$27,'Premium and Reserve Risk'!$AC$131),'Premium and Reserve Risk'!$AC$131)) -> 0.08
B174: 42 | F174: 1 | Q174: 0 | Z174: =MAX(0%,IF(Q174<>0,MIN((S174-Q174)/Q174/'Underwriting Risk'!$E$27,'Premium and Reserve Risk'!$Z$131),'Premium and Reserve Risk'!$Z$131)) -> 0.08 | AC174: =MAX(0%,IF(U174<>0,MIN((W174-U174)/U174/'Underwriting Risk'!$E$27,'Premium and Reserve Risk'!$AC$131),'Premium and Reserve Risk'!$AC$131)) -> 0.08
B175: 43 | F175: 1 | Q175: 0 | Z175: =MAX(0%,IF(Q175<>0,MIN((S175-Q175)/Q175/'Underwriting Risk'!$E$27,'Premium and Reserve Risk'!$Z$131),'Premium and Reserve Risk'!$Z$131)) -> 0.08 | AC175: =MAX(0%,IF(U175<>0,MIN((W175-U175)/U175/'Underwriting Risk'!$E$27,'Premium and Reserve Risk'!$AC$131),'Premium and Reserve Risk'!$AC$131)) -> 0.08
B176: 44 | F176: 1 | Q176: 0 | Z176: =MAX(0%,IF(Q176<>0,MIN((S176-Q176)/Q176/'Underwriting Risk'!$E$27,'Premium and Reserve Risk'!$Z$131),'Premium and Reserve Risk'!$Z$131)) -> 0.08 | AC176: =MAX(0%,IF(U176<>0,MIN((W176-U176)/U176/'Underwriting Risk'!$E$27,'Premium and Reserve Risk'!$AC$131),'Premium and Reserve Risk'!$AC$131)) -> 0.08
B177: 45 | F177: 1 | Q177: 0 | Z177: =MAX(0%,IF(Q177<>0,MIN((S177-Q177)/Q177/'Underwriting Risk'!$E$27,'Premium and Reserve Risk'!$Z$131),'Premium and Reserve Risk'!$Z$131)) -> 0.08 | AC177: =MAX(0%,IF(U177<>0,MIN((W177-U177)/U177/'Underwriting Risk'!$E$27,'Premium and Reserve Risk'!$AC$131),'Premium and Reserve Risk'!$AC$131)) -> 0.08
B178: 46 | F178: 1 | Q178: 0 | Z178: =MAX(0%,IF(Q178<>0,MIN((S178-Q178)/Q178/'Underwriting Risk'!$E$27,'Premium and Reserve Risk'!$Z$131),'Premium and Reserve Risk'!$Z$131)) -> 0.08 | AC178: =MAX(0%,IF(U178<>0,MIN((W178-U178)/U178/'Underwriting Risk'!$E$27,'Premium and Reserve Risk'!$AC$131),'Premium and Reserve Risk'!$AC$131)) -> 0.08
B179: 47 | F179: 1 | Q179: 0 | Z179: =MAX(0%,IF(Q179<>0,MIN((S179-Q179)/Q179/'Underwriting Risk'!$E$27,'Premium and Reserve Risk'!$Z$131),'Premium and Reserve Risk'!$Z$131)) -> 0.08 | AC179: =MAX(0%,IF(U179<>0,MIN((W179-U179)/U179/'Underwriting Risk'!$E$27,'Premium and Reserve Risk'!$AC$131),'Premium and Reserve Risk'!$AC$131)) -> 0.08
B180: 48 | F180: 1 | Q180: 0 | Z180: =MAX(0%,IF(Q180<>0,MIN((S180-Q180)/Q180/'Underwriting Risk'!$E$27,'Premium and Reserve Risk'!$Z$131),'Premium and Reserve Risk'!$Z$131)) -> 0.08 | AC180: =MAX(0%,IF(U180<>0,MIN((W180-U180)/U180/'Underwriting Risk'!$E$27,'Premium and Reserve Risk'!$AC$131),'Premium and Reserve Risk'!$AC$131)) -> 0.08
B181: 49 | F181: 1 | Q181: 0 | Z181: =MAX(0%,IF(Q181<>0,MIN((S181-Q181)/Q181/'Underwriting Risk'!$E$27,'Premium and Reserve Risk'!$Z$131),'Premium and Reserve Risk'!$Z$131)) -> 0.08 | AC181: =MAX(0%,IF(U181<>0,MIN((W181-U181)/U181/'Underwriting Risk'!$E$27,'Premium and Reserve Risk'!$AC$131),'Premium and Reserve Risk'!$AC$131)) -> 0.08
B182: 50 | F182: 1 | Q182: 0 | Z182: =MAX(0%,IF(Q182<>0,MIN((S182-Q182)/Q182/'Underwriting Risk'!$E$27,'Premium and Reserve Risk'!$Z$131),'Premium and Reserve Risk'!$Z$131)) -> 0.08 | AC182: =MAX(0%,IF(U182<>0,MIN((W182-U182)/U182/'Underwriting Risk'!$E$27,'Premium and Reserve Risk'!$AC$131),'Premium and Reserve Risk'!$AC$131)) -> 0.08
B183: 51 | F183: 1 | Q183: 0 | Z183: =MAX(0%,IF(Q183<>0,MIN((S183-Q183)/Q183/'Underwriting Risk'!$E$27,'Premium and Reserve Risk'!$Z$131),'Premium and Reserve Risk'!$Z$131)) -> 0.08 | AC183: =MAX(0%,IF(U183<>0,MIN((W183-U183)/U183/'Underwriting Risk'!$E$27,'Premium and Reserve Risk'!$AC$131),'Premium and Reserve Risk'!$AC$131)) -> 0.08
B184: 52 | F184: 1 | Q184: 0 | Z184: =MAX(0%,IF(Q184<>0,MIN((S184-Q184)/Q184/'Underwriting Risk'!$E$27,'Premium and Reserve Risk'!$Z$131),'Premium and Reserve Risk'!$Z$131)) -> 0.08 | AC184: =MAX(0%,IF(U184<>0,MIN((W184-U184)/U184/'Underwriting Risk'!$E$27,'Premium and Reserve Risk'!$AC$131),'Premium and Reserve Risk'!$AC$131)) -> 0.08
B185: 53 | F185: 1 | Q185: 0 | Z185: =MAX(0%,IF(Q185<>0,MIN((S185-Q185)/Q185/'Underwriting Risk'!$E$27,'Premium and Reserve Risk'!$Z$131),'Premium and Reserve Risk'!$Z$131)) -> 0.08 | AC185: =MAX(0%,IF(U185<>0,MIN((W185-U185)/U185/'Underwriting Risk'!$E$27,'Premium and Reserve Risk'!$AC$131),'Premium and Reserve Risk'!$AC$131)) -> 0.08
B186: 54 | F186: 1 | Q186: 0 | Z186: =MAX(0%,IF(Q186<>0,MIN((S186-Q186)/Q186/'Underwriting Risk'!$E$27,'Premium and Reserve Risk'!$Z$131),'Premium and Reserve Risk'!$Z$131)) -> 0.08 | AC186: =MAX(0%,IF(U186<>0,MIN((W186-U186)/U186/'Underwriting Risk'!$E$27,'Premium and Reserve Risk'!$AC$131),'Premium and Reserve Risk'!$AC$131)) -> 0.08
B187: 55 | F187: 1 | Q187: 0 | Z187: =MAX(0%,IF(Q187<>0,MIN((S187-Q187)/Q187/'Underwriting Risk'!$E$27,'Premium and Reserve Risk'!$Z$131),'Premium and Reserve Risk'!$Z$131)) -> 0.08 | AC187: =MAX(0%,IF(U187<>0,MIN((W187-U187)/U187/'Underwriting Risk'!$E$27,'Premium and Reserve Risk'!$AC$131),'Premium and Reserve Risk'!$AC$131)) -> 0.08
B188: 56 | F188: 1 | Q188: 0 | Z188: =MAX(0%,IF(Q188<>0,MIN((S188-Q188)/Q188/'Underwriting Risk'!$E$27,'Premium and Reserve Risk'!$Z$131),'Premium and Reserve Risk'!$Z$131)) -> 0.08 | AC188: =MAX(0%,IF(U188<>0,MIN((W188-U188)/U188/'Underwriting Risk'!$E$27,'Premium and Reserve Risk'!$AC$131),'Premium and Reserve Risk'!$AC$131)) -> 0.08
B189: 57 | F189: 1 | Q189: 0 | Z189: =MAX(0%,IF(Q189<>0,MIN((S189-Q189)/Q189/'Underwriting Risk'!$E$27,'Premium and Reserve Risk'!$Z$131),'Premium and Reserve Risk'!$Z$131)) -> 0.08 | AC189: =MAX(0%,IF(U189<>0,MIN((W189-U189)/U189/'Underwriting Risk'!$E$27,'Premium and Reserve Risk'!$AC$131),'Premium and Reserve Risk'!$AC$131)) -> 0.08
B190: 58 | F190: 1 | Q190: 0 | Z190: =MAX(0%,IF(Q190<>0,MIN((S190-Q190)/Q190/'Underwriting Risk'!$E$27,'Premium and Reserve Risk'!$Z$131),'Premium and Reserve Risk'!$Z$131)) -> 0.08 | AC190: =MAX(0%,IF(U190<>0,MIN((W190-U190)/U190/'Underwriting Risk'!$E$27,'Premium and Reserve Risk'!$AC$131),'Premium and Reserve Risk'!$AC$131)) -> 0.08
B191: 59 | F191: 1 | Q191: 0 | Z191: =MAX(0%,IF(Q191<>0,MIN((S191-Q191)/Q191/'Underwriting Risk'!$E$27,'Premium and Reserve Risk'!$Z$131),'Premium and Reserve Risk'!$Z$131)) -> 0.08 | AC191: =MAX(0%,IF(U191<>0,MIN((W191-U191)/U191/'Underwriting Risk'!$E$27,'Premium and Reserve Risk'!$AC$131),'Premium and Reserve Risk'!$AC$131)) -> 0.08
B192: 60 | F192: 1 | Q192: 0 | Z192: =MAX(0%,IF(Q192<>0,MIN((S192-Q192)/Q192/'Underwriting Risk'!$E$27,'Premium and Reserve Risk'!$Z$131),'Premium and Reserve Risk'!$Z$131)) -> 0.08 | AC192: =MAX(0%,IF(U192<>0,MIN((W192-U192)/U192/'Underwriting Risk'!$E$27,'Premium and Reserve Risk'!$AC$131),'Premium and Reserve Risk'!$AC$131)) -> 0.08
B193: 61 | F193: 1 | Q193: 0 | Z193: =MAX(0%,IF(Q193<>0,MIN((S193-Q193)/Q193/'Underwriting Risk'!$E$27,'Premium and Reserve Risk'!$Z$131),'Premium and Reserve Risk'!$Z$131)) -> 0.08 | AC193: =MAX(0%,IF(U193<>0,MIN((W193-U193)/U193/'Underwriting Risk'!$E$27,'Premium and Reserve Risk'!$AC$131),'Premium and Reserve Risk'!$AC$131)) -> 0.08
B194: 62 | F194: 1 | Q194: 0 | Z194: =MAX(0%,IF(Q194<>0,MIN((S194-Q194)/Q194/'Underwriting Risk'!$E$27,'Premium and Reserve Risk'!$Z$131),'Premium and Reserve Risk'!$Z$131)) -> 0.08 | AC194: =MAX(0%,IF(U194<>0,MIN((W194-U194)/U194/'Underwriting Risk'!$E$27,'Premium and Reserve Risk'!$AC$131),'Premium and Reserve Risk'!$AC$131)) -> 0.08
B195: 63 | F195: 1 | Q195: 0 | Z195: =MAX(0%,IF(Q195<>0,MIN((S195-Q195)/Q195/'Underwriting Risk'!$E$27,'Premium and Reserve Risk'!$Z$131),'Premium and Reserve Risk'!$Z$131)) -> 0.08 | AC195: =MAX(0%,IF(U195<>0,MIN((W195-U195)/U195/'Underwriting Risk'!$E$27,'Premium and Reserve Risk'!$AC$131),'Premium and Reserve Risk'!$AC$131)) -> 0.08
B196: 64 | F196: 1 | Q196: 0 | Z196: =MAX(0%,IF(Q196<>0,MIN((S196-Q196)/Q196/'Underwriting Risk'!$E$27,'Premium and Reserve Risk'!$Z$131),'Premium and Reserve Risk'!$Z$131)) -> 0.08 | AC196: =MAX(0%,IF(U196<>0,MIN((W196-U196)/U196/'Underwriting Risk'!$E$27,'Premium and Reserve Risk'!$AC$131),'Premium and Reserve Risk'!$AC$131)) -> 0.08
B197: 65 | F197: 1 | Q197: 0 | Z197: =MAX(0%,IF(Q197<>0,MIN((S197-Q197)/Q197/'Underwriting Risk'!$E$27,'Premium and Reserve Risk'!$Z$131),'Premium and Reserve Risk'!$Z$131)) -> 0.08 | AC197: =MAX(0%,IF(U197<>0,MIN((W197-U197)/U197/'Underwriting Risk'!$E$27,'Premium and Reserve Risk'!$AC$131),'Premium and Reserve Risk'!$AC$131)) -> 0.08
B198: 66 | F198: =IF(B198<=OFFSET($Z$8,B$130-1,0),0,1) -> 1 | Q198: =MAX(G198,I198)+K198+M198+0.3*O198 -> 0 | Z198: =MAX(0%,IF(Q198<>0,MIN((S198-Q198)/Q198/'Underwriting Risk'!$E$27,'Premium and Reserve Risk'!$Z$131),'Premium and Reserve Risk'!$Z$131)) -> 0.08 | AC198: =MAX(0%,IF(U198<>0,MIN((W198-U198)/U198/'Underwriting Risk'!$E$27,'Premium and Reserve Risk'!$AC$131),'Premium and Reserve Risk'!$AC$131)) -> 0.08
B199: 67 | F199: 1 | Q199: 0 | Z199: =MAX(0%,IF(Q199<>0,MIN((S199-Q199)/Q199/'Underwriting Risk'!$E$27,'Premium and Reserve Risk'!$Z$131),'Premium and Reserve Risk'!$Z$131)) -> 0.08 | AC199: =MAX(0%,IF(U199<>0,MIN((W199-U199)/U199/'Underwriting Risk'!$E$27,'Premium and Reserve Risk'!$AC$131),'Premium and Reserve Risk'!$AC$131)) -> 0.08
B200: 68 | F200: 1 | Q200: 0 | Z200: =MAX(0%,IF(Q200<>0,MIN((S200-Q200)/Q200/'Underwriting Risk'!$E$27,'Premium and Reserve Risk'!$Z$131),'Premium and Reserve Risk'!$Z$131)) -> 0.08 | AC200: =MAX(0%,IF(U200<>0,MIN((W200-U200)/U200/'Underwriting Risk'!$E$27,'Premium and Reserve Risk'!$AC$131),'Premium and Reserve Risk'!$AC$131)) -> 0.08
B201: 69 | F201: 1 | Q201: 0 | Z201: =MAX(0%,IF(Q201<>0,MIN((S201-Q201)/Q201/'Underwriting Risk'!$E$27,'Premium and Reserve Risk'!$Z$131),'Premium and Reserve Risk'!$Z$131)) -> 0.08 | AC201: =MAX(0%,IF(U201<>0,MIN((W201-U201)/U201/'Underwriting Risk'!$E$27,'Premium and Reserve Risk'!$AC$131),'Premium and Reserve Risk'!$AC$131)) -> 0.08
B202: 70 | F202: 1 | Q202: 0 | Z202: =MAX(0%,IF(Q202<>0,MIN((S202-Q202)/Q202/'Underwriting Risk'!$E$27,'Premium and Reserve Risk'!$Z$131),'Premium and Reserve Risk'!$Z$131)) -> 0.08 | AC202: =MAX(0%,IF(U202<>0,MIN((W202-U202)/U202/'Underwriting Risk'!$E$27,'Premium and Reserve Risk'!$AC$131),'Premium and Reserve Risk'!$AC$131)) -> 0.08
B203: 71 | F203: 1 | Q203: 0 | Z203: =MAX(0%,IF(Q203<>0,MIN((S203-Q203)/Q203/'Underwriting Risk'!$E$27,'Premium and Reserve Risk'!$Z$131),'Premium and Reserve Risk'!$Z$131)) -> 0.08 | AC203: =MAX(0%,IF(U203<>0,MIN((W203-U203)/U203/'Underwriting Risk'!$E$27,'Premium and Reserve Risk'!$AC$131),'Premium and Reserve Risk'!$AC$131)) -> 0.08
B204: 72 | F204: 1 | Q204: 0 | Z204: =MAX(0%,IF(Q204<>0,MIN((S204-Q204)/Q204/'Underwriting Risk'!$E$27,'Premium and Reserve Risk'!$Z$131),'Premium and Reserve Risk'!$Z$131)) -> 0.08 | AC204: =MAX(0%,IF(U204<>0,MIN((W204-U204)/U204/'Underwriting Risk'!$E$27,'Premium and Reserve Risk'!$AC$131),'Premium and Reserve Risk'!$AC$131)) -> 0.08
B205: 73 | F205: 1 | Q205: 0 | Z205: =MAX(0%,IF(Q205<>0,MIN((S205-Q205)/Q205/'Underwriting Risk'!$E$27,'Premium and Reserve Risk'!$Z$131),'Premium and Reserve Risk'!$Z$131)) -> 0.08 | AC205: =MAX(0%,IF(U205<>0,MIN((W205-U205)/U205/'Underwriting Risk'!$E$27,'Premium and Reserve Risk'!$AC$131),'Premium and Reserve Risk'!$AC$131)) -> 0.08
B206: 74 | F206: 1 | Q206: 0 | Z206: =MAX(0%,IF(Q206<>0,MIN((S206-Q206)/Q206/'Underwriting Risk'!$E$27,'Premium and Reserve Risk'!$Z$131),'Premium and Reserve Risk'!$Z$131)) -> 0.08 | AC206: =MAX(0%,IF(U206<>0,MIN((W206-U206)/U206/'Underwriting Risk'!$E$27,'Premium and Reserve Risk'!$AC$131),'Premium and Reserve Risk'!$AC$131)) -> 0.08
B207: 75 | F207: 1 | Q207: 0 | Z207: =MAX(0%,IF(Q207<>0,MIN((S207-Q207)/Q207/'Underwriting Risk'!$E$27,'Premium and Reserve Risk'!$Z$131),'Premium and Reserve Risk'!$Z$131)) -> 0.08 | AC207: =MAX(0%,IF(U207<>0,MIN((W207-U207)/U207/'Underwriting Risk'!$E$27,'Premium and Reserve Risk'!$AC$131),'Premium and Reserve Risk'!$AC$131)) -> 0.08
B208: 76 | F208: 1 | Q208: 0 | Z208: =MAX(0%,IF(Q208<>0,MIN((S208-Q208)/Q208/'Underwriting Risk'!$E$27,'Premium and Reserve Risk'!$Z$131),'Premium and Reserve Risk'!$Z$131)) -> 0.08 | AC208: =MAX(0%,IF(U208<>0,MIN((W208-U208)/U208/'Underwriting Risk'!$E$27,'Premium and Reserve Risk'!$AC$131),'Premium and Reserve Risk'!$AC$131)) -> 0.08
... 1065 more rows

Sheet Geographical Diversification
A1: Geographical Diversification
B3: If no data is inputted here for a line of business, no benefit from geographical diversification will be applied.
B5: Premium and Reserve Risk
B7: Premium Volume Measure* | F7: Total | H7: 1 * | J7: 2 * | L7: 3 * | N7: 4 * | P7: 5 * | R7: 6 * | T7: 7 * | V7: 8 * | X7: 9 * | Z7: 10 * | AB7: 11 * | AD7: 12 * | AF7: 13 * | AH7: 14 * | AJ7: 15 * | AL7: 16 * | AN7: 17 * | AP7: 18 * | AR7: 19 *
B9: LOB 1, 13 | F9: =SUM(H9:AR9) -> 0 | H9: 0 | J9: 0 | L9: 0 | N9: 0 | P9: 0 | R9: 0 | T9: 0 | V9: 0 | X9: 0 | Z9: 0 | AB9: 0 | AD9: 0 | AF9: 0 | AH9: 0 | AJ9: 0 | AL9: 0 | AN9: 0 | AP9: 0 | AR9: 0
B10: LOB 2, 14 | F10: 0 | H10: 0 | J10: 0 | L10: 0 | N10: 0 | P10: 0 | R10: 0 | T10: 0 | V10: 0 | X10: 0 | Z10: 0 | AB10: 0 | AD10: 0 | AF10: 0 | AH10: 0 | AJ10: 0 | AL10: 0 | AN10: 0 | AP10: 0 | AR10: 0
B11: LOB 3, 15 | F11: 0 | H11: 0 | J11: 0 | L11: 0 | N11: 0 | P11: 0 | R11: 0 | T11: 0 | V11: 0 | X11: 0 | Z11: 0 | AB11: 0 | AD11: 0 | AF11: 0 | AH11: 0 | AJ11: 0 | AL11: 0 | AN11: 0 | AP11: 0 | AR11: 0
B12: LOB 4, 16 | F12: 0 | H12: 0 | J12: 0 | L12: 0 | N12: 0 | P12: 0 | R12: 0 | T12: 0 | V12: 0 | X12: 0 | Z12: 0 | AB12: 0 | AD12: 0 | AF12: 0 | AH12: 0 | AJ12: 0 | AL12: 0 | AN12: 0 | AP12: 0 | AR12: 0
B13: LOB 5, 17 | F13: 0 | H13: 0 | J13: 0 | L13: 0 | N13: 0 | P13: 0 | R13: 0 | T13: 0 | V13: 0 | X13: 0 | Z13: 0 | AB13: 0 | AD13: 0 | AF13: 0 | AH13: 0 | AJ13: 0 | AL13: 0 | AN13: 0 | AP13: 0 | AR13: 0
B14: LOB 6, 18 | F14: 0
B15: LOB 7, 19 | F15: 0 | H15: 0 | J15: 0 | L15: 0 | N15: 0 | P15: 0 | R15: 0 | T15: 0 | V15: 0 | X15: 0 | Z15: 0 | AB15: 0 | AD15: 0 | AF15: 0 | AH15: 0 | AJ15: 0 | AL15: 0 | AN15: 0 | AP15: 0 | AR15: 0
B16: LOB 8, 20 | F16: 0 | H16: 0 | J16: 0 | L16: 0 | N16: 0 | P16: 0 | R16: 0 | T16: 0 | V16: 0 | X16: 0 | Z16: 0 | AB16: 0 | AD16: 0 | AF16: 0 | AH16: 0 | AJ16: 0 | AL16: 0 | AN16: 0 | AP16: 0 | AR16: 0
B17: LOB 9, 21 | F17: 0 | H17: 0 | J17: 0 | L17: 0 | N17: 0 | P17: 0 | R17: 0 | T17: 0 | V17: 0 | X17: 0 | Z17: 0 | AB17: 0 | AD17: 0 | AF17: 0 | AH17: 0 | AJ17: 0 | AL17: 0 | AN17: 0 | AP17: 0 | AR17: 0
B18: LOB 25 | F18: 0
B19: LOB 26 | F19: 0
B20: LOB 27 | F20: 0
B22: Reserve Volume Measure* | F22: Total
B24: LOB 1, 13 | F24: =SUM(H24:AR24) -> 0 | H24: 0 | J24: 0 | L24: 0 | N24: 0 | P24: 0 | R24: 0 | T24: 0 | V24: 0 | X24: 0 | Z24: 0 | AB24: 0 | AD24: 0 | AF24: 0 | AH24: 0 | AJ24: 0 | AL24: 0 | AN24: 0 | AP24: 0 | AR24: 0
B25: LOB 2, 14 | F25: 0 | H25: 0 | J25: 0 | L25: 0 | N25: 0 | P25: 0 | R25: 0 | T25: 0 | V25: 0 | X25: 0 | Z25: 0 | AB25: 0 | AD25: 0 | AF25: 0 | AH25: 0 | AJ25: 0 | AL25: 0 | AN25: 0 | AP25: 0 | AR25: 0
B26: LOB 3, 15 | F26: 0 | H26: 0 | J26: 0 | L26: 0 | N26: 0 | P26: 0 | R26: 0 | T26: 0 | V26: 0 | X26: 0 | Z26: 0 | AB26: 0 | AD26: 0 | AF26: 0 | AH26: 0 | AJ26: 0 | AL26: 0 | AN26: 0 | AP26: 0 | AR26: 0
B27: LOB 4, 16 | F27: 0 | H27: 0 | J27: 0 | L27: 0 | N27: 0 | P27: 0 | R27: 0 | T27: 0 | V27: 0 | X27: 0 | Z27: 0 | AB27: 0 | AD27: 0 | AF27: 0 | AH27: 0 | AJ27: 0 | AL27: 0 | AN27: 0 | AP27: 0 | AR27: 0
B28: LOB 5, 17 | F28: 0 | H28: 0 | J28: 0 | L28: 0 | N28: 0 | P28: 0 | R28: 0 | T28: 0 | V28: 0 | X28: 0 | Z28: 0 | AB28: 0 | AD28: 0 | AF28: 0 | AH28: 0 | AJ28: 0 | AL28: 0 | AN28: 0 | AP28: 0 | AR28: 0
B29: LOB 6, 18 | F29: 0
B30: LOB 7, 19 | F30: 0 | H30: 0 | J30: 0 | L30: 0 | N30: 0 | P30: 0 | R30: 0 | T30: 0 | V30: 0 | X30: 0 | Z30: 0 | AB30: 0 | AD30: 0 | AF30: 0 | AH30: 0 | AJ30: 0 | AL30: 0 | AN30: 0 | AP30: 0 | AR30: 0
B31: LOB 8, 20 | F31: 0 | H31: 0 | J31: 0 | L31: 0 | N31: 0 | P31: 0 | R31: 0 | T31: 0 | V31: 0 | X31: 0 | Z31: 0 | AB31: 0 | AD31: 0 | AF31: 0 | AH31: 0 | AJ31: 0 | AL31: 0 | AN31: 0 | AP31: 0 | AR31: 0
B32: LOB 9, 21 | F32: 0 | H32: 0 | J32: 0 | L32: 0 | N32: 0 | P32: 0 | R32: 0 | T32: 0 | V32: 0 | X32: 0 | Z32: 0 | AB32: 0 | AD32: 0 | AF32: 0 | AH32: 0 | AJ32: 0 | AL32: 0 | AN32: 0 | AP32: 0 | AR32: 0
B33: LOB 25 | F33: 0 | H33: 0 | J33: 0 | L33: 0 | N33: 0 | P33: 0 | R33: 0 | T33: 0 | V33: 0 | X33: 0 | Z33: 0 | AB33: 0 | AD33: 0 | AF33: 0 | AH33: 0 | AJ33: 0 | AL33: 0 | AN33: 0 | AP33: 0 | AR33: 0
B34: LOB 26 | F34: 0 | H34: 0 | J34: 0 | L34: 0 | N34: 0 | P34: 0 | R34: 0 | T34: 0 | V34: 0 | X34: 0 | Z34: 0 | AB34: 0 | AD34: 0 | AF34: 0 | AH34: 0 | AJ34: 0 | AL34: 0 | AN34: 0 | AP34: 0 | AR34: 0
B35: LOB 27 | F35: 0 | H35: 0 | J35: 0 | L35: 0 | N35: 0 | P35: 0 | R35: 0 | T35: 0 | V35: 0 | X35: 0 | Z35: 0 | AB35: 0 | AD35: 0 | AF35: 0 | AH35: 0 | AJ35: 0 | AL35: 0 | AN35: 0 | AP35: 0 | AR35: 0
B37: Geographical Diversification Benefit | H37: 1 * | J37: 2 * | L37: 3 * | N37: 4 * | P37: 5 * | R37: 6 * | T37: 7 * | V37: 8 * | X37: 9 * | Z37: 10 * | AB37: 11 * | AD37: 12 * | AF37: 13 * | AH37: 14 * | AJ37: 15 * | AL37: 16 * | AN37: 17 * | AP37: 18 * | AR37: 19 *
B39: LOB 1, 13 | D39: =IF(OR(F9+F24=0,SUM(H39:AR39)=0),1,SUM(H39:AR39)/((F9+F24)^2)) -> 1 | H39: =(H9+H24)^2 -> 0 | J39: =(J9+J24)^2 -> 0 | L39: =(L9+L24)^2 -> 0 | N39: =(N9+N24)^2 -> 0 | P39: =(P9+P24)^2 -> 0 | R39: =(R9+R24)^2 -> 0 | T39: =(T9+T24)^2 -> 0 | V39: =(V9+V24)^2 -> 0 | X39: =(X9+X24)^2 -> 0 | Z39: =(Z9+Z24)^2 -> 0 | AB39: =(AB9+AB24)^2 -> 0 | AD39: =(AD9+AD24)^2 -> 0 | AF39: =(AF9+AF24)^2 -> 0 | AH39: =(AH9+AH24)^2 -> 0 | AJ39: =(AJ9+AJ24)^2 -> 0 | AL39: =(AL9+AL24)^2 -> 0 | AN39: =(AN9+AN24)^2 -> 0 | AP39: =(AP9+AP24)^2 -> 0 | AR39: =(AR9+AR24)^2 -> 0
B40: LOB 2, 14 | D40: 1 | H40: 0 | J40: 0 | L40: 0 | N40: 0 | P40: 0 | R40: 0 | T40: 0 | V40: 0 | X40: 0 | Z40: 0 | AB40: 0 | AD40: 0 | AF40: 0 | AH40: 0 | AJ40: 0 | AL40: 0 | AN40: 0 | AP40: 0 | AR40: 0
B41: LOB 3, 15 | D41: 1 | H41: 0 | J41: 0 | L41: 0 | N41: 0 | P41: 0 | R41: 0 | T41: 0 | V41: 0 | X41: 0 | Z41: 0 | AB41: 0 | AD41: 0 | AF41: 0 | AH41: 0 | AJ41: 0 | AL41: 0 | AN41: 0 | AP41: 0 | AR41: 0
B42: LOB 4, 16 | D42: 1 | H42: 0 | J42: 0 | L42: 0 | N42: 0 | P42: 0 | R42: 0 | T42: 0 | V42: 0 | X42: 0 | Z42: 0 | AB42: 0 | AD42: 0 | AF42: 0 | AH42: 0 | AJ42: 0 | AL42: 0 | AN42: 0 | AP42: 0 | AR42: 0
B43: LOB 5, 17 | D43: 1 | H43: 0 | J43: 0 | L43: 0 | N43: 0 | P43: 0 | R43: 0 | T43: 0 | V43: 0 | X43: 0 | Z43: 0 | AB43: 0 | AD43: 0 | AF43: 0 | AH43: 0 | AJ43: 0 | AL43: 0 | AN43: 0 | AP43: 0 | AR43: 0
B44: LOB 6, 18 | D44: 1 | H44: 0 | J44: 0 | L44: 0 | N44: 0 | P44: 0 | R44: 0 | T44: 0 | V44: 0 | X44: 0 | Z44: 0 | AB44: 0 | AD44: 0 | AF44: 0 | AH44: 0 | AJ44: 0 | AL44: 0 | AN44: 0 | AP44: 0 | AR44: 0
B45: LOB 7, 19 | D45: 1 | H45: 0 | J45: 0 | L45: 0 | N45: 0 | P45: 0 | R45: 0 | T45: 0 | V45: 0 | X45: 0 | Z45: 0 | AB45: 0 | AD45: 0 | AF45: 0 | AH45: 0 | AJ45: 0 | AL45: 0 | AN45: 0 | AP45: 0 | AR45: 0
B46: LOB 8, 20 | D46: 1 | H46: 0 | J46: 0 | L46: 0 | N46: 0 | P46: 0 | R46: 0 | T46: 0 | V46: 0 | X46: 0 | Z46: 0 | AB46: 0 | AD46: 0 | AF46: 0 | AH46: 0 | AJ46: 0 | AL46: 0 | AN46: 0 | AP46: 0 | AR46: 0
B47: LOB 9, 21 | D47: 1 | H47: 0 | J47: 0 | L47: 0 | N47: 0 | P47: 0 | R47: 0 | T47: 0 | V47: 0 | X47: 0 | Z47: 0 | AB47: 0 | AD47: 0 | AF47: 0 | AH47: 0 | AJ47: 0 | AL47: 0 | AN47: 0 | AP47: 0 | AR47: 0
B48: LOB 25 | D48: 1 | H48: 0 | J48: 0 | L48: 0 | N48: 0 | P48: 0 | R48: 0 | T48: 0 | V48: 0 | X48: 0 | Z48: 0 | AB48: 0 | AD48: 0 | AF48: 0 | AH48: 0 | AJ48: 0 | AL48: 0 | AN48: 0 | AP48: 0 | AR48: 0
B49: LOB 26 | D49: 1 | H49: 0 | J49: 0 | L49: 0 | N49: 0 | P49: 0 | R49: 0 | T49: 0 | V49: 0 | X49: 0 | Z49: 0 | AB49: 0 | AD49: 0 | AF49: 0 | AH49: 0 | AJ49: 0 | AL49: 0 | AN49: 0 | AP49: 0 | AR49: 0
B50: LOB 27 | D50: 1 | H50: 0 | J50: 0 | L50: 0 | N50: 0 | P50: 0 | R50: 0 | T50: 0 | V50: 0 | X50: 0 | Z50: 0 | AB50: 0 | AD50: 0 | AF50: 0 | AH50: 0 | AJ50: 0 | AL50: 0 | AN50: 0 | AP50: 0 | AR50: 0
B54: Non-Life Catastrophe Risk
B56: Natural Catastrophe Risk * | D56: Geographical Diversification Benefit | F56: Total Premium | H56: 1 * | J56: 2 * | L56: 3 * | N56: 4 * | P56: 5 * | R56: 6 * | T56: 7 * | V56: 8 * | X56: 9 * | Z56: 10 * | AB56: 11 * | AD56: 12 * | AF56: 13 * | AH56: 14 * | AJ56: 15 * | AL56: 16 * | AN56: 17 * | AP56: 18 * | AR56: 19 *
B58: Premiumwindstorm | C58: * | D58: =IF(OR(F58=0,SUM(H58:AR58)=0),1,SUMSQ(H58:AR58)/(F58^2)) -> 1 | F58: =SUM(H58:AR58) -> 0 | H58: 0 | J58: 0 | L58: 0 | N58: 0 | P58: 0 | R58: 0 | T58: 0 | V58: 0 | X58: 0 | Z58: 0 | AB58: 0 | AD58: 0 | AF58: 0 | AH58: 0 | AJ58: 0 | AL58: 0 | AN58: 0 | AP58: 0 | AR58: 0
B59: Premiumearthquake | C59: * | D59: =IF(OR(F59=0,SUM(H59:AR59)=0),1,SUMSQ(H59:AR59)/(F59^2)) -> 1 | F59: =SUM(H59:AR59) -> 0 | H59: 0 | J59: 0 | L59: 0 | N59: 0 | P59: 0 | R59: 0 | T59: 0 | V59: 0 | X59: 0 | Z59: 0 | AB59: 0 | AD59: 0 | AF59: 0 | AH59: 0 | AJ59: 0 | AL59: 0 | AN59: 0 | AP59: 0 | AR59: 0
B60: Premiumflood | C60: * | D60: =IF(OR(F60=0,SUM(H60:AR60)=0),1,SUMSQ(H60:AR60)/(F60^2)) -> 1 | F60: =SUM(H60:AR60) -> 0 | H60: 0 | J60: 0 | L60: 0 | N60: 0 | P60: 0 | R60: 0 | T60: 0 | V60: 0 | X60: 0 | Z60: 0 | AB60: 0 | AD60: 0 | AF60: 0 | AH60: 0 | AJ60: 0 | AL60: 0 | AN60: 0 | AP60: 0 | AR60: 0
B61: Premiumhail | C61: * | D61: =IF(OR(F61=0,SUM(H61:AR61)=0),1,SUMSQ(H61:AR61)/(F61^2)) -> 1 | F61: =SUM(H61:AR61) -> 0 | H61: 0 | J61: 0 | L61: 0 | N61: 0 | P61: 0 | R61: 0 | T61: 0 | V61: 0 | X61: 0 | Z61: 0 | AB61: 0 | AD61: 0 | AF61: 0 | AH61: 0 | AJ61: 0 | AL61: 0 | AN61: 0 | AP61: 0 | AR61: 0
B63: Non-proportional property risk* | D63: Geographical Diversification Benefit | F63: Total Premium | H63: 1 * | J63: 2 * | L63: 3 * | N63: 4 * | P63: 5 * | R63: 6 * | T63: 7 * | V63: 8 * | X63: 9 * | Z63: 10 * | AB63: 11 * | AD63: 12 * | AF63: 13 * | AH63: 14 * | AJ63: 15 * | AL63: 16 * | AN63: 17 * | AP63: 18 * | AR63: 19 *
B65: Premiumnpproperty | C65: * | D65: =IF(OR(F65=0,SUM(H65:AR65)=0),1,SUMSQ(H65:AR65)/(F65^2)) -> 1 | F65: =SUM(H65:AR65) -> 0 | H65: 0 | J65: 0 | L65: 0 | N65: 0 | P65: 0 | R65: 0 | T65: 0 | V65: 0 | X65: 0 | Z65: 0 | AB65: 0 | AD65: 0 | AF65: 0 | AH65: 0 | AJ65: 0 | AL65: 0 | AN65: 0 | AP65: 0 | AR65: 0

Sheet Lapse Risk
A1: Lapse Risk
A3: Lapse risk is the risk of an adverse impact on an insurer's own-funds should a policy lapse. This may be the case if the insurer has to return any profit element to the insured that is has already anticipated in its own-funds (i.e. anticipated profits related to unearned exposures), or if there is a considerable administrative expense associated with the lapse that is absorbed by the insurer.
B5: Lapse Risk | F5: Profitable Grouping * | H5: Line of Business | J5: Pipeline Premiums * | L5: Ultimate Loss Ratio * | N5: Claims Expense Ratio * | Q5: Lapse Risk SCR
B7: =Type_of_business&" year Shock" -> 1in200 year Shock | J7: '000 | L7: % | N7: %
D9: 1 | J9: 0 | L9: 0 | N9: 0 | Q9: =MAX(Lapse_stress*(1-L9-N9)*J9,0) -> 0
D10: 2 | J10: 0 | L10: 0 | N10: 0 | Q10: 0
D11: 3 | J11: 0 | L11: 0 | N11: 0 | Q11: 0
D12: 4 | J12: 0 | L12: 0 | N12: 0 | Q12: 0
D13: 5 | J13: 0 | L13: 0 | N13: 0 | Q13: 0
D14: 6 | J14: 0 | L14: 0 | N14: 0 | Q14: 0
D15: 7 | J15: 0 | L15: 0 | N15: 0 | Q15: 0
D16: 8 | J16: 0 | L16: 0 | N16: 0 | Q16: 0
D17: 9 | J17: 0 | L17: 0 | N17: 0 | Q17: 0
D18: 10 | J18: 0 | L18: 0 | N18: 0 | Q18: 0
D19: 11 | J19: 0 | L19: 0 | N19: 0 | Q19: 0
D20: 12 | J20: 0 | L20: 0 | N20: 0 | Q20: 0
D21: 13 | J21: 0 | L21: 0 | N21: 0 | Q21: 0
D22: 14 | J22: 0 | L22: 0 | N22: 0 | Q22: 0
D23: 15 | J23: 0 | L23: 0 | N23: 0 | Q23: 0
D24: 16 | J24: 0 | L24: 0 | N24: 0 | Q24: 0
D25: 17 | J25: 0 | L25: 0 | N25: 0 | Q25: 0
D26: 18 | J26: 0 | L26: 0 | N26: 0 | Q26: 0
D27: 19 | J27: 0 | L27: 0 | N27: 0 | Q27: 0
D28: 20 | J28: 0 | L28: 0 | N28: 0 | Q28: 0
D29: 21 | J29: 0 | L29: 0 | N29: 0 | Q29: 0
D30: 22 | J30: 0 | L30: 0 | N30: 0 | Q30: 0
D31: 23 | J31: 0 | L31: 0 | N31: 0 | Q31: 0
D32: 24 | J32: 0 | L32: 0 | N32: 0 | Q32: 0
D33: 25 | J33: 0 | L33: 0 | N33: 0 | Q33: 0
D34: 26 | J34: 0 | L34: 0 | N34: 0 | Q34: 0
D35: 27 | J35: 0 | L35: 0 | N35: 0 | Q35: 0
D36: 28 | J36: 0 | L36: 0 | N36: 0 | Q36: 0
D37: 29 | J37: 0 | L37: 0 | N37: 0 | Q37: 0
D38: 30 | J38: 0 | L38: 0 | N38: 0 | Q38: 0
D39: 31 | J39: 0 | L39: 0 | N39: 0 | Q39: 0
D40: 32 | J40: 0 | L40: 0 | N40: 0 | Q40: 0
D41: 33 | J41: 0 | L41: 0 | N41: 0 | Q41: =MAX(Lapse_stress*(1-L41-N41)*J41,0) -> 0
D42: 34 | J42: 0 | L42: 0 | N42: 0 | Q42: 0
D43: 35 | J43: 0 | L43: 0 | N43: 0 | Q43: 0
D44: 36 | J44: 0 | L44: 0 | N44: 0 | Q44: 0
D45: 37 | J45: 0 | L45: 0 | N45: 0 | Q45: 0
D46: 38 | J46: 0 | L46: 0 | N46: 0 | Q46: 0
D47: 39 | J47: 0 | L47: 0 | N47: 0 | Q47: 0
D48: 40 | J48: 0 | L48: 0 | N48: 0 | Q48: 0
D49: 41 | J49: 0 | L49: 0 | N49: 0 | Q49: 0
D50: 42 | J50: 0 | L50: 0 | N50: 0 | Q50: 0
D51: 43 | J51: 0 | L51: 0 | N51: 0 | Q51: 0
D52: 44 | J52: 0 | L52: 0 | N52: 0 | Q52: 0
D53: 45 | J53: 0 | L53: 0 | N53: 0 | Q53: 0
D54: 46 | J54: 0 | L54: 0 | N54: 0 | Q54: 0
D55: 47 | J55: 0 | L55: 0 | N55: 0 | Q55: 0
D56: 48 | J56: 0 | L56: 0 | N56: 0 | Q56: 0
D57: 49 | J57: 0 | L57: 0 | N57: 0 | Q57: 0
D58: 50 | J58: 0 | L58: 0 | N58: 0 | Q58: 0
D59: 51 | J59: 0 | L59: 0 | N59: 0 | Q59: 0
D60: 52 | J60: 0 | L60: 0 | N60: 0 | Q60: 0
D61: 53 | J61: 0 | L61: 0 | N61: 0 | Q61: 0
D62: 54 | J62: 0 | L62: 0 | N62: 0 | Q62: 0
D63: 55 | J63: 0 | L63: 0 | N63: 0 | Q63: 0
D64: 56 | J64: 0 | L64: 0 | N64: 0 | Q64: 0
D65: 57 | J65: 0 | L65: 0 | N65: 0 | Q65: 0
D66: 58 | J66: 0 | L66: 0 | N66: 0 | Q66: 0
D67: 59 | J67: 0 | L67: 0 | N67: 0 | Q67: 0
D68: 60 | J68: 0 | L68: 0 | N68: 0 | Q68: 0
D69: 61 | J69: 0 | L69: 0 | N69: 0 | Q69: 0
D70: 62 | J70: 0 | L70: 0 | N70: 0 | Q70: 0
D71: 63 | J71: 0 | L71: 0 | N71: 0 | Q71: 0
D72: 64 | J72: 0 | L72: 0 | N72: 0 | Q72: 0
D73: 65 | J73: 0 | L73: 0 | N73: 0 | Q73: =MAX(Lapse_stress*(1-L73-N73)*J73,0) -> 0
D74: 66 | J74: 0 | L74: 0 | N74: 0 | Q74: 0
D75: 67 | J75: 0 | L75: 0 | N75: 0 | Q75: 0
D76: 68 | J76: 0 | L76: 0 | N76: 0 | Q76: 0
D77: 69 | J77: 0 | L77: 0 | N77: 0 | Q77: 0
D78: 70 | J78: 0 | L78: 0 | N78: 0 | Q78: 0
D79: 71 | J79: 0 | L79: 0 | N79: 0 | Q79: 0
D80: 72 | J80: 0 | L80: 0 | N80: 0 | Q80: 0
D81: 73 | J81: 0 | L81: 0 | N81: 0 | Q81: 0
D82: 74 | J82: 0 | L82: 0 | N82: 0 | Q82: 0
D83: 75 | J83: 0 | L83: 0 | N83: 0 | Q83: 0
D84: 76 | J84: 0 | L84: 0 | N84: 0 | Q84: 0
D85: 77 | J85: 0 | L85: 0 | N85: 0 | Q85: 0
D86: 78 | J86: 0 | L86: 0 | N86: 0 | Q86: 0
D87: 79 | J87: 0 | L87: 0 | N87: 0 | Q87: 0
D88: 80 | J88: 0 | L88: 0 | N88: 0 | Q88: 0
D89: 81 | J89: 0 | L89: 0 | N89: 0 | Q89: 0
D90: 82 | J90: 0 | L90: 0 | N90: 0 | Q90: 0
D91: 83 | J91: 0 | L91: 0 | N91: 0 | Q91: 0
D92: 84 | J92: 0 | L92: 0 | N92: 0 | Q92: 0
D93: 85 | J93: 0 | L93: 0 | N93: 0 | Q93: 0
D94: 86 | J94: 0 | L94: 0 | N94: 0 | Q94: 0
D95: 87 | J95: 0 | L95: 0 | N95: 0 | Q95: 0
D96: 88 | J96: 0 | L96: 0 | N96: 0 | Q96: 0
D97: 89 | J97: 0 | L97: 0 | N97: 0 | Q97: 0
D98: 90 | J98: 0 | L98: 0 | N98: 0 | Q98: 0
B100: ="Lapse Up "&Lapse_stress -> Lapse Up 0.4 | D100: Total Lapse Risk SCR | Q100: =SUM(Q9:Q98) -> 0
B532: Y
B533: N

Sheet Catastrophe Risk
A1: Catastrophe Risk
B6: Natural Catastrophe Risk
E7: Premium* | G7: Sum Insured* | I7: Geographical Diversification | K7: Capital Factor | M7: SCR before aggregate cap | O7: Aggregate Impact * | Q7: SCR after aggregate cap | S7: RM Impact * | U7: Natural Catastrophe Risk SCR
E8: '000 | G8: '000 | O8: '000 | S8: '000
B10: Catwindstorm | E10: 0 | I10: ='Geographical Diversification'!D58 -> 1 | K10: =Cat_Wind_200 -> 1.75 | M10: =K10*(0.5*I10+0.5)*E10 -> 0 | O10: 0 | Q10: =M10+O10 -> 0 | S10: 0 | U10: =Q10-S10 -> 0
B11: Catearthquake | E11: 0 | I11: ='Geographical Diversification'!D59 -> 1 | K11: =CAT_Earth_200 -> 1.2 | M11: =K11*(0.5*I11+0.5)*E11 -> 0 | O11: 0 | Q11: =M11+O11 -> 0 | S11: 0 | U11: =Q11-S11 -> 0
B12: Catflood | E12: 0 | I12: ='Geographical Diversification'!D60 -> 1 | K12: =CAT_Flood_200 -> 1.1 | M12: =K12*(0.5*I12+0.5)*E12 -> 0 | O12: 0 | Q12: 0 | S12: 0 | U12: =Q12-S12 -> 0
B13: Cathail | E13: 0 | I13: ='Geographical Diversification'!D61 -> 1 | K13: =CAT_Hail_200 -> 0.3 | M13: =K13*(0.5*I13+0.5)*E13 -> 0 | O13: 0 | Q13: 0 | S13: 0 | U13: =Q13-S13 -> 0
B14: Catsubsidence | G14: 0 | K14: =CAT_Sub_200 -> 0.0005 | M14: =K14*G14 -> 0 | O14: 0 | Q14: 0 | S14: 0 | U14: =Q14-S14 -> 0
U16: =SQRT(SUMSQ(U10:U14)) -> 0
B20: Cat. Risk of Non-Prop. Reinsurance
E21: Premium* | I21: Geographical Diversification | K21: Capital Factor | M21: SCR before aggregate cap | O21: Aggregate Impact * | Q21: SCR after aggregate cap | S21: RM Impact * | U21: Non-Prop Catastrophe Risk SCR
E22: '000 | O22: '000 | S22: '000
B24: CATnpproperty | E24: 0 | I24: ='Geographical Diversification'!D65 -> 1 | K24: =CAT_NPP_200 -> 2.5 | M24: =K24*(0.5*I24+0.5)*E24 -> 0 | O24: 0 | Q24: =M24+O24 -> 0 | S24: 0 | U24: =Q24-S24 -> 0
B28: Man-made Catastrophe Risk
E29: '000 | G29: '000 | O29: '000 | S29: '000
B31: Motor | E31: Na * | G31: Nb * | K31: Capital Factor | M31: SCR before aggregate cap | O31: Aggregate Impact * | Q31: SCR after aggregate cap | S31: RM Impact * | U31: Motor Risk SCR
B33: Catmotor | E33: 0 | G33: 0 | K33: =CAT_Motor_200 -> 50 | M33: =IF(AND(E33=0,G33=0),0,K33*MAX(120,SQRT(E33+0.95*MIN(20000,G33)+0.05*G33))) -> 0 | O33: 0 | Q33: =M33+O33 -> 0 | S33: 0 | U33: =Q33-S33 -> 0
B35: Marine | E35: maxSItanker * | G35: maxSIplatform * | K35: Capital Factor | M35: SCR before aggregate cap | O35: Aggregate Impact * | Q35: SCR after aggregate cap | S35: RM Impact * | U35: Marine Risk SCR
B37: CATMarinetanker | E37: 0 | K37: =CAT_Tank_200 -> 1 | M37: =K37*E37 -> 0 | O37: 0 | Q37: =M37+O37 -> 0 | S37: 0 | U37: =Q37-S37 -> 0
B38: CATMarineplatform | G38: 0 | K38: =CAT_Plat_200 -> 1 | M38: =K38*G38 -> 0 | O38: 0 | Q38: =M38+O38 -> 0 | S38: 0 | U38: =Q38-S38 -> 0
U40: =SQRT(SUMSQ(U37:U38)) -> 0
B42: Aviation | E42: maxSIaviation * | K42: Capital Factor | M42: SCR before aggregate cap | O42: Aggregate Impact * | Q42: SCR after aggregate cap | S42: RM Impact * | U42: Aviation Risk SCR
B44: Cataviation | E44: 0 | K44: =CAT_Avia_200 -> 1 | M44: =K44*E44 -> 0 | O44: 0 | Q44: =M44+O44 -> 0 | S44: 0 | U44: =Q44-S44 -> 0
B46: Fire | E46: maxSIfire * | K46: Capital Factor | M46: SCR before aggregate cap | O46: Aggregate Impact * | Q46: SCR after aggregate cap | S46: RM Impact * | U46: Fire Risk SCR
B48: Catfire | E48: 0 | K48: =CAT_Fire_200 -> 1 | M48: =K48*E48 -> 0 | O48: 0 | Q48: =M48+O48 -> 0 | S48: 0 | U48: =Q48-S48 -> 0
B50: Liability | E50: Premium* | K50: Capital Factor | M50: SCR before aggregate cap | O50: Aggregate Impact * | Q50: SCR after aggregate cap | S50: RM Impact * | U50: Liability Risk SCR
B52: CATLiab1 | E52: 0 | K52: =CAT_Liab1_200 -> 1 | M52: =K52*E52 -> 0 | O52: 0 | Q52: =M52+O52 -> 0 | S52: 0 | U52: =Q52-S52 -> 0
B53: CATLiab2 | E53: 0 | K53: =CAT_Liab2_200 -> 1.6 | M53: =K53*E53 -> 0 | O53: 0 | Q53: =M53+O53 -> 0 | S53: 0 | U53: =Q53-S53 -> 0
B54: CATLiab3 | E54: 0 | K54: =CAT_Liab3_200 -> 1.6 | M54: =K54*E54 -> 0 | O54: 0 | Q54: =M54+O54 -> 0 | S54: 0 | U54: =Q54-S54 -> 0
B55: CATLiab4 | E55: 0 | K55: =CAT_Liab4_200 -> 1 | M55: =K55*E55 -> 0 | O55: 0 | Q55: =M55+O55 -> 0 | S55: 0 | U55: =Q55-S55 -> 0
B56: CATLiab5 | E56: 0 | K56: =CAT_Liab5_200 -> 2.1 | M56: =K56*E56 -> 0 | O56: 0 | Q56: =M56+O56 -> 0 | S56: 0 | U56: =Q56-S56 -> 0
U58: =SQRT(MMULT(MMULT(TRANSPOSE(U52:U56),CorrLiab_10),U52:U56)) -> 0
B60: Credit & Suretyship | E60: maxL(default,1) * | G60: max(default,2) * | I60: P(recession) * | K60: Capital Factor | M60: SCR before aggregate cap | O60: Aggregate Impact * | Q60: SCR after aggregate cap | S60: RM Impact * | U60: Credit and Suretyship Risk SCR
B62: CATCreditdefault | E62: 0 | G62: 0 | K62: =CAT_Def_200 -> 1 | M62: =K62*(E62+G62) -> 0 | O62: 0 | Q62: =M62+O62 -> 0 | S62: 0 | U62: =Q62-S62 -> 0
B63: CATCreditrecession | I63: 0 | K63: =CAT_Rec_200 -> 1 | M63: =K63*I63 -> 0 | O63: 0 | Q63: =M63+O63 -> 0 | S63: 0 | U63: =Q63-S63 -> 0
U65: =SQRT(SUMSQ(U62:U63)) -> 0
B67: Total Man-made Catastrophe Risk
U69: =SQRT(SUMSQ(U33,U40,U44,U48,U58,U65)) -> 0
B73: Other NL Catastrophe Risk
E74: Premium* | K74: Capital Factor | M74: SCR before aggregate cap | O74: Aggregate Impact * | Q74: SCR after aggregate cap | S74: RM Impact * | U74: Other NL Catastrophe Risk SCR
E75: '000 | O75: '000 | S75: '000
B77: CATOther1 | E77: 0 | K77: =CAT_Oth1_200 -> 1 | M77: =K77*E77 -> 0 | O77: 0 | Q77: =M77+O77 -> 0 | S77: 0 | U77: =Q77-S77 -> 0
B78: CATOther2 | E78: 0 | K78: =CAT_Oth2_200 -> 2.5 | M78: =K78*E78 -> 0 | O78: 0 | Q78: 0 | S78: 0 | U78: =Q78-S78 -> 0
B79: CATOther3 | E79: 0 | K79: =CAT_Oth3_200 -> 0.4 | M79: =K79*E79 -> 0 | O79: 0 | Q79: 0 | S79: 0 | U79: =Q79-S79 -> 0
B80: CATOther4 | E80: 0 | K80: =CAT_Oth4_200 -> 2.5 | M80: =K80*E80 -> 0 | O80: 0 | Q80: 0 | S80: 0 | U80: =Q80-S80 -> 0
B81: CATOther5 | E81: 0 | K81: =CAT_Oth5_200 -> 2.5 | M81: =K81*E81 -> 0 | O81: 0 | Q81: 0 | S81: 0 | U81: =Q81-S81 -> 0
U83: =SQRT(MMULT(MMULT(TRANSPOSE(U77:U81),CorrOther_10),U77:U81)) -> 0

Sheet Health Prem & Reserve Risk
A1: Health Prem & Reserve Risk
B5: Volume Measure | G5: Existing Premium (next 12 months) * | I5: Last Year Premium * | K5: Existing Premium (not included in column G) * | M5: Future Premium (next 12 months) * | O5: Future Premium (not included in column M) * | Q5: Premium Volume Measure | S5: Reserve Volume Measure | U5: Geographical Diversification Adjustment | W5: Combined Volume Measure | Z5: Number of aggregate caps*
G6: '000 | I6: '000 | K6: '000 | M6: '000 | O6: '000
B8: 10 - Medical expense & 22 Prop. Reins. | G8: 0 | I8: 0 | K8: 0 | M8: 0 | O8: 0 | Q8: =MAX(G8,I8)+K8+M8+0.3*O8 -> 0 | S8: =SUM('RBS - Direct TPs'!F93,'RBS - Reins TPs'!F93,-'RBS - Direct TPs'!J93,-'RBS - Reins TPs'!J93) -> 0 | U8: ='Health Geo Diversification'!D23 -> 1 | W8: =(Q8+S8)*(0.75+0.25*U8) -> 0 | Z8: 1
B9: 11 - Income Protection & 23 Prop. Reins. | G9: 0 | I9: 0 | K9: 0 | M9: 0 | O9: 0 | Q9: =MAX(G9,I9)+K9+M9+0.3*O9 -> 0 | S9: =SUM('RBS - Direct TPs'!F102,'RBS - Reins TPs'!F102,-'RBS - Direct TPs'!J102,-'RBS - Reins TPs'!J102) -> 0 | U9: ='Health Geo Diversification'!D24 -> 1 | W9: =(Q9+S9)*(0.75+0.25*U9) -> 0 | Z9: 1
B10: 12 - Workers' compensation & 24 Prop. Reins. | G10: 0 | I10: 0 | K10: 0 | M10: 0 | O10: 0 | Q10: 0 | S10: =SUM('RBS - Direct TPs'!F111,'RBS - Reins TPs'!F111,-'RBS - Direct TPs'!J111,-'RBS - Reins TPs'!J111) -> 0 | U10: ='Health Geo Diversification'!D25 -> 1 | W10: =(Q10+S10)*(0.75+0.25*U10) -> 0 | Z10: 1
B11: 28 - Non-prop. reinsurance - Health | G11: 0 | I11: 0 | K11: 0 | M11: 0 | O11: 0 | Q11: 0 | S11: ='RBS - Reins TPs'!F147-'RBS - Reins TPs'!J147 -> 0 | U11: ='Health Geo Diversification'!D26 -> 1 | W11: =(Q11+S11)*(0.75+0.25*U11) -> 0 | Z11: 1
Q13: =IF(SUM(Q20:Q441)=0,"",IF(SUM(Q20:Q441)=SUM(Q8:Q11),"","CHECK: IF ALL CONTRACTS HAVE AGG CAPS THEN SUM OF PREMIUM VOLUME MEASURE IN ROWS 18-274 SHOULD EQUAL SUM OF PREMIUM VOLUME MEASURE IN ROWS 8-11")) -> 
C15: Aggregate caps | S15: =IF(SUM(U20:U441)=0,"",IF(SUM(U20:U441)=SUM(S8:S11),"","CHECK: IF ALL CONTRACTS HAVE AGG CAPS THEN SUM OF CLAIMS RESERVES IN ROWS 18-274 SHOULD EQUAL SUM OF RESERVE VOLUME MEASURE IN ROWS 8-11")) -> 
B17: 1 | C17: =RIGHT(OFFSET($B$8,B17-1,0),LEN(OFFSET($B$8,B17-1,0))-5) -> - Medical expense & 22 Prop. Reins. | Z17: Premium Standard Deviation | AC17: Reserve Standard Deviation
C18: Contract identifier | F18: =IF(OFFSET($Z$8,B17-1,0)=0,1,0) -> 0 | G18: Existing Premium (next 12 months) * | I18: Last Year Premium * | K18: Existing Premium (not included in column G) * | M18: Future Premium (next 12 months) * | O18: Future Premium (not included in column M) * | Q18: Premium Volume Measure | S18: Aggregate Cap* | U18: Claims reserve * | W18: Maximum residual exposure * | Z18: =OFFSET('NSLT Health Risk'!$J$55,'Health Prem & Reserve Risk'!B17-1,0) -> 0.05 | AC18: =OFFSET('NSLT Health Risk'!$L$55,'Health Prem & Reserve Risk'!B17-1,0) -> 0.05
F19: =IF(OFFSET($Z$8,B17-1,0)=0,1,0) -> 0
B20: 1 | F20: =IF(B20<=OFFSET($Z$8,B$17-1,0),0,1) -> 0 | G20: 0 | I20: 0 | K20: 0 | M20: 0 | O20: 0 | Q20: =MAX(G20,I20)+K20+M20+0.3*O20 -> 0 | S20: 0 | U20: 0 | W20: 0 | Z20: =MAX(0%,IF(Q20<>0,MIN((S20-Q20)/Q20/'NSLT Health Risk'!$E$28,'Health Prem & Reserve Risk'!$Z$18),'Health Prem & Reserve Risk'!$Z$18)) -> 0.05 | AC20: =MAX(0%,IF(U20<>0,MIN((W20-U20)/U20/'NSLT Health Risk'!$E$28,'Health Prem & Reserve Risk'!$AC$18),'Health Prem & Reserve Risk'!$AC$18)) -> 0.05
B21: 2 | F21: =IF(B21<=OFFSET($Z$8,B$17-1,0),0,1) -> 1 | Q21: =MAX(G21,I21)+K21+M21+0.3*O21 -> 0 | Z21: =MAX(0%,IF(Q21<>0,MIN((S21-Q21)/Q21/'NSLT Health Risk'!$E$28,'Health Prem & Reserve Risk'!$Z$18),'Health Prem & Reserve Risk'!$Z$18)) -> 0.05 | AC21: =MAX(0%,IF(U21<>0,MIN((W21-U21)/U21/'NSLT Health Risk'!$E$28,'Health Prem & Reserve Risk'!$AC$18),'Health Prem & Reserve Risk'!$AC$18)) -> 0.05
B22: 3 | F22: 1 | Q22: 0 | Z22: =MAX(0%,IF(Q22<>0,MIN((S22-Q22)/Q22/'NSLT Health Risk'!$E$28,'Health Prem & Reserve Risk'!$Z$18),'Health Prem & Reserve Risk'!$Z$18)) -> 0.05 | AC22: =MAX(0%,IF(U22<>0,MIN((W22-U22)/U22/'NSLT Health Risk'!$E$28,'Health Prem & Reserve Risk'!$AC$18),'Health Prem & Reserve Risk'!$AC$18)) -> 0.05
B23: 4 | F23: 1 | Q23: 0 | Z23: =MAX(0%,IF(Q23<>0,MIN((S23-Q23)/Q23/'NSLT Health Risk'!$E$28,'Health Prem & Reserve Risk'!$Z$18),'Health Prem & Reserve Risk'!$Z$18)) -> 0.05 | AC23: =MAX(0%,IF(U23<>0,MIN((W23-U23)/U23/'NSLT Health Risk'!$E$28,'Health Prem & Reserve Risk'!$AC$18),'Health Prem & Reserve Risk'!$AC$18)) -> 0.05
B24: 5 | F24: 1 | Q24: 0 | Z24: =MAX(0%,IF(Q24<>0,MIN((S24-Q24)/Q24/'NSLT Health Risk'!$E$28,'Health Prem & Reserve Risk'!$Z$18),'Health Prem & Reserve Risk'!$Z$18)) -> 0.05 | AC24: =MAX(0%,IF(U24<>0,MIN((W24-U24)/U24/'NSLT Health Risk'!$E$28,'Health Prem & Reserve Risk'!$AC$18),'Health Prem & Reserve Risk'!$AC$18)) -> 0.05
B25: 6 | F25: 1 | Q25: 0 | Z25: =MAX(0%,IF(Q25<>0,MIN((S25-Q25)/Q25/'NSLT Health Risk'!$E$28,'Health Prem & Reserve Risk'!$Z$18),'Health Prem & Reserve Risk'!$Z$18)) -> 0.05 | AC25: =MAX(0%,IF(U25<>0,MIN((W25-U25)/U25/'NSLT Health Risk'!$E$28,'Health Prem & Reserve Risk'!$AC$18),'Health Prem & Reserve Risk'!$AC$18)) -> 0.05
B26: 7 | F26: 1 | Q26: 0 | Z26: =MAX(0%,IF(Q26<>0,MIN((S26-Q26)/Q26/'NSLT Health Risk'!$E$28,'Health Prem & Reserve Risk'!$Z$18),'Health Prem & Reserve Risk'!$Z$18)) -> 0.05 | AC26: =MAX(0%,IF(U26<>0,MIN((W26-U26)/U26/'NSLT Health Risk'!$E$28,'Health Prem & Reserve Risk'!$AC$18),'Health Prem & Reserve Risk'!$AC$18)) -> 0.05
B27: 8 | F27: 1 | Q27: 0 | Z27: =MAX(0%,IF(Q27<>0,MIN((S27-Q27)/Q27/'NSLT Health Risk'!$E$28,'Health Prem & Reserve Risk'!$Z$18),'Health Prem & Reserve Risk'!$Z$18)) -> 0.05 | AC27: =MAX(0%,IF(U27<>0,MIN((W27-U27)/U27/'NSLT Health Risk'!$E$28,'Health Prem & Reserve Risk'!$AC$18),'Health Prem & Reserve Risk'!$AC$18)) -> 0.05
B28: 9 | F28: 1 | Q28: 0 | Z28: =MAX(0%,IF(Q28<>0,MIN((S28-Q28)/Q28/'NSLT Health Risk'!$E$28,'Health Prem & Reserve Risk'!$Z$18),'Health Prem & Reserve Risk'!$Z$18)) -> 0.05 | AC28: =MAX(0%,IF(U28<>0,MIN((W28-U28)/U28/'NSLT Health Risk'!$E$28,'Health Prem & Reserve Risk'!$AC$18),'Health Prem & Reserve Risk'!$AC$18)) -> 0.05
B29: 10 | F29: 1 | Q29: 0 | Z29: =MAX(0%,IF(Q29<>0,MIN((S29-Q29)/Q29/'NSLT Health Risk'!$E$28,'Health Prem & Reserve Risk'!$Z$18),'Health Prem & Reserve Risk'!$Z$18)) -> 0.05 | AC29: =MAX(0%,IF(U29<>0,MIN((W29-U29)/U29/'NSLT Health Risk'!$E$28,'Health Prem & Reserve Risk'!$AC$18),'Health Prem & Reserve Risk'!$AC$18)) -> 0.05
B30: 11 | F30: 1 | Q30: 0 | Z30: =MAX(0%,IF(Q30<>0,MIN((S30-Q30)/Q30/'NSLT Health Risk'!$E$28,'Health Prem & Reserve Risk'!$Z$18),'Health Prem & Reserve Risk'!$Z$18)) -> 0.05 | AC30: =MAX(0%,IF(U30<>0,MIN((W30-U30)/U30/'NSLT Health Risk'!$E$28,'Health Prem & Reserve Risk'!$AC$18),'Health Prem & Reserve Risk'!$AC$18)) -> 0.05
B31: 12 | F31: 1 | Q31: 0 | Z31: =MAX(0%,IF(Q31<>0,MIN((S31-Q31)/Q31/'NSLT Health Risk'!$E$28,'Health Prem & Reserve Risk'!$Z$18),'Health Prem & Reserve Risk'!$Z$18)) -> 0.05 | AC31: =MAX(0%,IF(U31<>0,MIN((W31-U31)/U31/'NSLT Health Risk'!$E$28,'Health Prem & Reserve Risk'!$AC$18),'Health Prem & Reserve Risk'!$AC$18)) -> 0.05
B32: 13 | F32: 1 | Q32: 0 | Z32: =MAX(0%,IF(Q32<>0,MIN((S32-Q32)/Q32/'NSLT Health Risk'!$E$28,'Health Prem & Reserve Risk'!$Z$18),'Health Prem & Reserve Risk'!$Z$18)) -> 0.05 | AC32: =MAX(0%,IF(U32<>0,MIN((W32-U32)/U32/'NSLT Health Risk'!$E$28,'Health Prem & Reserve Risk'!$AC$18),'Health Prem & Reserve Risk'!$AC$18)) -> 0.05
B33: 14 | F33: 1 | Q33: 0 | Z33: =MAX(0%,IF(Q33<>0,MIN((S33-Q33)/Q33/'NSLT Health Risk'!$E$28,'Health Prem & Reserve Risk'!$Z$18),'Health Prem & Reserve Risk'!$Z$18)) -> 0.05 | AC33: =MAX(0%,IF(U33<>0,MIN((W33-U33)/U33/'NSLT Health Risk'!$E$28,'Health Prem & Reserve Risk'!$AC$18),'Health Prem & Reserve Risk'!$AC$18)) -> 0.05
B34: 15 | F34: 1 | Q34: 0 | Z34: =MAX(0%,IF(Q34<>0,MIN((S34-Q34)/Q34/'NSLT Health Risk'!$E$28,'Health Prem & Reserve Risk'!$Z$18),'Health Prem & Reserve Risk'!$Z$18)) -> 0.05 | AC34: =MAX(0%,IF(U34<>0,MIN((W34-U34)/U34/'NSLT Health Risk'!$E$28,'Health Prem & Reserve Risk'!$AC$18),'Health Prem & Reserve Risk'!$AC$18)) -> 0.05
B35: 16 | F35: 1 | Q35: 0 | Z35: =MAX(0%,IF(Q35<>0,MIN((S35-Q35)/Q35/'NSLT Health Risk'!$E$28,'Health Prem & Reserve Risk'!$Z$18),'Health Prem & Reserve Risk'!$Z$18)) -> 0.05 | AC35: =MAX(0%,IF(U35<>0,MIN((W35-U35)/U35/'NSLT Health Risk'!$E$28,'Health Prem & Reserve Risk'!$AC$18),'Health Prem & Reserve Risk'!$AC$18)) -> 0.05
B36: 17 | F36: 1 | Q36: 0 | Z36: =MAX(0%,IF(Q36<>0,MIN((S36-Q36)/Q36/'NSLT Health Risk'!$E$28,'Health Prem & Reserve Risk'!$Z$18),'Health Prem & Reserve Risk'!$Z$18)) -> 0.05 | AC36: =MAX(0%,IF(U36<>0,MIN((W36-U36)/U36/'NSLT Health Risk'!$E$28,'Health Prem & Reserve Risk'!$AC$18),'Health Prem & Reserve Risk'!$AC$18)) -> 0.05
B37: 18 | F37: 1 | Q37: 0 | Z37: =MAX(0%,IF(Q37<>0,MIN((S37-Q37)/Q37/'NSLT Health Risk'!$E$28,'Health Prem & Reserve Risk'!$Z$18),'Health Prem & Reserve Risk'!$Z$18)) -> 0.05 | AC37: =MAX(0%,IF(U37<>0,MIN((W37-U37)/U37/'NSLT Health Risk'!$E$28,'Health Prem & Reserve Risk'!$AC$18),'Health Prem & Reserve Risk'!$AC$18)) -> 0.05
B38: 19 | F38: 1 | Q38: 0 | Z38: =MAX(0%,IF(Q38<>0,MIN((S38-Q38)/Q38/'NSLT Health Risk'!$E$28,'Health Prem & Reserve Risk'!$Z$18),'Health Prem & Reserve Risk'!$Z$18)) -> 0.05 | AC38: =MAX(0%,IF(U38<>0,MIN((W38-U38)/U38/'NSLT Health Risk'!$E$28,'Health Prem & Reserve Risk'!$AC$18),'Health Prem & Reserve Risk'!$AC$18)) -> 0.05
B39: 20 | F39: 1 | Q39: 0 | Z39: =MAX(0%,IF(Q39<>0,MIN((S39-Q39)/Q39/'NSLT Health Risk'!$E$28,'Health Prem & Reserve Risk'!$Z$18),'Health Prem & Reserve Risk'!$Z$18)) -> 0.05 | AC39: =MAX(0%,IF(U39<>0,MIN((W39-U39)/U39/'NSLT Health Risk'!$E$28,'Health Prem & Reserve Risk'!$AC$18),'Health Prem & Reserve Risk'!$AC$18)) -> 0.05
B40: 21 | F40: 1 | Q40: 0 | Z40: =MAX(0%,IF(Q40<>0,MIN((S40-Q40)/Q40/'NSLT Health Risk'!$E$28,'Health Prem & Reserve Risk'!$Z$18),'Health Prem & Reserve Risk'!$Z$18)) -> 0.05 | AC40: =MAX(0%,IF(U40<>0,MIN((W40-U40)/U40/'NSLT Health Risk'!$E$28,'Health Prem & Reserve Risk'!$AC$18),'Health Prem & Reserve Risk'!$AC$18)) -> 0.05
B41: 22 | F41: 1 | Q41: 0 | Z41: =MAX(0%,IF(Q41<>0,MIN((S41-Q41)/Q41/'NSLT Health Risk'!$E$28,'Health Prem & Reserve Risk'!$Z$18),'Health Prem & Reserve Risk'!$Z$18)) -> 0.05 | AC41: =MAX(0%,IF(U41<>0,MIN((W41-U41)/U41/'NSLT Health Risk'!$E$28,'Health Prem & Reserve Risk'!$AC$18),'Health Prem & Reserve Risk'!$AC$18)) -> 0.05
B42: 23 | F42: 1 | Q42: 0 | Z42: =MAX(0%,IF(Q42<>0,MIN((S42-Q42)/Q42/'NSLT Health Risk'!$E$28,'Health Prem & Reserve Risk'!$Z$18),'Health Prem & Reserve Risk'!$Z$18)) -> 0.05 | AC42: =MAX(0%,IF(U42<>0,MIN((W42-U42)/U42/'NSLT Health Risk'!$E$28,'Health Prem & Reserve Risk'!$AC$18),'Health Prem & Reserve Risk'!$AC$18)) -> 0.05
B43: 24 | F43: 1 | Q43: 0 | Z43: =MAX(0%,IF(Q43<>0,MIN((S43-Q43)/Q43/'NSLT Health Risk'!$E$28,'Health Prem & Reserve Risk'!$Z$18),'Health Prem & Reserve Risk'!$Z$18)) -> 0.05 | AC43: =MAX(0%,IF(U43<>0,MIN((W43-U43)/U43/'NSLT Health Risk'!$E$28,'Health Prem & Reserve Risk'!$AC$18),'Health Prem & Reserve Risk'!$AC$18)) -> 0.05
B44: 25 | F44: 1 | Q44: 0 | Z44: =MAX(0%,IF(Q44<>0,MIN((S44-Q44)/Q44/'NSLT Health Risk'!$E$28,'Health Prem & Reserve Risk'!$Z$18),'Health Prem & Reserve Risk'!$Z$18)) -> 0.05 | AC44: =MAX(0%,IF(U44<>0,MIN((W44-U44)/U44/'NSLT Health Risk'!$E$28,'Health Prem & Reserve Risk'!$AC$18),'Health Prem & Reserve Risk'!$AC$18)) -> 0.05
B45: 26 | F45: 1 | Q45: 0 | Z45: =MAX(0%,IF(Q45<>0,MIN((S45-Q45)/Q45/'NSLT Health Risk'!$E$28,'Health Prem & Reserve Risk'!$Z$18),'Health Prem & Reserve Risk'!$Z$18)) -> 0.05 | AC45: =MAX(0%,IF(U45<>0,MIN((W45-U45)/U45/'NSLT Health Risk'!$E$28,'Health Prem & Reserve Risk'!$AC$18),'Health Prem & Reserve Risk'!$AC$18)) -> 0.05
B46: 27 | F46: 1 | Q46: 0 | Z46: =MAX(0%,IF(Q46<>0,MIN((S46-Q46)/Q46/'NSLT Health Risk'!$E$28,'Health Prem & Reserve Risk'!$Z$18),'Health Prem & Reserve Risk'!$Z$18)) -> 0.05 | AC46: =MAX(0%,IF(U46<>0,MIN((W46-U46)/U46/'NSLT Health Risk'!$E$28,'Health Prem & Reserve Risk'!$AC$18),'Health Prem & Reserve Risk'!$AC$18)) -> 0.05
B47: 28 | F47: 1 | Q47: 0 | Z47: =MAX(0%,IF(Q47<>0,MIN((S47-Q47)/Q47/'NSLT Health Risk'!$E$28,'Health Prem & Reserve Risk'!$Z$18),'Health Prem & Reserve Risk'!$Z$18)) -> 0.05 | AC47: =MAX(0%,IF(U47<>0,MIN((W47-U47)/U47/'NSLT Health Risk'!$E$28,'Health Prem & Reserve Risk'!$AC$18),'Health Prem & Reserve Risk'!$AC$18)) -> 0.05
B48: 29 | F48: 1 | Q48: 0 | Z48: =MAX(0%,IF(Q48<>0,MIN((S48-Q48)/Q48/'NSLT Health Risk'!$E$28,'Health Prem & Reserve Risk'!$Z$18),'Health Prem & Reserve Risk'!$Z$18)) -> 0.05 | AC48: =MAX(0%,IF(U48<>0,MIN((W48-U48)/U48/'NSLT Health Risk'!$E$28,'Health Prem & Reserve Risk'!$AC$18),'Health Prem & Reserve Risk'!$AC$18)) -> 0.05
B49: 30 | F49: 1 | Q49: 0 | Z49: =MAX(0%,IF(Q49<>0,MIN((S49-Q49)/Q49/'NSLT Health Risk'!$E$28,'Health Prem & Reserve Risk'!$Z$18),'Health Prem & Reserve Risk'!$Z$18)) -> 0.05 | AC49: =MAX(0%,IF(U49<>0,MIN((W49-U49)/U49/'NSLT Health Risk'!$E$28,'Health Prem & Reserve Risk'!$AC$18),'Health Prem & Reserve Risk'!$AC$18)) -> 0.05
B50: 31 | F50: 1 | Q50: 0 | Z50: =MAX(0%,IF(Q50<>0,MIN((S50-Q50)/Q50/'NSLT Health Risk'!$E$28,'Health Prem & Reserve Risk'!$Z$18),'Health Prem & Reserve Risk'!$Z$18)) -> 0.05 | AC50: =MAX(0%,IF(U50<>0,MIN((W50-U50)/U50/'NSLT Health Risk'!$E$28,'Health Prem & Reserve Risk'!$AC$18),'Health Prem & Reserve Risk'!$AC$18)) -> 0.05
B51: 32 | F51: 1 | Q51: 0 | Z51: =MAX(0%,IF(Q51<>0,MIN((S51-Q51)/Q51/'NSLT Health Risk'!$E$28,'Health Prem & Reserve Risk'!$Z$18),'Health Prem & Reserve Risk'!$Z$18)) -> 0.05 | AC51: =MAX(0%,IF(U51<>0,MIN((W51-U51)/U51/'NSLT Health Risk'!$E$28,'Health Prem & Reserve Risk'!$AC$18),'Health Prem & Reserve Risk'!$AC$18)) -> 0.05
B52: 33 | F52: 1 | Q52: 0 | Z52: =MAX(0%,IF(Q52<>0,MIN((S52-Q52)/Q52/'NSLT Health Risk'!$E$28,'Health Prem & Reserve Risk'!$Z$18),'Health Prem & Reserve Risk'!$Z$18)) -> 0.05 | AC52: =MAX(0%,IF(U52<>0,MIN((W52-U52)/U52/'NSLT Health Risk'!$E$28,'Health Prem & Reserve Risk'!$AC$18),'Health Prem & Reserve Risk'!$AC$18)) -> 0.05
B53: 34 | F53: 1 | Q53: 0 | Z53: =MAX(0%,IF(Q53<>0,MIN((S53-Q53)/Q53/'NSLT Health Risk'!$E$28,'Health Prem & Reserve Risk'!$Z$18),'Health Prem & Reserve Risk'!$Z$18)) -> 0.05 | AC53: =MAX(0%,IF(U53<>0,MIN((W53-U53)/U53/'NSLT Health Risk'!$E$28,'Health Prem & Reserve Risk'!$AC$18),'Health Prem & Reserve Risk'!$AC$18)) -> 0.05
B54: 35 | F54: 1 | Q54: 0 | Z54: =MAX(0%,IF(Q54<>0,MIN((S54-Q54)/Q54/'NSLT Health Risk'!$E$28,'Health Prem & Reserve Risk'!$Z$18),'Health Prem & Reserve Risk'!$Z$18)) -> 0.05 | AC54: =MAX(0%,IF(U54<>0,MIN((W54-U54)/U54/'NSLT Health Risk'!$E$28,'Health Prem & Reserve Risk'!$AC$18),'Health Prem & Reserve Risk'!$AC$18)) -> 0.05
B55: 36 | F55: 1 | Q55: 0 | Z55: =MAX(0%,IF(Q55<>0,MIN((S55-Q55)/Q55/'NSLT Health Risk'!$E$28,'Health Prem & Reserve Risk'!$Z$18),'Health Prem & Reserve Risk'!$Z$18)) -> 0.05 | AC55: =MAX(0%,IF(U55<>0,MIN((W55-U55)/U55/'NSLT Health Risk'!$E$28,'Health Prem & Reserve Risk'!$AC$18),'Health Prem & Reserve Risk'!$AC$18)) -> 0.05
B56: 37 | F56: 1 | Q56: 0 | Z56: =MAX(0%,IF(Q56<>0,MIN((S56-Q56)/Q56/'NSLT Health Risk'!$E$28,'Health Prem & Reserve Risk'!$Z$18),'Health Prem & Reserve Risk'!$Z$18)) -> 0.05 | AC56: =MAX(0%,IF(U56<>0,MIN((W56-U56)/U56/'NSLT Health Risk'!$E$28,'Health Prem & Reserve Risk'!$AC$18),'Health Prem & Reserve Risk'!$AC$18)) -> 0.05
B57: 38 | F57: 1 | Q57: 0 | Z57: =MAX(0%,IF(Q57<>0,MIN((S57-Q57)/Q57/'NSLT Health Risk'!$E$28,'Health Prem & Reserve Risk'!$Z$18),'Health Prem & Reserve Risk'!$Z$18)) -> 0.05 | AC57: =MAX(0%,IF(U57<>0,MIN((W57-U57)/U57/'NSLT Health Risk'!$E$28,'Health Prem & Reserve Risk'!$AC$18),'Health Prem & Reserve Risk'!$AC$18)) -> 0.05
B58: 39 | F58: 1 | Q58: 0 | Z58: =MAX(0%,IF(Q58<>0,MIN((S58-Q58)/Q58/'NSLT Health Risk'!$E$28,'Health Prem & Reserve Risk'!$Z$18),'Health Prem & Reserve Risk'!$Z$18)) -> 0.05 | AC58: =MAX(0%,IF(U58<>0,MIN((W58-U58)/U58/'NSLT Health Risk'!$E$28,'Health Prem & Reserve Risk'!$AC$18),'Health Prem & Reserve Risk'!$AC$18)) -> 0.05
B59: 40 | F59: 1 | Q59: 0 | Z59: =MAX(0%,IF(Q59<>0,MIN((S59-Q59)/Q59/'NSLT Health Risk'!$E$28,'Health Prem & Reserve Risk'!$Z$18),'Health Prem & Reserve Risk'!$Z$18)) -> 0.05 | AC59: =MAX(0%,IF(U59<>0,MIN((W59-U59)/U59/'NSLT Health Risk'!$E$28,'Health Prem & Reserve Risk'!$AC$18),'Health Prem & Reserve Risk'!$AC$18)) -> 0.05
B60: 41 | F60: 1 | Q60: 0 | Z60: =MAX(0%,IF(Q60<>0,MIN((S60-Q60)/Q60/'NSLT Health Risk'!$E$28,'Health Prem & Reserve Risk'!$Z$18),'Health Prem & Reserve Risk'!$Z$18)) -> 0.05 | AC60: =MAX(0%,IF(U60<>0,MIN((W60-U60)/U60/'NSLT Health Risk'!$E$28,'Health Prem & Reserve Risk'!$AC$18),'Health Prem & Reserve Risk'!$AC$18)) -> 0.05
B61: 42 | F61: 1 | Q61: 0 | Z61: =MAX(0%,IF(Q61<>0,MIN((S61-Q61)/Q61/'NSLT Health Risk'!$E$28,'Health Prem & Reserve Risk'!$Z$18),'Health Prem & Reserve Risk'!$Z$18)) -> 0.05 | AC61: =MAX(0%,IF(U61<>0,MIN((W61-U61)/U61/'NSLT Health Risk'!$E$28,'Health Prem & Reserve Risk'!$AC$18),'Health Prem & Reserve Risk'!$AC$18)) -> 0.05
B62: 43 | F62: 1 | Q62: 0 | Z62: =MAX(0%,IF(Q62<>0,MIN((S62-Q62)/Q62/'NSLT Health Risk'!$E$28,'Health Prem & Reserve Risk'!$Z$18),'Health Prem & Reserve Risk'!$Z$18)) -> 0.05 | AC62: =MAX(0%,IF(U62<>0,MIN((W62-U62)/U62/'NSLT Health Risk'!$E$28,'Health Prem & Reserve Risk'!$AC$18),'Health Prem & Reserve Risk'!$AC$18)) -> 0.05
B63: 44 | F63: 1 | Q63: 0 | Z63: =MAX(0%,IF(Q63<>0,MIN((S63-Q63)/Q63/'NSLT Health Risk'!$E$28,'Health Prem & Reserve Risk'!$Z$18),'Health Prem & Reserve Risk'!$Z$18)) -> 0.05 | AC63: =MAX(0%,IF(U63<>0,MIN((W63-U63)/U63/'NSLT Health Risk'!$E$28,'Health Prem & Reserve Risk'!$AC$18),'Health Prem & Reserve Risk'!$AC$18)) -> 0.05
B64: 45 | F64: 1 | Q64: 0 | Z64: =MAX(0%,IF(Q64<>0,MIN((S64-Q64)/Q64/'NSLT Health Risk'!$E$28,'Health Prem & Reserve Risk'!$Z$18),'Health Prem & Reserve Risk'!$Z$18)) -> 0.05 | AC64: =MAX(0%,IF(U64<>0,MIN((W64-U64)/U64/'NSLT Health Risk'!$E$28,'Health Prem & Reserve Risk'!$AC$18),'Health Prem & Reserve Risk'!$AC$18)) -> 0.05
B65: 46 | F65: 1 | Q65: 0 | Z65: =MAX(0%,IF(Q65<>0,MIN((S65-Q65)/Q65/'NSLT Health Risk'!$E$28,'Health Prem & Reserve Risk'!$Z$18),'Health Prem & Reserve Risk'!$Z$18)) -> 0.05 | AC65: =MAX(0%,IF(U65<>0,MIN((W65-U65)/U65/'NSLT Health Risk'!$E$28,'Health Prem & Reserve Risk'!$AC$18),'Health Prem & Reserve Risk'!$AC$18)) -> 0.05
B66: 47 | F66: 1 | Q66: 0 | Z66: =MAX(0%,IF(Q66<>0,MIN((S66-Q66)/Q66/'NSLT Health Risk'!$E$28,'Health Prem & Reserve Risk'!$Z$18),'Health Prem & Reserve Risk'!$Z$18)) -> 0.05 | AC66: =MAX(0%,IF(U66<>0,MIN((W66-U66)/U66/'NSLT Health Risk'!$E$28,'Health Prem & Reserve Risk'!$AC$18),'Health Prem & Reserve Risk'!$AC$18)) -> 0.05
B67: 48 | F67: 1 | Q67: 0 | Z67: =MAX(0%,IF(Q67<>0,MIN((S67-Q67)/Q67/'NSLT Health Risk'!$E$28,'Health Prem & Reserve Risk'!$Z$18),'Health Prem & Reserve Risk'!$Z$18)) -> 0.05 | AC67: =MAX(0%,IF(U67<>0,MIN((W67-U67)/U67/'NSLT Health Risk'!$E$28,'Health Prem & Reserve Risk'!$AC$18),'Health Prem & Reserve Risk'!$AC$18)) -> 0.05
B68: 49 | F68: 1 | Q68: 0 | Z68: =MAX(0%,IF(Q68<>0,MIN((S68-Q68)/Q68/'NSLT Health Risk'!$E$28,'Health Prem & Reserve Risk'!$Z$18),'Health Prem & Reserve Risk'!$Z$18)) -> 0.05 | AC68: =MAX(0%,IF(U68<>0,MIN((W68-U68)/U68/'NSLT Health Risk'!$E$28,'Health Prem & Reserve Risk'!$AC$18),'Health Prem & Reserve Risk'!$AC$18)) -> 0.05
B69: 50 | F69: 1 | Q69: 0 | Z69: =MAX(0%,IF(Q69<>0,MIN((S69-Q69)/Q69/'NSLT Health Risk'!$E$28,'Health Prem & Reserve Risk'!$Z$18),'Health Prem & Reserve Risk'!$Z$18)) -> 0.05 | AC69: =MAX(0%,IF(U69<>0,MIN((W69-U69)/U69/'NSLT Health Risk'!$E$28,'Health Prem & Reserve Risk'!$AC$18),'Health Prem & Reserve Risk'!$AC$18)) -> 0.05
B70: 51 | F70: 1 | Q70: 0 | Z70: =MAX(0%,IF(Q70<>0,MIN((S70-Q70)/Q70/'NSLT Health Risk'!$E$28,'Health Prem & Reserve Risk'!$Z$18),'Health Prem & Reserve Risk'!$Z$18)) -> 0.05 | AC70: =MAX(0%,IF(U70<>0,MIN((W70-U70)/U70/'NSLT Health Risk'!$E$28,'Health Prem & Reserve Risk'!$AC$18),'Health Prem & Reserve Risk'!$AC$18)) -> 0.05
B71: 52 | F71: 1 | Q71: 0 | Z71: =MAX(0%,IF(Q71<>0,MIN((S71-Q71)/Q71/'NSLT Health Risk'!$E$28,'Health Prem & Reserve Risk'!$Z$18),'Health Prem & Reserve Risk'!$Z$18)) -> 0.05 | AC71: =MAX(0%,IF(U71<>0,MIN((W71-U71)/U71/'NSLT Health Risk'!$E$28,'Health Prem & Reserve Risk'!$AC$18),'Health Prem & Reserve Risk'!$AC$18)) -> 0.05
B72: 53 | F72: 1 | Q72: 0 | Z72: =MAX(0%,IF(Q72<>0,MIN((S72-Q72)/Q72/'NSLT Health Risk'!$E$28,'Health Prem & Reserve Risk'!$Z$18),'Health Prem & Reserve Risk'!$Z$18)) -> 0.05 | AC72: =MAX(0%,IF(U72<>0,MIN((W72-U72)/U72/'NSLT Health Risk'!$E$28,'Health Prem & Reserve Risk'!$AC$18),'Health Prem & Reserve Risk'!$AC$18)) -> 0.05
B73: 54 | F73: 1 | Q73: 0 | Z73: =MAX(0%,IF(Q73<>0,MIN((S73-Q73)/Q73/'NSLT Health Risk'!$E$28,'Health Prem & Reserve Risk'!$Z$18),'Health Prem & Reserve Risk'!$Z$18)) -> 0.05 | AC73: =MAX(0%,IF(U73<>0,MIN((W73-U73)/U73/'NSLT Health Risk'!$E$28,'Health Prem & Reserve Risk'!$AC$18),'Health Prem & Reserve Risk'!$AC$18)) -> 0.05
B74: 55 | F74: 1 | Q74: 0 | Z74: =MAX(0%,IF(Q74<>0,MIN((S74-Q74)/Q74/'NSLT Health Risk'!$E$28,'Health Prem & Reserve Risk'!$Z$18),'Health Prem & Reserve Risk'!$Z$18)) -> 0.05 | AC74: =MAX(0%,IF(U74<>0,MIN((W74-U74)/U74/'NSLT Health Risk'!$E$28,'Health Prem & Reserve Risk'!$AC$18),'Health Prem & Reserve Risk'!$AC$18)) -> 0.05
B75: 56 | F75: 1 | Q75: 0 | Z75: =MAX(0%,IF(Q75<>0,MIN((S75-Q75)/Q75/'NSLT Health Risk'!$E$28,'Health Prem & Reserve Risk'!$Z$18),'Health Prem & Reserve Risk'!$Z$18)) -> 0.05 | AC75: =MAX(0%,IF(U75<>0,MIN((W75-U75)/U75/'NSLT Health Risk'!$E$28,'Health Prem & Reserve Risk'!$AC$18),'Health Prem & Reserve Risk'!$AC$18)) -> 0.05
B76: 57 | F76: 1 | Q76: 0 | Z76: =MAX(0%,IF(Q76<>0,MIN((S76-Q76)/Q76/'NSLT Health Risk'!$E$28,'Health Prem & Reserve Risk'!$Z$18),'Health Prem & Reserve Risk'!$Z$18)) -> 0.05 | AC76: =MAX(0%,IF(U76<>0,MIN((W76-U76)/U76/'NSLT Health Risk'!$E$28,'Health Prem & Reserve Risk'!$AC$18),'Health Prem & Reserve Risk'!$AC$18)) -> 0.05
B77: 58 | F77: 1 | Q77: 0 | Z77: =MAX(0%,IF(Q77<>0,MIN((S77-Q77)/Q77/'NSLT Health Risk'!$E$28,'Health Prem & Reserve Risk'!$Z$18),'Health Prem & Reserve Risk'!$Z$18)) -> 0.05 | AC77: =MAX(0%,IF(U77<>0,MIN((W77-U77)/U77/'NSLT Health Risk'!$E$28,'Health Prem & Reserve Risk'!$AC$18),'Health Prem & Reserve Risk'!$AC$18)) -> 0.05
B78: 59 | F78: 1 | Q78: 0 | Z78: =MAX(0%,IF(Q78<>0,MIN((S78-Q78)/Q78/'NSLT Health Risk'!$E$28,'Health Prem & Reserve Risk'!$Z$18),'Health Prem & Reserve Risk'!$Z$18)) -> 0.05 | AC78: =MAX(0%,IF(U78<>0,MIN((W78-U78)/U78/'NSLT Health Risk'!$E$28,'Health Prem & Reserve Risk'!$AC$18),'Health Prem & Reserve Risk'!$AC$18)) -> 0.05
B79: 60 | F79: 1 | Q79: 0 | Z79: =MAX(0%,IF(Q79<>0,MIN((S79-Q79)/Q79/'NSLT Health Risk'!$E$28,'Health Prem & Reserve Risk'!$Z$18),'Health Prem & Reserve Risk'!$Z$18)) -> 0.05 | AC79: =MAX(0%,IF(U79<>0,MIN((W79-U79)/U79/'NSLT Health Risk'!$E$28,'Health Prem & Reserve Risk'!$AC$18),'Health Prem & Reserve Risk'!$AC$18)) -> 0.05
B80: 61 | F80: 1 | Q80: 0 | Z80: =MAX(0%,IF(Q80<>0,MIN((S80-Q80)/Q80/'NSLT Health Risk'!$E$28,'Health Prem & Reserve Risk'!$Z$18),'Health Prem & Reserve Risk'!$Z$18)) -> 0.05 | AC80: =MAX(0%,IF(U80<>0,MIN((W80-U80)/U80/'NSLT Health Risk'!$E$28,'Health Prem & Reserve Risk'!$AC$18),'Health Prem & Reserve Risk'!$AC$18)) -> 0.05
B81: 62 | F81: 1 | Q81: 0 | Z81: =MAX(0%,IF(Q81<>0,MIN((S81-Q81)/Q81/'NSLT Health Risk'!$E$28,'Health Prem & Reserve Risk'!$Z$18),'Health Prem & Reserve Risk'!$Z$18)) -> 0.05 | AC81: =MAX(0%,IF(U81<>0,MIN((W81-U81)/U81/'NSLT Health Risk'!$E$28,'Health Prem & Reserve Risk'!$AC$18),'Health Prem & Reserve Risk'!$AC$18)) -> 0.05
B82: 63 | F82: 1 | Q82: 0 | Z82: =MAX(0%,IF(Q82<>0,MIN((S82-Q82)/Q82/'NSLT Health Risk'!$E$28,'Health Prem & Reserve Risk'!$Z$18),'Health Prem & Reserve Risk'!$Z$18)) -> 0.05 | AC82: =MAX(0%,IF(U82<>0,MIN((W82-U82)/U82/'NSLT Health Risk'!$E$28,'Health Prem & Reserve Risk'!$AC$18),'Health Prem & Reserve Risk'!$AC$18)) -> 0.05
B83: 64 | F83: 1 | Q83: 0 | Z83: =MAX(0%,IF(Q83<>0,MIN((S83-Q83)/Q83/'NSLT Health Risk'!$E$28,'Health Prem & Reserve Risk'!$Z$18),'Health Prem & Reserve Risk'!$Z$18)) -> 0.05 | AC83: =MAX(0%,IF(U83<>0,MIN((W83-U83)/U83/'NSLT Health Risk'!$E$28,'Health Prem & Reserve Risk'!$AC$18),'Health Prem & Reserve Risk'!$AC$18)) -> 0.05
B84: 65 | F84: 1 | Q84: 0 | Z84: =MAX(0%,IF(Q84<>0,MIN((S84-Q84)/Q84/'NSLT Health Risk'!$E$28,'Health Prem & Reserve Risk'!$Z$18),'Health Prem & Reserve Risk'!$Z$18)) -> 0.05 | AC84: =MAX(0%,IF(U84<>0,MIN((W84-U84)/U84/'NSLT Health Risk'!$E$28,'Health Prem & Reserve Risk'!$AC$18),'Health Prem & Reserve Risk'!$AC$18)) -> 0.05
B85: 66 | F85: =IF(B85<=OFFSET($Z$8,B$17-1,0),0,1) -> 1 | Q85: =MAX(G85,I85)+K85+M85+0.3*O85 -> 0 | Z85: =MAX(0%,IF(Q85<>0,MIN((S85-Q85)/Q85/'NSLT Health Risk'!$E$28,'Health Prem & Reserve Risk'!$Z$18),'Health Prem & Reserve Risk'!$Z$18)) -> 0.05 | AC85: =MAX(0%,IF(U85<>0,MIN((W85-U85)/U85/'NSLT Health Risk'!$E$28,'Health Prem & Reserve Risk'!$AC$18),'Health Prem & Reserve Risk'!$AC$18)) -> 0.05
B86: 67 | F86: 1 | Q86: 0 | Z86: =MAX(0%,IF(Q86<>0,MIN((S86-Q86)/Q86/'NSLT Health Risk'!$E$28,'Health Prem & Reserve Risk'!$Z$18),'Health Prem & Reserve Risk'!$Z$18)) -> 0.05 | AC86: =MAX(0%,IF(U86<>0,MIN((W86-U86)/U86/'NSLT Health Risk'!$E$28,'Health Prem & Reserve Risk'!$AC$18),'Health Prem & Reserve Risk'!$AC$18)) -> 0.05
B87: 68 | F87: 1 | Q87: 0 | Z87: =MAX(0%,IF(Q87<>0,MIN((S87-Q87)/Q87/'NSLT Health Risk'!$E$28,'Health Prem & Reserve Risk'!$Z$18),'Health Prem & Reserve Risk'!$Z$18)) -> 0.05 | AC87: =MAX(0%,IF(U87<>0,MIN((W87-U87)/U87/'NSLT Health Risk'!$E$28,'Health Prem & Reserve Risk'!$AC$18),'Health Prem & Reserve Risk'!$AC$18)) -> 0.05
B88: 69 | F88: 1 | Q88: 0 | Z88: =MAX(0%,IF(Q88<>0,MIN((S88-Q88)/Q88/'NSLT Health Risk'!$E$28,'Health Prem & Reserve Risk'!$Z$18),'Health Prem & Reserve Risk'!$Z$18)) -> 0.05 | AC88: =MAX(0%,IF(U88<>0,MIN((W88-U88)/U88/'NSLT Health Risk'!$E$28,'Health Prem & Reserve Risk'!$AC$18),'Health Prem & Reserve Risk'!$AC$18)) -> 0.05
B89: 70 | F89: 1 | Q89: 0 | Z89: =MAX(0%,IF(Q89<>0,MIN((S89-Q89)/Q89/'NSLT Health Risk'!$E$28,'Health Prem & Reserve Risk'!$Z$18),'Health Prem & Reserve Risk'!$Z$18)) -> 0.05 | AC89: =MAX(0%,IF(U89<>0,MIN((W89-U89)/U89/'NSLT Health Risk'!$E$28,'Health Prem & Reserve Risk'!$AC$18),'Health Prem & Reserve Risk'!$AC$18)) -> 0.05
B90: 71 | F90: 1 | Q90: 0 | Z90: =MAX(0%,IF(Q90<>0,MIN((S90-Q90)/Q90/'NSLT Health Risk'!$E$28,'Health Prem & Reserve Risk'!$Z$18),'Health Prem & Reserve Risk'!$Z$18)) -> 0.05 | AC90: =MAX(0%,IF(U90<>0,MIN((W90-U90)/U90/'NSLT Health Risk'!$E$28,'Health Prem & Reserve Risk'!$AC$18),'Health Prem & Reserve Risk'!$AC$18)) -> 0.05
B91: 72 | F91: 1 | Q91: 0 | Z91: =MAX(0%,IF(Q91<>0,MIN((S91-Q91)/Q91/'NSLT Health Risk'!$E$28,'Health Prem & Reserve Risk'!$Z$18),'Health Prem & Reserve Risk'!$Z$18)) -> 0.05 | AC91: =MAX(0%,IF(U91<>0,MIN((W91-U91)/U91/'NSLT Health Risk'!$E$28,'Health Prem & Reserve Risk'!$AC$18),'Health Prem & Reserve Risk'!$AC$18)) -> 0.05
B92: 73 | F92: 1 | Q92: 0 | Z92: =MAX(0%,IF(Q92<>0,MIN((S92-Q92)/Q92/'NSLT Health Risk'!$E$28,'Health Prem & Reserve Risk'!$Z$18),'Health Prem & Reserve Risk'!$Z$18)) -> 0.05 | AC92: =MAX(0%,IF(U92<>0,MIN((W92-U92)/U92/'NSLT Health Risk'!$E$28,'Health Prem & Reserve Risk'!$AC$18),'Health Prem & Reserve Risk'!$AC$18)) -> 0.05
B93: 74 | F93: 1 | Q93: 0 | Z93: =MAX(0%,IF(Q93<>0,MIN((S93-Q93)/Q93/'NSLT Health Risk'!$E$28,'Health Prem & Reserve Risk'!$Z$18),'Health Prem & Reserve Risk'!$Z$18)) -> 0.05 | AC93: =MAX(0%,IF(U93<>0,MIN((W93-U93)/U93/'NSLT Health Risk'!$E$28,'Health Prem & Reserve Risk'!$AC$18),'Health Prem & Reserve Risk'!$AC$18)) -> 0.05
B94: 75 | F94: 1 | Q94: 0 | Z94: =MAX(0%,IF(Q94<>0,MIN((S94-Q94)/Q94/'NSLT Health Risk'!$E$28,'Health Prem & Reserve Risk'!$Z$18),'Health Prem & Reserve Risk'!$Z$18)) -> 0.05 | AC94: =MAX(0%,IF(U94<>0,MIN((W94-U94)/U94/'NSLT Health Risk'!$E$28,'Health Prem & Reserve Risk'!$AC$18),'Health Prem & Reserve Risk'!$AC$18)) -> 0.05
B95: 76 | F95: 1 | Q95: 0 | Z95: =MAX(0%,IF(Q95<>0,MIN((S95-Q95)/Q95/'NSLT Health Risk'!$E$28,'Health Prem & Reserve Risk'!$Z$18),'Health Prem & Reserve Risk'!$Z$18)) -> 0.05 | AC95: =MAX(0%,IF(U95<>0,MIN((W95-U95)/U95/'NSLT Health Risk'!$E$28,'Health Prem & Reserve Risk'!$AC$18),'Health Prem & Reserve Risk'!$AC$18)) -> 0.05
B96: 77 | F96: 1 | Q96: 0 | Z96: =MAX(0%,IF(Q96<>0,MIN((S96-Q96)/Q96/'NSLT Health Risk'!$E$28,'Health Prem & Reserve Risk'!$Z$18),'Health Prem & Reserve Risk'!$Z$18)) -> 0.05 | AC96: =MAX(0%,IF(U96<>0,MIN((W96-U96)/U96/'NSLT Health Risk'!$E$28,'Health Prem & Reserve Risk'!$AC$18),'Health Prem & Reserve Risk'!$AC$18)) -> 0.05
B97: 78 | F97: 1 | Q97: 0 | Z97: =MAX(0%,IF(Q97<>0,MIN((S97-Q97)/Q97/'NSLT Health Risk'!$E$28,'Health Prem & Reserve Risk'!$Z$18),'Health Prem & Reserve Risk'!$Z$18)) -> 0.05 | AC97: =MAX(0%,IF(U97<>0,MIN((W97-U97)/U97/'NSLT Health Risk'!$E$28,'Health Prem & Reserve Risk'!$AC$18),'Health Prem & Reserve Risk'!$AC$18)) -> 0.05
B98: 79 | F98: 1 | Q98: 0 | Z98: =MAX(0%,IF(Q98<>0,MIN((S98-Q98)/Q98/'NSLT Health Risk'!$E$28,'Health Prem & Reserve Risk'!$Z$18),'Health Prem & Reserve Risk'!$Z$18)) -> 0.05 | AC98: =MAX(0%,IF(U98<>0,MIN((W98-U98)/U98/'NSLT Health Risk'!$E$28,'Health Prem & Reserve Risk'!$AC$18),'Health Prem & Reserve Risk'!$AC$18)) -> 0.05
B99: 80 | F99: 1 | Q99: 0 | Z99: =MAX(0%,IF(Q99<>0,MIN((S99-Q99)/Q99/'NSLT Health Risk'!$E$28,'Health Prem & Reserve Risk'!$Z$18),'Health Prem & Reserve Risk'!$Z$18)) -> 0.05 | AC99: =MAX(0%,IF(U99<>0,MIN((W99-U99)/U99/'NSLT Health Risk'!$E$28,'Health Prem & Reserve Risk'!$AC$18),'Health Prem & Reserve Risk'!$AC$18)) -> 0.05
B100: 81 | F100: 1 | Q100: 0 | Z100: =MAX(0%,IF(Q100<>0,MIN((S100-Q100)/Q100/'NSLT Health Risk'!$E$28,'Health Prem & Reserve Risk'!$Z$18),'Health Prem & Reserve Risk'!$Z$18)) -> 0.05 | AC100: =MAX(0%,IF(U100<>0,MIN((W100-U100)/U100/'NSLT Health Risk'!$E$28,'Health Prem & Reserve Risk'!$AC$18),'Health Prem & Reserve Risk'!$AC$18)) -> 0.05
B101: 82 | F101: 1 | Q101: 0 | Z101: =MAX(0%,IF(Q101<>0,MIN((S101-Q101)/Q101/'NSLT Health Risk'!$E$28,'Health Prem & Reserve Risk'!$Z$18),'Health Prem & Reserve Risk'!$Z$18)) -> 0.05 | AC101: =MAX(0%,IF(U101<>0,MIN((W101-U101)/U101/'NSLT Health Risk'!$E$28,'Health Prem & Reserve Risk'!$AC$18),'Health Prem & Reserve Risk'!$AC$18)) -> 0.05
B102: 83 | F102: 1 | Q102: 0 | Z102: =MAX(0%,IF(Q102<>0,MIN((S102-Q102)/Q102/'NSLT Health Risk'!$E$28,'Health Prem & Reserve Risk'!$Z$18),'Health Prem & Reserve Risk'!$Z$18)) -> 0.05 | AC102: =MAX(0%,IF(U102<>0,MIN((W102-U102)/U102/'NSLT Health Risk'!$E$28,'Health Prem & Reserve Risk'!$AC$18),'Health Prem & Reserve Risk'!$AC$18)) -> 0.05
B103: 84 | F103: 1 | Q103: 0 | Z103: =MAX(0%,IF(Q103<>0,MIN((S103-Q103)/Q103/'NSLT Health Risk'!$E$28,'Health Prem & Reserve Risk'!$Z$18),'Health Prem & Reserve Risk'!$Z$18)) -> 0.05 | AC103: =MAX(0%,IF(U103<>0,MIN((W103-U103)/U103/'NSLT Health Risk'!$E$28,'Health Prem & Reserve Risk'!$AC$18),'Health Prem & Reserve Risk'!$AC$18)) -> 0.05
B104: 85 | F104: 1 | Q104: 0 | Z104: =MAX(0%,IF(Q104<>0,MIN((S104-Q104)/Q104/'NSLT Health Risk'!$E$28,'Health Prem & Reserve Risk'!$Z$18),'Health Prem & Reserve Risk'!$Z$18)) -> 0.05 | AC104: =MAX(0%,IF(U104<>0,MIN((W104-U104)/U104/'NSLT Health Risk'!$E$28,'Health Prem & Reserve Risk'!$AC$18),'Health Prem & Reserve Risk'!$AC$18)) -> 0.05
B105: 86 | F105: 1 | Q105: 0 | Z105: =MAX(0%,IF(Q105<>0,MIN((S105-Q105)/Q105/'NSLT Health Risk'!$E$28,'Health Prem & Reserve Risk'!$Z$18),'Health Prem & Reserve Risk'!$Z$18)) -> 0.05 | AC105: =MAX(0%,IF(U105<>0,MIN((W105-U105)/U105/'NSLT Health Risk'!$E$28,'Health Prem & Reserve Risk'!$AC$18),'Health Prem & Reserve Risk'!$AC$18)) -> 0.05
B106: 87 | F106: 1 | Q106: 0 | Z106: =MAX(0%,IF(Q106<>0,MIN((S106-Q106)/Q106/'NSLT Health Risk'!$E$28,'Health Prem & Reserve Risk'!$Z$18),'Health Prem & Reserve Risk'!$Z$18)) -> 0.05 | AC106: =MAX(0%,IF(U106<>0,MIN((W106-U106)/U106/'NSLT Health Risk'!$E$28,'Health Prem & Reserve Risk'!$AC$18),'Health Prem & Reserve Risk'!$AC$18)) -> 0.05
B107: 88 | F107: 1 | Q107: 0 | Z107: =MAX(0%,IF(Q107<>0,MIN((S107-Q107)/Q107/'NSLT Health Risk'!$E$28,'Health Prem & Reserve Risk'!$Z$18),'Health Prem & Reserve Risk'!$Z$18)) -> 0.05 | AC107: =MAX(0%,IF(U107<>0,MIN((W107-U107)/U107/'NSLT Health Risk'!$E$28,'Health Prem & Reserve Risk'!$AC$18),'Health Prem & Reserve Risk'!$AC$18)) -> 0.05
B108: 89 | F108: 1 | Q108: 0 | Z108: =MAX(0%,IF(Q108<>0,MIN((S108-Q108)/Q108/'NSLT Health Risk'!$E$28,'Health Prem & Reserve Risk'!$Z$18),'Health Prem & Reserve Risk'!$Z$18)) -> 0.05 | AC108: =MAX(0%,IF(U108<>0,MIN((W108-U108)/U108/'NSLT Health Risk'!$E$28,'Health Prem & Reserve Risk'!$AC$18),'Health Prem & Reserve Risk'!$AC$18)) -> 0.05
B109: 90 | F109: 1 | Q109: 0 | Z109: =MAX(0%,IF(Q109<>0,MIN((S109-Q109)/Q109/'NSLT Health Risk'!$E$28,'Health Prem & Reserve Risk'!$Z$18),'Health Prem & Reserve Risk'!$Z$18)) -> 0.05 | AC109: =MAX(0%,IF(U109<>0,MIN((W109-U109)/U109/'NSLT Health Risk'!$E$28,'Health Prem & Reserve Risk'!$AC$18),'Health Prem & Reserve Risk'!$AC$18)) -> 0.05
B110: 91 | F110: 1 | Q110: 0 | Z110: =MAX(0%,IF(Q110<>0,MIN((S110-Q110)/Q110/'NSLT Health Risk'!$E$28,'Health Prem & Reserve Risk'!$Z$18),'Health Prem & Reserve Risk'!$Z$18)) -> 0.05 | AC110: =MAX(0%,IF(U110<>0,MIN((W110-U110)/U110/'NSLT Health Risk'!$E$28,'Health Prem & Reserve Risk'!$AC$18),'Health Prem & Reserve Risk'!$AC$18)) -> 0.05
B111: 92 | F111: 1 | Q111: 0 | Z111: =MAX(0%,IF(Q111<>0,MIN((S111-Q111)/Q111/'NSLT Health Risk'!$E$28,'Health Prem & Reserve Risk'!$Z$18),'Health Prem & Reserve Risk'!$Z$18)) -> 0.05 | AC111: =MAX(0%,IF(U111<>0,MIN((W111-U111)/U111/'NSLT Health Risk'!$E$28,'Health Prem & Reserve Risk'!$AC$18),'Health Prem & Reserve Risk'!$AC$18)) -> 0.05
B112: 93 | F112: 1 | Q112: 0 | Z112: =MAX(0%,IF(Q112<>0,MIN((S112-Q112)/Q112/'NSLT Health Risk'!$E$28,'Health Prem & Reserve Risk'!$Z$18),'Health Prem & Reserve Risk'!$Z$18)) -> 0.05 | AC112: =MAX(0%,IF(U112<>0,MIN((W112-U112)/U112/'NSLT Health Risk'!$E$28,'Health Prem & Reserve Risk'!$AC$18),'Health Prem & Reserve Risk'!$AC$18)) -> 0.05
B113: 94 | F113: 1 | Q113: 0 | Z113: =MAX(0%,IF(Q113<>0,MIN((S113-Q113)/Q113/'NSLT Health Risk'!$E$28,'Health Prem & Reserve Risk'!$Z$18),'Health Prem & Reserve Risk'!$Z$18)) -> 0.05 | AC113: =MAX(0%,IF(U113<>0,MIN((W113-U113)/U113/'NSLT Health Risk'!$E$28,'Health Prem & Reserve Risk'!$AC$18),'Health Prem & Reserve Risk'!$AC$18)) -> 0.05
B114: 95 | F114: 1 | Q114: 0 | Z114: =MAX(0%,IF(Q114<>0,MIN((S114-Q114)/Q114/'NSLT Health Risk'!$E$28,'Health Prem & Reserve Risk'!$Z$18),'Health Prem & Reserve Risk'!$Z$18)) -> 0.05 | AC114: =MAX(0%,IF(U114<>0,MIN((W114-U114)/U114/'NSLT Health Risk'!$E$28,'Health Prem & Reserve Risk'!$AC$18),'Health Prem & Reserve Risk'!$AC$18)) -> 0.05
B115: 96 | F115: 1 | Q115: 0 | Z115: =MAX(0%,IF(Q115<>0,MIN((S115-Q115)/Q115/'NSLT Health Risk'!$E$28,'Health Prem & Reserve Risk'!$Z$18),'Health Prem & Reserve Risk'!$Z$18)) -> 0.05 | AC115: =MAX(0%,IF(U115<>0,MIN((W115-U115)/U115/'NSLT Health Risk'!$E$28,'Health Prem & Reserve Risk'!$AC$18),'Health Prem & Reserve Risk'!$AC$18)) -> 0.05
B116: 97 | F116: 1 | Q116: 0 | Z116: =MAX(0%,IF(Q116<>0,MIN((S116-Q116)/Q116/'NSLT Health Risk'!$E$28,'Health Prem & Reserve Risk'!$Z$18),'Health Prem & Reserve Risk'!$Z$18)) -> 0.05 | AC116: =MAX(0%,IF(U116<>0,MIN((W116-U116)/U116/'NSLT Health Risk'!$E$28,'Health Prem & Reserve Risk'!$AC$18),'Health Prem & Reserve Risk'!$AC$18)) -> 0.05
B117: 98 | F117: 1 | Q117: 0 | Z117: =MAX(0%,IF(Q117<>0,MIN((S117-Q117)/Q117/'NSLT Health Risk'!$E$28,'Health Prem & Reserve Risk'!$Z$18),'Health Prem & Reserve Risk'!$Z$18)) -> 0.05 | AC117: =MAX(0%,IF(U117<>0,MIN((W117-U117)/U117/'NSLT Health Risk'!$E$28,'Health Prem & Reserve Risk'!$AC$18),'Health Prem & Reserve Risk'!$AC$18)) -> 0.05
B118: 99 | F118: 1 | Q118: 0 | Z118: =MAX(0%,IF(Q118<>0,MIN((S118-Q118)/Q118/'NSLT Health Risk'!$E$28,'Health Prem & Reserve Risk'!$Z$18),'Health Prem & Reserve Risk'!$Z$18)) -> 0.05 | AC118: =MAX(0%,IF(U118<>0,MIN((W118-U118)/U118/'NSLT Health Risk'!$E$28,'Health Prem & Reserve Risk'!$AC$18),'Health Prem & Reserve Risk'!$AC$18)) -> 0.05
B119: 100 | F119: 1 | Q119: 0 | Z119: =MAX(0%,IF(Q119<>0,MIN((S119-Q119)/Q119/'NSLT Health Risk'!$E$28,'Health Prem & Reserve Risk'!$Z$18),'Health Prem & Reserve Risk'!$Z$18)) -> 0.05 | AC119: =MAX(0%,IF(U119<>0,MIN((W119-U119)/U119/'NSLT Health Risk'!$E$28,'Health Prem & Reserve Risk'!$AC$18),'Health Prem & Reserve Risk'!$AC$18)) -> 0.05
F120: =IF(OFFSET($Z$8,B17-1,0)=0,1,0) -> 0
B122: 2 | C122: =RIGHT(OFFSET($B$8,B122-1,0),LEN(OFFSET($B$8,B122-1,0))-5) -> - Income Protection & 23 Prop. Reins. | Z122: Premium Standard Deviation | AC122: Reserve Standard Deviation
C123: Contract identifier | F123: =IF(OFFSET($Z$8,B122-1,0)=0,1,0) -> 0 | G123: Existing Premium (next 12 months) * | I123: Last Year Premium * | K123: Existing Premium (not included in column G) * | M123: Future Premium (next 12 months) * | O123: Future Premium (not included in column M) * | Q123: Premium Volume Measure | S123: Aggregate Cap* | U123: Claims reserve * | W123: Maximum residual exposure * | Z123: =OFFSET('NSLT Health Risk'!$J$55,'Health Prem & Reserve Risk'!B122-1,0) -> 0.085 | AC123: =OFFSET('NSLT Health Risk'!$L$55,'Health Prem & Reserve Risk'!B122-1,0) -> 0.14
F124: =IF(OFFSET($Z$8,B122-1,0)=0,1,0) -> 0
B125: 1 | F125: =IF(B125<=OFFSET($Z$8,B$122-1,0),0,1) -> 0 | G125: 0 | I125: 0 | K125: 0 | M125: 0 | O125: 0 | Q125: =MAX(G125,I125)+K125+M125+0.3*O125 -> 0 | S125: 0 | U125: 0 | W125: 0 | Z125: =MAX(0%,IF(Q125<>0,MIN((S125-Q125)/Q125/'NSLT Health Risk'!$E$28,'Health Prem & Reserve Risk'!$Z$123),'Health Prem & Reserve Risk'!$Z$123)) -> 0.085 | AC125: =MAX(0%,IF(U125<>0,MIN((W125-U125)/U125/'NSLT Health Risk'!$E$28,'Health Prem & Reserve Risk'!$AC$123),'Health Prem & Reserve Risk'!$AC$123)) -> 0.14
B126: 2 | F126: =IF(B126<=OFFSET($Z$8,B$122-1,0),0,1) -> 1 | Q126: 0 | Z126: =MAX(0%,IF(Q126<>0,MIN((S126-Q126)/Q126/'NSLT Health Risk'!$E$28,'Health Prem & Reserve Risk'!$Z$123),'Health Prem & Reserve Risk'!$Z$123)) -> 0.085 | AC126: =MAX(0%,IF(U126<>0,MIN((W126-U126)/U126/'NSLT Health Risk'!$E$28,'Health Prem & Reserve Risk'!$AC$123),'Health Prem & Reserve Risk'!$AC$123)) -> 0.14
B127: 3 | F127: 1 | Q127: 0 | Z127: =MAX(0%,IF(Q127<>0,MIN((S127-Q127)/Q127/'NSLT Health Risk'!$E$28,'Health Prem & Reserve Risk'!$Z$123),'Health Prem & Reserve Risk'!$Z$123)) -> 0.085 | AC127: =MAX(0%,IF(U127<>0,MIN((W127-U127)/U127/'NSLT Health Risk'!$E$28,'Health Prem & Reserve Risk'!$AC$123),'Health Prem & Reserve Risk'!$AC$123)) -> 0.14
B128: 4 | F128: 1 | Q128: 0 | Z128: =MAX(0%,IF(Q128<>0,MIN((S128-Q128)/Q128/'NSLT Health Risk'!$E$28,'Health Prem & Reserve Risk'!$Z$123),'Health Prem & Reserve Risk'!$Z$123)) -> 0.085 | AC128: =MAX(0%,IF(U128<>0,MIN((W128-U128)/U128/'NSLT Health Risk'!$E$28,'Health Prem & Reserve Risk'!$AC$123),'Health Prem & Reserve Risk'!$AC$123)) -> 0.14
B129: 5 | F129: 1 | Q129: 0 | Z129: =MAX(0%,IF(Q129<>0,MIN((S129-Q129)/Q129/'NSLT Health Risk'!$E$28,'Health Prem & Reserve Risk'!$Z$123),'Health Prem & Reserve Risk'!$Z$123)) -> 0.085 | AC129: =MAX(0%,IF(U129<>0,MIN((W129-U129)/U129/'NSLT Health Risk'!$E$28,'Health Prem & Reserve Risk'!$AC$123),'Health Prem & Reserve Risk'!$AC$123)) -> 0.14
B130: 6 | F130: 1 | Q130: 0 | Z130: =MAX(0%,IF(Q130<>0,MIN((S130-Q130)/Q130/'NSLT Health Risk'!$E$28,'Health Prem & Reserve Risk'!$Z$123),'Health Prem & Reserve Risk'!$Z$123)) -> 0.085 | AC130: =MAX(0%,IF(U130<>0,MIN((W130-U130)/U130/'NSLT Health Risk'!$E$28,'Health Prem & Reserve Risk'!$AC$123),'Health Prem & Reserve Risk'!$AC$123)) -> 0.14
B131: 7 | F131: 1 | Q131: 0 | Z131: =MAX(0%,IF(Q131<>0,MIN((S131-Q131)/Q131/'NSLT Health Risk'!$E$28,'Health Prem & Reserve Risk'!$Z$123),'Health Prem & Reserve Risk'!$Z$123)) -> 0.085 | AC131: =MAX(0%,IF(U131<>0,MIN((W131-U131)/U131/'NSLT Health Risk'!$E$28,'Health Prem & Reserve Risk'!$AC$123),'Health Prem & Reserve Risk'!$AC$123)) -> 0.14
B132: 8 | F132: 1 | Q132: 0 | Z132: =MAX(0%,IF(Q132<>0,MIN((S132-Q132)/Q132/'NSLT Health Risk'!$E$28,'Health Prem & Reserve Risk'!$Z$123),'Health Prem & Reserve Risk'!$Z$123)) -> 0.085 | AC132: =MAX(0%,IF(U132<>0,MIN((W132-U132)/U132/'NSLT Health Risk'!$E$28,'Health Prem & Reserve Risk'!$AC$123),'Health Prem & Reserve Risk'!$AC$123)) -> 0.14
B133: 9 | F133: 1 | Q133: 0 | Z133: =MAX(0%,IF(Q133<>0,MIN((S133-Q133)/Q133/'NSLT Health Risk'!$E$28,'Health Prem & Reserve Risk'!$Z$123),'Health Prem & Reserve Risk'!$Z$123)) -> 0.085 | AC133: =MAX(0%,IF(U133<>0,MIN((W133-U133)/U133/'NSLT Health Risk'!$E$28,'Health Prem & Reserve Risk'!$AC$123),'Health Prem & Reserve Risk'!$AC$123)) -> 0.14
B134: 10 | F134: 1 | Q134: 0 | Z134: =MAX(0%,IF(Q134<>0,MIN((S134-Q134)/Q134/'NSLT Health Risk'!$E$28,'Health Prem & Reserve Risk'!$Z$123),'Health Prem & Reserve Risk'!$Z$123)) -> 0.085 | AC134: =MAX(0%,IF(U134<>0,MIN((W134-U134)/U134/'NSLT Health Risk'!$E$28,'Health Prem & Reserve Risk'!$AC$123),'Health Prem & Reserve Risk'!$AC$123)) -> 0.14
B135: 11 | F135: 1 | Q135: 0 | Z135: =MAX(0%,IF(Q135<>0,MIN((S135-Q135)/Q135/'NSLT Health Risk'!$E$28,'Health Prem & Reserve Risk'!$Z$123),'Health Prem & Reserve Risk'!$Z$123)) -> 0.085 | AC135: =MAX(0%,IF(U135<>0,MIN((W135-U135)/U135/'NSLT Health Risk'!$E$28,'Health Prem & Reserve Risk'!$AC$123),'Health Prem & Reserve Risk'!$AC$123)) -> 0.14
B136: 12 | F136: 1 | Q136: 0 | Z136: =MAX(0%,IF(Q136<>0,MIN((S136-Q136)/Q136/'NSLT Health Risk'!$E$28,'Health Prem & Reserve Risk'!$Z$123),'Health Prem & Reserve Risk'!$Z$123)) -> 0.085 | AC136: =MAX(0%,IF(U136<>0,MIN((W136-U136)/U136/'NSLT Health Risk'!$E$28,'Health Prem & Reserve Risk'!$AC$123),'Health Prem & Reserve Risk'!$AC$123)) -> 0.14
B137: 13 | F137: 1 | Q137: 0 | Z137: =MAX(0%,IF(Q137<>0,MIN((S137-Q137)/Q137/'NSLT Health Risk'!$E$28,'Health Prem & Reserve Risk'!$Z$123),'Health Prem & Reserve Risk'!$Z$123)) -> 0.085 | AC137: =MAX(0%,IF(U137<>0,MIN((W137-U137)/U137/'NSLT Health Risk'!$E$28,'Health Prem & Reserve Risk'!$AC$123),'Health Prem & Reserve Risk'!$AC$123)) -> 0.14
B138: 14 | F138: 1 | Q138: 0 | Z138: =MAX(0%,IF(Q138<>0,MIN((S138-Q138)/Q138/'NSLT Health Risk'!$E$28,'Health Prem & Reserve Risk'!$Z$123),'Health Prem & Reserve Risk'!$Z$123)) -> 0.085 | AC138: =MAX(0%,IF(U138<>0,MIN((W138-U138)/U138/'NSLT Health Risk'!$E$28,'Health Prem & Reserve Risk'!$AC$123),'Health Prem & Reserve Risk'!$AC$123)) -> 0.14
B139: 15 | F139: 1 | Q139: 0 | Z139: =MAX(0%,IF(Q139<>0,MIN((S139-Q139)/Q139/'NSLT Health Risk'!$E$28,'Health Prem & Reserve Risk'!$Z$123),'Health Prem & Reserve Risk'!$Z$123)) -> 0.085 | AC139: =MAX(0%,IF(U139<>0,MIN((W139-U139)/U139/'NSLT Health Risk'!$E$28,'Health Prem & Reserve Risk'!$AC$123),'Health Prem & Reserve Risk'!$AC$123)) -> 0.14
B140: 16 | F140: 1 | Q140: 0 | Z140: =MAX(0%,IF(Q140<>0,MIN((S140-Q140)/Q140/'NSLT Health Risk'!$E$28,'Health Prem & Reserve Risk'!$Z$123),'Health Prem & Reserve Risk'!$Z$123)) -> 0.085 | AC140: =MAX(0%,IF(U140<>0,MIN((W140-U140)/U140/'NSLT Health Risk'!$E$28,'Health Prem & Reserve Risk'!$AC$123),'Health Prem & Reserve Risk'!$AC$123)) -> 0.14
B141: 17 | F141: 1 | Q141: 0 | Z141: =MAX(0%,IF(Q141<>0,MIN((S141-Q141)/Q141/'NSLT Health Risk'!$E$28,'Health Prem & Reserve Risk'!$Z$123),'Health Prem & Reserve Risk'!$Z$123)) -> 0.085 | AC141: =MAX(0%,IF(U141<>0,MIN((W141-U141)/U141/'NSLT Health Risk'!$E$28,'Health Prem & Reserve Risk'!$AC$123),'Health Prem & Reserve Risk'!$AC$123)) -> 0.14
B142: 18 | F142: 1 | Q142: 0 | Z142: =MAX(0%,IF(Q142<>0,MIN((S142-Q142)/Q142/'NSLT Health Risk'!$E$28,'Health Prem & Reserve Risk'!$Z$123),'Health Prem & Reserve Risk'!$Z$123)) -> 0.085 | AC142: =MAX(0%,IF(U142<>0,MIN((W142-U142)/U142/'NSLT Health Risk'!$E$28,'Health Prem & Reserve Risk'!$AC$123),'Health Prem & Reserve Risk'!$AC$123)) -> 0.14
B143: 19 | F143: 1 | Q143: 0 | Z143: =MAX(0%,IF(Q143<>0,MIN((S143-Q143)/Q143/'NSLT Health Risk'!$E$28,'Health Prem & Reserve Risk'!$Z$123),'Health Prem & Reserve Risk'!$Z$123)) -> 0.085 | AC143: =MAX(0%,IF(U143<>0,MIN((W143-U143)/U143/'NSLT Health Risk'!$E$28,'Health Prem & Reserve Risk'!$AC$123),'Health Prem & Reserve Risk'!$AC$123)) -> 0.14
B144: 20 | F144: 1 | Q144: 0 | Z144: =MAX(0%,IF(Q144<>0,MIN((S144-Q144)/Q144/'NSLT Health Risk'!$E$28,'Health Prem & Reserve Risk'!$Z$123),'Health Prem & Reserve Risk'!$Z$123)) -> 0.085 | AC144: =MAX(0%,IF(U144<>0,MIN((W144-U144)/U144/'NSLT Health Risk'!$E$28,'Health Prem & Reserve Risk'!$AC$123),'Health Prem & Reserve Risk'!$AC$123)) -> 0.14
B145: 21 | F145: 1 | Q145: 0 | Z145: =MAX(0%,IF(Q145<>0,MIN((S145-Q145)/Q145/'NSLT Health Risk'!$E$28,'Health Prem & Reserve Risk'!$Z$123),'Health Prem & Reserve Risk'!$Z$123)) -> 0.085 | AC145: =MAX(0%,IF(U145<>0,MIN((W145-U145)/U145/'NSLT Health Risk'!$E$28,'Health Prem & Reserve Risk'!$AC$123),'Health Prem & Reserve Risk'!$AC$123)) -> 0.14
B146: 22 | F146: 1 | Q146: 0 | Z146: =MAX(0%,IF(Q146<>0,MIN((S146-Q146)/Q146/'NSLT Health Risk'!$E$28,'Health Prem & Reserve Risk'!$Z$123),'Health Prem & Reserve Risk'!$Z$123)) -> 0.085 | AC146: =MAX(0%,IF(U146<>0,MIN((W146-U146)/U146/'NSLT Health Risk'!$E$28,'Health Prem & Reserve Risk'!$AC$123),'Health Prem & Reserve Risk'!$AC$123)) -> 0.14
B147: 23 | F147: 1 | Q147: 0 | Z147: =MAX(0%,IF(Q147<>0,MIN((S147-Q147)/Q147/'NSLT Health Risk'!$E$28,'Health Prem & Reserve Risk'!$Z$123),'Health Prem & Reserve Risk'!$Z$123)) -> 0.085 | AC147: =MAX(0%,IF(U147<>0,MIN((W147-U147)/U147/'NSLT Health Risk'!$E$28,'Health Prem & Reserve Risk'!$AC$123),'Health Prem & Reserve Risk'!$AC$123)) -> 0.14
B148: 24 | F148: 1 | Q148: 0 | Z148: =MAX(0%,IF(Q148<>0,MIN((S148-Q148)/Q148/'NSLT Health Risk'!$E$28,'Health Prem & Reserve Risk'!$Z$123),'Health Prem & Reserve Risk'!$Z$123)) -> 0.085 | AC148: =MAX(0%,IF(U148<>0,MIN((W148-U148)/U148/'NSLT Health Risk'!$E$28,'Health Prem & Reserve Risk'!$AC$123),'Health Prem & Reserve Risk'!$AC$123)) -> 0.14
B149: 25 | F149: 1 | Q149: 0 | Z149: =MAX(0%,IF(Q149<>0,MIN((S149-Q149)/Q149/'NSLT Health Risk'!$E$28,'Health Prem & Reserve Risk'!$Z$123),'Health Prem & Reserve Risk'!$Z$123)) -> 0.085 | AC149: =MAX(0%,IF(U149<>0,MIN((W149-U149)/U149/'NSLT Health Risk'!$E$28,'Health Prem & Reserve Risk'!$AC$123),'Health Prem & Reserve Risk'!$AC$123)) -> 0.14
B150: 26 | F150: 1 | Q150: 0 | Z150: =MAX(0%,IF(Q150<>0,MIN((S150-Q150)/Q150/'NSLT Health Risk'!$E$28,'Health Prem & Reserve Risk'!$Z$123),'Health Prem & Reserve Risk'!$Z$123)) -> 0.085 | AC150: =MAX(0%,IF(U150<>0,MIN((W150-U150)/U150/'NSLT Health Risk'!$E$28,'Health Prem & Reserve Risk'!$AC$123),'Health Prem & Reserve Risk'!$AC$123)) -> 0.14
B151: 27 | F151: 1 | Q151: 0 | Z151: =MAX(0%,IF(Q151<>0,MIN((S151-Q151)/Q151/'NSLT Health Risk'!$E$28,'Health Prem & Reserve Risk'!$Z$123),'Health Prem & Reserve Risk'!$Z$123)) -> 0.085 | AC151: =MAX(0%,IF(U151<>0,MIN((W151-U151)/U151/'NSLT Health Risk'!$E$28,'Health Prem & Reserve Risk'!$AC$123),'Health Prem & Reserve Risk'!$AC$123)) -> 0.14
B152: 28 | F152: 1 | Q152: 0 | Z152: =MAX(0%,IF(Q152<>0,MIN((S152-Q152)/Q152/'NSLT Health Risk'!$E$28,'Health Prem & Reserve Risk'!$Z$123),'Health Prem & Reserve Risk'!$Z$123)) -> 0.085 | AC152: =MAX(0%,IF(U152<>0,MIN((W152-U152)/U152/'NSLT Health Risk'!$E$28,'Health Prem & Reserve Risk'!$AC$123),'Health Prem & Reserve Risk'!$AC$123)) -> 0.14
B153: 29 | F153: 1 | Q153: 0 | Z153: =MAX(0%,IF(Q153<>0,MIN((S153-Q153)/Q153/'NSLT Health Risk'!$E$28,'Health Prem & Reserve Risk'!$Z$123),'Health Prem & Reserve Risk'!$Z$123)) -> 0.085 | AC153: =MAX(0%,IF(U153<>0,MIN((W153-U153)/U153/'NSLT Health Risk'!$E$28,'Health Prem & Reserve Risk'!$AC$123),'Health Prem & Reserve Risk'!$AC$123)) -> 0.14
B154: 30 | F154: 1 | Q154: 0 | Z154: =MAX(0%,IF(Q154<>0,MIN((S154-Q154)/Q154/'NSLT Health Risk'!$E$28,'Health Prem & Reserve Risk'!$Z$123),'Health Prem & Reserve Risk'!$Z$123)) -> 0.085 | AC154: =MAX(0%,IF(U154<>0,MIN((W154-U154)/U154/'NSLT Health Risk'!$E$28,'Health Prem & Reserve Risk'!$AC$123),'Health Prem & Reserve Risk'!$AC$123)) -> 0.14
B155: 31 | F155: 1 | Q155: 0 | Z155: =MAX(0%,IF(Q155<>0,MIN((S155-Q155)/Q155/'NSLT Health Risk'!$E$28,'Health Prem & Reserve Risk'!$Z$123),'Health Prem & Reserve Risk'!$Z$123)) -> 0.085 | AC155: =MAX(0%,IF(U155<>0,MIN((W155-U155)/U155/'NSLT Health Risk'!$E$28,'Health Prem & Reserve Risk'!$AC$123),'Health Prem & Reserve Risk'!$AC$123)) -> 0.14
B156: 32 | F156: 1 | Q156: 0 | Z156: =MAX(0%,IF(Q156<>0,MIN((S156-Q156)/Q156/'NSLT Health Risk'!$E$28,'Health Prem & Reserve Risk'!$Z$123),'Health Prem & Reserve Risk'!$Z$123)) -> 0.085 | AC156: =MAX(0%,IF(U156<>0,MIN((W156-U156)/U156/'NSLT Health Risk'!$E$28,'Health Prem & Reserve Risk'!$AC$123),'Health Prem & Reserve Risk'!$AC$123)) -> 0.14
B157: 33 | F157: 1 | Q157: 0 | Z157: =MAX(0%,IF(Q157<>0,MIN((S157-Q157)/Q157/'NSLT Health Risk'!$E$28,'Health Prem & Reserve Risk'!$Z$123),'Health Prem & Reserve Risk'!$Z$123)) -> 0.085 | AC157: =MAX(0%,IF(U157<>0,MIN((W157-U157)/U157/'NSLT Health Risk'!$E$28,'Health Prem & Reserve Risk'!$AC$123),'Health Prem & Reserve Risk'!$AC$123)) -> 0.14
B158: 34 | F158: 1 | Q158: 0 | Z158: =MAX(0%,IF(Q158<>0,MIN((S158-Q158)/Q158/'NSLT Health Risk'!$E$28,'Health Prem & Reserve Risk'!$Z$123),'Health Prem & Reserve Risk'!$Z$123)) -> 0.085 | AC158: =MAX(0%,IF(U158<>0,MIN((W158-U158)/U158/'NSLT Health Risk'!$E$28,'Health Prem & Reserve Risk'!$AC$123),'Health Prem & Reserve Risk'!$AC$123)) -> 0.14
B159: 35 | F159: 1 | Q159: 0 | Z159: =MAX(0%,IF(Q159<>0,MIN((S159-Q159)/Q159/'NSLT Health Risk'!$E$28,'Health Prem & Reserve Risk'!$Z$123),'Health Prem & Reserve Risk'!$Z$123)) -> 0.085 | AC159: =MAX(0%,IF(U159<>0,MIN((W159-U159)/U159/'NSLT Health Risk'!$E$28,'Health Prem & Reserve Risk'!$AC$123),'Health Prem & Reserve Risk'!$AC$123)) -> 0.14
B160: 36 | F160: 1 | Q160: 0 | Z160: =MAX(0%,IF(Q160<>0,MIN((S160-Q160)/Q160/'NSLT Health Risk'!$E$28,'Health Prem & Reserve Risk'!$Z$123),'Health Prem & Reserve Risk'!$Z$123)) -> 0.085 | AC160: =MAX(0%,IF(U160<>0,MIN((W160-U160)/U160/'NSLT Health Risk'!$E$28,'Health Prem & Reserve Risk'!$AC$123),'Health Prem & Reserve Risk'!$AC$123)) -> 0.14
B161: 37 | F161: 1 | Q161: 0 | Z161: =MAX(0%,IF(Q161<>0,MIN((S161-Q161)/Q161/'NSLT Health Risk'!$E$28,'Health Prem & Reserve Risk'!$Z$123),'Health Prem & Reserve Risk'!$Z$123)) -> 0.085 | AC161: =MAX(0%,IF(U161<>0,MIN((W161-U161)/U161/'NSLT Health Risk'!$E$28,'Health Prem & Reserve Risk'!$AC$123),'Health Prem & Reserve Risk'!$AC$123)) -> 0.14
B162: 38 | F162: 1 | Q162: 0 | Z162: =MAX(0%,IF(Q162<>0,MIN((S162-Q162)/Q162/'NSLT Health Risk'!$E$28,'Health Prem & Reserve Risk'!$Z$123),'Health Prem & Reserve Risk'!$Z$123)) -> 0.085 | AC162: =MAX(0%,IF(U162<>0,MIN((W162-U162)/U162/'NSLT Health Risk'!$E$28,'Health Prem & Reserve Risk'!$AC$123),'Health Prem & Reserve Risk'!$AC$123)) -> 0.14
B163: 39 | F163: 1 | Q163: 0 | Z163: =MAX(0%,IF(Q163<>0,MIN((S163-Q163)/Q163/'NSLT Health Risk'!$E$28,'Health Prem & Reserve Risk'!$Z$123),'Health Prem & Reserve Risk'!$Z$123)) -> 0.085 | AC163: =MAX(0%,IF(U163<>0,MIN((W163-U163)/U163/'NSLT Health Risk'!$E$28,'Health Prem & Reserve Risk'!$AC$123),'Health Prem & Reserve Risk'!$AC$123)) -> 0.14
B164: 40 | F164: 1 | Q164: 0 | Z164: =MAX(0%,IF(Q164<>0,MIN((S164-Q164)/Q164/'NSLT Health Risk'!$E$28,'Health Prem & Reserve Risk'!$Z$123),'Health Prem & Reserve Risk'!$Z$123)) -> 0.085 | AC164: =MAX(0%,IF(U164<>0,MIN((W164-U164)/U164/'NSLT Health Risk'!$E$28,'Health Prem & Reserve Risk'!$AC$123),'Health Prem & Reserve Risk'!$AC$123)) -> 0.14
B165: 41 | F165: 1 | Q165: 0 | Z165: =MAX(0%,IF(Q165<>0,MIN((S165-Q165)/Q165/'NSLT Health Risk'!$E$28,'Health Prem & Reserve Risk'!$Z$123),'Health Prem & Reserve Risk'!$Z$123)) -> 0.085 | AC165: =MAX(0%,IF(U165<>0,MIN((W165-U165)/U165/'NSLT Health Risk'!$E$28,'Health Prem & Reserve Risk'!$AC$123),'Health Prem & Reserve Risk'!$AC$123)) -> 0.14
B166: 42 | F166: 1 | Q166: 0 | Z166: =MAX(0%,IF(Q166<>0,MIN((S166-Q166)/Q166/'NSLT Health Risk'!$E$28,'Health Prem & Reserve Risk'!$Z$123),'Health Prem & Reserve Risk'!$Z$123)) -> 0.085 | AC166: =MAX(0%,IF(U166<>0,MIN((W166-U166)/U166/'NSLT Health Risk'!$E$28,'Health Prem & Reserve Risk'!$AC$123),'Health Prem & Reserve Risk'!$AC$123)) -> 0.14
B167: 43 | F167: 1 | Q167: 0 | Z167: =MAX(0%,IF(Q167<>0,MIN((S167-Q167)/Q167/'NSLT Health Risk'!$E$28,'Health Prem & Reserve Risk'!$Z$123),'Health Prem & Reserve Risk'!$Z$123)) -> 0.085 | AC167: =MAX(0%,IF(U167<>0,MIN((W167-U167)/U167/'NSLT Health Risk'!$E$28,'Health Prem & Reserve Risk'!$AC$123),'Health Prem & Reserve Risk'!$AC$123)) -> 0.14
B168: 44 | F168: 1 | Q168: 0 | Z168: =MAX(0%,IF(Q168<>0,MIN((S168-Q168)/Q168/'NSLT Health Risk'!$E$28,'Health Prem & Reserve Risk'!$Z$123),'Health Prem & Reserve Risk'!$Z$123)) -> 0.085 | AC168: =MAX(0%,IF(U168<>0,MIN((W168-U168)/U168/'NSLT Health Risk'!$E$28,'Health Prem & Reserve Risk'!$AC$123),'Health Prem & Reserve Risk'!$AC$123)) -> 0.14
B169: 45 | F169: 1 | Q169: 0 | Z169: =MAX(0%,IF(Q169<>0,MIN((S169-Q169)/Q169/'NSLT Health Risk'!$E$28,'Health Prem & Reserve Risk'!$Z$123),'Health Prem & Reserve Risk'!$Z$123)) -> 0.085 | AC169: =MAX(0%,IF(U169<>0,MIN((W169-U169)/U169/'NSLT Health Risk'!$E$28,'Health Prem & Reserve Risk'!$AC$123),'Health Prem & Reserve Risk'!$AC$123)) -> 0.14
B170: 46 | F170: 1 | Q170: 0 | Z170: =MAX(0%,IF(Q170<>0,MIN((S170-Q170)/Q170/'NSLT Health Risk'!$E$28,'Health Prem & Reserve Risk'!$Z$123),'Health Prem & Reserve Risk'!$Z$123)) -> 0.085 | AC170: =MAX(0%,IF(U170<>0,MIN((W170-U170)/U170/'NSLT Health Risk'!$E$28,'Health Prem & Reserve Risk'!$AC$123),'Health Prem & Reserve Risk'!$AC$123)) -> 0.14
B171: 47 | F171: 1 | Q171: 0 | Z171: =MAX(0%,IF(Q171<>0,MIN((S171-Q171)/Q171/'NSLT Health Risk'!$E$28,'Health Prem & Reserve Risk'!$Z$123),'Health Prem & Reserve Risk'!$Z$123)) -> 0.085 | AC171: =MAX(0%,IF(U171<>0,MIN((W171-U171)/U171/'NSLT Health Risk'!$E$28,'Health Prem & Reserve Risk'!$AC$123),'Health Prem & Reserve Risk'!$AC$123)) -> 0.14
B172: 48 | F172: 1 | Q172: 0 | Z172: =MAX(0%,IF(Q172<>0,MIN((S172-Q172)/Q172/'NSLT Health Risk'!$E$28,'Health Prem & Reserve Risk'!$Z$123),'Health Prem & Reserve Risk'!$Z$123)) -> 0.085 | AC172: =MAX(0%,IF(U172<>0,MIN((W172-U172)/U172/'NSLT Health Risk'!$E$28,'Health Prem & Reserve Risk'!$AC$123),'Health Prem & Reserve Risk'!$AC$123)) -> 0.14
B173: 49 | F173: 1 | Q173: 0 | Z173: =MAX(0%,IF(Q173<>0,MIN((S173-Q173)/Q173/'NSLT Health Risk'!$E$28,'Health Prem & Reserve Risk'!$Z$123),'Health Prem & Reserve Risk'!$Z$123)) -> 0.085 | AC173: =MAX(0%,IF(U173<>0,MIN((W173-U173)/U173/'NSLT Health Risk'!$E$28,'Health Prem & Reserve Risk'!$AC$123),'Health Prem & Reserve Risk'!$AC$123)) -> 0.14
B174: 50 | F174: 1 | Q174: 0 | Z174: =MAX(0%,IF(Q174<>0,MIN((S174-Q174)/Q174/'NSLT Health Risk'!$E$28,'Health Prem & Reserve Risk'!$Z$123),'Health Prem & Reserve Risk'!$Z$123)) -> 0.085 | AC174: =MAX(0%,IF(U174<>0,MIN((W174-U174)/U174/'NSLT Health Risk'!$E$28,'Health Prem & Reserve Risk'!$AC$123),'Health Prem & Reserve Risk'!$AC$123)) -> 0.14
B175: 51 | F175: 1 | Q175: 0 | Z175: =MAX(0%,IF(Q175<>0,MIN((S175-Q175)/Q175/'NSLT Health Risk'!$E$28,'Health Prem & Reserve Risk'!$Z$123),'Health Prem & Reserve Risk'!$Z$123)) -> 0.085 | AC175: =MAX(0%,IF(U175<>0,MIN((W175-U175)/U175/'NSLT Health Risk'!$E$28,'Health Prem & Reserve Risk'!$AC$123),'Health Prem & Reserve Risk'!$AC$123)) -> 0.14
B176: 52 | F176: 1 | Q176: 0 | Z176: =MAX(0%,IF(Q176<>0,MIN((S176-Q176)/Q176/'NSLT Health Risk'!$E$28,'Health Prem & Reserve Risk'!$Z$123),'Health Prem & Reserve Risk'!$Z$123)) -> 0.085 | AC176: =MAX(0%,IF(U176<>0,MIN((W176-U176)/U176/'NSLT Health Risk'!$E$28,'Health Prem & Reserve Risk'!$AC$123),'Health Prem & Reserve Risk'!$AC$123)) -> 0.14
B177: 53 | F177: 1 | Q177: 0 | Z177: =MAX(0%,IF(Q177<>0,MIN((S177-Q177)/Q177/'NSLT Health Risk'!$E$28,'Health Prem & Reserve Risk'!$Z$123),'Health Prem & Reserve Risk'!$Z$123)) -> 0.085 | AC177: =MAX(0%,IF(U177<>0,MIN((W177-U177)/U177/'NSLT Health Risk'!$E$28,'Health Prem & Reserve Risk'!$AC$123),'Health Prem & Reserve Risk'!$AC$123)) -> 0.14
B178: 54 | F178: 1 | Q178: 0 | Z178: =MAX(0%,IF(Q178<>0,MIN((S178-Q178)/Q178/'NSLT Health Risk'!$E$28,'Health Prem & Reserve Risk'!$Z$123),'Health Prem & Reserve Risk'!$Z$123)) -> 0.085 | AC178: =MAX(0%,IF(U178<>0,MIN((W178-U178)/U178/'NSLT Health Risk'!$E$28,'Health Prem & Reserve Risk'!$AC$123),'Health Prem & Reserve Risk'!$AC$123)) -> 0.14
B179: 55 | F179: 1 | Q179: 0 | Z179: =MAX(0%,IF(Q179<>0,MIN((S179-Q179)/Q179/'NSLT Health Risk'!$E$28,'Health Prem & Reserve Risk'!$Z$123),'Health Prem & Reserve Risk'!$Z$123)) -> 0.085 | AC179: =MAX(0%,IF(U179<>0,MIN((W179-U179)/U179/'NSLT Health Risk'!$E$28,'Health Prem & Reserve Risk'!$AC$123),'Health Prem & Reserve Risk'!$AC$123)) -> 0.14
B180: 56 | F180: 1 | Q180: 0 | Z180: =MAX(0%,IF(Q180<>0,MIN((S180-Q180)/Q180/'NSLT Health Risk'!$E$28,'Health Prem & Reserve Risk'!$Z$123),'Health Prem & Reserve Risk'!$Z$123)) -> 0.085 | AC180: =MAX(0%,IF(U180<>0,MIN((W180-U180)/U180/'NSLT Health Risk'!$E$28,'Health Prem & Reserve Risk'!$AC$123),'Health Prem & Reserve Risk'!$AC$123)) -> 0.14
B181: 57 | F181: 1 | Q181: 0 | Z181: =MAX(0%,IF(Q181<>0,MIN((S181-Q181)/Q181/'NSLT Health Risk'!$E$28,'Health Prem & Reserve Risk'!$Z$123),'Health Prem & Reserve Risk'!$Z$123)) -> 0.085 | AC181: =MAX(0%,IF(U181<>0,MIN((W181-U181)/U181/'NSLT Health Risk'!$E$28,'Health Prem & Reserve Risk'!$AC$123),'Health Prem & Reserve Risk'!$AC$123)) -> 0.14
B182: 58 | F182: 1 | Q182: 0 | Z182: =MAX(0%,IF(Q182<>0,MIN((S182-Q182)/Q182/'NSLT Health Risk'!$E$28,'Health Prem & Reserve Risk'!$Z$123),'Health Prem & Reserve Risk'!$Z$123)) -> 0.085 | AC182: =MAX(0%,IF(U182<>0,MIN((W182-U182)/U182/'NSLT Health Risk'!$E$28,'Health Prem & Reserve Risk'!$AC$123),'Health Prem & Reserve Risk'!$AC$123)) -> 0.14
B183: 59 | F183: 1 | Q183: 0 | Z183: =MAX(0%,IF(Q183<>0,MIN((S183-Q183)/Q183/'NSLT Health Risk'!$E$28,'Health Prem & Reserve Risk'!$Z$123),'Health Prem & Reserve Risk'!$Z$123)) -> 0.085 | AC183: =MAX(0%,IF(U183<>0,MIN((W183-U183)/U183/'NSLT Health Risk'!$E$28,'Health Prem & Reserve Risk'!$AC$123),'Health Prem & Reserve Risk'!$AC$123)) -> 0.14
B184: 60 | F184: 1 | Q184: 0 | Z184: =MAX(0%,IF(Q184<>0,MIN((S184-Q184)/Q184/'NSLT Health Risk'!$E$28,'Health Prem & Reserve Risk'!$Z$123),'Health Prem & Reserve Risk'!$Z$123)) -> 0.085 | AC184: =MAX(0%,IF(U184<>0,MIN((W184-U184)/U184/'NSLT Health Risk'!$E$28,'Health Prem & Reserve Risk'!$AC$123),'Health Prem & Reserve Risk'!$AC$123)) -> 0.14
B185: 61 | F185: 1 | Q185: 0 | Z185: =MAX(0%,IF(Q185<>0,MIN((S185-Q185)/Q185/'NSLT Health Risk'!$E$28,'Health Prem & Reserve Risk'!$Z$123),'Health Prem & Reserve Risk'!$Z$123)) -> 0.085 | AC185: =MAX(0%,IF(U185<>0,MIN((W185-U185)/U185/'NSLT Health Risk'!$E$28,'Health Prem & Reserve Risk'!$AC$123),'Health Prem & Reserve Risk'!$AC$123)) -> 0.14
B186: 62 | F186: 1 | Q186: 0 | Z186: =MAX(0%,IF(Q186<>0,MIN((S186-Q186)/Q186/'NSLT Health Risk'!$E$28,'Health Prem & Reserve Risk'!$Z$123),'Health Prem & Reserve Risk'!$Z$123)) -> 0.085 | AC186: =MAX(0%,IF(U186<>0,MIN((W186-U186)/U186/'NSLT Health Risk'!$E$28,'Health Prem & Reserve Risk'!$AC$123),'Health Prem & Reserve Risk'!$AC$123)) -> 0.14
B187: 63 | F187: 1 | Q187: 0 | Z187: =MAX(0%,IF(Q187<>0,MIN((S187-Q187)/Q187/'NSLT Health Risk'!$E$28,'Health Prem & Reserve Risk'!$Z$123),'Health Prem & Reserve Risk'!$Z$123)) -> 0.085 | AC187: =MAX(0%,IF(U187<>0,MIN((W187-U187)/U187/'NSLT Health Risk'!$E$28,'Health Prem & Reserve Risk'!$AC$123),'Health Prem & Reserve Risk'!$AC$123)) -> 0.14
B188: 64 | F188: 1 | Q188: 0 | Z188: =MAX(0%,IF(Q188<>0,MIN((S188-Q188)/Q188/'NSLT Health Risk'!$E$28,'Health Prem & Reserve Risk'!$Z$123),'Health Prem & Reserve Risk'!$Z$123)) -> 0.085 | AC188: =MAX(0%,IF(U188<>0,MIN((W188-U188)/U188/'NSLT Health Risk'!$E$28,'Health Prem & Reserve Risk'!$AC$123),'Health Prem & Reserve Risk'!$AC$123)) -> 0.14
B189: 65 | F189: 1 | Q189: 0 | Z189: =MAX(0%,IF(Q189<>0,MIN((S189-Q189)/Q189/'NSLT Health Risk'!$E$28,'Health Prem & Reserve Risk'!$Z$123),'Health Prem & Reserve Risk'!$Z$123)) -> 0.085 | AC189: =MAX(0%,IF(U189<>0,MIN((W189-U189)/U189/'NSLT Health Risk'!$E$28,'Health Prem & Reserve Risk'!$AC$123),'Health Prem & Reserve Risk'!$AC$123)) -> 0.14
B190: 66 | F190: =IF(B190<=OFFSET($Z$8,B$122-1,0),0,1) -> 1 | Q190: 0 | Z190: =MAX(0%,IF(Q190<>0,MIN((S190-Q190)/Q190/'NSLT Health Risk'!$E$28,'Health Prem & Reserve Risk'!$Z$123),'Health Prem & Reserve Risk'!$Z$123)) -> 0.085 | AC190: =MAX(0%,IF(U190<>0,MIN((W190-U190)/U190/'NSLT Health Risk'!$E$28,'Health Prem & Reserve Risk'!$AC$123),'Health Prem & Reserve Risk'!$AC$123)) -> 0.14
B191: 67 | F191: 1 | Q191: 0 | Z191: =MAX(0%,IF(Q191<>0,MIN((S191-Q191)/Q191/'NSLT Health Risk'!$E$28,'Health Prem & Reserve Risk'!$Z$123),'Health Prem & Reserve Risk'!$Z$123)) -> 0.085 | AC191: =MAX(0%,IF(U191<>0,MIN((W191-U191)/U191/'NSLT Health Risk'!$E$28,'Health Prem & Reserve Risk'!$AC$123),'Health Prem & Reserve Risk'!$AC$123)) -> 0.14
B192: 68 | F192: 1 | Q192: 0 | Z192: =MAX(0%,IF(Q192<>0,MIN((S192-Q192)/Q192/'NSLT Health Risk'!$E$28,'Health Prem & Reserve Risk'!$Z$123),'Health Prem & Reserve Risk'!$Z$123)) -> 0.085 | AC192: =MAX(0%,IF(U192<>0,MIN((W192-U192)/U192/'NSLT Health Risk'!$E$28,'Health Prem & Reserve Risk'!$AC$123),'Health Prem & Reserve Risk'!$AC$123)) -> 0.14
B193: 69 | F193: 1 | Q193: 0 | Z193: =MAX(0%,IF(Q193<>0,MIN((S193-Q193)/Q193/'NSLT Health Risk'!$E$28,'Health Prem & Reserve Risk'!$Z$123),'Health Prem & Reserve Risk'!$Z$123)) -> 0.085 | AC193: =MAX(0%,IF(U193<>0,MIN((W193-U193)/U193/'NSLT Health Risk'!$E$28,'Health Prem & Reserve Risk'!$AC$123),'Health Prem & Reserve Risk'!$AC$123)) -> 0.14
B194: 70 | F194: 1 | Q194: 0 | Z194: =MAX(0%,IF(Q194<>0,MIN((S194-Q194)/Q194/'NSLT Health Risk'!$E$28,'Health Prem & Reserve Risk'!$Z$123),'Health Prem & Reserve Risk'!$Z$123)) -> 0.085 | AC194: =MAX(0%,IF(U194<>0,MIN((W194-U194)/U194/'NSLT Health Risk'!$E$28,'Health Prem & Reserve Risk'!$AC$123),'Health Prem & Reserve Risk'!$AC$123)) -> 0.14
B195: 71 | F195: 1 | Q195: 0 | Z195: =MAX(0%,IF(Q195<>0,MIN((S195-Q195)/Q195/'NSLT Health Risk'!$E$28,'Health Prem & Reserve Risk'!$Z$123),'Health Prem & Reserve Risk'!$Z$123)) -> 0.085 | AC195: =MAX(0%,IF(U195<>0,MIN((W195-U195)/U195/'NSLT Health Risk'!$E$28,'Health Prem & Reserve Risk'!$AC$123),'Health Prem & Reserve Risk'!$AC$123)) -> 0.14
B196: 72 | F196: 1 | Q196: 0 | Z196: =MAX(0%,IF(Q196<>0,MIN((S196-Q196)/Q196/'NSLT Health Risk'!$E$28,'Health Prem & Reserve Risk'!$Z$123),'Health Prem & Reserve Risk'!$Z$123)) -> 0.085 | AC196: =MAX(0%,IF(U196<>0,MIN((W196-U196)/U196/'NSLT Health Risk'!$E$28,'Health Prem & Reserve Risk'!$AC$123),'Health Prem & Reserve Risk'!$AC$123)) -> 0.14
B197: 73 | F197: 1 | Q197: 0 | Z197: =MAX(0%,IF(Q197<>0,MIN((S197-Q197)/Q197/'NSLT Health Risk'!$E$28,'Health Prem & Reserve Risk'!$Z$123),'Health Prem & Reserve Risk'!$Z$123)) -> 0.085 | AC197: =MAX(0%,IF(U197<>0,MIN((W197-U197)/U197/'NSLT Health Risk'!$E$28,'Health Prem & Reserve Risk'!$AC$123),'Health Prem & Reserve Risk'!$AC$123)) -> 0.14
B198: 74 | F198: 1 | Q198: 0 | Z198: =MAX(0%,IF(Q198<>0,MIN((S198-Q198)/Q198/'NSLT Health Risk'!$E$28,'Health Prem & Reserve Risk'!$Z$123),'Health Prem & Reserve Risk'!$Z$123)) -> 0.085 | AC198: =MAX(0%,IF(U198<>0,MIN((W198-U198)/U198/'NSLT Health Risk'!$E$28,'Health Prem & Reserve Risk'!$AC$123),'Health Prem & Reserve Risk'!$AC$123)) -> 0.14
B199: 75 | F199: 1 | Q199: 0 | Z199: =MAX(0%,IF(Q199<>0,MIN((S199-Q199)/Q199/'NSLT Health Risk'!$E$28,'Health Prem & Reserve Risk'!$Z$123),'Health Prem & Reserve Risk'!$Z$123)) -> 0.085 | AC199: =MAX(0%,IF(U199<>0,MIN((W199-U199)/U199/'NSLT Health Risk'!$E$28,'Health Prem & Reserve Risk'!$AC$123),'Health Prem & Reserve Risk'!$AC$123)) -> 0.14
B200: 76 | F200: 1 | Q200: 0 | Z200: =MAX(0%,IF(Q200<>0,MIN((S200-Q200)/Q200/'NSLT Health Risk'!$E$28,'Health Prem & Reserve Risk'!$Z$123),'Health Prem & Reserve Risk'!$Z$123)) -> 0.085 | AC200: =MAX(0%,IF(U200<>0,MIN((W200-U200)/U200/'NSLT Health Risk'!$E$28,'Health Prem & Reserve Risk'!$AC$123),'Health Prem & Reserve Risk'!$AC$123)) -> 0.14
B201: 77 | F201: 1 | Q201: 0 | Z201: =MAX(0%,IF(Q201<>0,MIN((S201-Q201)/Q201/'NSLT Health Risk'!$E$28,'Health Prem & Reserve Risk'!$Z$123),'Health Prem & Reserve Risk'!$Z$123)) -> 0.085 | AC201: =MAX(0%,IF(U201<>0,MIN((W201-U201)/U201/'NSLT Health Risk'!$E$28,'Health Prem & Reserve Risk'!$AC$123),'Health Prem & Reserve Risk'!$AC$123)) -> 0.14
B202: 78 | F202: 1 | Q202: 0 | Z202: =MAX(0%,IF(Q202<>0,MIN((S202-Q202)/Q202/'NSLT Health Risk'!$E$28,'Health Prem & Reserve Risk'!$Z$123),'Health Prem & Reserve Risk'!$Z$123)) -> 0.085 | AC202: =MAX(0%,IF(U202<>0,MIN((W202-U202)/U202/'NSLT Health Risk'!$E$28,'Health Prem & Reserve Risk'!$AC$123),'Health Prem & Reserve Risk'!$AC$123)) -> 0.14
B203: 79 | F203: 1 | Q203: 0 | Z203: =MAX(0%,IF(Q203<>0,MIN((S203-Q203)/Q203/'NSLT Health Risk'!$E$28,'Health Prem & Reserve Risk'!$Z$123),'Health Prem & Reserve Risk'!$Z$123)) -> 0.085 | AC203: =MAX(0%,IF(U203<>0,MIN((W203-U203)/U203/'NSLT Health Risk'!$E$28,'Health Prem & Reserve Risk'!$AC$123),'Health Prem & Reserve Risk'!$AC$123)) -> 0.14
B204: 80 | F204: 1 | Q204: 0 | Z204: =MAX(0%,IF(Q204<>0,MIN((S204-Q204)/Q204/'NSLT Health Risk'!$E$28,'Health Prem & Reserve Risk'!$Z$123),'Health Prem & Reserve Risk'!$Z$123)) -> 0.085 | AC204: =MAX(0%,IF(U204<>0,MIN((W204-U204)/U204/'NSLT Health Risk'!$E$28,'Health Prem & Reserve Risk'!$AC$123),'Health Prem & Reserve Risk'!$AC$123)) -> 0.14
B205: 81 | F205: 1 | Q205: 0 | Z205: =MAX(0%,IF(Q205<>0,MIN((S205-Q205)/Q205/'NSLT Health Risk'!$E$28,'Health Prem & Reserve Risk'!$Z$123),'Health Prem & Reserve Risk'!$Z$123)) -> 0.085 | AC205: =MAX(0%,IF(U205<>0,MIN((W205-U205)/U205/'NSLT Health Risk'!$E$28,'Health Prem & Reserve Risk'!$AC$123),'Health Prem & Reserve Risk'!$AC$123)) -> 0.14
B206: 82 | F206: 1 | Q206: 0 | Z206: =MAX(0%,IF(Q206<>0,MIN((S206-Q206)/Q206/'NSLT Health Risk'!$E$28,'Health Prem & Reserve Risk'!$Z$123),'Health Prem & Reserve Risk'!$Z$123)) -> 0.085 | AC206: =MAX(0%,IF(U206<>0,MIN((W206-U206)/U206/'NSLT Health Risk'!$E$28,'Health Prem & Reserve Risk'!$AC$123),'Health Prem & Reserve Risk'!$AC$123)) -> 0.14
B207: 83 | F207: 1 | Q207: 0 | Z207: =MAX(0%,IF(Q207<>0,MIN((S207-Q207)/Q207/'NSLT Health Risk'!$E$28,'Health Prem & Reserve Risk'!$Z$123),'Health Prem & Reserve Risk'!$Z$123)) -> 0.085 | AC207: =MAX(0%,IF(U207<>0,MIN((W207-U207)/U207/'NSLT Health Risk'!$E$28,'Health Prem & Reserve Risk'!$AC$123),'Health Prem & Reserve Risk'!$AC$123)) -> 0.14
B208: 84 | F208: 1 | Q208: 0 | Z208: =MAX(0%,IF(Q208<>0,MIN((S208-Q208)/Q208/'NSLT Health Risk'!$E$28,'Health Prem & Reserve Risk'!$Z$123),'Health Prem & Reserve Risk'!$Z$123)) -> 0.085 | AC208: =MAX(0%,IF(U208<>0,MIN((W208-U208)/U208/'NSLT Health Risk'!$E$28,'Health Prem & Reserve Risk'!$AC$123),'Health Prem & Reserve Risk'!$AC$123)) -> 0.14
... 225 more rows

Sheet Health Geo Diversification
A1: Health Geo Diversification
B3: If no data is inputted here for a line of business, no benefit from geographical diversification will be applied.
B5: Premium and Reserve Risk
B7: Premium Volume Measure * | F7: Total | H7: 1 * | J7: 2 * | L7: 3 * | N7: 4 * | P7: 5 * | R7: 6 * | T7: 7 * | V7: 8 * | X7: 9 * | Z7: 10 * | AB7: 11 * | AD7: 12 * | AF7: 13 * | AH7: 14 * | AJ7: 15 * | AL7: 16 * | AN7: 17 * | AP7: 18 * | AR7: 19 *
B9: LOB 10, 22 | F9: =SUM(H9:AR9) -> 0 | H9: 0 | J9: 0 | L9: 0 | N9: 0 | P9: 0 | R9: 0 | T9: 0 | V9: 0 | X9: 0 | Z9: 0 | AB9: 0 | AD9: 0 | AF9: 0 | AH9: 0 | AJ9: 0 | AL9: 0 | AN9: 0 | AP9: 0 | AR9: 0
B10: LOB 11, 23 | F10: =SUM(H10:AR10) -> 0 | H10: 0 | J10: 0 | L10: 0 | N10: 0 | P10: 0 | R10: 0 | T10: 0 | V10: 0 | X10: 0 | Z10: 0 | AB10: 0 | AD10: 0 | AF10: 0 | AH10: 0 | AJ10: 0 | AL10: 0 | AN10: 0 | AP10: 0 | AR10: 0
B11: LOB 12, 24 | F11: =SUM(H11:AR11) -> 0 | H11: 0 | J11: 0 | L11: 0 | N11: 0 | P11: 0 | R11: 0 | T11: 0 | V11: 0 | X11: 0 | Z11: 0 | AB11: 0 | AD11: 0 | AF11: 0 | AH11: 0 | AJ11: 0 | AL11: 0 | AN11: 0 | AP11: 0 | AR11: 0
B12: LOB 28 | F12: =SUM(H12:AR12) -> 0 | H12: 0 | J12: 0 | L12: 0 | N12: 0 | P12: 0 | R12: 0 | T12: 0 | V12: 0 | X12: 0 | Z12: 0 | AB12: 0 | AD12: 0 | AF12: 0 | AH12: 0 | AJ12: 0 | AL12: 0 | AN12: 0 | AP12: 0 | AR12: 0
B14: Reserve Volume Measure * | F14: Total | H14: 1 * | J14: 2 * | L14: 3 * | N14: 4 * | P14: 5 * | R14: 6 * | T14: 7 * | V14: 8 * | X14: 9 * | Z14: 10 * | AB14: 11 * | AD14: 12 * | AF14: 13 * | AH14: 14 * | AJ14: 15 * | AL14: 16 * | AN14: 17 * | AP14: 18 * | AR14: 19 *
B16: LOB 10, 22 | F16: =SUM(H16:AR16) -> 0 | H16: 0 | J16: 0 | L16: 0 | N16: 0 | P16: 0 | R16: 0 | T16: 0 | V16: 0 | X16: 0 | Z16: 0 | AB16: 0 | AD16: 0 | AF16: 0 | AH16: 0 | AJ16: 0 | AL16: 0 | AN16: 0 | AP16: 0 | AR16: 0
B17: LOB 11, 23 | F17: =SUM(H17:AR17) -> 0 | H17: 0 | J17: 0 | L17: 0 | N17: 0 | P17: 0 | R17: 0 | T17: 0 | V17: 0 | X17: 0 | Z17: 0 | AB17: 0 | AD17: 0 | AF17: 0 | AH17: 0 | AJ17: 0 | AL17: 0 | AN17: 0 | AP17: 0 | AR17: 0
B18: LOB 12, 24 | F18: =SUM(H18:AR18) -> 0 | H18: 0 | J18: 0 | L18: 0 | N18: 0 | P18: 0 | R18: 0 | T18: 0 | V18: 0 | X18: 0 | Z18: 0 | AB18: 0 | AD18: 0 | AF18: 0 | AH18: 0 | AJ18: 0 | AL18: 0 | AN18: 0 | AP18: 0 | AR18: 0
B19: LOB 28 | F19: =SUM(H19:AR19) -> 0 | H19: 0 | J19: 0 | L19: 0 | N19: 0 | P19: 0 | R19: 0 | T19: 0 | V19: 0 | X19: 0 | Z19: 0 | AB19: 0 | AD19: 0 | AF19: 0 | AH19: 0 | AJ19: 0 | AL19: 0 | AN19: 0 | AP19: 0 | AR19: 0
B21: Geographical Diversification | H21: 1 * | J21: 2 * | L21: 3 * | N21: 4 * | P21: 5 * | R21: 6 * | T21: 7 * | V21: 8 * | X21: 9 * | Z21: 10 * | AB21: 11 * | AD21: 12 * | AF21: 13 * | AH21: 14 * | AJ21: 15 * | AL21: 16 * | AN21: 17 * | AP21: 18 * | AR21: 19 *
B23: LOB 10, 22 | D23: =IF(OR(F9+F16=0,SUM(H23:AR23)=0),1,SUM(H23:AR23)/((F9+F16)^2)) -> 1 | H23: =(H9+H16)^2 -> 0 | J23: =(J9+J16)^2 -> 0 | L23: =(L9+L16)^2 -> 0 | N23: =(N9+N16)^2 -> 0 | P23: =(P9+P16)^2 -> 0 | R23: =(R9+R16)^2 -> 0 | T23: =(T9+T16)^2 -> 0 | V23: =(V9+V16)^2 -> 0 | X23: =(X9+X16)^2 -> 0 | Z23: =(Z9+Z16)^2 -> 0 | AB23: =(AB9+AB16)^2 -> 0 | AD23: =(AD9+AD16)^2 -> 0 | AF23: =(AF9+AF16)^2 -> 0 | AH23: =(AH9+AH16)^2 -> 0 | AJ23: =(AJ9+AJ16)^2 -> 0 | AL23: =(AL9+AL16)^2 -> 0 | AN23: =(AN9+AN16)^2 -> 0 | AP23: =(AP9+AP16)^2 -> 0 | AR23: =(AR9+AR16)^2 -> 0
B24: LOB 11, 23 | D24: =IF(OR(F10+F17=0,SUM(H24:AR24)=0),1,SUM(H24:AR24)/((F10+F17)^2)) -> 1 | H24: =(H10+H17)^2 -> 0 | J24: =(J10+J17)^2 -> 0 | L24: =(L10+L17)^2 -> 0 | N24: =(N10+N17)^2 -> 0 | P24: =(P10+P17)^2 -> 0 | R24: =(R10+R17)^2 -> 0 | T24: =(T10+T17)^2 -> 0 | V24: =(V10+V17)^2 -> 0 | X24: =(X10+X17)^2 -> 0 | Z24: =(Z10+Z17)^2 -> 0 | AB24: =(AB10+AB17)^2 -> 0 | AD24: =(AD10+AD17)^2 -> 0 | AF24: =(AF10+AF17)^2 -> 0 | AH24: =(AH10+AH17)^2 -> 0 | AJ24: =(AJ10+AJ17)^2 -> 0 | AL24: =(AL10+AL17)^2 -> 0 | AN24: =(AN10+AN17)^2 -> 0 | AP24: =(AP10+AP17)^2 -> 0 | AR24: =(AR10+AR17)^2 -> 0
B25: LOB 12, 24 | D25: =IF(OR(F11+F18=0,SUM(H25:AR25)=0),1,SUM(H25:AR25)/((F11+F18)^2)) -> 1 | H25: =(H11+H18)^2 -> 0 | J25: =(J11+J18)^2 -> 0 | L25: =(L11+L18)^2 -> 0 | N25: =(N11+N18)^2 -> 0 | P25: =(P11+P18)^2 -> 0 | R25: =(R11+R18)^2 -> 0 | T25: =(T11+T18)^2 -> 0 | V25: =(V11+V18)^2 -> 0 | X25: =(X11+X18)^2 -> 0 | Z25: =(Z11+Z18)^2 -> 0 | AB25: =(AB11+AB18)^2 -> 0 | AD25: =(AD11+AD18)^2 -> 0 | AF25: =(AF11+AF18)^2 -> 0 | AH25: =(AH11+AH18)^2 -> 0 | AJ25: =(AJ11+AJ18)^2 -> 0 | AL25: =(AL11+AL18)^2 -> 0 | AN25: =(AN11+AN18)^2 -> 0 | AP25: =(AP11+AP18)^2 -> 0 | AR25: =(AR11+AR18)^2 -> 0
B26: LOB 28 | D26: =IF(OR(F12+F19=0,SUM(H26:AR26)=0),1,SUM(H26:AR26)/((F12+F19)^2)) -> 1 | H26: =(H12+H19)^2 -> 0 | J26: =(J12+J19)^2 -> 0 | L26: =(L12+L19)^2 -> 0 | N26: =(N12+N19)^2 -> 0 | P26: =(P12+P19)^2 -> 0 | R26: =(R12+R19)^2 -> 0 | T26: =(T12+T19)^2 -> 0 | V26: =(V12+V19)^2 -> 0 | X26: =(X12+X19)^2 -> 0 | Z26: =(Z12+Z19)^2 -> 0 | AB26: =(AB12+AB19)^2 -> 0 | AD26: =(AD12+AD19)^2 -> 0 | AF26: =(AF12+AF19)^2 -> 0 | AH26: =(AH12+AH19)^2 -> 0 | AJ26: =(AJ12+AJ19)^2 -> 0 | AL26: =(AL12+AL19)^2 -> 0 | AN26: =(AN12+AN19)^2 -> 0 | AP26: =(AP12+AP19)^2 -> 0 | AR26: =(AR12+AR19)^2 -> 0

Sheet Health Lapse Risk
A1: Health Lapse Risk
A3: Health lapse risk is the risk of an adverse impact on an insurer's own-funds should a policy lapse. This may be the case if the insurer has to return any profit element to the insured that is has already anticipated in its own-funds (i.e. anticipated profits related to unearned exposures), or if there is a considerable administrative expense associated with the lapse that is absorbed by the insurer.
B5: Health Lapse Risk | F5: Profitable Grouping * | H5: Line of Business | J5: Pipeline Premiums * | L5: Ultimate Loss Ratio * | N5: Claims Expense Ratio * | Q5: Lapse Risk SCR
B7: =Type_of_business&" year Shock" -> 1in200 year Shock | J7: '000 | L7: % | N7: %
D9: 1 | J9: 0 | L9: 0 | N9: 0 | Q9: =MAX(Lapse_stress*(1-L9-N9)*J9,0) -> 0
D10: 2 | J10: 0 | L10: 0 | N10: 0 | Q10: 0
D11: 3 | J11: 0 | L11: 0 | N11: 0 | Q11: 0
D12: 4 | J12: 0 | L12: 0 | N12: 0 | Q12: 0
D13: 5 | J13: 0 | L13: 0 | N13: 0 | Q13: 0
D14: 6 | J14: 0 | L14: 0 | N14: 0 | Q14: 0
D15: 7 | J15: 0 | L15: 0 | N15: 0 | Q15: 0
D16: 8 | J16: 0 | L16: 0 | N16: 0 | Q16: 0
D17: 9 | J17: 0 | L17: 0 | N17: 0 | Q17: 0
D18: 10 | J18: 0 | L18: 0 | N18: 0 | Q18: 0
D19: 11 | J19: 0 | L19: 0 | N19: 0 | Q19: 0
D20: 12 | J20: 0 | L20: 0 | N20: 0 | Q20: 0
D21: 13 | J21: 0 | L21: 0 | N21: 0 | Q21: 0
D22: 14 | J22: 0 | L22: 0 | N22: 0 | Q22: 0
D23: 15 | J23: 0 | L23: 0 | N23: 0 | Q23: 0
D24: 16 | J24: 0 | L24: 0 | N24: 0 | Q24: 0
D25: 17 | J25: 0 | L25: 0 | N25: 0 | Q25: 0
D26: 18 | J26: 0 | L26: 0 | N26: 0 | Q26: 0
D27: 19 | J27: 0 | L27: 0 | N27: 0 | Q27: 0
D28: 20 | J28: 0 | L28: 0 | N28: 0 | Q28: 0
D29: 21 | J29: 0 | L29: 0 | N29: 0 | Q29: 0
D30: 22 | J30: 0 | L30: 0 | N30: 0 | Q30: 0
D31: 23 | J31: 0 | L31: 0 | N31: 0 | Q31: 0
D32: 24 | J32: 0 | L32: 0 | N32: 0 | Q32: 0
D33: 25 | J33: 0 | L33: 0 | N33: 0 | Q33: 0
D34: 26 | J34: 0 | L34: 0 | N34: 0 | Q34: 0
D35: 27 | J35: 0 | L35: 0 | N35: 0 | Q35: 0
D36: 28 | J36: 0 | L36: 0 | N36: 0 | Q36: 0
D37: 29 | J37: 0 | L37: 0 | N37: 0 | Q37: 0
D38: 30 | J38: 0 | L38: 0 | N38: 0 | Q38: 0
D39: 31 | J39: 0 | L39: 0 | N39: 0 | Q39: 0
D40: 32 | J40: 0 | L40: 0 | N40: 0 | Q40: 0
D41: 33 | J41: 0 | L41: 0 | N41: 0 | Q41: =MAX(Lapse_stress*(1-L41-N41)*J41,0) -> 0
D42: 34 | J42: 0 | L42: 0 | N42: 0 | Q42: 0
D43: 35 | J43: 0 | L43: 0 | N43: 0 | Q43: 0
D44: 36 | J44: 0 | L44: 0 | N44: 0 | Q44: 0
D45: 37 | J45: 0 | L45: 0 | N45: 0 | Q45: 0
D46: 38 | J46: 0 | L46: 0 | N46: 0 | Q46: 0
D47: 39 | J47: 0 | L47: 0 | N47: 0 | Q47: 0
D48: 40 | J48: 0 | L48: 0 | N48: 0 | Q48: 0
D49: 41 | J49: 0 | L49: 0 | N49: 0 | Q49: 0
D50: 42 | J50: 0 | L50: 0 | N50: 0 | Q50: 0
D51: 43 | J51: 0 | L51: 0 | N51: 0 | Q51: 0
D52: 44 | J52: 0 | L52: 0 | N52: 0 | Q52: 0
D53: 45 | J53: 0 | L53: 0 | N53: 0 | Q53: 0
D54: 46 | J54: 0 | L54: 0 | N54: 0 | Q54: 0
D55: 47 | J55: 0 | L55: 0 | N55: 0 | Q55: 0
D56: 48 | J56: 0 | L56: 0 | N56: 0 | Q56: 0
D57: 49 | J57: 0 | L57: 0 | N57: 0 | Q57: 0
D58: 50 | J58: 0 | L58: 0 | N58: 0 | Q58: 0
D59: 51 | J59: 0 | L59: 0 | N59: 0 | Q59: 0
D60: 52 | J60: 0 | L60: 0 | N60: 0 | Q60: 0
D61: 53 | J61: 0 | L61: 0 | N61: 0 | Q61: 0
D62: 54 | J62: 0 | L62: 0 | N62: 0 | Q62: 0
D63: 55 | J63: 0 | L63: 0 | N63: 0 | Q63: 0
D64: 56 | J64: 0 | L64: 0 | N64: 0 | Q64: 0
D65: 57 | J65: 0 | L65: 0 | N65: 0 | Q65: 0
D66: 58 | J66: 0 | L66: 0 | N66: 0 | Q66: 0
D67: 59 | J67: 0 | L67: 0 | N67: 0 | Q67: 0
D68: 60 | J68: 0 | L68: 0 | N68: 0 | Q68: 0
B70: ="Health Lapse Up "&Lapse_stress -> Health Lapse Up 0.4 | D70: Total Lapse Risk SCR | Q70: =SUM(Q9:Q68) -> 0
B507: Y
B508: N

Sheet Health Catastrophe Risk
A1: Health Catastrophe Risk
F6: Pandemic risk *
F8: Income protection exposure * | H8: Capital Factor | J8: SCR before aggregate cap | L8: Impact of aggregate caps * | N8: SCR after aggregate cap | P8: Impact of risk mitigation * | R8: Pandemic risk SCR
F9: '000 | L9: '000 | P9: '000
F11: 0 | H11: =CAT_Pan_Inc_200 -> 7.5e-05 | J11: =F11*H11 -> 0 | L11: 0 | N11: =L11+J11 -> 0 | P11: 0 | R11: =N11-P11 -> 0
C15: Country | F15: Health Mass Accident Risk * | AC15: Accident concentration risk *
F16: --------------------------- Sums insured ------------------------ | AE16: ------------- Sums insured in largest concentration ------------
F17: Death * | H17: Permanent disability * | J17: 10 year disability * | L17: 12 month disabiilty * | N17: Medical treatment * | P17: Capital Factor | R17: SCR before aggregate cap by country | T17: Impact of aggregate caps * | V17: SCR after aggregate cap by country | X17: Impact of risk mitigation * | Z17: Health Mass Accident Risk SCR by country | AC17: Largest concentration * | AE17: Death * | AG17: Permanent disability * | AI17: 10 year disability * | AK17: 12 month disabiilty * | AM17: Medical treatment * | AO17: SCR before aggregate cap by country | AQ17: Impact of aggregate caps * | AS17: SCR after aggregate cap by country | AU17: Impact of risk mitigation * | AW17: Accident Concentration Risk SCR by country
F18: '000 | H18: '000 | J18: '000 | L18: '000 | N18: '000 | T18: '000 | X18: '000 | AC18: '000 | AE18: '000 | AG18: '000 | AI18: '000 | AK18: '000 | AM18: '000 | AQ18: '000 | AU18: '000
C20: Austria | F20: 0 | H20: 0 | J20: 0 | L20: 0 | N20: 0 | P20: 0.003 | R20: =SUMPRODUCT(F20:N20,$F$99:$N$99)*P20 -> 0 | T20: 0 | V20: =T20+R20 -> 0 | X20: 0 | Z20: =V20-X20 -> 0 | AC20: 0 | AE20: 0 | AG20: 0 | AI20: 0 | AK20: 0 | AM20: 0 | AO20: =SUMPRODUCT(AE20:AM20,$AE$99:$AM$99) -> 0 | AQ20: 0 | AS20: =AQ20+AO20 -> 0 | AU20: 0 | AW20: =AS20-AU20 -> 0
C21: Belgium | F21: 0 | H21: 0 | J21: 0 | L21: 0 | N21: 0 | P21: 0.0025 | R21: =SUMPRODUCT(F21:N21,$F$99:$N$99)*P21 -> 0 | T21: 0 | V21: =T21+R21 -> 0 | X21: 0 | Z21: =V21-X21 -> 0 | AC21: 0 | AE21: 0 | AG21: 0 | AI21: 0 | AK21: 0 | AM21: 0 | AO21: =SUMPRODUCT(AE21:AM21,$AE$99:$AM$99) -> 0 | AQ21: 0 | AS21: =AQ21+AO21 -> 0 | AU21: 0 | AW21: =AS21-AU21 -> 0
C22: Bulgaria | F22: 0 | H22: 0 | J22: 0 | L22: 0 | N22: 0 | P22: 0.003 | R22: 0 | T22: 0 | V22: 0 | X22: 0 | Z22: 0 | AC22: 0 | AE22: 0 | AG22: 0 | AI22: 0 | AK22: 0 | AM22: 0 | AO22: 0 | AQ22: 0 | AS22: 0 | AU22: 0 | AW22: 0
C23: Croatia | F23: 0 | H23: 0 | J23: 0 | L23: 0 | N23: 0 | P23: 0.004 | R23: 0 | T23: 0 | V23: 0 | X23: 0 | Z23: 0 | AC23: 0 | AE23: 0 | AG23: 0 | AI23: 0 | AK23: 0 | AM23: 0 | AO23: 0 | AQ23: 0 | AS23: 0 | AU23: 0 | AW23: 0
C24: Cyprus | F24: 0 | H24: 0 | J24: 0 | L24: 0 | N24: 0 | P24: 0.013 | R24: 0 | T24: 0 | V24: 0 | X24: 0 | Z24: 0 | AC24: 0 | AE24: 0 | AG24: 0 | AI24: 0 | AK24: 0 | AM24: 0 | AO24: 0 | AQ24: 0 | AS24: 0 | AU24: 0 | AW24: 0
C25: Czech Republic | F25: 0 | H25: 0 | J25: 0 | L25: 0 | N25: 0 | P25: 0.001 | R25: 0 | T25: 0 | V25: 0 | X25: 0 | Z25: 0 | AC25: 0 | AE25: 0 | AG25: 0 | AI25: 0 | AK25: 0 | AM25: 0 | AO25: 0 | AQ25: 0 | AS25: 0 | AU25: 0 | AW25: 0
C26: Denmark | F26: 0 | H26: 0 | J26: 0 | L26: 0 | N26: 0 | P26: 0.0035 | R26: 0 | T26: 0 | V26: 0 | X26: 0 | Z26: 0 | AC26: 0 | AE26: 0 | AG26: 0 | AI26: 0 | AK26: 0 | AM26: 0 | AO26: 0 | AQ26: 0 | AS26: 0 | AU26: 0 | AW26: 0
C27: Estonia | F27: 0 | H27: 0 | J27: 0 | L27: 0 | N27: 0 | P27: 0.0045 | R27: 0 | T27: 0 | V27: 0 | X27: 0 | Z27: 0 | AC27: 0 | AE27: 0 | AG27: 0 | AI27: 0 | AK27: 0 | AM27: 0 | AO27: 0 | AQ27: 0 | AS27: 0 | AU27: 0 | AW27: 0
C28: Finland | F28: 0 | H28: 0 | J28: 0 | L28: 0 | N28: 0 | P28: 0.0035 | R28: 0 | T28: 0 | V28: 0 | X28: 0 | Z28: 0 | AC28: 0 | AE28: 0 | AG28: 0 | AI28: 0 | AK28: 0 | AM28: 0 | AO28: 0 | AQ28: 0 | AS28: 0 | AU28: 0 | AW28: 0
C29: France | F29: 0 | H29: 0 | J29: 0 | L29: 0 | N29: 0 | P29: 0.0005 | R29: 0 | T29: 0 | V29: 0 | X29: 0 | Z29: 0 | AC29: 0 | AE29: 0 | AG29: 0 | AI29: 0 | AK29: 0 | AM29: 0 | AO29: 0 | AQ29: 0 | AS29: 0 | AU29: 0 | AW29: 0
C30: Germany | F30: 0 | H30: 0 | J30: 0 | L30: 0 | N30: 0 | P30: 0.0005 | R30: 0 | T30: 0 | V30: 0 | X30: 0 | Z30: 0 | AC30: 0 | AE30: 0 | AG30: 0 | AI30: 0 | AK30: 0 | AM30: 0 | AO30: 0 | AQ30: 0 | AS30: 0 | AU30: 0 | AW30: 0
C31: Greece | F31: 0 | H31: 0 | J31: 0 | L31: 0 | N31: 0 | P31: 0.003 | R31: 0 | T31: 0 | V31: 0 | X31: 0 | Z31: 0 | AC31: 0 | AE31: 0 | AG31: 0 | AI31: 0 | AK31: 0 | AM31: 0 | AO31: 0 | AQ31: 0 | AS31: 0 | AU31: 0 | AW31: 0
C32: Hungary | F32: 0 | H32: 0 | J32: 0 | L32: 0 | N32: 0 | P32: 0.0015 | R32: 0 | T32: 0 | V32: 0 | X32: 0 | Z32: 0 | AC32: 0 | AE32: 0 | AG32: 0 | AI32: 0 | AK32: 0 | AM32: 0 | AO32: 0 | AQ32: 0 | AS32: 0 | AU32: 0 | AW32: 0
C33: Iceland | F33: 0 | H33: 0 | J33: 0 | L33: 0 | N33: 0 | P33: 0.0245 | R33: 0 | T33: 0 | V33: 0 | X33: 0 | Z33: 0 | AC33: 0 | AE33: 0 | AG33: 0 | AI33: 0 | AK33: 0 | AM33: 0 | AO33: 0 | AQ33: 0 | AS33: 0 | AU33: 0 | AW33: 0
C34: Ireland | F34: 0 | H34: 0 | J34: 0 | L34: 0 | N34: 0 | P34: 0.0095 | R34: 0 | T34: 0 | V34: 0 | X34: 0 | Z34: 0 | AC34: 0 | AE34: 0 | AG34: 0 | AI34: 0 | AK34: 0 | AM34: 0 | AO34: 0 | AQ34: 0 | AS34: 0 | AU34: 0 | AW34: 0
C35: Italy | F35: 0 | H35: 0 | J35: 0 | L35: 0 | N35: 0 | P35: 0.0005 | R35: 0 | T35: 0 | V35: 0 | X35: 0 | Z35: 0 | AC35: 0 | AE35: 0 | AG35: 0 | AI35: 0 | AK35: 0 | AM35: 0 | AO35: 0 | AQ35: 0 | AS35: 0 | AU35: 0 | AW35: 0
C36: Latvia | F36: 0 | H36: 0 | J36: 0 | L36: 0 | N36: 0 | P36: 0.002 | R36: 0 | T36: 0 | V36: 0 | X36: 0 | Z36: 0 | AC36: 0 | AE36: 0 | AG36: 0 | AI36: 0 | AK36: 0 | AM36: 0 | AO36: 0 | AQ36: 0 | AS36: 0 | AU36: 0 | AW36: 0
C37: Lithuania | F37: 0 | H37: 0 | J37: 0 | L37: 0 | N37: 0 | P37: 0.002 | R37: 0 | T37: 0 | V37: 0 | X37: 0 | Z37: 0 | AC37: 0 | AE37: 0 | AG37: 0 | AI37: 0 | AK37: 0 | AM37: 0 | AO37: 0 | AQ37: 0 | AS37: 0 | AU37: 0 | AW37: 0
C38: Luxembourg | F38: 0 | H38: 0 | J38: 0 | L38: 0 | N38: 0 | P38: 0.0105 | R38: 0 | T38: 0 | V38: 0 | X38: 0 | Z38: 0 | AC38: 0 | AE38: 0 | AG38: 0 | AI38: 0 | AK38: 0 | AM38: 0 | AO38: 0 | AQ38: 0 | AS38: 0 | AU38: 0 | AW38: 0
C39: Malta | F39: 0 | H39: 0 | J39: 0 | L39: 0 | N39: 0 | P39: 0.0215 | R39: 0 | T39: 0 | V39: 0 | X39: 0 | Z39: 0 | AC39: 0 | AE39: 0 | AG39: 0 | AI39: 0 | AK39: 0 | AM39: 0 | AO39: 0 | AQ39: 0 | AS39: 0 | AU39: 0 | AW39: 0
C40: Netherlands | F40: 0 | H40: 0 | J40: 0 | L40: 0 | N40: 0 | P40: 0.0015 | R40: 0 | T40: 0 | V40: 0 | X40: 0 | Z40: 0 | AC40: 0 | AE40: 0 | AG40: 0 | AI40: 0 | AK40: 0 | AM40: 0 | AO40: 0 | AQ40: 0 | AS40: 0 | AU40: 0 | AW40: 0
C41: Norway | F41: 0 | H41: 0 | J41: 0 | L41: 0 | N41: 0 | P41: 0.0025 | R41: 0 | T41: 0 | V41: 0 | X41: 0 | Z41: 0 | AC41: 0 | AE41: 0 | AG41: 0 | AI41: 0 | AK41: 0 | AM41: 0 | AO41: 0 | AQ41: 0 | AS41: 0 | AU41: 0 | AW41: 0
C42: Poland | F42: 0 | H42: 0 | J42: 0 | L42: 0 | N42: 0 | P42: 0.001 | R42: 0 | T42: 0 | V42: 0 | X42: 0 | Z42: 0 | AC42: 0 | AE42: 0 | AG42: 0 | AI42: 0 | AK42: 0 | AM42: 0 | AO42: 0 | AQ42: 0 | AS42: 0 | AU42: 0 | AW42: 0
C43: Portugal | F43: 0 | H43: 0 | J43: 0 | L43: 0 | N43: 0 | P43: 0.003 | R43: 0 | T43: 0 | V43: 0 | X43: 0 | Z43: 0 | AC43: 0 | AE43: 0 | AG43: 0 | AI43: 0 | AK43: 0 | AM43: 0 | AO43: 0 | AQ43: 0 | AS43: 0 | AU43: 0 | AW43: 0
C44: Romania | F44: 0 | H44: 0 | J44: 0 | L44: 0 | N44: 0 | P44: 0.0015 | R44: 0 | T44: 0 | V44: 0 | X44: 0 | Z44: 0 | AC44: 0 | AE44: 0 | AG44: 0 | AI44: 0 | AK44: 0 | AM44: 0 | AO44: 0 | AQ44: 0 | AS44: 0 | AU44: 0 | AW44: 0
C45: Slovak Republic | F45: 0 | H45: 0 | J45: 0 | L45: 0 | N45: 0 | P45: 0.003 | R45: 0 | T45: 0 | V45: 0 | X45: 0 | Z45: 0 | AC45: 0 | AE45: 0 | AG45: 0 | AI45: 0 | AK45: 0 | AM45: 0 | AO45: 0 | AQ45: 0 | AS45: 0 | AU45: 0 | AW45: 0
C46: Slovenia | F46: 0 | H46: 0 | J46: 0 | L46: 0 | N46: 0 | P46: 0.004 | R46: 0 | T46: 0 | V46: 0 | X46: 0 | Z46: 0 | AC46: 0 | AE46: 0 | AG46: 0 | AI46: 0 | AK46: 0 | AM46: 0 | AO46: 0 | AQ46: 0 | AS46: 0 | AU46: 0 | AW46: 0
C47: Spain | F47: 0 | H47: 0 | J47: 0 | L47: 0 | N47: 0 | P47: 0.001 | R47: 0 | T47: 0 | V47: 0 | X47: 0 | Z47: 0 | AC47: 0 | AE47: 0 | AG47: 0 | AI47: 0 | AK47: 0 | AM47: 0 | AO47: 0 | AQ47: 0 | AS47: 0 | AU47: 0 | AW47: 0
C48: Sweden | F48: 0 | H48: 0 | J48: 0 | L48: 0 | N48: 0 | P48: 0.0025 | R48: 0 | T48: 0 | V48: 0 | X48: 0 | Z48: 0 | AC48: 0 | AE48: 0 | AG48: 0 | AI48: 0 | AK48: 0 | AM48: 0 | AO48: 0 | AQ48: 0 | AS48: 0 | AU48: 0 | AW48: 0
C49: Switzerland | F49: 0 | H49: 0 | J49: 0 | L49: 0 | N49: 0 | P49: 0.0025 | R49: 0 | T49: 0 | V49: 0 | X49: 0 | Z49: 0 | AC49: 0 | AE49: 0 | AG49: 0 | AI49: 0 | AK49: 0 | AM49: 0 | AO49: 0 | AQ49: 0 | AS49: 0 | AU49: 0 | AW49: 0
C50: United Kingdom | F50: 0 | H50: 0 | J50: 0 | L50: 0 | N50: 0 | P50: 0.0005 | R50: 0 | T50: 0 | V50: 0 | X50: 0 | Z50: 0 | AC50: 0 | AE50: 0 | AG50: 0 | AI50: 0 | AK50: 0 | AM50: 0 | AO50: 0 | AQ50: 0 | AS50: 0 | AU50: 0 | AW50: 0
F51: 0 | H51: 0 | J51: 0 | L51: 0 | N51: 0 | P51: 0.0045 | R51: 0 | T51: 0 | V51: 0 | X51: 0 | Z51: 0 | AC51: 0 | AE51: 0 | AG51: 0 | AI51: 0 | AK51: 0 | AM51: 0 | AO51: 0 | AQ51: 0 | AS51: 0 | AU51: 0 | AW51: 0
F52: 0 | H52: 0 | J52: 0 | L52: 0 | N52: 0 | P52: 0.0045 | R52: 0 | T52: 0 | V52: 0 | X52: 0 | Z52: 0 | AC52: 0 | AE52: 0 | AG52: 0 | AI52: 0 | AK52: 0 | AM52: 0 | AO52: 0 | AQ52: 0 | AS52: 0 | AU52: 0 | AW52: 0
F53: 0 | H53: 0 | J53: 0 | L53: 0 | N53: 0 | P53: 0.0045 | R53: 0 | T53: 0 | V53: 0 | X53: 0 | Z53: 0 | AC53: 0 | AE53: 0 | AG53: 0 | AI53: 0 | AK53: 0 | AM53: 0 | AO53: 0 | AQ53: 0 | AS53: 0 | AU53: 0 | AW53: 0
F54: 0 | H54: 0 | J54: 0 | L54: 0 | N54: 0 | P54: 0.0045 | R54: 0 | T54: 0 | V54: 0 | X54: 0 | Z54: 0 | AC54: 0 | AE54: 0 | AG54: 0 | AI54: 0 | AK54: 0 | AM54: 0 | AO54: 0 | AQ54: 0 | AS54: 0 | AU54: 0 | AW54: 0
F55: 0 | H55: 0 | J55: 0 | L55: 0 | N55: 0 | P55: 0.0045 | R55: 0 | T55: 0 | V55: 0 | X55: 0 | Z55: 0 | AC55: 0 | AE55: 0 | AG55: 0 | AI55: 0 | AK55: 0 | AM55: 0 | AO55: 0 | AQ55: 0 | AS55: 0 | AU55: 0 | AW55: 0
F56: 0 | H56: 0 | J56: 0 | L56: 0 | N56: 0 | P56: 0.0045 | R56: 0 | T56: 0 | V56: 0 | X56: 0 | Z56: 0 | AC56: 0 | AE56: 0 | AG56: 0 | AI56: 0 | AK56: 0 | AM56: 0 | AO56: 0 | AQ56: 0 | AS56: 0 | AU56: 0 | AW56: 0
F57: 0 | H57: 0 | J57: 0 | L57: 0 | N57: 0 | P57: 0.0045 | R57: 0 | T57: 0 | V57: 0 | X57: 0 | Z57: 0 | AC57: 0 | AE57: 0 | AG57: 0 | AI57: 0 | AK57: 0 | AM57: 0 | AO57: 0 | AQ57: 0 | AS57: 0 | AU57: 0 | AW57: 0
F58: 0 | H58: 0 | J58: 0 | L58: 0 | N58: 0 | P58: 0.0045 | R58: 0 | T58: 0 | V58: 0 | X58: 0 | Z58: 0 | AC58: 0 | AE58: 0 | AG58: 0 | AI58: 0 | AK58: 0 | AM58: 0 | AO58: 0 | AQ58: 0 | AS58: 0 | AU58: 0 | AW58: 0
F59: 0 | H59: 0 | J59: 0 | L59: 0 | N59: 0 | P59: 0.0045 | R59: 0 | T59: 0 | V59: 0 | X59: 0 | Z59: 0 | AC59: 0 | AE59: 0 | AG59: 0 | AI59: 0 | AK59: 0 | AM59: 0 | AO59: 0 | AQ59: 0 | AS59: 0 | AU59: 0 | AW59: 0
F60: 0 | H60: 0 | J60: 0 | L60: 0 | N60: 0 | P60: 0.0045 | R60: 0 | T60: 0 | V60: 0 | X60: 0 | Z60: 0 | AC60: 0 | AE60: 0 | AG60: 0 | AI60: 0 | AK60: 0 | AM60: 0 | AO60: 0 | AQ60: 0 | AS60: 0 | AU60: 0 | AW60: 0
F61: 0 | H61: 0 | J61: 0 | L61: 0 | N61: 0 | P61: 0.0045 | R61: 0 | T61: 0 | V61: 0 | X61: 0 | Z61: 0 | AC61: 0 | AE61: 0 | AG61: 0 | AI61: 0 | AK61: 0 | AM61: 0 | AO61: 0 | AQ61: 0 | AS61: 0 | AU61: 0 | AW61: 0
F62: 0 | H62: 0 | J62: 0 | L62: 0 | N62: 0 | P62: 0.0045 | R62: 0 | T62: 0 | V62: 0 | X62: 0 | Z62: 0 | AC62: 0 | AE62: 0 | AG62: 0 | AI62: 0 | AK62: 0 | AM62: 0 | AO62: 0 | AQ62: 0 | AS62: 0 | AU62: 0 | AW62: 0
F63: 0 | H63: 0 | J63: 0 | L63: 0 | N63: 0 | P63: 0.0045 | R63: 0 | T63: 0 | V63: 0 | X63: 0 | Z63: 0 | AC63: 0 | AE63: 0 | AG63: 0 | AI63: 0 | AK63: 0 | AM63: 0 | AO63: 0 | AQ63: 0 | AS63: 0 | AU63: 0 | AW63: 0
F64: 0 | H64: 0 | J64: 0 | L64: 0 | N64: 0 | P64: 0.0045 | R64: 0 | T64: 0 | V64: 0 | X64: 0 | Z64: 0 | AC64: 0 | AE64: 0 | AG64: 0 | AI64: 0 | AK64: 0 | AM64: 0 | AO64: 0 | AQ64: 0 | AS64: 0 | AU64: 0 | AW64: 0
F65: 0 | H65: 0 | J65: 0 | L65: 0 | N65: 0 | P65: 0.0045 | R65: 0 | T65: 0 | V65: 0 | X65: 0 | Z65: 0 | AC65: 0 | AE65: 0 | AG65: 0 | AI65: 0 | AK65: 0 | AM65: 0 | AO65: 0 | AQ65: 0 | AS65: 0 | AU65: 0 | AW65: 0
F66: 0 | H66: 0 | J66: 0 | L66: 0 | N66: 0 | P66: 0.0045 | R66: 0 | T66: 0 | V66: 0 | X66: 0 | Z66: 0 | AC66: 0 | AE66: 0 | AG66: 0 | AI66: 0 | AK66: 0 | AM66: 0 | AO66: 0 | AQ66: 0 | AS66: 0 | AU66: 0 | AW66: 0
F67: 0 | H67: 0 | J67: 0 | L67: 0 | N67: 0 | P67: 0.0045 | R67: 0 | T67: 0 | V67: 0 | X67: 0 | Z67: 0 | AC67: 0 | AE67: 0 | AG67: 0 | AI67: 0 | AK67: 0 | AM67: 0 | AO67: 0 | AQ67: 0 | AS67: 0 | AU67: 0 | AW67: 0
F68: 0 | H68: 0 | J68: 0 | L68: 0 | N68: 0 | P68: 0.0045 | R68: 0 | T68: 0 | V68: 0 | X68: 0 | Z68: 0 | AC68: 0 | AE68: 0 | AG68: 0 | AI68: 0 | AK68: 0 | AM68: 0 | AO68: 0 | AQ68: 0 | AS68: 0 | AU68: 0 | AW68: 0
F69: 0 | H69: 0 | J69: 0 | L69: 0 | N69: 0 | P69: 0.0045 | R69: 0 | T69: 0 | V69: 0 | X69: 0 | Z69: 0 | AC69: 0 | AE69: 0 | AG69: 0 | AI69: 0 | AK69: 0 | AM69: 0 | AO69: 0 | AQ69: 0 | AS69: 0 | AU69: 0 | AW69: 0
F70: 0 | H70: 0 | J70: 0 | L70: 0 | N70: 0 | P70: 0.0045 | R70: 0 | T70: 0 | V70: 0 | X70: 0 | Z70: 0 | AC70: 0 | AE70: 0 | AG70: 0 | AI70: 0 | AK70: 0 | AM70: 0 | AO70: 0 | AQ70: 0 | AS70: 0 | AU70: 0 | AW70: 0
F71: 0 | H71: 0 | J71: 0 | L71: 0 | N71: 0 | P71: 0.0045 | R71: 0 | T71: 0 | V71: 0 | X71: 0 | Z71: 0 | AC71: 0 | AE71: 0 | AG71: 0 | AI71: 0 | AK71: 0 | AM71: 0 | AO71: 0 | AQ71: 0 | AS71: 0 | AU71: 0 | AW71: 0
F72: 0 | H72: 0 | J72: 0 | L72: 0 | N72: 0 | P72: 0.0045 | R72: 0 | T72: 0 | V72: 0 | X72: 0 | Z72: 0 | AC72: 0 | AE72: 0 | AG72: 0 | AI72: 0 | AK72: 0 | AM72: 0 | AO72: 0 | AQ72: 0 | AS72: 0 | AU72: 0 | AW72: 0
F73: 0 | H73: 0 | J73: 0 | L73: 0 | N73: 0 | P73: 0.0045 | R73: 0 | T73: 0 | V73: 0 | X73: 0 | Z73: 0 | AC73: 0 | AE73: 0 | AG73: 0 | AI73: 0 | AK73: 0 | AM73: 0 | AO73: 0 | AQ73: 0 | AS73: 0 | AU73: 0 | AW73: 0
F74: 0 | H74: 0 | J74: 0 | L74: 0 | N74: 0 | P74: 0.0045 | R74: 0 | T74: 0 | V74: 0 | X74: 0 | Z74: 0 | AC74: 0 | AE74: 0 | AG74: 0 | AI74: 0 | AK74: 0 | AM74: 0 | AO74: 0 | AQ74: 0 | AS74: 0 | AU74: 0 | AW74: 0
F75: 0 | H75: 0 | J75: 0 | L75: 0 | N75: 0 | P75: 0.0045 | R75: 0 | T75: 0 | V75: 0 | X75: 0 | Z75: 0 | AC75: 0 | AE75: 0 | AG75: 0 | AI75: 0 | AK75: 0 | AM75: 0 | AO75: 0 | AQ75: 0 | AS75: 0 | AU75: 0 | AW75: 0
F76: 0 | H76: 0 | J76: 0 | L76: 0 | N76: 0 | P76: 0.0045 | R76: 0 | T76: 0 | V76: 0 | X76: 0 | Z76: 0 | AC76: 0 | AE76: 0 | AG76: 0 | AI76: 0 | AK76: 0 | AM76: 0 | AO76: 0 | AQ76: 0 | AS76: 0 | AU76: 0 | AW76: 0
F77: 0 | H77: 0 | J77: 0 | L77: 0 | N77: 0 | P77: 0.0045 | R77: 0 | T77: 0 | V77: 0 | X77: 0 | Z77: 0 | AC77: 0 | AE77: 0 | AG77: 0 | AI77: 0 | AK77: 0 | AM77: 0 | AO77: 0 | AQ77: 0 | AS77: 0 | AU77: 0 | AW77: 0
F78: 0 | H78: 0 | J78: 0 | L78: 0 | N78: 0 | P78: 0.0045 | R78: 0 | T78: 0 | V78: 0 | X78: 0 | Z78: 0 | AC78: 0 | AE78: 0 | AG78: 0 | AI78: 0 | AK78: 0 | AM78: 0 | AO78: 0 | AQ78: 0 | AS78: 0 | AU78: 0 | AW78: 0
F79: 0 | H79: 0 | J79: 0 | L79: 0 | N79: 0 | P79: 0.0045 | R79: 0 | T79: 0 | V79: 0 | X79: 0 | Z79: 0 | AC79: 0 | AE79: 0 | AG79: 0 | AI79: 0 | AK79: 0 | AM79: 0 | AO79: 0 | AQ79: 0 | AS79: 0 | AU79: 0 | AW79: 0
F80: 0 | H80: 0 | J80: 0 | L80: 0 | N80: 0 | P80: 0.0045 | R80: 0 | T80: 0 | V80: 0 | X80: 0 | Z80: 0 | AC80: 0 | AE80: 0 | AG80: 0 | AI80: 0 | AK80: 0 | AM80: 0 | AO80: 0 | AQ80: 0 | AS80: 0 | AU80: 0 | AW80: 0
F81: 0 | H81: 0 | J81: 0 | L81: 0 | N81: 0 | P81: 0.0045 | R81: 0 | T81: 0 | V81: 0 | X81: 0 | Z81: 0 | AC81: 0 | AE81: 0 | AG81: 0 | AI81: 0 | AK81: 0 | AM81: 0 | AO81: 0 | AQ81: 0 | AS81: 0 | AU81: 0 | AW81: 0
F82: 0 | H82: 0 | J82: 0 | L82: 0 | N82: 0 | P82: 0.0045 | R82: 0 | T82: 0 | V82: 0 | X82: 0 | Z82: 0 | AC82: 0 | AE82: 0 | AG82: 0 | AI82: 0 | AK82: 0 | AM82: 0 | AO82: 0 | AQ82: 0 | AS82: 0 | AU82: 0 | AW82: 0
F83: 0 | H83: 0 | J83: 0 | L83: 0 | N83: 0 | P83: 0.0045 | R83: 0 | T83: 0 | V83: 0 | X83: 0 | Z83: 0 | AC83: 0 | AE83: 0 | AG83: 0 | AI83: 0 | AK83: 0 | AM83: 0 | AO83: 0 | AQ83: 0 | AS83: 0 | AU83: 0 | AW83: 0
F84: 0 | H84: 0 | J84: 0 | L84: 0 | N84: 0 | P84: 0.0045 | R84: 0 | T84: 0 | V84: 0 | X84: 0 | Z84: 0 | AC84: 0 | AE84: 0 | AG84: 0 | AI84: 0 | AK84: 0 | AM84: 0 | AO84: 0 | AQ84: 0 | AS84: 0 | AU84: 0 | AW84: 0
F85: 0 | H85: 0 | J85: 0 | L85: 0 | N85: 0 | P85: 0.0045 | R85: =SUMPRODUCT(F85:N85,$F$99:$N$99)*P85 -> 0 | T85: 0 | V85: =T85+R85 -> 0 | X85: 0 | Z85: =V85-X85 -> 0 | AC85: 0 | AE85: 0 | AG85: 0 | AI85: 0 | AK85: 0 | AM85: 0 | AO85: =SUMPRODUCT(AE85:AM85,$AE$99:$AM$99) -> 0 | AQ85: 0 | AS85: =AQ85+AO85 -> 0 | AU85: 0 | AW85: =AS85-AU85 -> 0
F86: 0 | H86: 0 | J86: 0 | L86: 0 | N86: 0 | P86: 0.0045 | R86: 0 | T86: 0 | V86: 0 | X86: 0 | Z86: 0 | AC86: 0 | AE86: 0 | AG86: 0 | AI86: 0 | AK86: 0 | AM86: 0 | AO86: 0 | AQ86: 0 | AS86: 0 | AU86: 0 | AW86: 0
F87: 0 | H87: 0 | J87: 0 | L87: 0 | N87: 0 | P87: 0.0045 | R87: 0 | T87: 0 | V87: 0 | X87: 0 | Z87: 0 | AC87: 0 | AE87: 0 | AG87: 0 | AI87: 0 | AK87: 0 | AM87: 0 | AO87: 0 | AQ87: 0 | AS87: 0 | AU87: 0 | AW87: 0
F88: 0 | H88: 0 | J88: 0 | L88: 0 | N88: 0 | P88: 0.0045 | R88: 0 | T88: 0 | V88: 0 | X88: 0 | Z88: 0 | AC88: 0 | AE88: 0 | AG88: 0 | AI88: 0 | AK88: 0 | AM88: 0 | AO88: 0 | AQ88: 0 | AS88: 0 | AU88: 0 | AW88: 0
F89: 0 | H89: 0 | J89: 0 | L89: 0 | N89: 0 | P89: 0.0045 | R89: 0 | T89: 0 | V89: 0 | X89: 0 | Z89: 0 | AC89: 0 | AE89: 0 | AG89: 0 | AI89: 0 | AK89: 0 | AM89: 0 | AO89: 0 | AQ89: 0 | AS89: 0 | AU89: 0 | AW89: 0
F90: 0 | H90: 0 | J90: 0 | L90: 0 | N90: 0 | P90: 0.0045 | R90: 0 | T90: 0 | V90: 0 | X90: 0 | Z90: 0 | AC90: 0 | AE90: 0 | AG90: 0 | AI90: 0 | AK90: 0 | AM90: 0 | AO90: 0 | AQ90: 0 | AS90: 0 | AU90: 0 | AW90: 0
F91: 0 | H91: 0 | J91: 0 | L91: 0 | N91: 0 | P91: 0.0045 | R91: 0 | T91: 0 | V91: 0 | X91: 0 | Z91: 0 | AC91: 0 | AE91: 0 | AG91: 0 | AI91: 0 | AK91: 0 | AM91: 0 | AO91: 0 | AQ91: 0 | AS91: 0 | AU91: 0 | AW91: 0
F92: 0 | H92: 0 | J92: 0 | L92: 0 | N92: 0 | P92: 0.0045 | R92: 0 | T92: 0 | V92: 0 | X92: 0 | Z92: 0 | AC92: 0 | AE92: 0 | AG92: 0 | AI92: 0 | AK92: 0 | AM92: 0 | AO92: 0 | AQ92: 0 | AS92: 0 | AU92: 0 | AW92: 0
F93: 0 | H93: 0 | J93: 0 | L93: 0 | N93: 0 | P93: 0.0045 | R93: 0 | T93: 0 | V93: 0 | X93: 0 | Z93: 0 | AC93: 0 | AE93: 0 | AG93: 0 | AI93: 0 | AK93: 0 | AM93: 0 | AO93: 0 | AQ93: 0 | AS93: 0 | AU93: 0 | AW93: 0
F94: 0 | H94: 0 | J94: 0 | L94: 0 | N94: 0 | P94: 0.0045 | R94: 0 | T94: 0 | V94: 0 | X94: 0 | Z94: 0 | AC94: 0 | AE94: 0 | AG94: 0 | AI94: 0 | AK94: 0 | AM94: 0 | AO94: 0 | AQ94: 0 | AS94: 0 | AU94: 0 | AW94: 0
F95: 0 | H95: 0 | J95: 0 | L95: 0 | N95: 0 | P95: 0.0045 | R95: 0 | T95: 0 | V95: 0 | X95: 0 | Z95: 0 | AC95: 0 | AE95: 0 | AG95: 0 | AI95: 0 | AK95: 0 | AM95: 0 | AO95: 0 | AQ95: 0 | AS95: 0 | AU95: 0 | AW95: 0
F96: 0 | H96: 0 | J96: 0 | L96: 0 | N96: 0 | P96: 0.0045 | R96: 0 | T96: 0 | V96: 0 | X96: 0 | Z96: 0 | AC96: 0 | AE96: 0 | AG96: 0 | AI96: 0 | AK96: 0 | AM96: 0 | AO96: 0 | AQ96: 0 | AS96: 0 | AU96: 0 | AW96: 0
F97: 0 | H97: 0 | J97: 0 | L97: 0 | N97: 0 | P97: 0.0045 | R97: 0 | T97: 0 | V97: 0 | X97: 0 | Z97: 0 | AC97: 0 | AE97: 0 | AG97: 0 | AI97: 0 | AK97: 0 | AM97: 0 | AO97: 0 | AQ97: 0 | AS97: 0 | AU97: 0 | AW97: 0
C99: Capital Factor | F99: =CAT_MA_Death_200 -> 0.1 | H99: =CAT_MA_PD_200 -> 0.015 | J99: =CAT_MA_10Y_200 -> 0.05 | L99: =CAT_MA_12M_200 -> 0.135 | N99: =CAT_MA_Med_200 -> 0.3 | AC99: Capital Factor | AE99: =CAT_MA_Death_200 -> 0.1 | AG99: =CAT_MA_PD_200 -> 0.015 | AI99: =CAT_MA_10Y_200 -> 0.05 | AK99: =CAT_MA_12M_200 -> 0.135 | AM99: =CAT_MA_Med_200 -> 0.3
X102: Health Mass Accident Risk SCR | Z102: =SQRT(SUMSQ(Z20:Z97)) -> 0 | AU102: Accident Concentration Risk SCR | AW102: =SQRT(SUMSQ(AW20:AW97)) -> 0

Sheet Market Risk
A1: Market Risk
B5: Market Risk | E5: =Type_of_business -> 1in200
E6: '000
B8: Interest Rate Risk SCR | E8: =E29 -> 0
B9: Equity Risk SCR | E9: =N40 -> 0
B10: Property Risk SCR | E10: =N48 -> 0
B11: Currency Risk SCR | E11: =INDIRECT("Mkt_FX"&IF(Currency_simplification="N","","_Simplification"),1) -> 0
B12: Spread Risk SCR | E12: =INDIRECT("Mkt_Spread"&IF(Credit_Spread_Simplification="N","","_Simplification"),1) -> 0
B13: Market Concentration Risk SCR | E13: =E105 -> 0
B15: SCR before diversification | E15: =SUM(E8:E13) -> 0
B17: Diversification | E17: =E19-E15 -> 0
B19: Market Risk SCR | E19: =SQRT(MMULT(MMULT(TRANSPOSE(E8:E13),MarketCorr_200),E8:E13)) -> 0
B23: Interest Rate Risk | E23: =Type_of_business -> 1in200
E24: '000
B26: Interest rate risk upward stress | E26: ='Market Risk Inputs'!K13 -> 0
B27: Interest rate risk downward stress | E27: ='Market Risk Inputs'!K14 -> 0
B29: Interest Rate Risk SCR | E29: =MAX(0,E26:E27) -> 0
B33: Equity Risk | E33: Assets | G33: Liabilities | I33: Own Funds | L33: =Type_of_business&" year shock" -> 1in200 year shock
L34: Capital Factor | N34: SCR
E35: '000 | I35: '000 | N35: '000
B37: Type 1 equity stress | E37: ='RBS - Assets'!F20 -> 0 | G37: 0 | I37: =ABS($E37-$G37) -> 0 | L37: =Type1_Equity_stress -> 0.39 | N37: =$I37*L37 -> 0
B38: Type 2 equity stress | E38: ='RBS - Assets'!F21+'RBS - Assets'!F66 -> 0 | G38: 0 | I38: =ABS($E38-$G38) -> 0 | L38: =Type2_Equity_stress -> 0.49 | N38: =$I38*L38 -> 0
B40: Equity Risk SCR | N40: =SQRT(MMULT(MMULT(TRANSPOSE(N$37:N$38),EqCorr),N$37:N$38)) -> 0
B44: Property Risk | E44: Assets | G44: Liabilities | I44: Own Funds | L44: =Type_of_business&" year shock" -> 1in200 year shock
L45: Capital Factor | N45: SCR
E46: '000 | I46: '000 | N46: '000
B48: Marketproperty | E48: ='RBS - Assets'!F18 -> 0 | G48: 0 | I48: =ABS($E48-$G48) -> 0 | L48: =Property_Stress -> 0.25 | N48: =$I48*L48 -> 0
B52: Currency simplification to be used?
B54: Currency | E54: N
B58: Currency Risk | E58: =Type_of_business -> 1in200
B60: Currency group 1 | E60: ='Market Risk Inputs'!M22 -> 0
B61: Currency group 2 | E61: ='Market Risk Inputs'!M23 -> 0
B62: Currency group 3 | E62: ='Market Risk Inputs'!M24 -> 0
B63: Currency group 4 | E63: ='Market Risk Inputs'!M25 -> 0
B64: Currency group 5 | E64: ='Market Risk Inputs'!M26 -> 0
B65: Currency group 6 | E65: ='Market Risk Inputs'!M27 -> 0
B66: Currency group 7 | E66: ='Market Risk Inputs'!M28 -> 0
B67: Currency group 8 | E67: ='Market Risk Inputs'!M29 -> 0
B68: Currency group 9 | E68: ='Market Risk Inputs'!M30 -> 0
B69: Currency group 10 | E69: ='Market Risk Inputs'!M31 -> 0
B70: Currency group 11 | E70: ='Market Risk Inputs'!M32 -> 0
B71: Currency group 12 | E71: ='Market Risk Inputs'!M33 -> 0
B72: Currency group 13 | E72: ='Market Risk Inputs'!M34 -> 0
B73: Currency group 14 | E73: ='Market Risk Inputs'!M35 -> 0
B74: Currency group 15 | E74: ='Market Risk Inputs'!M36 -> 0
B76: Currency Risk SCR | E76: =SQRT(MMULT(MMULT(TRANSPOSE(E$60:E$74),CurrencyCorr),E$60:E$74)) -> 0
B78: Currency Risk Simplification | E78: =Type_of_business -> 1in200
B80: Currency Risk SCR | E80: ='Market Risk Inputs'!M40 -> 0
B84: Credit Spread simplification to be used?
E86: N
B90: Credit Spread Risk simplification | E90: =Type_of_business -> 1in200
E91: '000
B93: Spread Risk SCR | E93: =-'Spread Risk'!I50 -> 0
B95: Credit Spread Risk | E95: =Type_of_business -> 1in200
E96: '000
B98: Spread Risk SCR | E98: ='Spread Risk'!E14 -> 0
B102: Concentration Risk | E102: =Type_of_business -> 1in200
E103: '000
B105: Market Concentration Risk SCR | E105: ='Market Risk Inputs'!D50 -> 0

Sheet Underwriting Risk
A1: Underwriting Risk
B5: Non-Life Underwriting Risk | E5: '000
B7: Premium and Reserve Risk SCR | E7: =NL_PR -> 0
B8: Lapse Risk SCR | E8: =NL_Lapse -> 0
B9: Catastrophe Risk SCR | E9: =NL_CAT -> 0
B11: Capital Requirement (before diversifcation benefit) | E11: =SUM(E7:E9) -> 0
B13: Diversification benefit | E13: =E15-E11 -> 0
B15: Underwriting Risk SCR before stop loss | E15: =SQRT(MMULT(MMULT(TRANSPOSE(E7:E9),NLCorr),E7:E9)) -> 0
B17: Maximum exposure under stop loss agreement | E17: 0
B19: Underwriting Risk SCR | E19: =IF(E17<>0,MIN(E17,SCR_Non_Life),SCR_Non_Life) -> 0
B23: Premium and Reserve Risk | E23: '000
B25: Combined Volume Measure | E25: ='Underwriting Risk'!G104 -> 0
B26: Combined Standard Deviation | E26: ='Underwriting Risk'!G105 -> 0
B27: Capital Factor | E27: =P_and_R_Risk_Theta_factor -> 3
B29: Premium and Reserve Risk SCR | E29: =E$25*E$26*E$27 -> 0
B33: Lapse Risk | E33: '000
B36: Lapse risk SCR | E36: =LAPSE_UP -> 0
B40: Non-Life Catastrophe Risk | E40: '000
B42: Natural Catastrophe Risk SCR | E42: =NLCAT_natural_Total_200 -> 0
B43: No-Proportional Property Risk SCR | E43: =NLCAT_npproperty_Total_200 -> 0
B44: Man-made Catastrophe Risk SCR | E44: =NLCAT_manmade_Total_200 -> 0
B45: Other Catatrophe Risk SCR | E45: =NLCAT_other_Total_200 -> 0
B47: Catastrophe Risk SCR | E47: =SQRT(MMULT(MMULT(TRANSPOSE(E42:E45),CorrCAT),E42:E45)) -> 0
B53: Standard Deviation | K53: Premium Risk Standard Deviation Factor | M53: Reserve Risk Standard Deviation Factor
B55: 1 - Motor Vehicle Liability & Prop. Reins. | K55: 0.08 | M55: 0.09
B56: 2 - Other Motor & Prop. Reins. | K56: 0.08 | M56: 0.08
B57: 3 - Marine, Aviation & Transport (MAT) & Prop. Reins. | K57: 0.15 | M57: 0.11
B58: 4 - Fire & Other Damage to Property & Prop. Reins. | K58: 0.064 | M58: 0.1
B59: 5 - General Liability & Prop. Reins. | K59: 0.112 | M59: 0.11
B60: 6 - Credit & Suretyship & Prop. Reins. | K60: 0.12 | M60: 0.19
B61: 7 - Legal Expenses & Prop. Reins. | K61: 0.07 | M61: 0.12
B62: 8 - Assistance & Prop. Reins. | K62: 0.09 | M62: 0.2
B63: 9 - Miscellaneous Financial Loss & Prop. Reins. | K63: 0.13 | M63: 0.2
B64: 25 - Non-prop. reinsurance - Casualty | K64: 0.17 | M64: 0.2
B65: 26 - Non-prop. reinsurance - MAT | K65: 0.17 | M65: 0.2
B66: 27 - Non-prop. reinsurance - Property | K66: 0.17 | M66: 0.2
B70: Standard Deviation after aggregates | K70: Premium Risk Standard Deviation Factor adjusted for aggregate cap | M70: Reserve Risk Standard Deviation Factor | O70: Combined Standard Deviation
B72: 1 - Motor Vehicle Liability & Prop. Reins. | K72: =IF('Premium and Reserve Risk'!Q8<>0,(SUMPRODUCT(Agg_P_1,Agg_sP_1)+('Premium and Reserve Risk'!Q8-SUM(Agg_P_1))*'Underwriting Risk'!K55)/'Premium and Reserve Risk'!Q8,'Underwriting Risk'!K55) -> 0.08 | M72: =IF('Premium and Reserve Risk'!S8<>0,(SUMPRODUCT(Agg_R_1,Agg_sR_1)+('Premium and Reserve Risk'!S8-SUM(Agg_R_1))*'Underwriting Risk'!M55)/'Premium and Reserve Risk'!S8,'Underwriting Risk'!M55) -> 0.09 | O72: =IF(SUM('Premium and Reserve Risk'!Q8:S8)<>0,SQRT((K72*'Premium and Reserve Risk'!Q8)^2+(K72*'Premium and Reserve Risk'!Q8*M72*'Premium and Reserve Risk'!S8)+(M72*'Premium and Reserve Risk'!S8)^2)/('Premium and Reserve Risk'!Q8+'Premium and Reserve Risk'!S8),0) -> 0
B73: 2 - Other Motor & Prop. Reins. | K73: =IF('Premium and Reserve Risk'!Q9<>0,(SUMPRODUCT(Agg_P_2,Agg_sP_2)+('Premium and Reserve Risk'!Q9-SUM(Agg_P_2))*'Underwriting Risk'!K56)/'Premium and Reserve Risk'!Q9,'Underwriting Risk'!K56) -> 0.08 | M73: =IF('Premium and Reserve Risk'!S9<>0,(SUMPRODUCT(Agg_R_2,Agg_sR_2)+('Premium and Reserve Risk'!S9-SUM(Agg_R_2))*'Underwriting Risk'!M56)/'Premium and Reserve Risk'!S9,'Underwriting Risk'!M56) -> 0.08 | O73: =IF(SUM('Premium and Reserve Risk'!Q9:S9)<>0,SQRT((K73*'Premium and Reserve Risk'!Q9)^2+(K73*'Premium and Reserve Risk'!Q9*M73*'Premium and Reserve Risk'!S9)+(M73*'Premium and Reserve Risk'!S9)^2)/('Premium and Reserve Risk'!Q9+'Premium and Reserve Risk'!S9),0) -> 0
B74: 3 - Marine, Aviation & Transport (MAT) & Prop. Reins. | K74: =IF('Premium and Reserve Risk'!Q10<>0,(SUMPRODUCT(Agg_P_3,Agg_sP_3)+('Premium and Reserve Risk'!Q10-SUM(Agg_P_3))*'Underwriting Risk'!K57)/'Premium and Reserve Risk'!Q10,'Underwriting Risk'!K57) -> 0.15 | M74: =IF('Premium and Reserve Risk'!S10<>0,(SUMPRODUCT(Agg_R_3,Agg_sR_3)+('Premium and Reserve Risk'!S10-SUM(Agg_R_3))*'Underwriting Risk'!M57)/'Premium and Reserve Risk'!S10,'Underwriting Risk'!M57) -> 0.11 | O74: =IF(SUM('Premium and Reserve Risk'!Q10:S10)<>0,SQRT((K74*'Premium and Reserve Risk'!Q10)^2+(K74*'Premium and Reserve Risk'!Q10*M74*'Premium and Reserve Risk'!S10)+(M74*'Premium and Reserve Risk'!S10)^2)/('Premium and Reserve Risk'!Q10+'Premium and Reserve Risk'!S10),0) -> 0
B75: 4 - Fire & Other Damage to Property & Prop. Reins. | K75: =IF('Premium and Reserve Risk'!Q11<>0,(SUMPRODUCT(Agg_P_4,Agg_sP_4)+('Premium and Reserve Risk'!Q11-SUM(Agg_P_4))*'Underwriting Risk'!K58)/'Premium and Reserve Risk'!Q11,'Underwriting Risk'!K58) -> 0.064 | M75: =IF('Premium and Reserve Risk'!S11<>0,(SUMPRODUCT(Agg_R_4,Agg_sR_4)+('Premium and Reserve Risk'!S11-SUM(Agg_R_4))*'Underwriting Risk'!M58)/'Premium and Reserve Risk'!S11,'Underwriting Risk'!M58) -> 0.1 | O75: =IF(SUM('Premium and Reserve Risk'!Q11:S11)<>0,SQRT((K75*'Premium and Reserve Risk'!Q11)^2+(K75*'Premium and Reserve Risk'!Q11*M75*'Premium and Reserve Risk'!S11)+(M75*'Premium and Reserve Risk'!S11)^2)/('Premium and Reserve Risk'!Q11+'Premium and Reserve Risk'!S11),0) -> 0
B76: 5 - General Liability & Prop. Reins. | K76: =IF('Premium and Reserve Risk'!Q12<>0,(SUMPRODUCT(Agg_P_5,Agg_sP_5)+('Premium and Reserve Risk'!Q12-SUM(Agg_P_5))*'Underwriting Risk'!K59)/'Premium and Reserve Risk'!Q12,'Underwriting Risk'!K59) -> 0.112 | M76: =IF('Premium and Reserve Risk'!S12<>0,(SUMPRODUCT(Agg_R_5,Agg_sR_5)+('Premium and Reserve Risk'!S12-SUM(Agg_R_5))*'Underwriting Risk'!M59)/'Premium and Reserve Risk'!S12,'Underwriting Risk'!M59) -> 0.11 | O76: =IF(SUM('Premium and Reserve Risk'!Q12:S12)<>0,SQRT((K76*'Premium and Reserve Risk'!Q12)^2+(K76*'Premium and Reserve Risk'!Q12*M76*'Premium and Reserve Risk'!S12)+(M76*'Premium and Reserve Risk'!S12)^2)/('Premium and Reserve Risk'!Q12+'Premium and Reserve Risk'!S12),0) -> 0
B77: 6 - Credit & Suretyship & Prop. Reins. | K77: =IF('Premium and Reserve Risk'!Q13<>0,(SUMPRODUCT(Agg_P_6,Agg_sP_6)+('Premium and Reserve Risk'!Q13-SUM(Agg_P_6))*'Underwriting Risk'!K60)/'Premium and Reserve Risk'!Q13,'Underwriting Risk'!K60) -> 0.12 | M77: =IF('Premium and Reserve Risk'!S13<>0,(SUMPRODUCT(Agg_R_6,Agg_sR_6)+('Premium and Reserve Risk'!S13-SUM(Agg_R_6))*'Underwriting Risk'!M60)/'Premium and Reserve Risk'!S13,'Underwriting Risk'!M60) -> 0.19 | O77: =IF(SUM('Premium and Reserve Risk'!Q13:S13)<>0,SQRT((K77*'Premium and Reserve Risk'!Q13)^2+(K77*'Premium and Reserve Risk'!Q13*M77*'Premium and Reserve Risk'!S13)+(M77*'Premium and Reserve Risk'!S13)^2)/('Premium and Reserve Risk'!Q13+'Premium and Reserve Risk'!S13),0) -> 0
B78: 7 - Legal Expenses & Prop. Reins. | K78: =IF('Premium and Reserve Risk'!Q14<>0,(SUMPRODUCT(Agg_P_7,Agg_sP_7)+('Premium and Reserve Risk'!Q14-SUM(Agg_P_7))*'Underwriting Risk'!K61)/'Premium and Reserve Risk'!Q14,'Underwriting Risk'!K61) -> 0.07 | M78: =IF('Premium and Reserve Risk'!S14<>0,(SUMPRODUCT(Agg_R_7,Agg_sR_7)+('Premium and Reserve Risk'!S14-SUM(Agg_R_7))*'Underwriting Risk'!M61)/'Premium and Reserve Risk'!S14,'Underwriting Risk'!M61) -> 0.12 | O78: =IF(SUM('Premium and Reserve Risk'!Q14:S14)<>0,SQRT((K78*'Premium and Reserve Risk'!Q14)^2+(K78*'Premium and Reserve Risk'!Q14*M78*'Premium and Reserve Risk'!S14)+(M78*'Premium and Reserve Risk'!S14)^2)/('Premium and Reserve Risk'!Q14+'Premium and Reserve Risk'!S14),0) -> 0
B79: 8 - Assistance & Prop. Reins. | K79: =IF('Premium and Reserve Risk'!Q15<>0,(SUMPRODUCT(Agg_P_8,Agg_sP_8)+('Premium and Reserve Risk'!Q15-SUM(Agg_P_8))*'Underwriting Risk'!K62)/'Premium and Reserve Risk'!Q15,'Underwriting Risk'!K62) -> 0.09 | M79: =IF('Premium and Reserve Risk'!S15<>0,(SUMPRODUCT(Agg_R_8,Agg_sR_8)+('Premium and Reserve Risk'!S15-SUM(Agg_R_8))*'Underwriting Risk'!M62)/'Premium and Reserve Risk'!S15,'Underwriting Risk'!M62) -> 0.2 | O79: =IF(SUM('Premium and Reserve Risk'!Q15:S15)<>0,SQRT((K79*'Premium and Reserve Risk'!Q15)^2+(K79*'Premium and Reserve Risk'!Q15*M79*'Premium and Reserve Risk'!S15)+(M79*'Premium and Reserve Risk'!S15)^2)/('Premium and Reserve Risk'!Q15+'Premium and Reserve Risk'!S15),0) -> 0
B80: 9 - Miscellaneous Financial Loss & Prop. Reins. | K80: =IF('Premium and Reserve Risk'!Q16<>0,(SUMPRODUCT(Agg_P_9,Agg_sP_9)+('Premium and Reserve Risk'!Q16-SUM(Agg_P_9))*'Underwriting Risk'!K63)/'Premium and Reserve Risk'!Q16,'Underwriting Risk'!K63) -> 0.13 | M80: =IF('Premium and Reserve Risk'!S16<>0,(SUMPRODUCT(Agg_R_9,Agg_sR_9)+('Premium and Reserve Risk'!S16-SUM(Agg_R_9))*'Underwriting Risk'!M63)/'Premium and Reserve Risk'!S16,'Underwriting Risk'!M63) -> 0.2 | O80: =IF(SUM('Premium and Reserve Risk'!Q16:S16)<>0,SQRT((K80*'Premium and Reserve Risk'!Q16)^2+(K80*'Premium and Reserve Risk'!Q16*M80*'Premium and Reserve Risk'!S16)+(M80*'Premium and Reserve Risk'!S16)^2)/('Premium and Reserve Risk'!Q16+'Premium and Reserve Risk'!S16),0) -> 0
B81: 25 - Non-prop. reinsurance - Casualty | K81: =IF('Premium and Reserve Risk'!Q17<>0,(SUMPRODUCT(Agg_P_19,Agg_sP_19)+('Premium and Reserve Risk'!Q17-SUM(Agg_P_19))*'Underwriting Risk'!K64)/'Premium and Reserve Risk'!Q17,'Underwriting Risk'!K64) -> 0.17 | M81: =IF('Premium and Reserve Risk'!S17<>0,(SUMPRODUCT(Agg_R_19,Agg_sR_19)+('Premium and Reserve Risk'!S17-SUM(Agg_R_19))*'Underwriting Risk'!M64)/'Premium and Reserve Risk'!S17,'Underwriting Risk'!M64) -> 0.2 | O81: =IF(SUM('Premium and Reserve Risk'!Q17:S17)<>0,SQRT((K81*'Premium and Reserve Risk'!Q17)^2+(K81*'Premium and Reserve Risk'!Q17*M81*'Premium and Reserve Risk'!S17)+(M81*'Premium and Reserve Risk'!S17)^2)/('Premium and Reserve Risk'!Q17+'Premium and Reserve Risk'!S17),0) -> 0
B82: 26 - Non-prop. reinsurance - MAT | K82: =IF('Premium and Reserve Risk'!Q18<>0,(SUMPRODUCT(Agg_P_20,Agg_sP_20)+('Premium and Reserve Risk'!Q18-SUM(Agg_P_20))*'Underwriting Risk'!K65)/'Premium and Reserve Risk'!Q18,'Underwriting Risk'!K65) -> 0.17 | M82: =IF('Premium and Reserve Risk'!S18<>0,(SUMPRODUCT(Agg_R_20,Agg_sR_20)+('Premium and Reserve Risk'!S18-SUM(Agg_R_20))*'Underwriting Risk'!M65)/'Premium and Reserve Risk'!S18,'Underwriting Risk'!M65) -> 0.2 | O82: =IF(SUM('Premium and Reserve Risk'!Q18:S18)<>0,SQRT((K82*'Premium and Reserve Risk'!Q18)^2+(K82*'Premium and Reserve Risk'!Q18*M82*'Premium and Reserve Risk'!S18)+(M82*'Premium and Reserve Risk'!S18)^2)/('Premium and Reserve Risk'!Q18+'Premium and Reserve Risk'!S18),0) -> 0
B83: 27 - Non-prop. reinsurance - Property | K83: =IF('Premium and Reserve Risk'!Q19<>0,(SUMPRODUCT(Agg_P_21,Agg_sP_21)+('Premium and Reserve Risk'!Q19-SUM(Agg_P_21))*'Underwriting Risk'!K66)/'Premium and Reserve Risk'!Q19,'Underwriting Risk'!K66) -> 0.17 | M83: =IF('Premium and Reserve Risk'!S19<>0,(SUMPRODUCT(Agg_R_21,Agg_sR_21)+('Premium and Reserve Risk'!S19-SUM(Agg_R_21))*'Underwriting Risk'!M66)/'Premium and Reserve Risk'!S19,'Underwriting Risk'!M66) -> 0.2 | O83: =IF(SUM('Premium and Reserve Risk'!Q19:S19)<>0,SQRT((K83*'Premium and Reserve Risk'!Q19)^2+(K83*'Premium and Reserve Risk'!Q19*M83*'Premium and Reserve Risk'!S19)+(M83*'Premium and Reserve Risk'!S19)^2)/('Premium and Reserve Risk'!Q19+'Premium and Reserve Risk'!S19),0) -> 0
B87: Overall | E87: Combined Volume Measure x Combined Standard Deviation
B89: 1 - Motor Vehicle Liability & Prop. Reins. | G89: ='Premium and Reserve Risk'!W8*O72 -> 0
B90: 2 - Other Motor & Prop. Reins. | G90: ='Premium and Reserve Risk'!W9*O73 -> 0
B91: 3 - Marine, Aviation & Transport (MAT) & Prop. Reins. | G91: ='Premium and Reserve Risk'!W10*O74 -> 0
B92: 4 - Fire & Other Damage to Property & Prop. Reins. | G92: ='Premium and Reserve Risk'!W11*O75 -> 0
B93: 5 - General Liability & Prop. Reins. | G93: ='Premium and Reserve Risk'!W12*O76 -> 0
B94: 6 - Credit & Suretyship & Prop. Reins. | G94: ='Premium and Reserve Risk'!W13*O77 -> 0
B95: 7 - Legal Expenses & Prop. Reins. | G95: ='Premium and Reserve Risk'!W14*O78 -> 0
B96: 8 - Assistance & Prop. Reins. | G96: ='Premium and Reserve Risk'!W15*O79 -> 0
B97: 9 - Miscellaneous Financial Loss & Prop. Reins. | G97: ='Premium and Reserve Risk'!W16*O80 -> 0
B98: 25 - Non-prop. reinsurance - Casualty | G98: ='Premium and Reserve Risk'!W17*O81 -> 0
B99: 26 - Non-prop. reinsurance - MAT | G99: ='Premium and Reserve Risk'!W18*O82 -> 0
B100: 27 - Non-prop. reinsurance - Property | G100: ='Premium and Reserve Risk'!W19*O83 -> 0
B102: Result
B104: Total combined volume measure | G104: =SUM('Premium and Reserve Risk'!$W$8:$W$19) -> 0
B105: Total combined standard deviation | G105: =IF($G$104=0,0,SQRT(MMULT(MMULT(TRANSPOSE($G$89:$G$100),CorrPR),$G$89:$G$100))/$G$104) -> 0

Sheet NSLT Health Risk
A1: NSLT Health Risk
B5: NSLT Health Underwriting Risk | E5: '000
B8: Health Premium and Reserve Risk SCR | E8: =NL_Health_PR -> 0
B9: Health Lapse Risk SCR | E9: =NL_Lapse_Health -> 0
B10: Health Catastrophe Risk SCR | E10: =NL_healthCAT -> 0
B12: Capital Requirement (before diversification benefit) | E12: =SUM(E8:E10) -> 0
B14: Diversification benefit | E14: =E16-E12 -> 0
B16: NSLT Health Risk SCR before stop loss | E16: =SQRT(MMULT(MMULT(TRANSPOSE(E8:E10),HealthCorr),E8:E10)) -> 0
B18: Maximum exposure under stop loss agreement | E18: 0
B20: NSLT Health Risk SCR | E20: =IF(E18<>0,MIN(E18,SCR_Health),SCR_Health) -> 0
B24: Premium and Reserve Risk | E24: '000
B26: Combined Volume Measure | E26: =E80 -> 0
B27: Combined Standard Deviation | E27: =E81 -> 0
B28: Capital Factor | E28: =P_and_R_Risk_Theta_factor -> 3
B30: Health Premium and Reserve Risk SCR | E30: =E$26*E$27*E$28 -> 0
B34: NSLT Health Lapse Risk | E34: '000
B37: Lapse risk SCR | E37: =LAPSE_UP_HEALTH -> 0
B41: Non-Life Health Catastrophe Risk | E41: '000
B43: Health Mass Accident Catastrophe Risk SCR | E43: ='Health Catastrophe Risk'!Health_MassAccident -> 0
B44: Health Accident Concentration Risk SCR | E44: ='Health Catastrophe Risk'!Health_Concentration -> 0
B45: Health Pandemic Risk SCR | E45: ='Health Catastrophe Risk'!Health_Pandemic -> 0
B47: Health Catatrophe Risk SCR | E47: =SQRT(SUMSQ(E43:E45)) -> 0
B53: Standard Deviation | J53: Premium Risk Standard Deviation Factor | L53: Reserve Risk Standard Deviation Factor
B55: 10 - Medical expense & Prop. Reins. | J55: 0.05 | L55: 0.05
B56: 11 - Income Protection & Prop. Reins. | J56: 0.085 | L56: 0.14
B57: 12 - Workers' compensation & Prop. Reins. | J57: 0.08 | L57: 0.11
B58: 28 - Non-prop. reinsurance - Health | J58: 0.17 | L58: 0.2
B62: Standard Deviation after aggregates | J62: Premium Risk Standard Deviation Factor adjusted for aggregate cap | L62: Reserve Risk Standard Deviation Factor | N62: Combined Standard Deviation
B64: 10 - Medical expense & Prop. Reins. | J64: =IF('Health Prem & Reserve Risk'!Q8<>0,(SUMPRODUCT(Agg_PH_1,Agg_SPH_1)+('Health Prem & Reserve Risk'!Q8-SUM(Agg_PH_1))*'NSLT Health Risk'!J55)/'Health Prem & Reserve Risk'!Q8,'NSLT Health Risk'!J55) -> 0.05 | L64: =IF('Health Prem & Reserve Risk'!S8<>0,(SUMPRODUCT(Agg_RH_1,Agg_SRH_1)+('Health Prem & Reserve Risk'!S8-SUM(Agg_RH_1))*'NSLT Health Risk'!L55)/'Health Prem & Reserve Risk'!S8,'NSLT Health Risk'!L55) -> 0.05 | N64: =IF(SUM('Health Prem & Reserve Risk'!Q8:S8)<>0,SQRT((J64*'Health Prem & Reserve Risk'!Q8)^2+(J64*'Health Prem & Reserve Risk'!Q8*L64*'Health Prem & Reserve Risk'!S8)+(L64*'Health Prem & Reserve Risk'!S8)^2)/('Health Prem & Reserve Risk'!Q8+'Health Prem & Reserve Risk'!S8),0) -> 0
B65: 11 - Income Protection & Prop. Reins. | J65: =IF('Health Prem & Reserve Risk'!Q9<>0,(SUMPRODUCT(Agg_PH_2,Agg_SPH_2)+('Health Prem & Reserve Risk'!Q9-SUM(Agg_PH_2))*'NSLT Health Risk'!J56)/'Health Prem & Reserve Risk'!Q9,'NSLT Health Risk'!J56) -> 0.085 | L65: =IF('Health Prem & Reserve Risk'!S9<>0,(SUMPRODUCT(Agg_RH_2,Agg_SRH_2)+('Health Prem & Reserve Risk'!S9-SUM(Agg_RH_2))*'NSLT Health Risk'!L56)/'Health Prem & Reserve Risk'!S9,'NSLT Health Risk'!L56) -> 0.14 | N65: =IF(SUM('Health Prem & Reserve Risk'!Q9:S9)<>0,SQRT((J65*'Health Prem & Reserve Risk'!Q9)^2+(J65*'Health Prem & Reserve Risk'!Q9*L65*'Health Prem & Reserve Risk'!S9)+(L65*'Health Prem & Reserve Risk'!S9)^2)/('Health Prem & Reserve Risk'!Q9+'Health Prem & Reserve Risk'!S9),0) -> 0
B66: 12 - Workers' compensation & Prop. Reins. | J66: =IF('Health Prem & Reserve Risk'!Q10<>0,(SUMPRODUCT(Agg_PH_3,Agg_SPH_3)+('Health Prem & Reserve Risk'!Q10-SUM(Agg_PH_3))*'NSLT Health Risk'!J57)/'Health Prem & Reserve Risk'!Q10,'NSLT Health Risk'!J57) -> 0.08 | L66: =IF('Health Prem & Reserve Risk'!S10<>0,(SUMPRODUCT(Agg_RH_3,Agg_SRH_3)+('Health Prem & Reserve Risk'!S10-SUM(Agg_RH_3))*'NSLT Health Risk'!L57)/'Health Prem & Reserve Risk'!S10,'NSLT Health Risk'!L57) -> 0.11 | N66: =IF(SUM('Health Prem & Reserve Risk'!Q10:S10)<>0,SQRT((J66*'Health Prem & Reserve Risk'!Q10)^2+(J66*'Health Prem & Reserve Risk'!Q10*L66*'Health Prem & Reserve Risk'!S10)+(L66*'Health Prem & Reserve Risk'!S10)^2)/('Health Prem & Reserve Risk'!Q10+'Health Prem & Reserve Risk'!S10),0) -> 0
B67: 28 - Non-prop. reinsurance - Health | J67: =IF('Health Prem & Reserve Risk'!Q11<>0,(SUMPRODUCT(Agg_PH_4,Agg_SPH_4)+('Health Prem & Reserve Risk'!Q11-SUM(Agg_PH_4))*'NSLT Health Risk'!J58)/'Health Prem & Reserve Risk'!Q11,'NSLT Health Risk'!J58) -> 0.17 | L67: =IF('Health Prem & Reserve Risk'!S11<>0,(SUMPRODUCT(Agg_RH_4,Agg_SRH_4)+('Health Prem & Reserve Risk'!S11-SUM(Agg_RH_4))*'NSLT Health Risk'!L58)/'Health Prem & Reserve Risk'!S11,'NSLT Health Risk'!L58) -> 0.2 | N67: =IF(SUM('Health Prem & Reserve Risk'!Q11:S11)<>0,SQRT((J67*'Health Prem & Reserve Risk'!Q11)^2+(J67*'Health Prem & Reserve Risk'!Q11*L67*'Health Prem & Reserve Risk'!S11)+(L67*'Health Prem & Reserve Risk'!S11)^2)/('Health Prem & Reserve Risk'!Q11+'Health Prem & Reserve Risk'!S11),0) -> 0
B71: Overall | C71: Combined Volume Measure x Combined Standard Deviation
B73: 10 - Medical expense & Prop. Reins. | E73: ='Health Prem & Reserve Risk'!W8*N64 -> 0
B74: 11 - Income Protection & Prop. Reins. | E74: ='Health Prem & Reserve Risk'!W9*N65 -> 0
B75: 12 - Workers' compensation & Prop. Reins. | E75: ='Health Prem & Reserve Risk'!W10*N66 -> 0
B76: 28 - Non-prop. reinsurance - Health | E76: ='Health Prem & Reserve Risk'!W11*N67 -> 0
B78: Result
B80: Total combined volume measure | E80: =SUM('Health Prem & Reserve Risk'!$W$8:$W$11) -> 0
B81: Total combined standard deviation | E81: =IF($E$80=0,0,SQRT(MMULT(MMULT(TRANSPOSE($E$73:$E$76),CorrPR_Health),$E$73:$E$76))/$E$80) -> 0

Sheet Operational Risk
A1: Operational Risk
B5: Operational risk | G5: Earned Premium* (last year) | I5: Earned Premium* (12 months prior) | K5: Best Estimate Provision | M5: Premium Component | O5: Reserve Component | Q5: Operational Risk SCR before floor | S5: Basic Solvency Capital Requirement | V5: Operational Risk SCR
G6: '000 | I6: '000 | K6: '000 | M6: '000 | O6: '000 | Q6: '000 | S6: '000 | V6: '000
B8: Total underwriting + NSLT health sub-modules | G8: 0 | I8: 0 | K8: =SUM('RBS - Direct TPs'!F13,'RBS - Direct TPs'!F22,'RBS - Direct TPs'!F31,'RBS - Direct TPs'!F40,'RBS - Direct TPs'!F49,'RBS - Direct TPs'!F58,'RBS - Direct TPs'!F67,'RBS - Direct TPs'!F76,'RBS - Direct TPs'!F85,'RBS - Direct TPs'!F94,'RBS - Direct TPs'!F103,'RBS - Direct TPs'!F112,'RBS - Reins TPs'!F13,'RBS - Reins TPs'!F22,'RBS - Reins TPs'!F31,'RBS - Reins TPs'!F40,'RBS - Reins TPs'!F49,'RBS - Reins TPs'!F58,'RBS - Reins TPs'!F67,'RBS - Reins TPs'!F76,'RBS - Reins TPs'!F85,'RBS - Reins TPs'!F94,'RBS - Reins TPs'!F103,'RBS - Reins TPs'!F112,'RBS - Reins TPs'!F121,'RBS - Reins TPs'!F130,'RBS - Reins TPs'!F139,'RBS - Reins TPs'!F148) -> 0 | M8: =Op_premium_factor1*(G8+MAX(0,G8-Op_premium_factor2*I8)) -> 0 | O8: =Op_provision_factor*MAX(0,K8) -> 0 | Q8: =MAX(M8,O8) -> 0 | S8: =BSCR -> 0 | V8: =MIN(0.3*S8,Q8) -> 0

Sheet Ring-Fenced Fund Adjustment
A1: Ring-Fenced Fund Adjustment
B4: Do you have any material ring-fenced funds? | D4: No
B5: If you have one or more material ring-fenced funds, update the below for each material ring-fenced fund. You will need to complete the rest of this return as if you don’t have any material ring-fenced funds.
B6: You will need to determine the SCR and own-funds for each ring-fenced fund separately.
B7: The full definition of a material ring-fenced fund is in the Regulations. In summary, a ring-fenced fund is a subset of an insurer’s own-funds that has been legally assigned to cover a specific contract or a specific claim within a contract. The key is that the ring-fenced funds are ‘trapped’ and cannot ever be used by the insurer to cover losses on other contracts or claim payments i.e. these own-funds can only ever be used to meet the claims of a certain group of policyholders /beneficiaries.
B8: Solvency Capital Requirement | D8: RFF1 | F8: RFF2 | H8: RFF3 | J8: RFF4 | L8: RFF5 | N8: RFF6 | P8: RFF7 | R8: RFF8 | T8: RFF9 | V8: RFF10 | X8: RFF11 | Z8: Not ring-fenced | AB8: Total SCR | AD8: With no RFF constraint | AF8: Total SCR allowing for RFFs
D9: '000 | F9: '000 | H9: '000 | J9: '000 | L9: '000 | N9: '000 | P9: '000 | R9: '000 | T9: '000 | V9: '000 | X9: '000 | Z9: '000 | AD9: '000 | AF9: '000
B11: Market Risk SCR | D11: 0 | F11: 0 | H11: 0 | J11: 0 | L11: 0 | N11: 0 | P11: 0 | R11: 0 | T11: 0 | V11: 0 | X11: 0 | Z11: 0 | AD11: ='SCR Summary'!D9 -> 0 | AF11: =SUM(D11,F11,H11,J11,L11,N11,P11,R11,T11,V11,X11,Z11) -> 0
B12: Counterparty Default Risk SCR | D12: 0 | F12: 0 | H12: 0 | J12: 0 | L12: 0 | N12: 0 | P12: 0 | R12: 0 | T12: 0 | V12: 0 | X12: 0 | Z12: 0 | AD12: ='SCR Summary'!D10 -> 0 | AF12: =SUM(D12,F12,H12,J12,L12,N12,P12,R12,T12,V12,X12,Z12) -> 0
B13: NSLT Health Risk SCR | D13: 0 | F13: 0 | H13: 0 | J13: 0 | L13: 0 | N13: 0 | P13: 0 | R13: 0 | T13: 0 | V13: 0 | X13: 0 | Z13: 0 | AD13: ='SCR Summary'!D11 -> 0 | AF13: 0
B14: Underwriting Risk SCR | D14: 0 | F14: 0 | H14: 0 | J14: 0 | L14: 0 | N14: 0 | P14: 0 | R14: 0 | T14: 0 | V14: 0 | X14: 0 | Z14: 0 | AD14: ='SCR Summary'!D12 -> 0 | AF14: 0
B15: Intangibles Risk SCR | D15: 0 | F15: 0 | H15: 0 | J15: 0 | L15: 0 | N15: 0 | P15: 0 | R15: 0 | T15: 0 | V15: 0 | X15: 0 | Z15: 0 | AD15: ='SCR Summary'!D13 -> 0 | AF15: 0
B17: BSCR (before diversification effects) | D17: =SUM(D11:D15) -> 0 | F17: =SUM(F11:F15) -> 0 | H17: =SUM(H11:H15) -> 0 | J17: =SUM(J11:J15) -> 0 | L17: =SUM(L11:L15) -> 0 | N17: =SUM(N11:N15) -> 0 | P17: =SUM(P11:P15) -> 0 | R17: =SUM(R11:R15) -> 0 | T17: =SUM(T11:T15) -> 0 | V17: =SUM(V11:V15) -> 0 | X17: =SUM(X11:X15) -> 0 | Z17: =SUM(Z11:Z15) -> 0 | AD17: ='SCR Summary'!D15 -> 0 | AF17: =SUM(AF11:AF15) -> 0
B19: Diversification | D19: =SQRT(MMULT(MMULT(TRANSPOSE(D11:D14),Corr),D11:D14))-SUM(D11:D14) -> 0 | F19: =SQRT(MMULT(MMULT(TRANSPOSE(F11:F14),Corr),F11:F14))-SUM(F11:F14) -> 0 | H19: =SQRT(MMULT(MMULT(TRANSPOSE(H11:H14),Corr),H11:H14))-SUM(H11:H14) -> 0 | J19: =SQRT(MMULT(MMULT(TRANSPOSE(J11:J14),Corr),J11:J14))-SUM(J11:J14) -> 0 | L19: =SQRT(MMULT(MMULT(TRANSPOSE(L11:L14),Corr),L11:L14))-SUM(L11:L14) -> 0 | N19: =SQRT(MMULT(MMULT(TRANSPOSE(N11:N14),Corr),N11:N14))-SUM(N11:N14) -> 0 | P19: =SQRT(MMULT(MMULT(TRANSPOSE(P11:P14),Corr),P11:P14))-SUM(P11:P14) -> 0 | R19: =SQRT(MMULT(MMULT(TRANSPOSE(R11:R14),Corr),R11:R14))-SUM(R11:R14) -> 0 | T19: =SQRT(MMULT(MMULT(TRANSPOSE(T11:T14),Corr),T11:T14))-SUM(T11:T14) -> 0 | V19: =SQRT(MMULT(MMULT(TRANSPOSE(V11:V14),Corr),V11:V14))-SUM(V11:V14) -> 0 | X19: =SQRT(MMULT(MMULT(TRANSPOSE(X11:X14),Corr),X11:X14))-SUM(X11:X14) -> 0 | Z19: =SQRT(MMULT(MMULT(TRANSPOSE(Z11:Z14),Corr),Z11:Z14))-SUM(Z11:Z14) -> 0 | AD19: =SQRT(MMULT(MMULT(TRANSPOSE(AD11:AD14),Corr),AD11:AD14))-SUM(AD11:AD14) -> 0 | AF19: =SUM(D19,F19,H19,J19,L19,N19,P19,R19,T19,V19,X19,Z19) -> 0
B21: BSCR | D21: =SUM(D17,D19) -> 0 | F21: =SUM(F17,F19) -> 0 | H21: =SUM(H17,H19) -> 0 | J21: =SUM(J17,J19) -> 0 | L21: =SUM(L17,L19) -> 0 | N21: =SUM(N17,N19) -> 0 | P21: =SUM(P17,P19) -> 0 | R21: =SUM(R17,R19) -> 0 | T21: =SUM(T17,T19) -> 0 | V21: =SUM(V17,V19) -> 0 | X21: =SUM(X17,X19) -> 0 | Z21: =SUM(Z17,Z19) -> 0 | AD21: =AD19+AD17 -> 0 | AF21: =SUM(AF17,AF19) -> 0
B23: Operational Risk SCR | AD23: =SCR_Op -> 0 | AF23: =AD23 -> 0
B25: Regulatory Adjustment | AD25: =Adj_Reg -> 0 | AF25: =AD25 -> 0
B27: SCR | D27: =SUM(D21,D25,D23) -> 0 | F27: =SUM(F21,F25,F23) -> 0 | H27: =SUM(H21,H25,H23) -> 0 | J27: =SUM(J21,J25,J23) -> 0 | L27: =SUM(L21,L25,L23) -> 0 | N27: =SUM(N21,N25,N23) -> 0 | P27: =SUM(P21,P25,P23) -> 0 | R27: =SUM(R21,R25,R23) -> 0 | T27: =SUM(T21,T25,T23) -> 0 | V27: =SUM(V21,V25,V23) -> 0 | X27: =SUM(X21,X25,X23) -> 0 | Z27: =SUM(Z21,Z25,Z23) -> 0 | AB27: =SUM(D27,F27,H27,J27,L27,N27,P27,R27,T27,V27,X27,Z27) -> 0 | AD27: =SUM(AD21,AD23,AD25) -> 0 | AF27: =SUM(AF21,AF23,AF25) -> 0
B31: Own Funds | AB31: Total Own Funds | AD31: With no RFF constraint | AF31: Total Own Funds allowing for RFFs
B33: Tier 1 | D33: 0 | F33: 0 | H33: 0 | J33: 0 | L33: 0 | N33: 0 | P33: 0 | R33: 0 | T33: 0 | V33: 0 | X33: 0 | Z33: 0 | AD33: ='Own Funds'!D121 -> 0 | AF33: =AD33-SUM(D41,F41,H41,J41,L41,N41,P41,R41,T41,V41,X41) -> 0
B34: Tier 2 | D34: 0 | F34: 0 | H34: 0 | J34: 0 | L34: 0 | N34: 0 | P34: 0 | R34: 0 | T34: 0 | V34: 0 | X34: 0 | Z34: 0 | AD34: ='Own Funds'!F121 -> 0 | AF34: =AD34 -> 0
B35: Tier 3 | D35: 0 | F35: 0 | H35: 0 | J35: 0 | L35: 0 | N35: 0 | P35: 0 | R35: 0 | T35: 0 | V35: 0 | X35: 0 | Z35: 0 | AD35: ='Own Funds'!H121 -> 0 | AF35: =AD35 -> 0
B37: Total Own Funds | D37: =SUM(D33:D35) -> 0 | F37: =SUM(F33:F35) -> 0 | H37: =SUM(H33:H35) -> 0 | J37: =SUM(J33:J35) -> 0 | L37: =SUM(L33:L35) -> 0 | N37: =SUM(N33:N35) -> 0 | P37: =SUM(P33:P35) -> 0 | R37: =SUM(R33:R35) -> 0 | T37: =SUM(T33:T35) -> 0 | V37: =SUM(V33:V35) -> 0 | X37: =SUM(X33:X35) -> 0 | Z37: =SUM(Z33:Z35) -> 0 | AB37: =SUM(D37,F37,H37,J37,L37,N37,P37,R37,T37,V37,X37,Z37)-SUM(D41,F41,H41,J41,L41,N41,P41,R41,T41,V41,X41) -> 0 | AD37: =SUM(AD33:AD35) -> 0 | AF37: =SUM(AF33:AF35) -> 0
B39: Solvency Coverage Ratio | D39: =IF(D27<>0,D37/D27,"N/A") -> N/A | F39: =IF(F27<>0,F37/F27,"N/A") -> N/A | H39: =IF(H27<>0,H37/H27,"N/A") -> N/A | J39: =IF(J27<>0,J37/J27,"N/A") -> N/A | L39: =IF(L27<>0,L37/L27,"N/A") -> N/A | N39: =IF(N27<>0,N37/N27,"N/A") -> N/A | P39: =IF(P27<>0,P37/P27,"N/A") -> N/A | R39: =IF(R27<>0,R37/R27,"N/A") -> N/A | T39: =IF(T27<>0,T37/T27,"N/A") -> N/A | V39: =IF(V27<>0,V37/V27,"N/A") -> N/A | X39: =IF(X27<>0,X37/X27,"N/A") -> N/A | Z39: =IF(Z27<>0,Z37/Z27,"N/A") -> N/A | AB39: =IF(AB27<>0,AB37/AB27,"N/A") -> N/A | AD39: =IF(AD27<>0,AD37/AD27,"N/A") -> N/A | AF39: =IF(AF27<>0,AF37/AF27,"N/A") -> N/A
B41: Own funds in excess of SCR | D41: =MAX(0,D37-D27) -> 0 | F41: =MAX(0,F37-F27) -> 0 | H41: =MAX(0,H37-H27) -> 0 | J41: =MAX(0,J37-J27) -> 0 | L41: =MAX(0,L37-L27) -> 0 | N41: =MAX(0,N37-N27) -> 0 | P41: =MAX(0,P37-P27) -> 0 | R41: =MAX(0,R37-R27) -> 0 | T41: =MAX(0,T37-T27) -> 0 | V41: =MAX(0,V37-V27) -> 0 | X41: =MAX(0,X37-X27) -> 0

Sheet SCR Summary
A1: SCR Summary
B4: Confidence level | D4: 1in200
B6: Solvency Capital Requirement | D6: =Type_of_business -> 1in200
D7: '000
B9: Market Risk SCR | D9: =SCR_Market -> 0
B10: Counterparty Default Risk SCR | D10: =SCR_Default -> 0
B11: NSLT Health Risk SCR | D11: =SCR_Health_capped -> 0
B12: Underwriting Risk SCR | D12: =SCR_Non_Life_capped -> 0
B13: Intangible Risk SCR | D13: =Data!$F$375*'RBS - Assets'!$F$11 -> 0
B15: BSCR (before diversification effects) | D15: =SUM(D9:D13) -> 0
B17: Diversification | D17: =IF('Ring-Fenced Fund Adjustment'!D4="Yes",'Ring-Fenced Fund Adjustment'!AF19,SQRT(MMULT(MMULT(TRANSPOSE(D9:D12),Corr),D9:D12))-SUM(D9:D12)) -> 0
B19: BSCR | D19: =SUM(D15,D17) -> 0
B21: Operational Risk SCR | D21: ='Operational Risk'!V8 -> 0
B23: Regulatory Adjustment | D23: 0
B25: SCR | D25: =SUM(BSCR,SCR_Op,Adj_Reg) -> 0
B28: Own Funds | D28: =Type_of_business -> 1in200
D29: '000
B31: Tier 1 | D31: =IF('Ring-Fenced Fund Adjustment'!D4="Yes",'Ring-Fenced Fund Adjustment'!AF33,'Own Funds'!D121) -> 0
B32: Tier 2 | D32: ='Own Funds'!F121 -> 0
B33: Tier 3 | D33: ='Own Funds'!H121 -> 0
B35: Tier 1 Regulatory Adjustment | D35: 0
B36: Tier 2 Regulatory Adjustment | D36: 0
B37: Tier 3 Regulatory Adjustment | D37: 0
B39: Total own funds | D39: =SUM(D31:D33,D35:D37) -> 0
B41: Solvency Coverage Ratio | D41: =IF(ISERROR(Cap_Res/SCR),"",Cap_Res/SCR) -> 
D43: =IF(SCR=0,"",IF(Cap_Res<SCR,"Capital insufficient to cover SCR",IF(MIN(SCR,SUM(Tier_1_Cap,Tier_1_Adj))<0.5*SCR,"Proportion of Tier 1 Capital Insufficient",IF(MIN(SCR-MIN(SCR,SUM(Tier_1_Cap,Tier_1_Adj))-MIN(SCR-MIN(SCR,SUM(Tier_1_Cap,Tier_1_Adj)),SUM(Tier_2_Cap,Tier_2_Adj)),SUM(Tier_3_Cap,Tier_3_Adj))>0.15*SCR,"Proportion of Tier 3 Capital too great","Capital OK")))) -> 

Sheet MCR Summary
A1: MCR Summary
B4: Minimum Capital Requirement | F4: =Type_of_business -> 1in200
F5: '000
B7: Exchange rate | F7: 1
B9: Reduced MCR agreed with Authority? | F9: N/A
B11: SCR | F11: =SCR -> 0
B13: MCR before minimum applied | F13: =0.35*F11 -> 0
B14: Minimum MCR* | F14: =IF('MCR Summary'!F9="N/A",500000/1000*'MCR Summary'!F7,'MCR Summary'!F9) -> 500
B15: MCR after minimum applied | F15: =MAX(F13,F14) -> 500
B17: Regulatory Adjustment | F17: 0
B19: MCR | F19: =F15+F17 -> 500
B22: Eligible Own Funds | F22: '000
B24: Tier 1 | F24: ='Own Funds'!D126 -> 0
B25: Tier 2 | F25: ='Own Funds'!F126 -> 0
B26: Tier 3 | F26: ='Own Funds'!H126 -> 0
B28: Tier 1 Regulatory Adjustment | F28: =Tier_1_Adj -> 0
B29: Tier 2 Regulatory Adjustment | F29: =Tier_2_Adj -> 0
B30: Tier 3 Regulatory Adjustment | F30: =Tier_3_Adj -> 0
B32: Total Own Funds to meet MCR | F32: =SUM(F24:F26,F28:F30) -> 0
B34: MCR coverage ratio | F34: =F32/MCR -> 0

Sheet Change Analysis
B1: Change Analysis
C4: Movement in Regulatory Balance Sheet | E4: Current Period | G4: Previous Period | I4: Change | K4: Commentary
E5: ="'000" -> '000 | G5: ="'000" -> '000 | I5: %
C6: Assets
C7: Fixed assets | E7: ='RBS - Assets'!F14 -> 0 | G7: 0 | I7: =IF(E7="","",IF(ISERROR(E7/G7),"",E7/G7-1)) -> 
C8: Investments | E8: ='RBS - Assets'!F36 -> 0 | G8: 0
C9: Mortgages and loans made | E9: ='RBS - Assets'!F45 -> 0 | G9: 0
C10: Reinsurance recoverables | E10: ='RBS - Assets'!F53 -> 0 | G10: 0
C11: Other assets | E11: ='RBS - Assets'!F68 -> 0 | G11: 0
C12: Total assets | E12: =SUM(E7:E11) -> 0 | G12: =SUM(G7:G11) -> 0
C14: Liabilities
C15: Best estimate | E15: =SUM('RBS - Direct TPs'!F13,'RBS - Direct TPs'!F22,'RBS - Direct TPs'!F31,'RBS - Direct TPs'!F40,'RBS - Direct TPs'!F49,'RBS - Direct TPs'!F58,'RBS - Direct TPs'!F67,'RBS - Direct TPs'!F76,'RBS - Direct TPs'!F85,'RBS - Direct TPs'!F94,'RBS - Direct TPs'!F103,'RBS - Direct TPs'!F112,'RBS - Reins TPs'!F13,'RBS - Reins TPs'!F22,'RBS - Reins TPs'!F31,'RBS - Reins TPs'!F31,'RBS - Reins TPs'!F40,'RBS - Reins TPs'!F49,'RBS - Reins TPs'!F67,'RBS - Reins TPs'!F76,'RBS - Reins TPs'!F85,'RBS - Reins TPs'!F94,'RBS - Reins TPs'!F103,'RBS - Reins TPs'!F112,'RBS - Reins TPs'!F121,'RBS - Reins TPs'!F130,'RBS - Reins TPs'!F139,'RBS - Reins TPs'!F148,) -> 0 | G15: 0 | I15: =IF(E15="","",IF(ISERROR(E15/G15),"",E15/G15-1)) -> 
C16: Risk margin | E16: =SUM('RBS - Direct TPs'!F14,'RBS - Direct TPs'!F23,'RBS - Direct TPs'!F32,'RBS - Direct TPs'!F41,'RBS - Direct TPs'!F50,'RBS - Direct TPs'!F59,'RBS - Direct TPs'!F68,'RBS - Direct TPs'!F77,'RBS - Direct TPs'!F86,'RBS - Direct TPs'!F95,'RBS - Direct TPs'!F104,'RBS - Direct TPs'!F113,'RBS - Reins TPs'!F14,'RBS - Reins TPs'!F23,'RBS - Reins TPs'!F32,'RBS - Reins TPs'!F41,'RBS - Reins TPs'!F50,'RBS - Reins TPs'!F59,'RBS - Reins TPs'!F68,'RBS - Reins TPs'!F77,'RBS - Reins TPs'!F86,'RBS - Reins TPs'!F95,'RBS - Reins TPs'!F104,'RBS - Reins TPs'!F113,'RBS - Reins TPs'!F122,'RBS - Reins TPs'!F131,'RBS - Reins TPs'!F140,'RBS - Reins TPs'!F149,) -> 0 | G16: 0 | I16: =IF(E16="","",IF(ISERROR(E16/G16),"",E16/G16-1)) -> 
C17: Other liabilities | E17: ='RBS - Other Liab'!Reg_Other_Liabs -> 0 | G17: 0 | I17: =IF(E17="","",IF(ISERROR(E17/G17),"",E17/G17-1)) -> 
C18: Total liabilities | E18: =SUM(E15:E17) -> 0 | G18: =SUM(G15:G17) -> 0
C20: Net Assets | E20: =E12-E18 -> 0 | G20: =G12-G18 -> 0 | I20: =IF(E20="","",IF(ISERROR(E20/G20),"",E20/G20-1)) -> 
I21: =IF(E21="","",E21/G21-1) -> 
C24: Change in Own Funds* | E24: Current Period | G24: Previous Period | I24: Change | K24: Commentary
E25: ="'000" -> '000 | G25: ="'000" -> '000 | I25: %
C27: Share Capital | E27: ='RBS - Capital'!F11 -> 0 | G27: 0 | I27: =IF(E27="","",IF(ISERROR(E27/G27),"",E27/G27-1)) -> 
C28: Initial fund | E28: ='RBS - Capital'!F12 -> 0 | G28: 0
C29: Share premium | E29: ='RBS - Capital'!F13 -> 0 | G29: 0
C30: Retained earnings | E30: ='RBS - Capital'!F14 -> 0 | G30: 0
C31: Other reserves from accounting balance sheet | E31: ='RBS - Capital'!F15 -> 0 | G31: 0
C32: Surplus funds | E32: ='RBS - Capital'!F16 -> 0 | G32: 0
C33: Expected profit in future premiums ('EPIFP') | E33: ='RBS - Capital'!F17 -> 0 | G33: 0
C34: Preference Shares | E34: ='RBS - Capital'!F18 -> 0 | G34: 0
C35: Subordinated liabilities | E35: ='RBS - Capital'!F19 -> 0 | G35: 0
C36: Reconciliation reserve | E36: ='RBS - Capital'!F32 -> 0 | G36: 0
C37: Other items not specified above | E37: ='RBS - Capital'!F20 -> 0 | G37: 0 | I37: =IF(E37="","",IF(ISERROR(E37/G37),"",E37/G37-1)) -> 
C39: Total | E39: =SUM(E27:E37) -> 0 | G39: =SUM(G27:G37) -> 0 | I39: =IF(E39="","",IF(ISERROR(E39/G39),"",E39/G39-1)) -> 
C42: Change in SCR* | E42: Current Period | G42: Previous Period | I42: Change | K42: Commentary
E43: ="'000" -> '000 | G43: ="'000" -> '000 | I43: %
C45: Market Risk SCR | E45: ='SCR Summary'!D9 -> 0 | G45: 0 | I45: =IF(E45="","",IF(ISERROR(E45/G45),"",E45/G45-1)) -> 
C46: Counterparty Default Risk SCR | E46: ='SCR Summary'!D10 -> 0 | G46: 0
C47: NSLT Health Risk SCR | E47: ='SCR Summary'!D11 -> 0 | G47: 0
C48: Underwriting Risk SCR | E48: ='SCR Summary'!D12 -> 0 | G48: 0
C49: Intangible Risk SCR | E49: ='SCR Summary'!D13 -> 0 | G49: 0
C50: Diversification | E50: ='SCR Summary'!D17 -> 0 | G50: 0
C51: BSCR | E51: =SUM(E45:E50) -> 0 | G51: =SUM(G45:G50) -> 0
C52: SCRoperational risk | E52: =SCR_Op -> 0 | G52: 0
C54: SCR | E54: =SCR -> 0 | G54: =SUM(G45:G52) -> 0 | I54: =IF(E54="","",IF(ISERROR(E54/G54),"",E54/G54-1)) -> 
C56: Solvency coverage | E56: =IF(OR(E54=0,E54=""),"",E39/E54) ->  | G56: =IF(OR(G54=0,G54=""),"",G39/G54) ->  | I56: =IF(E56="","",IF(ISERROR(E56/G56),"",E56/G56-1)) -> 
C59: Change in MCR* | E59: Current Period | G59: Previous Period | I59: Change | K59: Commentary
E60: ="'000" -> '000 | G60: ="'000" -> '000 | I60: %
C62: MCR | E62: =MCR -> 500 | G62: 0 | I62: =IF(E62="","",IF(ISERROR(E62/G62),"",E62/G62-1)) -> 
C63: Own funds eligible to meet MCR | E63: ='MCR Summary'!F32 -> 0 | G63: 0
C65: MCR coverage | E65: =IF(OR(E62="",E62=0),"",E63/E62) -> 0 | G65: =IF(OR(G62="",G62=0),"",G63/G62) ->  | I65: =IF(E65="","",IF(ISERROR(E65/G65),"",E65/G65-1)) -> 

Sheet Supporting Material
A1: Supporting Material
B4: =Index!D97 -> Requirement for the provision of a narative summary document and supporting schematic diagram of the insurer's insurance program written during the accounting period of its accompanying audited accounts, and a narrative summary/schematic of the insurer's insurance program written and expected to be written (as applicable) during the subsequent 12 months. The second summary/schematic may, if appropriate, be limited to contain only material changes from the first summary/schematic. The summaries are also required to include information on any reinsurance purchased, any relevant contingent funding or liability reduction contractual clauses and any material factors likely to impact the insurance program.
B6: INSTRUCTIONS IN DOCUMENT "Instructions for NLT Return (Supplementary Information)"
B8: Supporting Material | E8: Supplied?
B10: Narrative summary reporting period | E10: Yes
B12: Narrative summary forecast period | E12: Yes
B14: Supporting schematic diagram reporting period | E14: Yes
B16: Supporting schematic diagram forecast period | E16: Yes
B18: Key explaining terms and abbreviations used in the above | E18: Yes
B22: Comments
B24: Comments
B27: Instructions

Sheet Summary of Single Exposures
A1: Summary of Single Exposures
A4: =Index!D99 -> In this Tab, TABLE 1 relates to business written by the insurer during the accounting period of its accompanying audited accounts. TABLE 2 relates to business written and expected to be written (as applicable) during the following 12 months. Each table requires information for each line of business on the insurer's highest written single loss/event (gross and net exposures), and (where different) the insurer's highest single loss/event retentions.
A8: TABLE 1: Business written during the accounting period of the accompanying audited accounts
C9: A | E9: B | G9: C | I9: D | K9: E | M9: F
C10: Basis used in column B | E10: Maximum gross exposure any one risk or event | G10: Reinsurance recoverables attributable to exposure in column B | I10: Net retention on exposure in column B | K10: Basis used in column F | M10: If greater than in column D, maximum retention any one risk or event
A11: Class of business | C11: Dropdown | E11: '000 | G11: '000 | I11: '000 | K11: Dropdown | M11: '000 | P11: Comments
A13: Direct class 3 | C13: Select | E13: 0 | G13: 0 | I13: =SUM(E13:H13) -> 0 | K13: Select | M13: 0
A14: Direct class 4 | C14: Select | E14: 0 | G14: 0 | I14: =SUM(E14:H14) -> 0 | K14: Select | M14: 0
A15: Direct class 5 | C15: Select | E15: 0 | G15: 0 | I15: 0 | K15: Select | M15: 0
A16: Direct class 6 | C16: Select | E16: 0 | G16: 0 | I16: 0 | K16: Select | M16: 0
A17: Direct class 7 | C17: Select | E17: 0 | G17: 0 | I17: 0 | K17: Select | M17: 0
A18: Direct class 8 | C18: Select | E18: 0 | G18: 0 | I18: 0 | K18: Select | M18: 0
A19: Direct class 9 | C19: Select | E19: 0 | G19: 0 | I19: 0 | K19: Select | M19: 0
A20: Reinsurance of class 3 | C20: Select | E20: 0 | G20: 0 | I20: 0 | K20: Select | M20: 0
A21: Reinsurance of class 4 | C21: Select | E21: 0 | G21: 0 | I21: 0 | K21: Select | M21: 0
A22: Reinsurance of class 5 | C22: Select | E22: 0 | G22: 0 | I22: 0 | K22: Select | M22: 0
A23: Reinsurance of class 6 | C23: Select | E23: 0 | G23: 0 | I23: 0 | K23: Select | M23: 0
A24: Reinsurance of class 7 | C24: Select | E24: 0 | G24: 0 | I24: 0 | K24: Select | M24: 0
A25: Reinsurance of class 8 | C25: Select | E25: 0 | G25: 0 | I25: 0 | K25: Select | M25: 0
A26: Reinsurance of class 9 | C26: Select | E26: 0 | G26: 0 | I26: 0 | K26: Select | M26: 0
A30: TABLE 2: Business written/forecast during the following 12 month period
C31: A | E31: B | G31: C | I31: D | K31: E | M31: F
C32: Basis used in column B | E32: Maximum gross exposure any one risk or event | G32: Reinsurance recoverables attributable to exposure in column B | I32: Net retention on exposure in column B | K32: Basis used in column F | M32: If greater than in column D, maximum retention any one risk or event
A33: Class of business | C33: Dropdown | E33: '000 | G33: '000 | I33: '000 | K33: Dropdown | M33: '000 | P33: Comments
A35: Direct class 3 | C35: Select | E35: 0 | G35: 0 | I35: =SUM(E35:H35) -> 0 | K35: Select | M35: 0
A36: Direct class 4 | C36: Select | E36: 0 | G36: 0 | I36: =SUM(E36:H36) -> 0 | K36: Select | M36: 0
A37: Direct class 5 | C37: Select | E37: 0 | G37: 0 | I37: 0 | K37: Select | M37: 0
A38: Direct class 6 | C38: Select | E38: 0 | G38: 0 | I38: 0 | K38: Select | M38: 0
A39: Direct class 7 | C39: Select | E39: 0 | G39: 0 | I39: 0 | K39: Select | M39: 0
A40: Direct class 8 | C40: Select | E40: 0 | G40: 0 | I40: 0 | K40: Select | M40: 0
A41: Direct class 9 | C41: Select | E41: 0 | G41: 0 | I41: 0 | K41: Select | M41: 0
A42: Reinsurance of class 3 | C42: Select | E42: 0 | G42: 0 | I42: 0 | K42: Select | M42: 0
A43: Reinsurance of class 4 | C43: Select | E43: 0 | G43: 0 | I43: 0 | K43: Select | M43: 0
A44: Reinsurance of class 5 | C44: Select | E44: 0 | G44: 0 | I44: 0 | K44: Select | M44: 0
A45: Reinsurance of class 6 | C45: Select | E45: 0 | G45: 0 | I45: 0 | K45: Select | M45: 0
A46: Reinsurance of class 7 | C46: Select | E46: 0 | G46: 0 | I46: 0 | K46: Select | M46: 0
A47: Reinsurance of class 8 | C47: Select | E47: 0 | G47: 0 | I47: 0 | K47: Select | M47: 0
A48: Reinsurance of class 9 | C48: Select | E48: 0 | G48: 0 | I48: 0 | K48: Select | M48: 0
A51: Instructions

Sheet 12 Month Forecast
A1: =RIGHT(CELL("filename",$A$1),LEN(CELL("filename",$A$1))-FIND("]",CELL("filename",$A$1))) -> 12 Month Forecast
A4: =Index!D101 -> A high level summary by class of business of the insurer's forecast insurance programme for the 12 months following the accounting period of its accompanying audited accounts. It includes information on total gross premiums, total net premiums, total probable maximum losses and total expected claims. It also calculates simple loss ratios, identifies the risk gap (based on probable maximum losses) being taken on in the forecast period and asks for additional information on any foreseeable changes in funding levels.
A8: Business written/forecast during the 12 month period immediately following the end of the accounting period of the accompanying audited accounts
C9: A | E9: B | G9: C | I9: D | K9: E | M9: F | O9: G | Q9: H | S9: I | U9: J | W9: K | Y9: L
C10: Total gross premiums receivable attributable by class of business | E10: Total reinsurance premiums payable attributable by class of business | G10: Total commissions receivable attributable by class of business | I10: Total commissions payable attributable by class of business | K10: Total net premiums receivable attributable by class of business (also net of commissions) | M10: Total estimated probable gross maximum losses attributable by class of business | O10: Total reinsurance recoverables attributable to the losses in column F | Q10: Total estimated probable net maximum losses attributable by class of business | S10: Total gross expected ultimate cost of claims attributable by class of business | U10: Reinsurance recoverables attributable by class of business | W10: Total net expected ultimate cost of claims attributable by line of business | Y10: Expected claims ratio
A12: Class of business | C12: '000 | E12: '000 | G12: '000 | I12: '000 | K12: '000 | M12: '000 | O12: '000 | Q12: '000 | S12: '000 | U12: '000 | W12: '000 | Y12: % | AB12: Comments
A14: Direct class 3 | C14: 0 | E14: 0 | G14: 0 | I14: 0 | K14: =SUM(C14:I14) -> 0 | M14: 0 | O14: 0 | P14: 0 | Q14: =SUM(M14:P14) -> 0 | S14: 0 | U14: 0 | W14: =SUM(S14:V14) -> 0 | Y14: =IF(W14=0,"",(W14/K14)*-1) -> 
A15: Direct class 4 | C15: 0 | E15: 0 | G15: 0 | I15: 0 | K15: =SUM(C15:I15) -> 0 | M15: 0 | O15: 0 | Q15: 0 | S15: 0 | U15: 0 | W15: 0
A16: Direct class 5 | C16: 0 | E16: 0 | G16: 0 | I16: 0 | K16: 0 | M16: 0 | O16: 0 | Q16: 0 | S16: 0 | U16: 0 | W16: 0
A17: Direct class 6 | C17: 0 | E17: 0 | G17: 0 | I17: 0 | K17: 0 | M17: 0 | O17: 0 | Q17: 0 | S17: 0 | U17: 0 | W17: 0
A18: Direct class 7 | C18: 0 | E18: 0 | G18: 0 | I18: 0 | K18: 0 | M18: 0 | O18: 0 | Q18: 0 | S18: 0 | U18: 0 | W18: 0
A19: Direct class 8 | C19: 0 | E19: 0 | G19: 0 | I19: 0 | K19: 0 | M19: 0 | O19: 0 | Q19: 0 | S19: 0 | U19: 0 | W19: 0
A20: Direct class 9 | C20: 0 | E20: 0 | G20: 0 | I20: 0 | K20: 0 | M20: 0 | O20: 0 | Q20: 0 | S20: 0 | U20: 0 | W20: 0
A21: Reinsurance of class 3 | C21: 0 | E21: 0 | G21: 0 | I21: 0 | K21: 0 | M21: 0 | O21: 0 | Q21: 0 | S21: 0 | U21: 0 | W21: 0
A22: Reinsurance of class 4 | C22: 0 | E22: 0 | G22: 0 | I22: 0 | K22: 0 | M22: 0 | O22: 0 | Q22: 0 | S22: 0 | U22: 0 | W22: 0
A23: Reinsurance of class 5 | C23: 0 | E23: 0 | G23: 0 | I23: 0 | K23: 0 | M23: 0 | O23: 0 | Q23: 0 | S23: 0 | U23: 0 | W23: 0
A24: Reinsurance of class 6 | C24: 0 | E24: 0 | G24: 0 | I24: 0 | K24: 0 | M24: 0 | O24: 0 | Q24: 0 | S24: 0 | U24: 0 | W24: 0
A25: Reinsurance of class 7 | C25: 0 | E25: 0 | G25: 0 | I25: 0 | K25: 0 | M25: 0 | O25: 0 | Q25: 0 | S25: 0 | U25: 0 | W25: 0
A26: Reinsurance of class 8 | C26: 0 | E26: 0 | G26: 0 | I26: 0 | K26: 0 | M26: 0 | O26: 0 | Q26: 0 | S26: 0 | U26: 0 | W26: 0
A27: Reinsurance of class 9 | C27: 0 | E27: 0 | G27: 0 | I27: 0 | K27: 0 | M27: 0 | O27: 0 | Q27: 0 | S27: 0 | U27: 0 | W27: =SUM(S27:V27) -> 0
A28: TOTAL | C28: =SUM(C14:C27) -> 0 | E28: =SUM(E14:E27) -> 0 | G28: =SUM(G14:G27) -> 0 | I28: =SUM(I14:I27) -> 0 | K28: =SUM(K14:K27) -> 0 | M28: =SUM(M14:M27) -> 0 | O28: =SUM(O14:O27) -> 0 | Q28: =SUM(Q14:Q27) -> 0 | S28: =SUM(S14:S27) -> 0 | U28: =SUM(U14:U27) -> 0 | W28: =SUM(W14:W27) -> 0
A32: Cannot be atributed by class of business | C32: 0 | E32: 0 | G32: 0 | I32: 0 | K32: =SUM(C32:I32) -> 0 | M32: 0 | O32: 0 | Q32: =SUM(M32:P32) -> 0 | S32: 0 | U32: 0 | W32: =SUM(S32:V32) -> 0 | Y32: =IF(W32=0,"",(W32/K32)*-1) -> 
I34: Total net premiums receivable | K34: =SUM(K28:K32) -> 0 | O34: Total estimated probable net maximum losses | Q34: =SUM(Q28:Q32) -> 0 | U34: Total net expected ultimate cost of claims | W34: =SUM(W28:W32) -> 0
U36: Total net premiums receivable | W36: =K34 -> 0
U38: Expected underwriting surplus/(deficit) | W38: =W36+W34 -> 0
U40: Expected overall loss ratio (including business not attributable by class of business) | W40: =IF(K34=0,"",W34/K34*-1) -> 
U42: New risk gap (based on probable net maximum losses) being taken on over the forecast period | W42: =SUM(K34:Q34) -> 0
K44: Enter details of any material new funding (in addition to the premiums above), distinguishing between paid up and contingent amounts (as applicable)
K49: Enter details of any likely material removal/expiry of any existing funding, distinguishing between paid up and contingent amounts (as applicable)
K54: Enter details of any likely dividends or distributions
A60: Instructions

Sheet Large Claims
A1: Large Claims
B4: =Index!D103 -> Information about any large claims exceeding 20% of the insurer's net assets, and how they have developed and/or settled over the accounting period of the attached audited accounts.
B8: Details of the development and settlement of any large claim (or number of claims from the same event) which exceeds 20% of net assets
B10: A | D10: B | F10: C | H10: D
B11: Claim | D11: Class(es) of business | F11: Underwriting year/accident year | H11: Details (if any) of development and/or settlement during the reporting period
B14: 1 | F14: YYYY
B15: 2 | F15: YYYY
B16: 3 | F16: YYYY
B17: 4 | F17: YYYY
B18: 5 | F18: YYYY
B19: 6 | F19: YYYY
B20: 7 | F20: YYYY
B21: 8 | F21: YYYY
B22: 9 | F22: YYYY
B23: 10 | F23: YYYY
B24: 11 | F24: YYYY
B25: 12 | F25: YYYY
B26: 13 | F26: YYYY
B27: 14 | F27: YYYY
B28: 15 | F28: YYYY
B31: Instructions

Sheet Security Supporting Obligations
A1: Security Supporting Obligations
B4: =Index!D105 -> Information on security provided directly or indirectly to guarantee that the insurer's insurance obligations are met.
B8: TABLE 1: Letters of credit and letters of guarantee
B9: A | D9: B | F9: C | H9: D | J9: E | L9: F | N9: G | P9: H | R9: I | T9: J | V9: K | X9: L | Z9: M
B10: Type of security | D10: Beneficiary | F10: Issued by | H10: To cost of | J10: Amount of credit or guarantee | L10: Purpose | N10: Unilaterally adjustable? | P10: Terms of notice | R10: Date of issue [dd/mm/yyyyy] | T10: Expiry date [dd/mm/yyyyy] or expiry terms | V10: Restrictions on drawing rights | X10: Other material terms and conditions | Z10: Collateral provided to the issuer | AB10: Other comments (if any)
J11: '000
B13: Select | J13: 0
B14: Select | J14: 0
B15: Select | J15: 0
B16: Select | J16: 0
B17: Select | J17: 0
B18: Select | J18: 0
B19: Select | J19: 0
B20: Select | J20: 0
B21: Select | J21: 0
B22: Select | J22: 0
B23: Select | J23: 0
B24: Select | J24: 0
B25: Select | J25: 0
B26: Select | J26: 0
B27: Select | J27: 0
B30: TABLE 2: Other security
B32: Type of security (Specify) | L32: Description of material features
B48: Instructions

Sheet Annual Accounting Info
A1: Other information
B4: Contains certain additional information requirements.
C8: The following information is required to be provided by all non long-term insurers
H10: '000
D12: Insurance Technical Provisions
D14: Unearned premium reserves (UPR) | H14: 0
D15: Outstanding claims reserves (OCR) | H15: 0
D16: Incurred but not reported reserve (IBNR) | H16: 0
D17: Incurred but not enough reported reserve (IBNER) | H17: 0
D18: Unexpired risk reserve (URR) [if not included in UPR]* | H18: 0
D19: Any other technical provision (specify) | H19: 0 | J19: Other prov'n specifics | L19: Enter Text
D21: Total gross insurance provisions | H21: =SUM(H14:H19) -> 0
D23: Total amounts recoverable from reinsurers* | H23: 0
D25: Total net technical provisions contained in balance sheet | H25: =H21+H23 -> 0
D27: Profit and Loss Statement
D29: Gross premiums written* | H29: 0
D30: Outward rensurance premiums ceded* | H30: 0
D31: Movement UPR* | H31: 0
D32: Movement in URR* | H32: 0
D33: Movement in OCR, IBNR and IBNER* | H33: 0
D34: Gross claims paid* | H34: 0
D35: Reinsurance recovered* | H35: 0
D36: Commissions and expenses* | H36: 0
D37: Foreign exchange movements* | H37: 0
D38: Investment income* | H38: 0
D39: Any other item not attributable to any of the above (specify)* | H39: 0 | J39: Other item specifics | L39: Enter Text
D41: Profit/Loss for the reporting period | H41: =SUM(H29:H39) -> 0
B45: Instructions

Sheet Data
A1: =RIGHT(CELL("filename",$A$1),LEN(CELL("filename",$A$1))-FIND("]",CELL("filename",$A$1))) -> Data
B4: Currency | C4: Currency Code
B5: United Kingdom Pound | C5: GBP
B6: United States Dollar | C6: USD
B7: Euro | C7: EUR
B8: Sweden Krona | C8: SEK
B9: Afghanistan Afghani | C9: AFN
B10: Albania Lek | C10: ALL
B11: Algeria Dinar | C11: DZD
B12: Argentina Peso | C12: ARS
B13: Australia Dollar | C13: AUD
B14: Bahamas Dollar | C14: BSD
B15: Bahrain Dinar | C15: BHD
B16: Bangladesh Taka | C16: BDT
B17: Barbados Dollar | C17: BBD
B18: Bermuda Dollar | C18: BMD
B19: Brazil Real | C19: BRL
B20: Bulgaria Lev | C20: BGN
B21: Canada Dollar | C21: CAD
B22: Chile Peso | C22: CLP
B23: China Yuan Renminbi | C23: CNY
B24: Colombia Peso | C24: COP
B25: Costa Rica Colon | C25: CRC
B26: Croatia Kuna | C26: HRK
B27: Czech Republic Koruna | C27: CZK
B28: Denmark Krone | C28: DKK
B29: Dominican Republic Peso | C29: DOP
B30: Egypt Pound | C30: EGP
B31: Fiji Dollar | C31: FJD
B32: Hong Kong Dollar | C32: HKD
B33: Hungary Forint | C33: HUF
B34: Iceland Krona | C34: ISK
B35: India Rupee | C35: INR
B36: Indonesia Rupiah | C36: IDR
B37: Iran Rial | C37: IRR
B38: Iraq Dinar | C38: IQD
B39: Israel Shekel | C39: ILS
B40: Jamaica Dollar | C40: JMD
B41: Japan Yen | C41: JPY
B42: Jordan Dinar | C42: JOD
B43: Kenya Shilling | C43: KES
B44: Kuwait Dinar | C44: KWD
B45: Lebanon Pounds | C45: LBP
B46: Lituania Lita | C46: LTL
B47: Malaysia Ringgit | C47: MYR
B48: Mauritius Rupee | C48: MUR
B49: Mexico Peso | C49: MXN
B50: Morocco Dirham | C50: MAD
B51: New Zealand Dollar | C51: NZD
B52: Norway Krone | C52: NOK
B53: Oman Rial | C53: OMR
B54: Pakistan Rupee | C54: PKR
B55: Peru Nuevo Sol | C55: PEN
B56: Philippines Peso | C56: PHP
B57: Poland Zloty | C57: PLN
B58: Qatar Riyal | C58: QAR
B59: Romania New Leu | C59: RON
B60: Russia Ruble | C60: RUB
B61: Saudi Arabia Riyal | C61: SAR
B62: Singapore Dollar | C62: SGD
B63: South Africa Rand | C63: ZAR
B64: South Korea Won | C64: KRW
B65: Sri Lanka Rupee | C65: LKR
B66: Sudan Pound | C66: SDG
B67: Switzerland Franc | C67: CHF
B68: Taiwan New Dollar | C68: TWD
B69: Thailand Baht | C69: THB
B70: Trinidad and Tobago Dollar | C70: TTD
B71: Tunisia Dinar | C71: TND
B72: Turkey Lira | C72: TRY
B73: United Arab Emirates Dirham | C73: AED
B74: Venezuela Bolivares Fuertes | C74: VEF
B75: Vietnam Dong | C75: VND
B76: Zambia Kwacha | C76: ZMK
B80: Corr (200) | C80: Market | D80: Default | E80: Health | F80: Non-Life | J80: Corr (10) * | K80: Market | L80: Default | M80: Health | N80: Non-Life
B81: Market | C81: 1 | D81: 0.25 | E81: 0.25 | F81: 0.25 | J81: Market | K81: 1 | L81: 0 | M81: 0 | N81: 0
B82: Default | C82: 0.25 | D82: 1 | E82: 0.25 | F82: 0.5 | J82: Default | K82: 0 | L82: 1 | M82: 0 | N82: 0.25
B83: Health | C83: 0.25 | D83: 0.25 | E83: 1 | F83: 0 | K83: 0 | L83: 0 | M83: 1 | N83: 0
B84: Non-Life | C84: 0.25 | D84: 0.5 | E84: 0 | F84: 1 | J84: Non-Life | K84: 0 | L84: 0.25 | M84: 1 | N84: 1
B87: MarketCorr (200) | C87: Interest | D87: Equity | E87: Property | F87: Currency | G87: Spread | H87: Concentration | J87: MarketCorr (10) * | K87: Interest | L87: Equity | M87: Property | N87: Currency | O87: Spread | P87: Concentration
B88: Interest | C88: 1 | D88: =TRANSPOSE(C89:C$93) -> 0 | E88: 0 | F88: 0.25 | G88: 0 | H88: 0 | J88: Interest | K88: 1 | L88: =TRANSPOSE(K89:K$93) -> 0 | M88: 0 | N88: 0 | O88: 0 | P88: 0
B89: Equity | C89: =A_200 -> 0 | D89: 1 | E89: =TRANSPOSE(D90:D$93) -> 0.75 | F89: 0.25 | G89: 0.75 | H89: 0 | J89: Equity | K89: =A_10 -> 0 | L89: 1 | M89: =TRANSPOSE(L90:L$93) -> 0.5 | N89: 0 | O89: 0.5 | P89: 0
B90: Property | C90: =A_200 -> 0 | D90: 0.75 | E90: 1 | F90: =TRANSPOSE(E91:E$93) -> 0.25 | G90: 0.5 | H90: 0 | J90: Property | K90: =A_10 -> 0 | L90: 0.5 | M90: 1 | N90: =TRANSPOSE(M91:M$93) -> 0 | O90: 0.25 | P90: 0
B91: Currency | C91: 0.25 | D91: 0.25 | E91: 0.25 | F91: 1 | G91: =TRANSPOSE(F92:F$93) -> 0.25 | H91: 0 | J91: Currency | K91: 0 | L91: 0 | M91: 0 | N91: 1 | O91: =TRANSPOSE(N92:N$93) -> 0 | P91: 0
B92: Spread | C92: =A_200 -> 0 | D92: 0.75 | E92: 0.5 | F92: 0.25 | G92: 1 | H92: =TRANSPOSE(G93:G$93) -> 0 | J92: Spread | K92: =A_10 -> 0 | L92: 0.5 | M92: 0.25 | N92: 0 | O92: 1 | P92: =TRANSPOSE(O93:O$93) -> 0
B93: Concentration | C93: 0 | D93: 0 | E93: 0 | F93: 0 | G93: 0 | H93: 1 | J93: Concentration | K93: 0 | L93: 0 | M93: 0 | N93: 0 | O93: 0 | P93: 1
B95: Selection of A_200 in MarketCorr | D95: A_200 | L95: A_10
B96: Marketinterest = MarketinterestUp | D96: 0 | L96: 0
B97: Marketinterest = MarketinterestDown | D97: 0.5 | L97: 0.25
C98: Selected: | D98: =IF(Mkt_Interest='Market Risk Inputs'!K13,$D$96,$D$97) -> 0 | K98: Selected: | L98: =0 -> 0
B101: EqCorr | C101: Type 1 | D101: Type 2
B102: Type 1 | C102: 1 | D102: =$C$103 -> 0.75
B103: Type 2 | C103: 0.75 | D103: 1
B106: CurrencyCorr | C106: 1 | D106: 2 | E106: 3 | F106: 4 | G106: 5 | H106: 6 | I106: 7 | J106: 8 | K106: 9 | L106: 10 | M106: 11 | N106: 12 | O106: 13 | P106: 14 | Q106: 15
B107: CurrGroup1 | C107: 1 | D107: =TRANSPOSE(C108:C$121) -> 0.5 | E107: 0.5 | F107: 0.5 | G107: 0.5 | H107: 0.5 | I107: 0.5 | J107: 0.5 | K107: 0.5 | L107: 0.5 | M107: 0.5 | N107: 0.5 | O107: 0.5 | P107: 0.5 | Q107: 0.5
B108: CurrGroup2 | C108: 0.5 | D108: 1 | E108: =TRANSPOSE(D109:D$121) -> 0.5 | F108: 0.5 | G108: 0.5 | H108: 0.5 | I108: 0.5 | J108: 0.5 | K108: 0.5 | L108: 0.5 | M108: 0.5 | N108: 0.5 | O108: 0.5 | P108: 0.5 | Q108: 0.5
B109: CurrGroup3 | C109: 0.5 | D109: 0.5 | E109: 1 | F109: =TRANSPOSE(E110:E$121) -> 0.5 | G109: 0.5 | H109: 0.5 | I109: 0.5 | J109: 0.5 | K109: 0.5 | L109: 0.5 | M109: 0.5 | N109: 0.5 | O109: 0.5 | P109: 0.5 | Q109: 0.5
B110: CurrGroup4 | C110: 0.5 | D110: 0.5 | E110: 0.5 | F110: 1 | G110: =TRANSPOSE(F111:F$121) -> 0.5 | H110: 0.5 | I110: 0.5 | J110: 0.5 | K110: 0.5 | L110: 0.5 | M110: 0.5 | N110: 0.5 | O110: 0.5 | P110: 0.5 | Q110: 0.5
B111: CurrGroup5 | C111: 0.5 | D111: 0.5 | E111: 0.5 | F111: 0.5 | G111: 1 | H111: =TRANSPOSE(G112:G$121) -> 0.5 | I111: 0.5 | J111: 0.5 | K111: 0.5 | L111: 0.5 | M111: 0.5 | N111: 0.5 | O111: 0.5 | P111: 0.5 | Q111: 0.5
B112: CurrGroup6 | C112: 0.5 | D112: 0.5 | E112: 0.5 | F112: 0.5 | G112: 0.5 | H112: 1 | I112: =TRANSPOSE(H113:H$121) -> 0.5 | J112: 0.5 | K112: 0.5 | L112: 0.5 | M112: 0.5 | N112: 0.5 | O112: 0.5 | P112: 0.5 | Q112: 0.5
B113: CurrGroup7 | C113: 0.5 | D113: 0.5 | E113: 0.5 | F113: 0.5 | G113: 0.5 | H113: 0.5 | I113: 1 | J113: =TRANSPOSE(I114:I$121) -> 0.5 | K113: 0.5 | L113: 0.5 | M113: 0.5 | N113: 0.5 | O113: 0.5 | P113: 0.5 | Q113: 0.5
B114: CurrGroup8 | C114: 0.5 | D114: 0.5 | E114: 0.5 | F114: 0.5 | G114: 0.5 | H114: 0.5 | I114: 0.5 | J114: 1 | K114: =TRANSPOSE(J115:J$121) -> 0.5 | L114: 0.5 | M114: 0.5 | N114: 0.5 | O114: 0.5 | P114: 0.5 | Q114: 0.5
B115: CurrGroup9 | C115: 0.5 | D115: 0.5 | E115: 0.5 | F115: 0.5 | G115: 0.5 | H115: 0.5 | I115: 0.5 | J115: 0.5 | K115: 1 | L115: =TRANSPOSE(K116:K$121) -> 0.5 | M115: 0.5 | N115: 0.5 | O115: 0.5 | P115: 0.5 | Q115: 0.5
B116: CurrGroup10 | C116: 0.5 | D116: 0.5 | E116: 0.5 | F116: 0.5 | G116: 0.5 | H116: 0.5 | I116: 0.5 | J116: 0.5 | K116: 0.5 | L116: 1 | M116: =TRANSPOSE(L117:L$121) -> 0.5 | N116: 0.5 | O116: 0.5 | P116: 0.5 | Q116: 0.5
B117: CurrGroup11 | C117: 0.5 | D117: 0.5 | E117: 0.5 | F117: 0.5 | G117: 0.5 | H117: 0.5 | I117: 0.5 | J117: 0.5 | K117: 0.5 | L117: 0.5 | M117: 1 | N117: =TRANSPOSE(M118:M$121) -> 0.5 | O117: 0.5 | P117: 0.5 | Q117: 0.5
B118: CurrGroup12 | C118: 0.5 | D118: 0.5 | E118: 0.5 | F118: 0.5 | G118: 0.5 | H118: 0.5 | I118: 0.5 | J118: 0.5 | K118: 0.5 | L118: 0.5 | M118: 0.5 | N118: 1 | O118: =TRANSPOSE(N119:N$121) -> 0.5 | P118: 0.5 | Q118: 0.5
B119: CurrGroup13 | C119: 0.5 | D119: 0.5 | E119: 0.5 | F119: 0.5 | G119: 0.5 | H119: 0.5 | I119: 0.5 | J119: 0.5 | K119: 0.5 | L119: 0.5 | M119: 0.5 | N119: 0.5 | O119: 1 | P119: =TRANSPOSE(O120:O$121) -> 0.5 | Q119: 0.5
B120: CurrGroup14 | C120: 0.5 | D120: 0.5 | E120: 0.5 | F120: 0.5 | G120: 0.5 | H120: 0.5 | I120: 0.5 | J120: 0.5 | K120: 0.5 | L120: 0.5 | M120: 0.5 | N120: 0.5 | O120: 0.5 | P120: 1 | Q120: =TRANSPOSE(P121:P$121) -> 0.5
B121: CurrGroup15 | C121: 0.5 | D121: 0.5 | E121: 0.5 | F121: 0.5 | G121: 0.5 | H121: 0.5 | I121: 0.5 | J121: 0.5 | K121: 0.5 | L121: 0.5 | M121: 0.5 | N121: 0.5 | O121: 0.5 | P121: 0.5 | Q121: 1
B123: See TS appendix for mapping to short term credit ratings
B124: Credit Quality (CQ) Step | C124: S & P's / Fitch | D124: Moody's | E124: AM Best
B126: 0 | C126: AAA | D126: Aaa | E126: A++
B127: 1 | C127: AA | D127: Aa | E127: A+
B128: 2 | C128: A | D128: A | E128: A
B129: 3 | C129: BBB | D129: Baa | E129: A-
B130: 4 | C130: BB | D130: Ba | E130: B++ to B
B131: 5 | C131: B | D131: B | E131: B- to C+
B132: 6 | C132: CCC or lower | D132: Lower | E132: C or lower
B136: 1 in 200 Credit Spread Risk
B137: Bonds - Base Factors | D137: Credit Quality Step | N137: MCR not met
B138: Duration | C138: Range | D138: 0 | E138: 1 | F138: 2 | G138: 3 | H138: 4 | I138: 5 | J138: 6 | L138: Unrated
B139: dur ≤ 5 | C139: 0 | D139: 0 | E139: 0 | F139: 0 | G139: 0 | H139: 0 | I139: 0 | J139: 0 | L139: 0 | N139: 0
B140: 5 < dur ≤ 10 | C140: 5 | D140: 0 | E140: 0 | F140: 0 | G140: 0 | H140: 0 | I140: 0 | J140: 0 | L140: 0 | N140: 0
B141: 10 < dur ≤ 15 | C141: 10 | D141: 0 | E141: 0 | F141: 0 | G141: 0 | H141: 0 | I141: 0 | J141: 0 | L141: 0 | N141: 0
B142: 15 < dur ≤ 20 | C142: 15 | D142: 0 | E142: 0 | F142: 0 | G142: 0 | H142: 0 | I142: 0 | J142: 0 | L142: 0 | N142: 0
B143: 20 < dur | C143: 20 | D143: 0 | E143: 0 | F143: 0 | G143: 0 | H143: 0 | I143: 0 | J143: 0 | L143: 0 | N143: 0
B145: Bonds - Factor Multiples | D145: Credit Quality Step | N145: MCR not met
B146: Duration | C146: Range | D146: 0 | E146: 1 | F146: 2 | G146: 3 | H146: 4 | I146: 5 | J146: 6 | L146: Unrated
B147: dur ≤ 5 | C147: 0 | D147: 0.009 | E147: 0.011 | F147: 0.014 | G147: 0.025 | H147: 0.045 | I147: 0.075 | J147: 0.075 | L147: 0.03 | N147: 0.075
B148: 5 < dur ≤ 10 | C148: 5 | D148: 0.009 | E148: 0.011 | F148: 0.014 | G148: 0.025 | H148: 0.045 | I148: 0.075 | J148: 0.075 | L148: 0.03 | N148: 0.075
B149: 10 < dur ≤ 15 | C149: 10 | D149: 0.009 | E149: 0.011 | F149: 0.014 | G149: 0.025 | H149: 0.045 | I149: 0.075 | J149: 0.075 | L149: 0.03 | N149: 0.075
B150: 15 < dur ≤ 20 | C150: 15 | D150: 0.009 | E150: 0.011 | F150: 0.014 | G150: 0.025 | H150: 0.045 | I150: 0.075 | J150: 0.075 | L150: 0.03 | N150: 0.075
B151: 20 < dur | C151: 20 | D151: 0.009 | E151: 0.011 | F151: 0.014 | G151: 0.025 | H151: 0.045 | I151: 0.075 | J151: 0.075 | L151: 0.03 | N151: 0.075
B154: DefaultCorr | C154: Type 1 | D154: Type 2
B155: Type 1 | C155: 1 | D155: =$C$156 -> 0.75
B156: Type 2 | C156: 0.75 | D156: 1
B159: NLCorr (200) | C159: Premium | D159: Lapse | E159: Catastrophe | J159: HealthCorr (200) * | K159: Premium | L159: Lapse | M159: Catastrophe
B160: Premium_Reserve | C160: 1 | D160: =TRANSPOSE(C161:C$162) -> 0 | E160: 0.25 | J160: Premium_Reserve | K160: 1 | L160: =TRANSPOSE(K161:K$162) -> 0 | M160: 0.25
B161: Lapse | C161: 0 | D161: 1 | E161: =TRANSPOSE(D162:D$162) -> 0 | J161: Lapse | K161: 0 | L161: 1 | M161: =TRANSPOSE(L162:L$162) -> 0.25
B162: Catastrophe | C162: 0.25 | D162: 0 | E162: 1 | J162: Catastrophe | K162: 0.25 | L162: 0.25 | M162: 1
B165: NLCorr (10) | C165: Premium | D165: Lapse | E165: Catastrophe | J165: HealthCorr (10) * | K165: Premium | L165: Lapse | M165: Catastrophe
B166: Premium_Reserve | C166: 1 | D166: 0 | E166: 0 | J166: Premium_Reserve | K166: 1 | L166: 0 | M166: 0
B167: Lapse | C167: 0 | D167: 1 | E167: 0 | J167: Lapse | K167: 0 | L167: 1 | M167: 0
B168: Catastrophe | C168: 0 | D168: 0 | E168: 1 | J168: Catastrophe | K168: 0 | L168: 0 | M168: 1
B173: CorrPR (200) | C173: 1 | D173: 2 | E173: 3 | F173: 4 | G173: 5 | H173: 6 | I173: 7 | J173: 8 | K173: 9 | L173: 10 | M173: 11 | N173: 12
B174: 1. Motor Vehicle Liability | C174: 1 | D174: 0.5 | E174: 0.5 | F174: 0.25 | G174: 0.5 | H174: 0.25 | I174: 0.5 | J174: 0.25 | K174: 0.5 | L174: 0.25 | M174: 0.25 | N174: 0.25
B175: 2. Other Motor | C175: 0.5 | D175: 1 | E175: 0.25 | F175: 0.25 | G175: 0.25 | H175: 0.25 | I175: 0.5 | J175: 0.5 | K175: 0.5 | L175: 0.25 | M175: 0.25 | N175: 0.25
B176: 3. Marine, Aviation & Transport (MAT) | C176: 0.5 | D176: 0.25 | E176: 1 | F176: 0.25 | G176: 0.25 | H176: 0.25 | I176: 0.25 | J176: 0.5 | K176: 0.5 | L176: 0.25 | M176: 0.5 | N176: 0.25
B177: 4. Fire & Other Damage to Property | C177: 0.25 | D177: 0.25 | E177: 0.25 | F177: 1 | G177: 0.25 | H177: 0.25 | I177: 0.25 | J177: 0.5 | K177: 0.5 | L177: 0.25 | M177: 0.5 | N177: 0.5
B178: 5. General Liability | C178: 0.5 | D178: 0.25 | E178: 0.25 | F178: 0.25 | G178: 1 | H178: 0.5 | I178: 0.5 | J178: 0.25 | K178: 0.5 | L178: 0.5 | M178: 0.25 | N178: 0.25
B179: 6. Credit & Suretyship | C179: 0.25 | D179: 0.25 | E179: 0.25 | F179: 0.25 | G179: 0.5 | H179: 1 | I179: 0.5 | J179: 0.25 | K179: 0.5 | L179: 0.5 | M179: 0.25 | N179: 0.25
B180: 7. Legal Expenses | C180: 0.5 | D180: 0.5 | E180: 0.25 | F180: 0.25 | G180: 0.5 | H180: 0.5 | I180: 1 | J180: 0.25 | K180: 0.5 | L180: 0.5 | M180: 0.25 | N180: 0.25
B181: 8. Assistance | C181: 0.25 | D181: 0.5 | E181: 0.5 | F181: 0.5 | G181: 0.25 | H181: 0.25 | I181: 0.25 | J181: 1 | K181: 0.5 | L181: 0.25 | M181: 0.25 | N181: 0.5
B182: 9. Miscellaneous Financial Loss | C182: 0.5 | D182: 0.5 | E182: 0.5 | F182: 0.5 | G182: 0.5 | H182: 0.5 | I182: 0.5 | J182: 0.5 | K182: 1 | L182: 0.25 | M182: 0.5 | N182: 0.25
B183: 10. NP reinsurance - Casualty | C183: 0.25 | D183: 0.25 | E183: 0.25 | F183: 0.25 | G183: 0.5 | H183: 0.5 | I183: 0.5 | J183: 0.25 | K183: 0.25 | L183: 1 | M183: 0.25 | N183: 0.25
B184: 11. NP reinsurance - MAT | C184: 0.25 | D184: 0.25 | E184: 0.5 | F184: 0.5 | G184: 0.25 | H184: 0.25 | I184: 0.25 | J184: 0.25 | K184: 0.5 | L184: 0.25 | M184: 1 | N184: 0.25
B185: 12. NP reinsurance - Property | C185: 0.25 | D185: 0.25 | E185: 0.25 | F185: 0.5 | G185: 0.25 | H185: 0.25 | I185: 0.25 | J185: 0.5 | K185: 0.25 | L185: 0.25 | M185: 0.25 | N185: 1
B188: CorrPR (10) | C188: 1 | D188: 2 | E188: 3 | F188: 4 | G188: 5 | H188: 6 | I188: 7 | J188: 8 | K188: 9 | L188: 10 | M188: 11 | N188: 12
B189: 1. Motor Vehicle Liability | C189: 1 | D189: =D174-0.25 -> 0.25 | E189: =E174-0.25 -> 0.25 | F189: 0 | G189: =G174-0.25 -> 0.25 | H189: 0 | I189: =I174-0.25 -> 0.25 | J189: 0 | K189: =K174-0.25 -> 0.25 | L189: 0 | M189: 0 | N189: 0
B190: 2. Other Motor | C190: =C175-0.25 -> 0.25 | D190: 1 | E190: 0 | F190: 0 | G190: 0 | H190: 0 | I190: =I175-0.25 -> 0.25 | J190: 0.25 | K190: 0.25 | L190: 0 | M190: 0 | N190: 0
B191: 3. Marine, Aviation & Transport (MAT) | C191: =C176-0.25 -> 0.25 | D191: 0 | E191: 1 | F191: 0 | G191: 0 | H191: 0 | I191: =I176-0.25 -> 0 | J191: 0.25 | K191: 0.25 | L191: 0 | M191: 0.25 | N191: 0
B192: 4. Fire & Other Damage to Property | C192: 0 | D192: 0 | E192: =E177-0.25 -> 0 | F192: 1 | G192: 0 | H192: 0 | I192: =I177-0.25 -> 0 | J192: 0.25 | K192: 0.25 | L192: 0 | M192: 0.25 | N192: 0.25
B193: 5. General Liability | C193: 0.25 | D193: 0 | E193: 0 | F193: =F178-0.25 -> 0 | G193: 1 | H193: =H178-0.25 -> 0.25 | I193: =I178-0.25 -> 0.25 | J193: 0 | K193: 0.25 | L193: 0.25 | M193: 0 | N193: 0
B194: 6. Credit & Suretyship | C194: 0 | D194: 0 | E194: 0 | F194: =F179-0.25 -> 0 | G194: 0.25 | H194: 1 | I194: =I179-0.25 -> 0.25 | J194: 0 | K194: 0.25 | L194: 0.25 | M194: 0 | N194: 0
B195: 7. Legal Expenses | C195: 0.25 | D195: 0.25 | E195: 0 | F195: =F180-0.25 -> 0 | G195: 0.25 | H195: 0.25 | I195: 1 | J195: 0 | K195: 0.25 | L195: 0.25 | M195: 0 | N195: 0
B196: 8. Assistance | C196: 0 | D196: 0.25 | E196: 0.25 | F196: 0.25 | G196: 0 | H196: 0 | I196: 0 | J196: 1 | K196: 0.25 | L196: 0 | M196: 0 | N196: 0.25
B197: 9. Miscellaneous Financial Loss | C197: 0.25 | D197: 0.25 | E197: 0.25 | F197: 0.25 | G197: 0.25 | H197: 0.25 | I197: 0.25 | J197: 0.25 | K197: 1 | L197: =L182-0.25 -> 0 | M197: =M182-0.25 -> 0.25 | N197: =N182-0.25 -> 0
B198: 10. NP reinsurance - Casualty | C198: 0 | D198: 0 | E198: 0 | F198: 0 | G198: 0.25 | H198: 0.25 | I198: 0.25 | J198: 0 | K198: 0 | L198: 1 | M198: =M183-0.25 -> 0 | N198: =N183-0.25 -> 0
B199: 11. NP reinsurance - MAT | C199: 0 | D199: 0 | E199: 0.25 | F199: 0.25 | G199: 0 | H199: 0 | I199: 0 | J199: 0 | K199: 0.25 | L199: 0 | M199: 1 | N199: =N184-0.25 -> 0
B200: 12. NP reinsurance - Property | C200: 0 | D200: 0 | E200: 0 | F200: 0.25 | G200: 0 | H200: 0 | I200: 0 | J200: 0.25 | K200: 0 | L200: 0 | M200: 0 | N200: 1
B203: CorrCAT (200) | C203: Natural | D203: NP Prop. | E203: Man-Made | F203: Other
B204: Natural | C204: 1 | D204: =TRANSPOSE(C205:C$207) -> 1 | E204: 0 | F204: 0
B205: NP Prop. | C205: 1 | D205: 1 | E205: =TRANSPOSE(D206:D$207) -> 0 | F205: 0
B206: Man-Made | C206: 0 | D206: 0 | E206: 1 | F206: =TRANSPOSE(E207:E$207) -> 0
B207: Other | C207: 0 | D207: 0 | E207: 0 | F207: 1
B210: CorrCAT (10) | C210: Natural | D210: NP Prop. | E210: Man-Made | F210: Other
B211: Natural | C211: 1 | D211: =TRANSPOSE(C$212:C214) -> 0.75 | E211: 0 | F211: 0
B212: NP Prop. | C212: 0.75 | D212: 1 | E212: =TRANSPOSE(D$213:D214) -> 0 | F212: 0
B213: Man-Made | C213: 0 | D213: 0 | E213: 1 | F213: =E214 -> 0
B214: Other | C214: 0 | D214: 0 | E214: 0 | F214: 1
B217: CorrLiab (200) | C217: 1 | D217: 2 | E217: 3 | F217: 4 | G217: 5
B218: 1. Professional Malpractice Liability | C218: 1 | D218: =TRANSPOSE(C219:C$222) -> 0 | E218: 0.5 | F218: 0.25 | G218: 0.5
B219: 2. Employers Liability | C219: 0 | D219: 1 | E219: =TRANSPOSE(D220:D$222) -> 0 | F219: 0.25 | G219: 0.5
B220: 3. Directors and Officers | C220: 0.5 | D220: 0 | E220: 1 | F220: =TRANSPOSE(E221:E$222) -> 0.25 | G220: 0.5
B221: 4. Personal Liability | C221: 0.25 | D221: 0.25 | E221: 0.25 | F221: 1 | G221: =TRANSPOSE(F222:F$222) -> 0.5
B222: 5. Non-Proportional Reinsurance | C222: 0.5 | D222: 0.5 | E222: 0.5 | F222: 0.5 | G222: 1
B225: CorrLiab (10) | C225: 1 | D225: 2 | E225: 3 | F225: 4 | G225: 5
B226: 1. Professional Malpractice Liability | C226: 1 | D226: 0 | E226: 0.25 | F226: 0 | G226: 0.25
B227: 2. Employers Liability | C227: 0 | D227: 1 | E227: 0 | F227: 0 | G227: 0.25
B228: 3. Directors and Officers | C228: 0.25 | D228: 0 | E228: 1 | F228: 0 | G228: 0.25
B229: 4. Personal Liability | C229: 0 | D229: 0 | E229: 0 | F229: 1 | G229: 0.25
B230: 5. Non-Proportional Reinsurance | C230: 0.25 | D230: 0.25 | E230: 0.25 | F230: 0.25 | G230: 1
B233: CorrOther (200) | C233: 1 | D233: 2 | E233: 3 | F233: 4 | G233: 5
B234: 1. Transport (other than marine/aviation) | C234: 1 | D234: =TRANSPOSE(C235:C$238) -> 1 | E234: 0 | F234: 0 | G234: 0
B235: 2. NP Transport | C235: 1 | D235: 1 | E235: =TRANSPOSE(D236:D$238) -> 0 | F235: 0 | G235: 0
B236: 3. Miscellaneous Financial Loss | C236: 0 | D236: 0 | E236: 1 | F236: =TRANSPOSE(E237:E$238) -> 0 | G236: 0
B237: 4. NP Casualty | C237: 0 | D237: 0 | E237: 0 | F237: 1 | G237: =TRANSPOSE(F238:F$238) -> 0
B238: 5. NP Credit & Suretyship | C238: 0 | D238: 0 | E238: 0 | F238: 0 | G238: 1
B241: CorrOther (10) | C241: 1 | D241: 2 | E241: 3 | F241: 4 | G241: 5
B242: 1. Transport (other than marine/aviation) | C242: 1 | D242: 0.75 | E242: 0 | F242: 0 | G242: 0
... 128 more rows
